Workbook

Sheet Control Panel
A1: GO TO
A2: Utah | B2: Wyoming | D2: FILING INFORMATION | N2: Model Checks
A3: 1.1 | B3: 1.1 | N3: (Must Be 0)
A4: 1.2 | B4: 1.2 | F4: UTAH | J4: WYOMING | N4: ='Model Checks'!D7 -> 2618704.545
A5: 1.3 pg 1 | B5: 1.3 pg 1 | E5: Current Case No. | F5: 13-057-03 | J5: 30010-126-GP-13 | N5: (If this is not 0, or very close, go to
A6: 1.3 pg 2 | B6: 1.3 pg 2 | E6: Filing Date | F6: 2013-05-02 | J6: 2013-05-01 | N6: the "Model Checks"
B7: 1.3 pg 3 | E7: Test Year Ending | F7: 2014-05-31 | J7: 2014-05-31 | N7: Tab and find the
A8: 1.4 pg 1 | B8: 1.4 pg 1 | E8: Proposed Effective Date | F8: 2013-06-01 | J8: 2013-06-01 | N8: problem.)
A9: 1.4 pg 2 | B9: 1.4 pg 2 | E9: Prior Case No. | F9: 12-057-08 | J9: 30010-120-GP-12
A10: 1.4 pg 3 | N10: Go To
A11: 1.5 | B11: 1.5 | D11: Total Increase (Decrease) | F11: ='Utah Summary-by class'!Q28 -> 61434737.11 | H11: =F11-G11 -> 61434737.11 | J11: ='Wy 1.7 p2'!F49 -> 2466493.417 | L11: =J11-K11 -> 2466493.417 | N11: Model Checks'
A12: 1.6 pg 1 | B12: 1.6 pg 1
A13: 1.6 pg 2 | B13: 1.6 pg 2
A14: 1.6 pg 3 | B14: 1.6 pg 3 | D14: Typical Customer's Bill | N14: Old Ut Data color
A15: 1.7 pg 1 | B15: 1.7 pg 1 | N15: Old Wy Data color
A16: 1.7 pg 2 | B16: 1.7 pg 2 | E16: Previous | F16: ='Ut 1.7'!F30 -> 669.37 | J16: ='Wy 1.7 p1'!F33 -> 741.58 | N16: New Data color
A17: 1.8 | B17: 1.8 | E17: Proposed | F17: ='Ut 1.7'!H30 -> 716.76 | J17: ='Wy 1.7 p1'!G33 -> 799.67
A18: 1.9 | B18: 1.9 | E18: Difference | F18: ='Ut 1.7'!J30 -> 47.39 | H18: =F18-G18 -> 47.39 | J18: ='Wy 1.7 p1'!H33 -> 58.09 | L18: =J18-K18 -> 58.09
A19: Monthly Inputs | E19: % Difference | F19: ='Ut 1.7'!J32 -> 7.08 | H19: =F19-G19 -> 7.08 | J19: ='Wy 1.7 p1'!H37 -> 7.83 | L19: =J19-K19 -> 7.83
A20: Other Inputs
A21: Expenses
A22: Rate Base
N28: 37777609
D29: Exhibit Headings | N29: 8603966
N30: =SUM(N28:N29) -> 46381575
D31: UTAH
F32: Questar Gas Company
F33: ="Docket No. "&F5 -> Docket No. 13-057-03
D35: WYOMING
F36: =F32 -> Questar Gas Company
F37: ="PSCW Docket No. "&J5 -> PSCW Docket No. 30010-126-GP-13
D39: Test Year (enter as text)
E40: from | F40: Jun-13
E41: to | F41: May-14

Sheet Application
A1: Application Information
B3: Utah | F3: Wyoming
A4: Utah Gas Costs | B4: ='Ut 1.5'!G41 -> 611127889.2 | E4: Wyoming Gas Costs | F4: ='Wy 1.5'!F43 -> 22544665.83
A5: Increase (Decrease) to Commodity | B5: ='Utah Summary-by class'!G31 -> 65209000 | E5: Increase (Decrease) to Commodity | F5: ='Wy 1.7 p2'!F49 -> 2466493.417
A6: Increase (Decrease) to SNG | B6: ='Utah Summary-by class'!N31 -> -3775000
A7: Total Increase (Decrease) | B7: ='Utah Summary-by class'!Q31 -> 61435000
A8: Typical Increase in $ | B8: ='Ut 1.7'!J30 -> 47.39 | E8: Typical Increase in $ | F8: ='Wy 1.7 p1'!H33 -> 58.09
A9: Typical Monthly Increase | B9: =B8/12 -> 3.949166667 | E9: Typical Monthly Increase | F9: =F8/12 -> 4.840833333
A10: Typical Increase in % | B10: ='Ut 1.7'!J32/100 -> 0.0708 | E10: Typical Increase in % | F10: ='Wy 1.7 p1'!H37/100 -> 0.0783
A11: Proposed Rate Effective Date | B11: ='Control Panel'!F8 -> 2013-06-01 | E11: Proposed Rate Effective Date | F11: ='Control Panel'!J8 -> 2013-06-01
A12: Test Year Ending | B12: ='Control Panel'!F7 -> 2014-05-31 | E12: Test Year Ending | F12: ='Control Panel'!J7 -> 2014-05-31
A13: System-Wide Production Costs | B13: ='Ut 1.1'!H1403 -> 366685887.4 | E13: System-Wide Production Costs | F13: ='Wy 1.1'!H1403 -> 366685887.4
A14: System-Wide Royalty Payments | B14: ='Ut 1.1'!H1398 -> 51058090.44 | E14: System-Wide Royalty Payments | F14: ='Wy 1.1'!H1398 -> 51058090.44
A15: Wexpro Operators Service Fee | B15: ='Ut 1.1'!H1400 -> 315627797 | E15: Wexpro Operators Service Fee | F15: ='Wy 1.1'!H1400 -> 315627797
A16: Purchased Gas Costs | B16: ='Ut 1.2'!G24 -> 194788454 | E16: Purchased Gas Costs | F16: ='Wy 1.2'!G25 -> 194788454.4
A17: Purchased Gas Costs per Dth | B17: ='Ut 1.2'!F24 -> 4.737162926 | E17: Purchased Gas Costs per Dth | F17: ='Wy 1.2'!F25 -> 4.737162935
A18: Contracted Dth | B18: ='Ut 1.2'!E17 -> 18530000 | C18: Dth | E18: Contracted Dth | F18: ='Wy 1.2'!E18 -> 18530000 | G18: Dth
A19: Contracted Dth Costs | B19: ='Ut 1.2'!G17 -> 91834045 | E19: Contracted Dth Costs | F19: ='Wy 1.2'!G18 -> 91834045.3
A20: Stabailization Costs | B20: ='Ut 1.2'!G16 -> 0 | E20: Stabailization Costs | F20: ='Wy 1.2'!G17 -> 0
A21: Spot Market Dth | B21: ='Ut 1.2'!E19 -> 21911274 | C21: Dth | E21: Spot Market Dth | F21: ='Wy 1.2'!E20 -> 21911274 | G21: Dth
A22: Spot Market Costs | B22: ='Ut 1.2'!G19 -> 99971484 | E22: Spot Market Costs | F22: ='Wy 1.2'!G20 -> 99971484.09
A23: Purchased Gas Dth | B23: ='Ut 1.2'!E24 -> 41119222 | C23: Dth | E23: Purchased Gas Dth | F23: ='Wy 1.2'!E25 -> 41119222 | G23: Dth
A24: Future Contract Dth | B24: ='Ut 1.2'!E21 -> 677948 | C24: Dth | E24: Future Contract Dth | F24: ='Wy 1.2'!E22 -> 677948 | G24: Dth
A25: Future Contract Costs | B25: ='Ut 1.2'!G21 -> 2982925 | E25: Future Contract Costs | F25: ='Wy 1.2'!G22 -> 2982925
A26: Transportation & Gathering Costs | B26: ='Ut 1.3 p1'!M60 -> 83099330 | E26: Transportation & Gathering Costs | F26: ='Wy 1.3 p1'!M58 -> 83072568.48
A27: Transportation Costs | B27: ='Ut 1.3 p1'!M29 -> 62296822 | E27: Kern River Transportation Costs | F27: ='Wy 1.3 p1'!M29 -> 62270060.14
A28: Capacity Release Credits | B28: =-'Ut 1.3 p1'!L20 -> 240852 | E28: Capacity Release Credits | F28: =-'Wy 1.3 p1'!L20 -> 267613.78
A29: Transportation Commodity Costs | B29: ='Ut 1.3 p1'!M44 -> 565165 | E29: Transportation Commodity Costs | F29: ='Wy 1.3 p1'!M44 -> 565165.3411
E30: QGM Gathering Costs | F30: ='Wy 1.3 p1'!M50 -> 15530425.27
A31: Other Trans. & Gathering Costs | B31: ='Ut 1.3 p1'!L53 -> 1978875 | E31: Other Trans. & Gathering Costs | F31: ='Wy 1.3 p1'!M55 -> 4706917.73
A32: CO2 Processing Costs
A33: Storage & Working Gas Costs | B33: ='Ut 1.3 p1'!L54 -> 2728043 | E33: Storage & Working Gas Costs | F33: ='Wy 1.3 p2'!K56 -> 18225581.8
A34: Total Other Costs | B34: ='Ut 1.3 p1'!M55 -> 4706918
A35: Storage Costs | B35: ='Ut 1.3 p2'!K56 -> 18543994.97 | E35: Storage Costs | F35: ='Wy 1.3 p2'!K31 -> 14418620
A36: Storage Demand | B36: ='Ut 1.3 p2'!J20 -> 14025058
A37: Storage Commodity | B37: ='Ut 1.3 p2'!J27 -> 107452
A38: Working Storage Gas Return | B38: ='Ut 1.3 p2'!K53 -> 4125374.965 | E38: Working Storage Gas Return | F38: ='Wy 1.3 p2'!K53 -> 3806961.8
A39: Total Other Revenues | B39: ='Ut 1.4 p3'!H32 -> 32713841
E40: Production Depreciation & Amort. | F40: ='Wy 1.3 p3'!J20 -> 591292.55
E41: Return on Production Plant | F41: ='Wy 1.3 p3'!J47 -> 458200.002
E42: Total Production Return & Exp. | F42: ='Wy 1.3 p3'!J50 -> 1049492.552
A43: Utah Gas Costs | B43: ='Ut 1.5'!G41 -> 611127889.2 | E43: Wyoming Gas Costs | F43: ='Wy 1.5'!$F$43 -> 22544665.83
A44: Utah Gas Costs | B44: =B43 -> 611127889.2 | E44: Core Customer Gas Costs | F44: ='Wy 1.6 p1'!J17 -> 21698726.68
A45: Utah Net Gas Costs | B45: ='Ut 1.6 p1'!J16 -> 598764523.7 | E45: Core Customer Unit Cost of Gas | F45: ='Wy 1.6 p1'!F31 -> 5.67775
A46: Commodity Portion of Gas Costs | B46: ='Ut 1.6 p1'!J28 -> 505092261.4
A47: Firm Gas Cost | B47: ='Ut 1.6 p1'!F34 -> 4.86615
A48: Current Amortization | B48: ='Ut 1.6 p1'!H35 -> 0.07335 | E48: Current Amortization | F48: ='Wy 1.6 p1'!H32 -> -0.18698
A49: Previous Case No. | B49: ='Ut 1.6 p1'!H32 -> 12-057-08
A50: Forecasted 191 Account Balance | B50: ='Ut 1.6 p1'!D55 -> -7863845 | E50: Forecasted 191 Account Balance | F50: ='Wy 1.6 p1'!F53 -> -911512
A51: Proposed Amortization | B51: ='Ut 1.6 p1'!F35 -> -0.07576175203 | E51: Proposed Amortization | F51: ='Wy 1.6 p1'!F32 -> -0.23851
A52: Total Unit Cost in Rates | B52: ='Ut 1.6 p1'!F36 -> 4.790388248 | E52: Total Unit Cost in Rates | F52: ='Wy 1.6 p1'!F33 -> 5.43924
A53: Increase in Unit Cost In Rates | B53: ='Ut 1.6 p1'!J36 -> 0.628238248
A54: Test Year SNG Costs | B54: ='Ut 1.6 p2'!F14 -> 93672262.25
A55: Forested 191 SNG Balance | B55: ='Ut 1.6 p2'!F15 -> 0
A56: Total SNG | B56: ='Ut 1.6 p2'!F16 -> 93672262.25
A57: Forecasted Current SNG Revenues | B57: ='Ut 1.6 p2'!F19 -> 97447292.93
A58: % Change in SNG Rates | B58: =-ROUND('Ut 1.6 p2'!F35,2)/100 -> 0.0389
A59: Average Monthly Increase | B59: ='Ut 1.7'!J30/12 -> 3.949166667 | E59: Typical Increase in $ | F59: ='Wy 1.7 p1'!H33 -> 58.09
A60: Typical Increase in % | B60: ='Ut 1.7'!J32/100 -> 0.0708 | E60: Typical Increase in % | F60: ='Wy 1.7 p1'!H37/100 -> 0.0783
A61: Company Owned Gas % | E61: Company Owned Gas % | F61: =Calculations!P176 -> 0.6403680413
A62: Utah Gas Costs | B62: ='Ut 1.5'!G41 -> 611127889.2 | E62: Wyoming Gas Costs | F62: ='Wy 1.5'!$F$43 -> 22544665.83

Sheet Monthly Inputs
A1: MONTHLY INPUTS | E1: Col. E-F, copy from col. J-K (or appropriate columns), rows 3 through 81, before updating test year
G2: TEST YEAR COLUMNS | S2: 12-Month
E3: Apr13 | F3: May13 | G3: Jun13 | H3: Jul13 | I3: Aug13 | J3: Sep13 | K3: Oct13 | L3: Nov13 | M3: Dec13 | N3: Jan14 | O3: Feb14 | P3: Mar14 | Q3: Apr14 | R3: May14 | S3: Total
E4: =MONTH(E3) -> 4 | F4: 5 | G4: =MONTH(G3) -> 6 | H4: 7 | I4: 8 | J4: 9 | K4: 10 | L4: 11 | M4: 12 | N4: 1 | O4: 2 | P4: 3 | Q4: 4 | R4: 5
A5: QGC Company Produced Gas In MDth | G5: Scott Nelsen | I5: Updated: | J5: 2013-04-10
B7: Prior Company | E7: 241.26 | F7: 779.8 | G7: 467.22 | H7: 341.64 | I7: 241.29 | J7: 201.22 | K7: 466.75 | L7: 607.13 | M7: 710.85 | N7: 656.01 | O7: 583.55 | P7: 484.15 | Q7: 275.5 | R7: 420 | S7: =SUM(G7:R7) -> 5455.31 | U7: ScottN
B8: D24 & D21 | E8: 5469.334 | F8: 5112.272 | G8: 5072.9114 | H8: 5013.8151 | I8: 5235.6804 | J8: 5568.456 | K8: 5595.2997 | L8: 5496.7117 | M8: 6030.4773 | N8: 5948.2363 | O8: 5220.9336 | P8: 5914.2727 | Q8: 6290.5833 | R8: 6321.1514 | S8: =SUM(G8:R8) -> 67708.5289 | U8: ScottN
B9: Total Prior Company & D24 | E9: =SUM(E7:E8) -> 5710.594 | F9: 5892.072 | G9: =SUM(G7:G8) -> 5540.1314 | H9: =SUM(H7:H8) -> 5355.4551 | I9: 5476.9704 | J9: 5769.676 | K9: 6062.0497 | L9: 6103.8417 | M9: 6741.3273 | N9: 6604.2463 | O9: 5804.4836 | P9: 6398.4227 | Q9: 6566.0833 | R9: 6741.1514 | S9: =SUM(G9:R9) -> 73163.8389
B11: Brady | E11: 3.9871 | F11: 8.4995 | G11: 2.1631 | H11: 2.8422 | I11: 3.4178 | J11: 7.5634 | K11: 5.3559 | L11: 4.5125 | M11: 5.9047 | N11: 6.3461 | O11: 3.5148 | P11: 4.905 | Q11: 4.5861 | R11: 2.7841 | S11: =SUM(G11:R11) -> 53.8957 | U11: ScottN
B12: Total Company Produced Gas (MDth) | E12: =SUM(E9:E11) -> 5714.5811 | F12: 5900.5715 | G12: =SUM(G9:G11) -> 5542.2945 | H12: =SUM(H9:H11) -> 5358.2973 | I12: 5480.3882 | J12: 5777.2394 | K12: 6067.4056 | L12: 6108.3542 | M12: 6747.232 | N12: 6610.5924 | O12: 5807.9984 | P12: 6403.3277 | Q12: 6570.6694 | R12: =SUM(R9:R11) -> 6743.9355 | S12: =SUM(G12:R12) -> 73217.7346 | T12: =SUM(S9+S11) -> 73217.7346 | U12: =IF((S12*1000)=S16,"Ok","Check !!") -> Check !!
B16: Company Production In Dth | E16: 5714581.1 | F16: 5900571.5 | G16: 5542290 | H16: 5358300 | I16: 5480380 | J16: 5777240 | K16: 6067400 | L16: 6108360 | M16: 6747240 | N16: 6610590 | O16: 5807990 | P16: 6403330 | Q16: 6570670 | R16: 6743940 | S16: =SUM(G16:R16) -> 73217730 | U16: ScottN
B17: Birch Cr Gathering | E17: =E16/$S$16*$S$17 -> 0 | F17: 0 | G17: =G16/$S$16*$S$17 -> 0 | H17: =H16/$S$16*$S$17 -> 0 | I17: =I16/$S$16*$S$17 -> 0 | J17: 0 | K17: 0 | L17: 0 | M17: 0 | N17: 0 | O17: 0 | P17: 0 | Q17: 0 | R17: =R16/$S$16*$S$17 -> 0 | S17: ='Other Inputs'!$D$164 -> 0
B18: QGM Gathering | E18: =E16/$S$16*$S$18 -> 3600430.46 | F18: 3717612.365 | G18: =G16/$S$16*$S$18 -> 3491879.7 | H18: =H16/$S$16*$S$18 -> 3375958.132 | I18: 3452873.752 | J18: 3639908.247 | K18: 3822721.454 | L18: 3848528.006 | M18: 4251049.726 | N18: 4164954.382 | O18: 3659282.061 | P18: 4034371.719 | Q18: 4139803.075 | R18: =R16/$S$16*$S$18 -> 4248970.585 | S18: ='Other Inputs'!$D$178 -> 46130300.84
D32: 1000
B34: Injections in Dth
C35: Chalk Creek | E35: 0 | F35: 0 | G35: 0 | H35: 0 | I35: 0 | J35: 0 | K35: 153426 | L35: 173724 | M35: 0 | N35: 0 | O35: 0 | P35: 0 | Q35: 0 | R35: 0 | S35: =SUM(G35:R35) -> 327150 | U35: ScottN
C36: Clay Basin | E36: 0 | F36: 716040 | G36: 2188410 | H36: 2256550 | I36: =2072750+280721 -> 2353471 | J36: =1162760+227668 -> 1390428 | K36: 10320 | L36: 0 | M36: 0 | N36: 0 | O36: 0 | P36: 162730 | Q36: 175580 | R36: =1510680+195106 -> 1705786 | S36: 10243275 | U36: ScottN
C37: Coalville | E37: 0 | F37: 0 | G37: 0 | H37: 0 | I37: 0 | J37: 131097 | K37: 233464 | L37: 0 | M37: 0 | N37: 0 | O37: 0 | P37: 0 | Q37: 0 | R37: 0 | S37: 364561 | U37: ScottN
C38: Leroy | E38: 0 | F38: 0 | G38: 0 | H38: 0 | I38: 0 | J38: 0 | K38: 458807 | L38: 0 | M38: 0 | N38: 0 | O38: 0 | P38: 0 | Q38: 0 | R38: 0 | S38: 458807 | U38: ScottN
C39: Ryckman | E39: 0 | F39: 0 | G39: 0 | H39: 0 | I39: 0 | J39: 0 | K39: 0 | L39: 0 | M39: 0 | N39: 0 | O39: 0 | P39: 0 | Q39: 0 | R39: 0 | S39: 0 | U39: ScottN
C40: Total Injections | E40: =SUM(E35:E39) -> 0 | F40: 716040 | G40: =SUM(G35:G39) -> 2188410 | H40: 2256550 | I40: 2353471 | J40: 1521525 | K40: 856017 | L40: 173724 | M40: 0 | N40: 0 | O40: 0 | P40: 162730 | Q40: 175580 | R40: 1705786 | S40: 11393793
B42: Withdrawls In Dth
C43: Chalk Creek | E43: 0 | F43: 0 | G43: 0 | H43: 0 | I43: 0 | J43: 0 | K43: 0 | L43: 0 | M43: 0 | N43: 162845 | O43: 162845 | P43: 0 | Q43: 0 | R43: 0 | S43: =SUM(G43:R43) -> 325690 | U43: ScottN
C44: Clay Basin | E44: 1002320 | F44: =192490-17565 -> 174925 | G44: 78910 | H44: 61440 | I44: 0 | J44: 0 | K44: 324750 | L44: 2934280 | M44: 4888980 | N44: 2436490 | O44: 0 | P44: 0 | Q44: 353330 | R44: 0 | S44: =SUM(G44:R44) -> 11078180 | U44: ScottN
C45: Coalville | E45: 0 | F45: 0 | G45: 0 | H45: 0 | I45: 0 | J45: 0 | K45: 0 | L45: 0 | M45: 0 | N45: 364893 | O45: 0 | P45: 0 | Q45: 0 | R45: 0 | S45: 364893 | U45: ScottN
C46: Leroy | E46: 363811 | F46: 0 | G46: 0 | H46: 0 | I46: 0 | J46: 0 | K46: 0 | L46: 0 | M46: 0 | N46: 452488 | O46: 0 | P46: 0 | Q46: 0 | R46: 0 | S46: 452488 | U46: ScottN
C47: Ryckman | E47: 0 | F47: 0 | G47: 0 | H47: 0 | I47: 0 | J47: 0 | K47: 0 | L47: 0 | M47: 0 | N47: 0 | O47: 0 | P47: 0 | Q47: 0 | R47: 0 | S47: 0 | U47: ScottN
C48: Total Withdrawls | E48: =SUM(E43:E47) -> 1366131 | F48: 174925 | G48: =SUM(G43:G47) -> 78910 | H48: 61440 | I48: 0 | J48: 0 | K48: 324750 | L48: 2934280 | M48: 4888980 | N48: 3416716 | O48: 162845 | P48: 0 | Q48: 353330 | R48: 0 | S48: 12221251
B50: Lost & Unaccounted for on QPC
A53: Injection and Withdrawl Used, Lost and Unaccounted For
D54: Gas Use
D55: %
B56: Injections in Dth
C57: Chalk Creek | D57: ='Other Inputs'!E139 -> 0.0188 | E57: =E35*-$D57 -> 0 | F57: 0 | G57: =G35*-$D57 -> 0 | H57: =H35*-$D57 -> 0 | I57: =I35*-$D57 -> 0 | J57: =J35*-$D57 -> 0 | K57: -2884.4088 | L57: -3266.0112 | M57: 0 | N57: 0 | O57: 0 | P57: 0 | Q57: 0 | R57: 0 | S57: =SUM(G57:R57) -> -6150.42
C58: Clay Basin | D58: ='Other Inputs'!E148 -> 0.01483 | E58: =E36*-$D58 -> 0 | F58: =F36*-$D58 -> -10618.8732 | G58: =G36*-$D58 -> -32454.1203 | H58: =H36*-$D58 -> -33464.6365 | I58: =I36*-$D58 -> -34901.97493 | J58: =J36*-$D58 -> -20620.04724 | K58: -153.0456 | L58: 0 | M58: 0 | N58: =N36*-$D58 -> 0 | O58: 0 | P58: -2413.2859 | Q58: -2603.8514 | R58: -25296.80638 | S58: =SUM(G58:R58) -> -151907.7682
C59: Coalville | D59: ='Other Inputs'!E151 -> 0.012 | E59: =E37*-$D59 -> 0 | F59: 0 | G59: =G37*-$D59 -> 0 | H59: 0 | I59: 0 | J59: -1573.164 | K59: -2801.568 | L59: 0 | M59: 0 | N59: 0 | O59: 0 | P59: 0 | Q59: 0 | R59: 0 | S59: =SUM(G59:R59) -> -4374.732
C60: Leroy | D60: ='Other Inputs'!E145 -> 0.0334 | E60: =E38*-$D60 -> 0 | F60: 0 | G60: =G38*-$D60 -> 0 | H60: 0 | I60: 0 | J60: 0 | K60: -15324.1538 | L60: 0 | M60: 0 | N60: 0 | O60: 0 | P60: 0 | Q60: 0 | R60: 0 | S60: =SUM(G60:R60) -> -15324.1538
C61: Ryckman | D61: ='Other Inputs'!E142 -> 0.025 | E61: =E39*-$D61 -> 0 | F61: 0 | G61: 0 | H61: 0 | I61: 0 | J61: 0 | K61: 0 | L61: 0 | M61: 0 | N61: 0 | O61: 0 | P61: 0 | Q61: 0 | R61: 0 | S61: =SUM(G61:R61) -> 0
C62: Total Injections | E62: =SUM(E57:E61) -> 0 | F62: -10618.8732 | G62: =SUM(G57:G61) -> -32454.1203 | H62: -33464.6365 | I62: -34901.97493 | J62: -22193.21124 | K62: -21163.1762 | L62: -3266.0112 | M62: 0 | N62: 0 | O62: 0 | P62: -2413.2859 | Q62: -2603.8514 | R62: -25296.80638 | S62: =SUM(S57:S61) -> -177757.074
B64: Withdrawls In Dth
C65: Chalk Creek | D65: ='Other Inputs'!E140 -> 0.0144 | E65: =E43*-$D65 -> 0 | F65: 0 | G65: =G43*-$D65 -> 0 | H65: 0 | I65: 0 | J65: 0 | K65: 0 | L65: 0 | M65: 0 | N65: -2344.968 | O65: -2344.968 | P65: 0 | Q65: 0 | R65: 0 | S65: =SUM(G65:R65) -> -4689.936
C66: Clay Basin | D66: ='Other Inputs'!E149 -> 0.00567 | E66: =E44*-$D66 -> -5683.1544 | F66: -991.82475 | G66: =G44*-$D66 -> -447.4197 | H66: -348.3648 | I66: 0 | J66: 0 | K66: -1841.3325 | L66: -16637.3676 | M66: -27720.5166 | N66: -13814.8983 | O66: 0 | P66: 0 | Q66: -2003.3811 | R66: 0 | S66: =SUM(G66:R66) -> -62813.2806
C67: Coalville | D67: ='Other Inputs'!E152 -> 0.0129 | E67: =E45*-$D67 -> 0 | F67: 0 | G67: =G45*-$D67 -> 0 | H67: 0 | I67: 0 | J67: 0 | K67: =K45*-$D67 -> 0 | L67: 0 | M67: 0 | N67: -4707.1197 | O67: 0 | P67: 0 | Q67: 0 | R67: 0 | S67: =SUM(G67:R67) -> -4707.1197
C68: Leroy | D68: ='Other Inputs'!E146 -> 0.0199 | E68: =E46*-$D68 -> -7239.8389 | F68: 0 | G68: =G46*-$D68 -> 0 | H68: 0 | I68: 0 | J68: 0 | K68: 0 | L68: 0 | M68: 0 | N68: -9004.5112 | O68: 0 | P68: 0 | Q68: 0 | R68: 0 | S68: =SUM(G68:R68) -> -9004.5112
C69: Ryckman | D69: ='Other Inputs'!E143 -> 0 | E69: =E47*-$D69 -> 0 | F69: =F47*-$D69 -> 0 | G69: 0 | H69: 0 | I69: 0 | J69: 0 | K69: 0 | L69: 0 | M69: 0 | N69: =N47*-$D69 -> 0 | O69: 0 | P69: 0 | Q69: 0 | R69: 0 | S69: =SUM(G69:R69) -> 0
C70: Total Withdrawls | E70: =SUM(E65:E69) -> -12922.9933 | F70: -991.82475 | G70: =SUM(G65:G69) -> -447.4197 | H70: -348.3648 | I70: 0 | J70: 0 | K70: =SUM(K65:K69) -> -1841.3325 | L70: -16637.3676 | M70: -27720.5166 | N70: -29871.4972 | O70: -2344.968 | P70: 0 | Q70: -2003.3811 | R70: 0 | S70: =SUM(S65:S69) -> -81214.8475
B72: QPC Transportation Loss
C73: Chalk Creek | D73: ='Other Inputs'!$E$265 -> 0.0141 | E73: =E43*-$D73 -> 0 | F73: 0 | G73: =G43*-$D73 -> 0 | H73: 0 | I73: 0 | J73: 0 | K73: 0 | L73: 0 | M73: 0 | N73: -2296.1145 | O73: -2296.1145 | P73: 0 | Q73: 0 | R73: 0 | S73: =SUM(G73:R73) -> -4592.229
C74: Clay Basin | D74: ='Other Inputs'!$E$265 -> 0.0141 | E74: =E44*-$D74 -> -14132.712 | F74: -2466.4425 | G74: =G44*-$D74 -> -1112.631 | H74: -866.304 | I74: 0 | J74: 0 | K74: -4578.975 | L74: -41373.348 | M74: -68934.618 | N74: -34354.509 | O74: 0 | P74: 0 | Q74: -4981.953 | R74: 0 | S74: =SUM(G74:R74) -> -156202.338
C75: Coalville | D75: ='Other Inputs'!$E$265 -> 0.0141 | E75: =E45*-$D75 -> 0 | F75: 0 | G75: =G45*-$D75 -> 0 | H75: 0 | I75: 0 | J75: 0 | K75: 0 | L75: 0 | M75: 0 | N75: -5144.9913 | O75: 0 | P75: 0 | Q75: 0 | R75: 0 | S75: =SUM(G75:R75) -> -5144.9913
C76: Leroy | D76: ='Other Inputs'!$E$265 -> 0.0141 | E76: =E46*-$D76 -> -5129.7351 | F76: 0 | G76: =G46*-$D76 -> 0 | H76: 0 | I76: 0 | J76: 0 | K76: 0 | L76: 0 | M76: 0 | N76: -6380.0808 | O76: 0 | P76: 0 | Q76: 0 | R76: 0 | S76: =SUM(G76:R76) -> -6380.0808
C77: Ryckman | D77: ='Other Inputs'!$E$265 -> 0.0141 | E77: =E47*-$D77 -> 0 | F77: =F47*-$D77 -> 0 | G77: 0 | H77: 0 | I77: 0 | J77: 0 | K77: 0 | L77: 0 | M77: 0 | N77: =N47*-$D77 -> 0 | O77: 0 | P77: 0 | Q77: 0 | R77: 0 | S77: =SUM(G77:R77) -> 0
C78: Total Withdrawls | E78: =SUM(E73:E77) -> -19262.4471 | F78: -2466.4425 | G78: =SUM(G73:G77) -> -1112.631 | H78: -866.304 | I78: 0 | J78: 0 | K78: -4578.975 | L78: -41373.348 | M78: -68934.618 | N78: -48175.6956 | O78: -2296.1145 | P78: 0 | Q78: -4981.953 | R78: 0 | S78: -172319.6391
B81: Total Injections & Withdrawls | E81: =E62+E70 -> -12922.9933 | F81: -11610.69795 | G81: =G62+G70 -> -32901.54 | H81: =H62+H70 -> -33813.0013 | I81: =I62+I70 -> -34901.97493 | J81: -22193.21124 | K81: =K62+K70 -> -23004.5087 | L81: -19903.3788 | M81: -27720.5166 | N81: -29871.4972 | O81: -2344.968 | P81: -2413.2859 | Q81: -4607.2325 | R81: -25296.80638 | S81: =S62+S70 -> -258971.9215
R83: Fuel Factor | S83: =-S81/(S48+S40) -> 0.01096639589
S85: 12-Month
E86: =E3 -> Apr13 | F86: =F3 -> May13 | G86: =G3 -> Jun13 | H86: Jul13 | I86: Aug13 | J86: Sep13 | K86: Oct13 | L86: Nov13 | M86: Dec13 | N86: Jan14 | O86: Feb14 | P86: Mar14 | Q86: Apr14 | R86: May14 | S86: Total
I88: Updated: | J88: 2013-04-25 | K88: EXH 1.2
A89: Natural Gas Spot Price Forecast - Average of GI, Cera & Pira | E89: (Forecast --->) | G89: (Forecast --->)
B90: Kern River Opal, Wyoming | E90: 3.77 | F90: 4.1 | G90: 4.2 | H90: 4.37 | I90: 4.49 | J90: 4.63 | K90: 4.52 | L90: 4.61 | M90: 4.82 | N90: 4.77 | O90: 4.63 | P90: 4.32 | Q90: 4.32 | R90: 4.32
B93: Spot Purchases from IRP | G93: 0 | H93: 0 | I93: 0 | J93: 0 | K93: =1944.1-196.372 -> 1747.728 | L93: =2392.2-1513.196 -> 879.004 | M93: =3563.2-1828.691 -> 1734.509 | N93: =6345.9-1452.173 -> 4893.727 | O93: 5293.2 | P93: 4493.1 | Q93: =2924.4-54.394 -> 2870.006 | R93: 0 | S93: =SUM(G93:R93) -> 21911.274
C94: In DTH | G94: =G93*1000 -> 0 | H94: =H93*1000 -> 0 | I94: 0 | J94: 0 | K94: 1747728 | L94: 879004 | M94: 1734509 | N94: 4893727 | O94: 5293200 | P94: 4493100 | Q94: 2870006 | R94: 0 | S94: =SUM(G94:R94) -> 21911274
C95: In $ | G95: =G94*G90 -> 0 | H95: 0 | I95: 0 | J95: 0 | K95: =K94*K90 -> 7899730.56 | L95: 4052208.44 | M95: 8360333.38 | N95: 23343077.79 | O95: 24507516 | P95: 19410192 | Q95: 12398425.92 | R95: 0 | S95: =SUM(G95:R95) -> 99971484.09
A98: CONTRACT PURCHASES | I98: Updated: | J98: 2013-04-10
B99: RESET FORMULAS TO Brent's WORKSHEET
B100: Peaking Purchases (DTH) | G100: ='[1]Peaking Purchases'!$L$10 -> 0 | H100: ='[1]Peaking Purchases'!$N$10 -> 0 | I100: ='[1]Peaking Purchases'!$P$10 -> 0 | J100: ='[1]Peaking Purchases'!$R$10 -> 0 | K100: ='[1]Peaking Purchases'!$T$10 -> 0 | L100: ='[1]Peaking Purchases'!$V$10 -> 1000000 | M100: ='[1]Peaking Purchases'!$X$10 -> 4000000 | N100: ='[1]Peaking Purchases'!$Z$10 -> 5000000 | O100: ='[1]Peaking Purchases'!$AB$10 -> 4000000 | P100: ='[1]Peaking Purchases'!$AD$10 -> 0 | Q100: ='[1]Peaking Purchases'!$AF$10 -> 0 | R100: ='[1]Peaking Purchases'!$AH$10 -> 0 | S100: =SUM(G100:R100) -> 14000000 | T100: =S101/S100 -> 4.996374414
B101: Peaking Purchases ($) | G101: ='[1]Peaking Purchases'!$M$10 -> 0 | H101: ='[1]Peaking Purchases'!$O$10 -> 0 | I101: ='[1]Peaking Purchases'!$Q$10 -> 0 | J101: ='[1]Peaking Purchases'!$S$10 -> 0 | K101: ='[1]Peaking Purchases'!$U$10 -> 0 | L101: ='[1]Peaking Purchases'!$W$10 -> 4867137.3 | M101: ='[1]Peaking Purchases'!$Y$10 -> 20352170.4 | N101: ='[1]Peaking Purchases'!$AA$10 -> 25177230.5 | O101: ='[1]Peaking Purchases'!$AC$10 -> 19552703.6 | P101: ='[1]Peaking Purchases'!$AE$10 -> 0 | Q101: ='[1]Peaking Purchases'!$AG$10 -> 0 | R101: ='[1]Peaking Purchases'!$AI$10 -> 0 | S101: =SUM(G101:R101) -> 69949241.8
B103: Term Purchases (DTH) | G103: ='[1]Term Purchases'!$K$8 -> 0 | H103: ='[1]Term Purchases'!$M$8 -> 0 | I103: ='[1]Term Purchases'!$O$8 -> 0 | J103: ='[1]Term Purchases'!$Q$8 -> 0 | K103: ='[1]Term Purchases'!$S$8 -> 0 | L103: ='[1]Term Purchases'!$U$8 -> 900000 | M103: ='[1]Term Purchases'!$W$8 -> 930000 | N103: ='[1]Term Purchases'!$Y$8 -> 930000 | O103: ='[1]Term Purchases'!$AA$8 -> 840000 | P103: ='[1]Term Purchases'!$AC$8 -> 930000 | Q103: ='[1]Term Purchases'!$AE$8 -> 0 | R103: ='[1]Term Purchases'!$AG$8 -> 0 | S103: =SUM(G103:R103) -> 4530000
B104: Term Purchases ($) | G104: ='[1]Term Purchases'!$L$8 -> 0 | H104: ='[1]Term Purchases'!$N$8 -> 0 | I104: ='[1]Term Purchases'!$P$8 -> 0 | J104: ='[1]Term Purchases'!$R$8 -> 0 | K104: ='[1]Term Purchases'!$T$8 -> 0 | L104: ='[1]Term Purchases'!$V$8 -> 4329855 | M104: ='[1]Term Purchases'!$X$8 -> 4669483.5 | N104: ='[1]Term Purchases'!$Z$8 -> 4622983.5 | O104: ='[1]Term Purchases'!$AB$8 -> 4057998 | P104: ='[1]Term Purchases'!$AD$8 -> 4204483.5 | Q104: ='[1]Term Purchases'!$AF$8 -> 0 | R104: ='[1]Term Purchases'!$AH$8 -> 0 | S104: =SUM(G104:R104) -> 21884803.5 | T104: =S104/S103 -> 4.83108245
B105: Stabalization Costs (Winter Months - Oct to Mar) | G105: 0 | H105: 0 | I105: 0 | J105: 0 | K105: 0 | L105: 0 | M105: 0 | N105: 0 | O105: 0 | P105: 0 | Q105: 0 | R105: 0 | S105: =SUM(G105:R105) -> 0
B108: Total Purchases (DTH) | E108: =E100+E103 -> 0 | F108: 0 | G108: 0 | H108: =H100+H103 -> 0 | I108: 0 | J108: 0 | K108: 0 | L108: =L100+L103 -> 1900000 | M108: 4930000 | N108: 5930000 | O108: 4840000 | P108: 930000 | Q108: 0 | R108: 0 | S108: =SUM(G108:R108) -> 18530000 | T108: =S103/S108 -> 0.2444684296
B109: Total Purchases ($) | E109: 0 | F109: 0 | G109: 0 | H109: 0 | I109: 0 | J109: 0 | K109: 0 | L109: =L101+L104 -> 9196992.3 | M109: 25021653.9 | N109: 29800214 | O109: 23610701.6 | P109: 4204483.5 | Q109: 0 | R109: 0 | S109: =SUM(G109:R109) -> 91834045.3
A112: Typical Customer Monthly Usage in Dth
B113: Utah | G113: =VLOOKUP(MONTH(G3),$F$122:$G$133,2,FALSE) -> 3.1 | H113: =VLOOKUP(MONTH(H3),$F$122:$G$133,2,FALSE) -> 2 | I113: 1.8 | J113: 2 | K113: 3.1 | L113: 6.3 | M113: 11.5 | N113: 14.9 | O113: 12.5 | P113: 10.1 | Q113: 8.3 | R113: 4.4 | S113: =SUM(G113:R113) -> 80
B114: Wyoming | G114: =VLOOKUP(MONTH(G3),$F$122:$H$133,3,FALSE) -> 3.7 | H114: =VLOOKUP(MONTH(H3),$F$122:$H$133,3,FALSE) -> 2.3 | I114: 1.7 | J114: 2.1 | K114: 4.1 | L114: 8 | M114: 12.3 | N114: 14.7 | O114: 14.1 | P114: 11.8 | Q114: 9.4 | R114: 5.8 | S114: =SUM(G114:R114) -> 90
A116: INPUTS FROM WEXPRO | G116: =G3 -> Jun13 | H116: =H3 -> Jul13 | I116: Aug13 | J116: Sep13 | K116: Oct13 | L116: Nov13 | M116: Dec13 | N116: Jan14 | O116: Feb14 | P116: Mar14 | Q116: Apr14 | R116: May14 | S116: 12-Month
G117: =G3 -> Jun13 | H117: =H3 -> Jul13 | I117: Aug13 | J117: Sep13 | K117: Oct13 | L117: Nov13 | M117: Dec13 | N117: Jan14 | O117: Feb14 | P117: Mar14 | Q117: Apr14 | R117: May14 | S117: Total
A118: Wexpro Operator Fee (Wexpro forecast) | D118: Updated from Brady Rasmussen 4/25/2013 | G118: 21433945 | H118: 21583555 | I118: 21914634 | J118: 22018701 | K118: 27755863 | L118: 27761885 | M118: 29288268 | N118: 29546871 | O118: 29155222 | P118: 28282088 | Q118: 28899367 | R118: 27987398 | S118: =SUM(G118:R118) -> 315627797
F121: Typical UPC | G121: UT | H121: WY
F122: 1 | G122: 14.9 | H122: 14.7
F123: 2 | G123: 12.5 | H123: 14.1
F124: 3 | G124: 10.1 | H124: 11.8
F125: 4 | G125: 8.3 | H125: 9.4
F126: 5 | G126: 4.4 | H126: 5.8
F127: 6 | G127: 3.1 | H127: 3.7
F128: 7 | G128: 2 | H128: 2.3
F129: 8 | G129: 1.8 | H129: 1.7
F130: 9 | G130: 2 | H130: 2.1
F131: 10 | G131: 3.1 | H131: 4.1
F132: 11 | G132: 6.3 | H132: 8
F133: 12 | G133: 11.5 | H133: 12.3
F134: Total | G134: =SUM(G122:G133) -> 80 | H134: =SUM(H122:H133) -> 90

Sheet Graph (Ex 1.10) Inputs
C1: ACTUAL | D1: G.I. | E1: CERA | F1: PIRA | G1: AVG
B2: 2013-05-01 | E2: 3.99 | F2: 4.2 | G2: =ROUND(AVERAGE(D2:F2),2) -> 4.1
B3: 2013-06-01 | E3: 3.98 | F3: 4.41 | G3: 4.2
B4: 2013-07-01 | E4: 4.21 | F4: 4.52 | G4: 4.37
B5: 2013-08-01 | E5: 4.45 | F5: 4.53 | G5: 4.49
B6: 2013-09-01 | E6: 4.66 | F6: 4.59 | G6: 4.63
B7: 2013-10-01 | E7: 4.46 | F7: 4.58 | G7: 4.52
B8: 2013-11-01 | E8: 4.56 | F8: 4.65 | G8: 4.61
B9: 2013-12-01 | E9: 4.85 | F9: 4.78 | G9: 4.82
B10: 2014-01-01 | E10: 4.93 | F10: 4.6 | G10: 4.77
B11: 2014-02-01 | E11: 4.88 | F11: 4.38 | G11: 4.63
B12: 2014-03-01 | E12: 4.47 | F12: 4.16 | G12: 4.32
B13: 2014-04-01 | E13: 4.62 | F13: 4.02 | G13: 4.32
B14: 2014-05-01 | E14: 4.66 | F14: 3.98 | G14: 4.32
E17: Price Forecasts
B19: Make sure all pricing is in Whole number @ 2 decimal places only

Sheet Other Inputs
H1: Used In
A2: INPUT SECTION | H2: Ut | I2: Wy | J2: Source
A3: INPUTS FROM QUESTAR PIPELINE TARIFF AND CONTRACTS
B5: QPC Storage Commodity Rates | E5: Rate | F5: Effective
B6: Peaking Injections | E6: 0.03872 | F6: 2013-01-01 | H6: 1.3.2 | I6: 1.3p2 | J6: QPC Tariff Statement of Rates
B7: Peaking Withdrawals | E7: 0.03872 | F7: =$F$6 -> 2013-01-01 | H7: 1.3.2 | I7: 1.3p2 | J7: =J6 -> QPC Tariff Statement of Rates
B8: Ryckman Injections | E8: 0.015 | F8: =$F$6 -> 2013-01-01 | J8: Glen W
B9: Ryckman Withdrawals | E9: 0.01 | F9: =$F$6 -> 2013-01-01 | J9: Glen W
B10: Clay Basin Injections | E10: 0.01049 | F10: =$F$6 -> 2013-01-01 | H10: 1.3.2 | I10: 1.3p2 | J10: QPC Tariff Statement of Rates
B11: Clay Basin Withdrawals | E11: 0.01781 | F11: =$F$6 -> 2013-01-01 | H11: 1.3.2 | I11: 1.3p2 | J11: =J10 -> QPC Tariff Statement of Rates
B13: QPC Storage Field Reservation Charges
B14: Peaking Storage Fields Demand (Leroy, Chalk Creek, Coalville) | E14: 2.87375 | F14: =$F$6 -> 2013-01-01 | H14: 1.3.2 | I14: 1.3p2 | J14: =$J$6 -> QPC Tariff Statement of Rates
B15: Ryckman | E15: 0.09 | F15: =$F$6 -> 2013-01-01 | J15: Glen W
B16: Clay Basin Demand | E16: 2.85338 | F16: =$F$6 -> 2013-01-01 | H16: 1.3.2 | I16: 1.3p2 | J16: =$J$6 -> QPC Tariff Statement of Rates
B17: Clay Basin Capacity | E17: 0.02378 | F17: =$F$6 -> 2013-01-01 | H17: 1.3.2 | I17: 1.3p2 | J17: =$J$6 -> QPC Tariff Statement of Rates
J20: used in Exhibit 1.3
B21: FIRM TRANSPORTATION | D21: Contract Dth | E21: Months | F21: Maximum Rate | G21: Effective
B22: T-1 Transportation - Yearly (MT241) | D22: =798902 -> 798902 | E22: 12 | F22: 5.28804 | G22: 1/1/2013 | H22: 1.3p1 | J22: =$J$6 -> QPC Tariff Statement of Rates | N22: 4000000
B23: T-1 Transportation - Yearly (Mainline 104) | D23: 30000 | E23: 12 | F23: 5.28804 | G23: =$G$22 -> 1/1/2013 | H23: Jan | J23: =$J$6 -> QPC Tariff Statement of Rates | N23: 28100
B24: T-1 Transportation - Yearly (Tieline 112) | D24: 12000 | E24: 12 | F24: 5.28804 | G24: =$G$22 -> 1/1/2013 | H24: 1.3p1 | J24: =$J$6 -> QPC Tariff Statement of Rates | N24: =N21/N22 -> 0
B25: T-1 Transportation - Nov-Mar | D25: 75000 | E25: 5 | F25: 6.80887 | G25: =$G$22 -> 1/1/2013 | J25: Rate from Glen | N25: =N22/N23 -> 142.3487544
B26: Total Yearly T-1 Transportation | D26: =SUM(D22:D25) -> 915902 | E26: 12 | J26: io
B28: T-1 Transportation - Seasonal(BASE TARIFF RATE LOW LOAD) Mainline 104 | D28: 0 | E28: 0 | F28: 0 | J28: not using currently - ck with Glen
B30: No-Notice Transportation (BASE TARIFF RATE) | D30: 203542 | E30: 12 | F30: 0.86753 | G30: =$G$22 -> 1/1/2013 | H30: 1.3p1 | J30: =$J$6 -> QPC Tariff Statement of Rates
B31: GRI - Yearly (SURCHARGE LOW LOAD CUSTOMERS MAXIMUM) | D31: =D26 -> 915902 | E31: 12 | F31: 0 | G31: =$G$22 -> 1/1/2013 | H31: 1.3p1 | J31: =$J$6 -> QPC Tariff Statement of Rates
B32: GRI - Seasonal (No GRI currently) | D32: 30000 | E32: 3 | F32: =+F31 -> 0 | G32: =$G$22 -> 1/1/2013 | H32: 1.3p1 | J32: =$J$6 -> QPC Tariff Statement of Rates
B33: GRI | D33: 52000 | E33: 12 | F33: =+F31 -> 0 | G33: =$G$22 -> 1/1/2013 | H33: 1.3p1 | J33: =$J$6 -> QPC Tariff Statement of Rates
B35: TRANSPORTATION COMMODITY
B36: PIPELINE USAGE CHARGE TO VOLUMETRIC RELEASES
B37: QPC Commodity
B38: QPC Firm Transportation Usage Charge (Max & Min) (BASE TARIFF RATE) | F38: 0.00267 | G38: 2013-01-01 | H38: 1.3p1 | J38: =$J$6 -> QPC Tariff Statement of Rates
B39: QPC (ANNUAL CHARGE ADJUSTMENT) | F39: =+F44 -> 0.0018 | G39: =G38 -> 2013-01-01 | H39: 1.3p1 | J39: =$J$6 -> QPC Tariff Statement of Rates
B40: QPC GRI SURCHARGE | F40: 0 | G40: =G38 -> 2013-01-01 | H40: 1.3p1 | J40: =$J$6 -> QPC Tariff Statement of Rates
E41: Current | F41: Proposed
B42: INTER TRANS (T-2 PIPELINE BASE TARIFF) MAX | D42: Base Tariff | E42: 0.17652 | F42: 0.17652 | G42: 2013-01-01 | J42: =$J$6 -> QPC Tariff Statement of Rates
D43: GRI Surcharge | E43: 0 | F43: 0 | G43: =G42 -> 2013-01-01 | J43: =$J$6 -> QPC Tariff Statement of Rates
D44: Annual Charge | E44: 0.0018 | F44: 0.0018 | G44: =G42 -> 2013-01-01 | J44: =$J$6 -> QPC Tariff Statement of Rates
D45: Total | E45: =SUM(E42:E44) -> 0.17832 | F45: =SUM(F42:F44) -> 0.17832
B48: Utah | E48: =ROUND((E45)/(1-$E262),5) -> 0.1792 | F48: =ROUND((F45)/(1-E262),5) -> 0.1792 | H48: 1.6.3 | J48: Before Adjustment for Bad Debt (Transport grossed up for QGC fuel)
B49: Wyoming | F49: =ROUND((F45)/(1-E263),5) -> 0.18104
A51: INPUTS FROM KERN RIVER PIPELINE TARIFF AND CONTRACTS
B52: Kern River 2003 Expansion | D52: Contract Dth | E52: Months | F52: Maximum Rate | G52: Effective
F53: 0.4717 | J53: KR Tariff 5-A
B54: Jan - Dec | D54: 3000 | E54: 12 | F54: =F53*E57/E54 -> 14.34754167 | G54: 2011-04-01 | H54: 1.3.1
B55: November - March | D55: 50000 | E55: 5 | F55: =F54 -> 14.34754167 | G55: =G54 -> 2011-04-01 | H55: Jan
B56: Jan - Dec | D56: 1885 | E56: 12 | F56: =F57*E57/E56 -> 17.74204167 | G56: =G55 -> 2011-04-01
B57: Days in Tariff Rate | E57: 365 | F57: 0.5833 | J57: e.g., if rates effective Jan 1 in a leap year, then use 366
B59: Kern River 2003 Expansion | E59: Days in TEST PERIOD
B60: Jan - Dec | C60: 1.07023035 | D60: =D54+D56 -> 4885 | E60: 365 | F60: 0.0044 | G60: =G54 -> 2011-04-01 | H60: 1.3p1 | J60: KR Tariff 5-A
B61: November - March | C61: =C60 -> 1.07023035 | D61: =D55 -> 50000 | E61: 151 | F61: 0.0044 | G61: =G54 -> 2011-04-01 | H61: 1.3p1 | J61: KR Tariff 5-A
A63: INPUTS FROM QUESTAR GAS TARIFF
B65: I-Sales Commodity Rates | E65: I-2 -eliminated | F65: IS | J65: =31*5 -> 155
B66: Effective Date | E66: 11/1/2005 | F66: 7/31/2009 | J66: =J65*0.75 -> 116.25
B67: Commodity Rate | E67: 0 | F67: =ROUND((7353080/1941997),5) -> 3.78635 | G67: Should this just be utah | J67: =J65*0.15 -> 23.25
B68: CO2 Refund | E68: 0 | F68: 0 | J68: =J65*0.1 -> 15.5
B69: Net Commodity Rate | E69: =SUM(E67:E68) -> 0 | F69: =SUM(F67:F68) -> 3.78635
A71: Current SNG Rates
B72: UTAH | E72: Current SNG Base | F72: Current SNG Amort. | G72: Current SNG Total | J72: Effective
B73: GS | D73: Winter | E73: 1.11075 | F73: 0 | G73: =E73+F73 -> 1.11075 | J73: 2012-12-01
D74: Summer | E74: 0.52151 | F74: 0 | G74: =E74+F74 -> 0.52151 | J74: =J73 -> 2012-12-01
B76: FS | D76: Winter | E76: 1.08183 | F76: 0 | G76: =E76+F76 -> 1.08183 | J76: 2013-01-25
D77: Summer | E77: 0.52149 | F77: 0 | G77: =E77+F77 -> 0.52149 | J77: =J76 -> 2013-01-25
B79: F-4 | E79: 0 | F79: 0 | G79: =E79+F79 -> 0 | J79: 2010-08-01
B81: NGV | E81: 0.80155 | F81: 0 | G81: =E81+F81 -> 0.80155 | J81: 2012-12-01
B83: (This includes bad debt adjustment) IS | E83: 0.17992 | F83: 0 | G83: =E83+F83 -> 0.17992 | J83: 2012-12-01
B86: ES | E86: 5.75759 | F86: 0 | G86: =E86+F86 -> 5.75759 | J86: 2012-09-01
A88: Current Rates
B89: Utah GS | J89: Effective
B90: Block 1 | D90: Summer | G90: 6.95064 | J90: 2012-12-01
B91: Block 2 | D91: Summer | G91: 5.69171 | J91: =$J$90 -> 2012-12-01
B92: Block 1 | D92: Winter | G92: 7.91492 | J92: =$J$90 -> 2012-12-01
B93: Block 2 | D93: Winter | G93: 6.52464 | J93: =$J$90 -> 2012-12-01
B94: #1 BSF | G94: 5 | J94: =J90 -> 2012-12-01
B96: Wyoming GS
B97: Block 1 | G97: 6.77315 | J97: 2012-10-01
B98: Block 2 | G98: 6.52862 | J98: =J97 -> 2012-10-01
B99: BSF | G99: 11 | J99: =J97 -> 2012-10-01
A101: INPUTS FROM PREVIOUS PASSTHROUGH CASE
B102: PRIOR PERIOD COMPANY PRODUCTION AVERAGE GAS COST
E103: PROPOSED | F103: PRIOR CASE | G103: Most Recent
B104: VOLUMES DTH | E104: ='Monthly Inputs'!S16 -> 73217730 | F104: 68553424.4 | G104: EXH 1.1 | J104: LAST CASE IN WHICH RATES CHANGED
B105: AMOUNT | E105: =+D186 -> 366685887.4 | F105: 326862997.5 | G105: EXH 1.1
B106: AVG COST | E106: =+E105/E104 -> 5.008157006 | F106: =ROUND(+F105/F104,5) -> 4.768
B108: Utah Cost of Gas by Component
B109: Unit Cost Of Gas (Line 9) | F109: 4.0888 | J109: Exhibit 1.6 pg 1 (Prior case column)
B110: 191 Account Amortization (Line 10) | F110: 0.07335 | J110: Exhibit 1.6 pg 1 (Prior case column)
B111: Total Unit Cost In Rates (Line 11) | F111: =SUM(F109:F110) -> 4.16215
B113: I-2 Commodity Cost (excluding bad debt) | E113: 0
B115: Wyoming Cost of Gas by Component
B116: Unit Cost Of Gas (Line 10) | F116: 4.98083 | J116: (WY) Exhibit 1.6 pg 1
B117: 191 Account Amortization (Line 11) | F117: -0.18698 | J117: (WY) Exhibit 1.6 pg 1
B118: Total Unit Cost In Rates (Line 13) | F118: =F116+F117 -> 4.79385 | J118: (WY) Exhibit 1.6 pg 1
A123: INPUTS FROM 191 ACCOUNT YEAR END BALANCE ACTUAL OR FORECAST | E123: Utah | F123: Wyoming
E124: 2013 | F124: 2013-03-01
H125: 1.6.2
D126: current yr /mo(text)
B127: March 2013 191 account (Actual/Forecast) | D127: 2013 | E127: -30955939 | F127: -911512 | H127: 1.6.1 | J127: 191 Account Forecast/Actual
B128: Supplier Non-Gas Cost Under (Over) Collected through March 2013 (act/fcst) | D128: March | E128: -23092094 | H128: 1.6.2 | J128: 191 Account Year-End (sometimes through current period)
B129: Commodity Cost Under (Over) Collected during YEAR (Act/Fcst)
A131: INPUTS FROM IRP
B132: #1 Peak Day Demand Forecast | E132: 2013 | F132: Source
B133: Utah | E133: =E135-E134 -> 1243265 | F133: 2012 IRP
B134: Wyoming | E134: 42428
B135: System Total Peak Day Demand Forecast | E135: 1285693 | H135: 1.5 | I135: 1.5
A138: STORAGE FIELD INPUTS | E138: Storage
B139: Chalk Creek Injections Factor | E139: 0.0188 | H139: Scott Nelson Monthly IRP
B140: Chalk Creek Withdrawls Factor | E140: 0.0144 | H140: Scott Nelson Monthly IRP
B142: Ryckman Injections Factor | E142: 0.025 | H142: Scott Nelson Monthly IRP
B143: Ryckman Withdrawls Factor | E143: 0 | H143: Scott Nelson Monthly IRP
B145: Leroy Injections Factor | E145: 0.0334 | H145: Scott Nelson Monthly IRP
B146: Leroy Withdrawls Factor | E146: 0.0199 | H146: Scott Nelson Monthly IRP
B148: Clay Basin Injections Factor | E148: 0.01483 | H148: Scott Nelson Monthly IRP
B149: Clay Basin Withdrawls Factor | E149: 0.00567 | H149: Scott Nelson Monthly IRP
B151: Coalville Injections Factor | E151: 0.012 | H151: Scott Nelson Monthly IRP
B152: Coalville Withdrawls Factor | E152: 0.0129 | H152: Scott Nelson Monthly IRP
B154: QPC Storage Field Reservation Charges | E154: Monthly Dth
B155: Peaking Storage Fields Demand (Leroy, Chalk Creek, Coalville) | E155: 184625 | F155: didn’t change this time | H155: From Glen Watkins (Contract Amounts) (See Ex 1.3 pg 2 if not changed)
B156: Ryckman | E156: 2500000 | H156: From Glen Watkins (Contract Amounts) (See Ex 1.3 pg 2 if not changed)
B157: Clay Basin Demand | E157: 111827 | F157: didn’t change this time | H157: From Glen Watkins (Contract Amounts) (See Ex 1.3 pg 2 if not changed)
B158: Clay Basin Capacity | E158: 13419000 | F158: didn’t change this time | H158: From Glen Watkins (Contract Amounts) (See Ex 1.3 pg 2 if not changed)
A160: OTHER INPUTS FROM GLEN, TOM, TINA & Al | D160: Revenue
B161: OTHER GATHERING
B166: Total Forecasted Birch Creek | D166: 315695.18 | J166: Birch Creek from Jesse
B168: Other gathering | D168: 1663179.51 | E168: 2013-04-02 | H168: JanB | J168: Jesse Query
B169: Total Gathering | D169: =SUM(D166:D168) -> 1978874.69 | H169: 1.3.1 | I169: 1.3P1
B171: Other Transportation | D171: 2728043.04 | E171: 2013-04-02 | H171: 1.3.1 | J171: Jesse Query
B173: Forecast Future Contracts Premium over spot price | E173: 0.02 | F173: Verified with Tina 04/2013
D175: Commodity | E175: Mo. Demand
D176: Charge | E176: Charge | F176: Effective
B177: QEP Gathering Rates -System wide Gathering agreement #163 (SWGA) | D177: 0.13918 | E177: 759167.5 | F177: 5-1-2012 - ????? | I177: 1.3p1 | J177: QEP Rates (Changes every Sep 1)
B178: QGC Gathering Throughput Dth From Exhibit 1.1 Backup | D178: ='Ex 1.1 Data'!E1 -> 46130300.84 | E178: 12 | I178: 1.3p1 | J178: Ex. 1.1 updated on 11-17-2010
A181: OTHER INPUTS FROM JIM LIVSEY | D181: Volume (Dth) | E181: Revenue
B183: Questar Gas Production 1/ | D183: Current
B184: Test Year Royalties | D184: ='Ut 1.1'!H1398 -> 51058090.44 | H184: 1.4.1 | I184: 1.4P1 | J184: Exhibit 1.1
B185: Operator Service Fee | D185: ='Monthly Inputs'!S118 -> 315627797 | H185: 1.4.1 | I185: 1.4P1 | J185: Jim Livsey (Updated on 11-10-2010
B186: Total Questar Gas Production Costs | D186: =SUM(D184:D185) -> 366685887.4
B188: Total Questar Gas Production Dth | D188: ='Ut 1.1'!E1403 -> 73217730 | J188: this formula changes each time
F189: Hot | G189: Hot
B190: Other Revenue Credits | D190: 1 | E190: 2 | F190: 2 | G190: 2 | I190: 1
D191: Historical | E191: Forecast | F191: =HLOOKUP(F$190,$D$190:$E$198,$I191) -> Forecast | G191: =HLOOKUP(G$190,$D$190:$E$198,$I191) -> Forecast | I191: 2
D192: 12 Mo Ending | E192: 12 Mo Ending | F192: Utah | G192: Wyoming | I192: 3
B193: 483 Sales for Resale | E193: 4390185 | F193: =HLOOKUP(F$190,$D$190:$E$198,$I193) -> 4390185 | G193: =HLOOKUP(G$190,$D$190:$E$198,$I193) -> 4390185 | I193: 4 | J193: Wexpro (Jim Livsey)
B194: 490 Incidental Plant Prod Sales | E194: 6084996 | F194: =HLOOKUP(F$190,$D$190:$E$198,$I194) -> 6084996 | G194: 6084996 | I194: 5 | J194: Wexpro (Jim Livsey)
B195: 492 Incidental Gasoline_Oil Sales | E195: 1129505 | F195: 1129505 | G195: 1129505 | I195: 6 | J195: Wexpro (Jim Livsey)
B196: 4951 Overriding Royalty Revenue from Celsius | E196: 20977793 | F196: 20977793 | G196: 20977793 | I196: 7 | J196: Wexpro (Jim Livsey)
B197: 4952 Oil Revenue Received from Wexpro | E197: 300788 | F197: 300788 | G197: 300788 | I197: 8 | J197: Wexpro (Jim Livsey)
B198: 758001 Gas Well Royalities - Other | E198: -169426 | F198: -169426 | G198: -169426 | I198: 9 | J198: Wexpro (Jim Livsey)
B201: Total Other Revenue Credits | D201: =SUM(D193:D198) -> 0 | E201: =SUM(E193:E198) -> 32713841 | F201: =SUM(F193:F198) -> 32713841 | G201: =SUM(G193:G198) -> 32713841
A204: SUMMARY INPUTS FROM REVRUN, RATE BASE, EXPENSES, ETC.
B206: Supplier Non-Gas Costs Recovered at Current Rates 3/ | E206: ='RevRun Fcst'!T$198 -> 97451165 | H206: 1.6.2 | J206: Dave's Revrun
B207: MT Supplier Non-Gas | E207: ='RevRun Fcst'!T142 -> 1937 | J207: Dave's Revrun
B208: Net Supplier Non-Gas | E208: =E206-E207 -> 97449228
B209: UT Current Int Sales SNG Rate - not including Bad Debt adj. | E209: ='RevRun Fcst'!T93+'RevRun Fcst'!T111 -> 2687596 | F209: 0.1792 | J209: Revrun (D210); SNG from last case in which rates changed (see Exh. 1.6, p. 2, line 6c col. C)
E211: ='Rate Base'!$U$8 -> 3/31/2013 | F211: update to most current
B212: Account 164-1 - Gas Stored Underground | D212: Dth | E212: Ending Balance | F212: $ per Dth
D213: ='Rate Base'!T288 -> -2325443 | E213: ='Rate Base'!T209 -> 9537533.75 | F213: =+E213/D213 -> -4.101383586 | H213: 1.4.2
A216: UT CET and DSM AMORTIZATION FILING INPUTS
E217: Base DNG | F217: Current DNG
B218: GS Rates (Base rates are before CET, DSM, & EA Amortizations) | D218: Summer Blk 1 | E218: 1.87767 | F218: 2.26698
D219: Summer Blk 2 | E219: 0.69704 | F219: 1.00805
D220: Winter Blk 1 | E220: 2.22938 | F220: 2.64202
D221: Winter Blk 2 | E221: 0.92557 | F221: 1.25174 | J221: Base DNG Rate from latest general rate case Docket 09-057-16
J222: Current Rates Effective 12-1-12
D223: Energy Assistance | E223: 0.01496 | F223: Current Rate 8/1/2010 GS Rate
E224: 0.01474 | F224: Current Rate 8/1/2010 FS Rate
E225: 0.00732 | F225: Current Rate 8/1/2010 IS Rate
E226: 0.02448 | F226: Current Rate 8/1/2010 NGV Rate
E227: Ending Balance | F227: Date
B228: CET Balance (Account 191.9) | E228: -1886289.514 | F228: 2011-07-31 | J228: Accounting
B229: DSM Expense Deferral Balance (Account 182.4) | E229: 42000000 | F229: 2011-03-31 | J229: Accounting
B231: GS Block Usage in Dth | D231: Winter Blk 1 | E231: 52526064 | J231: Block out from Dave's REVRUN
D232: Winter Blk 2 | E232: 14984828 | J232: (used Gary's "Rate Design Model - Bill Factor Input.xls" &
D233: Summer Blk 1 | E233: 23076373 | J233: Dave's "PT0802.bk" files) Updated March 31, 2010
D234: Summer Blk 2 | E234: 4705902
A236: WY CET and DSM AMORTIZATION FILING INPUTS
E237: Base DNG | F237: Current DNG
B238: GS Rates (Base rates are before CET and DSM Amortizations) | D238: Blk 1 | E238: 2.00841 | F238: 2.00841
D239: Blk 2 | E239: 1.26955 | F239: 1.26955
J241: Base DNG Rate from latest general rate case Docket 30010-94-GR-08
J242: Current Rates Effective7/1/09
E244: Ending Balance | F244: Date
B245: CET Balance (Account 191.9) | E245: 57097.0875 | F245: 2011-07-31 | J245: Accounting
B246: DSM Expense Deferral Balance (Account 182.4) | E246: 274858.68 | F246: 2011-07-31 | J246: Accounting
B248: GS Block Usage in Dth | D248: Blk 1 | E248: 2593433 | J248: Block out from Dave's REVRUN
D249: Blk 2 | E249: 705379 | J249: (used Gary's "Rate Design Model - Bill Factor Input.xls" &
J250: Dave's "PT0802.bk" files) Updated March 31, 2011
A254: MISCELLANEOUS INPUTS
B255: Test Year | D255: ='Control Panel'!F40 -> Jun-13 | E255: ='Control Panel'!F41 -> May-14 | J255: entered as text, beginning and end month
B257: Wexpro Red. @ 6.3% | E257: -0.063 | I257: 1.3p3 | J257: Wexpro Stip.
B259: Pre-Tax Rate of Return % | D259: WYO | E259: 0.1088 | F259: Effective October 2012 | I259: 1.3p2 | J259: Changes with General Rate Case
B260: Pre-Tax Rate of Return % | D260: UTAH | E260: 0.1179 | F260: Effect Aug 1 2010 | J260: Changes with General Rate Case
B262: QGC Lost & Unaccounted For % (Utah | E262: 0.0049 | H262: Q | I262: Q | J262: from Gas Supply (Scott N.) - IRP based on this
B263: QGC Lost & Unaccounted For % (Wyoming) | E263: 0.015
B264: QEP Gathering Lost & Unaccounted For | E264: 0.029 | F264: 2010-04-23 | H264: Q | I264: Q | J264: from Gas Supply (Scott N.) - IRP based on this
B265: QPC Lost & Unaccounted For % | E265: 0.0141 | F265: 2010-04-23 | H265: Q | I265: Q | J265: from Gas Supply (Scott N.) - IRP based on this
B266: TOTAL | E266: =SUM(E264:E265) -> 0.0431
B268: Capacity Release Credits | E268: 267613.78 | I268: 1.3p1 | J268: From Jesse Jackson
B269: Capacity Release Credit Sharing % in Utah | E269: 0.9 | J269: Docket 97-057-03 Stipulation
B270: Capacity Release Credits for Utah | E270: =E268*E269 -> 240852.402 | H270: 1.3p1
B273: Bad Debt Allowance | E273: 0.003 | F273: 2011-04-01 | H273: Ut Jan | J273: Connie Marshal/Dave Curtis
... 14 more rows

Sheet CET & DSM WY
A1: Rate Caclulation for the CET and DSM Amortizations WY
L3: Solver Cells
A4: CET Amortization % Calculation | L4: % Change | M4: Difference
B5: Balance | C5: Date | D5: GS Dth | F5: Amortization per Dth | L5: =J20/D20 -> 0.00935375228 | M5: =G20-B11 -> 0 | O5: -> Difference should be at 0 (Use Goal Seek to Get Difference to Equal 0.
A6: DSM Balance | B6: ='Other Inputs'!$E$246 -> 274858.68 | C6: ='Other Inputs'!$F$246 -> 2011-07-31 | D6: =B20 -> 3298812 | F6: =B6/D6 -> 0.08332050447
O8: Typical Bill Rates
A9: CET Amortization Calculation
B10: Balance | C10: Date | D10: DNG Rev | F10: New DNG | I10: % Change | O10: Current | P10: Proposed
A11: CET Balance | B11: ='Other Inputs'!$E$245 -> 57097.0875 | C11: ='Other Inputs'!$F$245 -> 2011-07-31 | D11: =D20 -> 6104190.681 | F11: =D11+B11 -> 6161287.768 | I11: =L5 -> 0.00935375228 | O11: Effective | R11: SNG & | S11: CET, DSM
O12: ='Other Inputs'!$J$97 -> 2012-10-01 | P12: CET Only | Q12: DSM Only | R12: Commodity | S12: Commodity
O13: BSF | P13: BSF | Q13: BSF | R13: BSF | S13: BSF
B14: Revenue Calculation | F14: CET Amortization | I14: Total DNG | L14: REVRUN Calculation | O14: ='Other Inputs'!$G$99 -> 11 | P14: ='Other Inputs'!$G$99 -> 11 | Q14: ='Other Inputs'!$G$99 -> 11 | R14: ='Other Inputs'!$G$99 -> 11 | S14: ='Wy 1.8'!C10 -> 11
A15: WY GS | B15: Dth | C15: Base DNG | D15: DNG Revenue | F15: CET Rate | G15: Revenue | I15: DNG Rate | J15: Revenue | L15: CET Rate | M15: CET Amort
A16: Block 1 | B16: ='Other Inputs'!E248 -> 2593433 | C16: ='Other Inputs'!E238 -> 2.00841 | D16: =B16*C16 -> 5208676.772 | F16: =ROUND((G16/B16),5) -> 0.01879 | G16: =D16*$L$5 -> 48720.67223 | I16: =C16+F16 -> 2.0272 | J16: =I16*B16 -> 5257407.378 | L16: =ROUND(F16,5) -> 0.01879 | M16: =B16*L16 -> 48730.60607 | O16: ='Other Inputs'!$G$90 -> 6.95064 | P16: =J24 -> 7.06396 | Q16: =J31 -> 7.10562 | R16: =J36 -> 7.56062 | S16: =J41 -> 7.549760504
A17: Block 2 | B17: ='Other Inputs'!E249 -> 705379 | C17: ='Other Inputs'!E239 -> 1.26955 | D17: =B17*C17 -> 895513.9094 | F17: =ROUND((G17/B17),5) -> 0.01188 | G17: =D17*$L$5 -> 8376.415272 | I17: =C17+F17 -> 1.28143 | J17: =I17*B17 -> 903893.812 | L17: =ROUND(F17,5) -> 0.01188 | M17: =B17*L17 -> 8379.90252
O18: ='Other Inputs'!$G$97 -> 6.77315 | P18: =J24 -> 7.06396 | Q18: =J31 -> 7.10562 | R18: =J36 -> 7.56062 | S18: =J41 -> 7.549760504
A20: GS-1 Block Rev | B20: =SUM(B16:B19) -> 3298812 | D20: =SUM(D16:D19) -> 6104190.681 | G20: =SUM(G16:G19) -> 57097.0875 | J20: =B11 -> 57097.0875 | M20: =SUM(M16:M19) -> 57110.50859
A22: Total Rate Calculation With CET Amortization Only | J22: ='Control Panel'!J8 -> 2013-06-01 | L22: ='Other Inputs'!$J$97 -> 2012-10-01
A23: WY GS | B23: Total DNG | C23: CET | D23: DSM | F23: Total DNG | G23: Core Commodity Cost | J23: Total Rate | L23: Total Rate
A24: Block 1 | B24: =$C$16 -> 2.00841 | C24: =$F$16 -> 0.01879 | D24: 0.06792 | F24: =SUM(B24:D24) -> 2.09512 | G24: 4.96884 | J24: =SUM(F24:G24) -> 7.06396 | L24: ='Other Inputs'!G97 -> 6.77315 | M24: =J24-L24 -> 0.29081
A25: Block 2 | B25: =$C$17 -> 1.26955 | C25: =$F$17 -> 0.01188 | D25: =$D$24 -> 0.06792 | F25: =SUM(B25:D25) -> 1.34935 | G25: =G24 -> 4.96884 | J25: =SUM(F25:G25) -> 6.31819 | L25: ='Other Inputs'!$G$98 -> 6.52862 | M25: =J25-L25 -> -0.21043
A29: Total Rate Calculation With DSM Amortization Only | J29: =J22 -> 2013-06-01 | L29: ='Other Inputs'!$J$97 -> 2012-10-01
A30: WY GS | B30: Base DNG | C30: CET | D30: DSM | F30: Total DNG | G30: Core Commodity Cost | J30: Total Rate | L30: Total Rate
A31: Block 1 | B31: =$C$16 -> 2.00841 | C31: 0.04505 | D31: =$F$6 -> 0.08332050447 | F31: =ROUND(SUM(B31:D31),5) -> 2.13678 | G31: =G24 -> 4.96884 | J31: =SUM(F31:I31) -> 7.10562 | L31: ='Other Inputs'!$G$90 -> 6.95064 | M31: =J31-L31 -> 0.15498
A32: Block 2 | B32: =$C$17 -> 1.26955 | C32: 0.02848 | D32: =$F$6 -> 0.08332050447 | F32: =ROUND(SUM(B32:D32),5) -> 1.38135 | G32: =G25 -> 4.96884 | J32: =SUM(F32:I32) -> 6.35019 | L32: ='Other Inputs'!$G$98 -> 6.52862 | M32: =J32-L32 -> -0.17843
A34: Total Rate Calculation With Core Commodity Cost Changes Only | J34: =J22 -> 2013-06-01 | L34: ='Other Inputs'!$J$97 -> 2012-10-01
A35: WY GS | B35: Base DNG | C35: CET | D35: DSM | F35: Total DNG | G35: Core Commodity Cost | J35: Total Rate | L35: Total Rate
A36: Block 1 | B36: =$C$16 -> 2.00841 | C36: =C31 -> 0.04505 | D36: =D24 -> 0.06792 | F36: =SUM(B36:D36) -> 2.12138 | G36: ='Wy 1.6 p1'!$F$33 -> 5.43924 | J36: =SUM(F36:I36) -> 7.56062 | L36: ='Other Inputs'!$G$90 -> 6.95064 | M36: =J36-L36 -> 0.60998
A37: Block 2 | B37: =$C$17 -> 1.26955 | C37: =C32 -> 0.02848 | D37: =D25 -> 0.06792 | F37: =SUM(B37:D37) -> 1.36595 | G37: ='Wy 1.6 p1'!$F$33 -> 5.43924 | J37: =SUM(F37:I37) -> 6.80519 | L37: ='Other Inputs'!$G$98 -> 6.52862 | M37: =J37-L37 -> 0.27657
A39: Total Rate Calculation | J39: =J29 -> 2013-06-01 | L39: ='Other Inputs'!$J$97 -> 2012-10-01
A40: WY GS | B40: Base DNG | C40: CET | D40: DSM | F40: Total DNG | G40: Core Commodity Cost | J40: Total Rate | L40: Total Rate
A41: Block 1 | B41: =$C$16 -> 2.00841 | C41: =$F$16 -> 0.01879 | D41: =$F$6 -> 0.08332050447 | F41: =SUM(B41:D41) -> 2.110520504 | G41: ='Wy 1.6 p1'!$F$33 -> 5.43924 | J41: =SUM(F41:I41) -> 7.549760504 | L41: ='Other Inputs'!$G$90 -> 6.95064 | M41: =J41-L41 -> 0.5991205045
A42: Block 2 | B42: =$C$17 -> 1.26955 | C42: =$F$17 -> 0.01188 | D42: =$F$6 -> 0.08332050447 | F42: =SUM(B42:D42) -> 1.364750504 | G42: ='Wy 1.6 p1'!$F$33 -> 5.43924 | J42: =SUM(F42:I42) -> 6.803990504 | L42: ='Other Inputs'!$G$98 -> 6.52862 | M42: =J42-L42 -> 0.2753705045
A44: Typical Customer Difference - CET Amortization Only
B45: Typical
A46: GS | B46: Dth | C46: =O12 -> 2012-10-01 | D46: =J39 -> 2013-06-01 | F46: Change | G46: % Change
A47: January | B47: 14.7 | C47: =ROUND($O$14+(B47*$O$18),2) -> 110.57 | D47: =ROUND($P$14+(B47*$P$18),2) -> 114.84 | F47: =D47-C47 -> 4.27
A48: February | B48: 14.1 | C48: =ROUND($O$14+(B48*$O$18),2) -> 106.5 | D48: =ROUND($P$14+(B48*$P$18),2) -> 110.6 | F48: =D48-C48 -> 4.1
A49: March | B49: 11.8 | C49: =ROUND($O$14+(B49*$O$18),2) -> 90.92 | D49: =ROUND($P$14+(B49*$P$18),2) -> 94.35 | F49: 3.43
A50: April | B50: 9.4 | C50: =ROUND($O$14+(B50*$O$16),2) -> 76.34 | D50: =ROUND($P$14+(B50*$P$16),2) -> 77.4 | F50: 1.06
A51: May | B51: 5.8 | C51: 51.31 | D51: =ROUND($P$14+(B51*$P$16),2) -> 51.97 | F51: 0.66
A52: June | B52: 3.7 | C52: 36.72 | D52: 37.14 | F52: 0.42
A53: July | B53: 2.3 | C53: 26.99 | D53: 27.25 | F53: 0.26
A54: August | B54: 1.7 | C54: 22.82 | D54: 23.01 | F54: 0.19
A55: September | B55: 2.1 | C55: 25.6 | D55: 25.83 | F55: 0.23
A56: October | B56: 4.1 | C56: 39.5 | D56: 39.96 | F56: 0.46
A57: November | B57: 8 | C57: =ROUND($O$14+(B57*$O$18),2) -> 65.19 | D57: =ROUND($P$14+(B57*$P$18),2) -> 67.51 | F57: 2.32
A58: December | B58: 12.3 | C58: =ROUND($O$14+(B58*$O$18),2) -> 94.31 | D58: =ROUND($P$14+(B58*$P$18),2) -> 97.89 | F58: 3.58
B59: =SUM(B47:B58) -> 90 | C59: =SUM(C47:C58) -> 746.77 | D59: =SUM(D47:D58) -> 767.75 | F59: =SUM(F47:F58) -> 20.98 | G59: =F59/C59 -> 0.02809432623
A62: Typical Customer Difference - DSM Amortization Only
B63: Typical
A64: GS | B64: Dth | C64: =C46 -> 2012-10-01 | D64: =D46 -> 2013-06-01 | F64: Change | G64: % Change
A65: January | B65: 14.7 | C65: =ROUND($O$14+(B65*$O$18),2) -> 110.57 | D65: =ROUND($Q$14+(B65*$Q$18),2) -> 115.45 | F65: =D65-C65 -> 4.88
A66: February | B66: 14.1 | C66: =ROUND($O$14+(B66*$O$18),2) -> 106.5 | D66: =ROUND($Q$14+(B66*$Q$18),2) -> 111.19 | F66: =D66-C66 -> 4.69
A67: March | B67: 11.8 | C67: =ROUND($O$14+(B67*$O$18),2) -> 90.92 | D67: =ROUND($Q$14+(B67*$Q$18),2) -> 94.85 | F67: 3.93
A68: April | B68: 9.4 | C68: =ROUND($O$14+(B68*$O$16),2) -> 76.34 | D68: =ROUND($Q$14+(B68*$Q$16),2) -> 77.79 | F68: 1.45
A69: May | B69: 5.8 | C69: 51.31 | D69: 52.21 | F69: 0.9
A70: June | B70: 3.7 | C70: 36.72 | D70: 37.29 | F70: 0.57
A71: July | B71: 2.3 | C71: 26.99 | D71: 27.34 | F71: 0.35
A72: August | B72: 1.7 | C72: 22.82 | D72: 23.08 | F72: 0.26
A73: September | B73: 2.1 | C73: 25.6 | D73: 25.92 | F73: 0.32
A74: October | B74: 4.1 | C74: 39.5 | D74: 40.13 | F74: 0.63
A75: November | B75: 8 | C75: =ROUND($O$14+(B75*$O$18),2) -> 65.19 | D75: =ROUND($Q$14+(B75*$Q$18),2) -> 67.84 | F75: 2.65
A76: December | B76: 12.3 | C76: =ROUND($O$14+(B76*$O$18),2) -> 94.31 | D76: =ROUND($Q$14+(B76*$Q$18),2) -> 98.4 | F76: 4.09
B77: =SUM(B65:B76) -> 90 | C77: =SUM(C65:C76) -> 746.77 | D77: =SUM(D65:D76) -> 771.49 | F77: =SUM(F65:F76) -> 24.72 | G77: =F77/C77 -> 0.0331025617
A80: Typical Customer Difference - SNG and Commodity Changes Only
B81: Typical
A82: GS | B82: Dth | C82: =C64 -> 2012-10-01 | D82: =D64 -> 2013-06-01 | F82: Change | G82: % Change
A83: January | B83: 14.7 | C83: =ROUND($O$14+(B83*$O$18),2) -> 110.57 | D83: =ROUND($R$14+(B83*$R$18),2) -> 122.14 | F83: =D83-C83 -> 11.57
A84: February | B84: 14.1 | C84: =ROUND($O$14+(B84*$O$18),2) -> 106.5 | D84: =ROUND($R$14+(B84*$R$18),2) -> 117.6 | F84: =D84-C84 -> 11.1
A85: March | B85: 11.8 | C85: =ROUND($O$14+(B85*$O$18),2) -> 90.92 | D85: =ROUND($R$14+(B85*$R$18),2) -> 100.22 | F85: 9.3
A86: April | B86: 9.4 | C86: =ROUND($O$14+(B86*$O$16),2) -> 76.34 | D86: =ROUND($R$14+(B86*$R$16),2) -> 82.07 | F86: 5.73
A87: May | B87: 5.8 | C87: 51.31 | D87: 54.85 | F87: 3.54
A88: June | B88: 3.7 | C88: 36.72 | D88: 38.97 | F88: 2.25
A89: July | B89: 2.3 | C89: 26.99 | D89: 28.39 | F89: 1.4
A90: August | B90: 1.7 | C90: 22.82 | D90: 23.85 | F90: 1.03
A91: September | B91: 2.1 | C91: 25.6 | D91: 26.88 | F91: 1.28
A92: October | B92: 4.1 | C92: 39.5 | D92: 42 | F92: 2.5
A93: November | B93: 8 | C93: =ROUND($O$14+(B93*$O$18),2) -> 65.19 | D93: =ROUND($R$14+(B93*$R$18),2) -> 71.48 | F93: 6.29
A94: December | B94: 12.3 | C94: =ROUND($O$14+(B94*$O$18),2) -> 94.31 | D94: =ROUND($R$14+(B94*$R$18),2) -> 104 | F94: 9.69
B95: =SUM(B83:B94) -> 90 | C95: =SUM(C83:C94) -> 746.77 | D95: =SUM(D83:D94) -> 812.45 | F95: =SUM(F83:F94) -> 65.68 | G95: =F95/C95 -> 0.08795211377
A98: Typical Customer Difference - CET & DSM Amort, SNG and Commodity Changes
B99: Typical
A100: GS | B100: Dth | C100: =C46 -> 2012-10-01 | D100: =D46 -> 2013-06-01 | F100: Change | G100: % Change
A101: January | B101: 14.7 | C101: =ROUND($O$14+(B101*$O$18),2) -> 110.57 | D101: =ROUND($S$14+(B101*$S$18),2) -> 121.98 | F101: =D101-C101 -> 11.41
A102: February | B102: 14.1 | C102: =ROUND($O$14+(B102*$O$18),2) -> 106.5 | D102: =ROUND($S$14+(B102*$S$18),2) -> 117.45 | F102: =D102-C102 -> 10.95
A103: March | B103: 11.8 | C103: =ROUND($O$14+(B103*$O$18),2) -> 90.92 | D103: =ROUND($S$14+(B103*$S$18),2) -> 100.09 | F103: 9.17
A104: April | B104: 9.4 | C104: =ROUND($O$14+(B104*$O$16),2) -> 76.34 | D104: =ROUND($S$14+(B104*$S$16),2) -> 81.97 | F104: 5.63
A105: May | B105: 5.8 | C105: 51.31 | D105: 54.79 | F105: 3.48
A106: June | B106: 3.7 | C106: 36.72 | D106: 38.93 | F106: 2.21
A107: July | B107: 2.3 | C107: 26.99 | D107: 28.36 | F107: 1.37
A108: August | B108: 1.7 | C108: 22.82 | D108: 23.83 | F108: 1.01
A109: September | B109: 2.1 | C109: 25.6 | D109: 26.85 | F109: 1.25
A110: October | B110: 4.1 | C110: 39.5 | D110: 41.95 | F110: 2.45
A111: November | B111: 8 | C111: =ROUND($O$14+(B111*$O$18),2) -> 65.19 | D111: =ROUND($S$14+(B111*$S$18),2) -> 71.4 | F111: 6.21
A112: December | B112: 12.3 | C112: =ROUND($O$14+(B112*$O$18),2) -> 94.31 | D112: =ROUND($S$14+(B112*$S$18),2) -> 103.86 | F112: 9.55
B113: =SUM(B101:B112) -> 90 | C113: =SUM(C101:C112) -> 746.77 | D113: =SUM(D101:D112) -> 811.46 | F113: =SUM(F101:F112) -> 64.69 | G113: =F113/C113 -> 0.08662640438

Sheet WY Tariff Sheets
T2: Rates Per Dth Used Each Month
B3: 2.02 General Service Rate Schedule (GS) | K3: 2.02 General Service Rate Schedule (GS) | Q3: 2.03 Firm Sales Service Rate Schedule (FS) | T3: Dth = decatherm = 10 therms = 1,000,000 BTU | Z3: 4.02 INTERRUPTIBLE SALES RATE SERVICE SCHEDULE (IS) | BF3: 2.04 NATURAL GAS VEHICLE RATE (NGV)
L4: Rates Per Dth Used Each Month | R4: Summer Rates: Apr. 1 - Oct. 31
C5: Rates Per Dth Used Each Month | L5: Dth = decatherm = 10 therms = 1,000,000 BTU | R5: First | T5: Next | V5: All Over | Z5: IS VOLUMETRIC RATES | AA5: Rates Per Dth Used Each Month | BF5: NGV Volumetric Rate
C6: Dth = decatherm = 10 therms = 1,000,000 BTU | L6: First 45 Dth | M6: All Over 45 Dth | R6: 80 | T6: 730 | V6: 810 | AA6: Dth = decatherm = 10 therms = 1,000,000 BTU | BJ6: Rates Per Dth Used Each Month
C7: First 45 Dth | D7: All Over 45 Dth | K7: Non-Gas Cost | L7: ='CET & DSM WY'!B31 -> 2.00841 | M7: ='CET & DSM WY'!B32 -> 1.26955 | Q7: Non Gas Cost | R7: ='Wy 1.8'!C14 -> 0.60158 | T7: ='Wy 1.8'!D14 -> 0.50158 | V7: ='Wy 1.8'!E14 -> 0.35158 | AA7: First | AB7: Next | AC7: All Over | BJ7: Dth = decatherm = 10 therms = 1,000,000 BTU
B8: Non-Gas Cost | C8: ='CET & DSM WY'!B24 -> 2.00841 | D8: ='CET & DSM WY'!B25 -> 1.26955 | K8: Conservation Enabling Adjustment | L8: =ROUND('CET & DSM WY'!C31,5) -> 0.04505 | M8: ='CET & DSM WY'!C32 -> 0.02848 | Q8: Core Service Commodity Cost | R8: ='Wy 1.8'!C15 -> 5.43924 | T8: ='Wy 1.8'!D15 -> 5.43924 | V8: ='Wy 1.8'!E15 -> 5.43924 | AA8: 48600 | AB8: 72900 | AC8: 121500
B9: Conservation Enabling Adjustment | C9: ='CET & DSM WY'!C24 -> 0.01879 | D9: ='CET & DSM WY'!C25 -> 0.01188 | K9: Energy Efficiency Services | L9: ='CET & DSM WY'!D31 -> 0.08332050447 | M9: ='CET & DSM WY'!D32 -> 0.08332050447 | Z9: Distribution Non-Gas Rate | AA9: ='Wy 1.8'!C32 -> 0.1381 | AB9: ='Wy 1.8'!D32 -> 0.121 | AC9: ='Wy 1.8'!E32 -> 0.10393 | BF9: Non-Gas Cost | BG9: ='Wy 1.8'!C26 -> 5.89189
B10: Energy Efficiency Services | C10: ='CET & DSM WY'!D24 -> 0.06792 | D10: ='CET & DSM WY'!D25 -> 0.06792 | K10: Core Service Commodity Cost | L10: ='CET & DSM WY'!G31 -> 4.96884 | M10: =ROUND('CET & DSM WY'!G32,5) -> 4.96884 | Q10: Total Rate | R10: =SUM(R7:R8) -> 6.04082 | T10: =SUM(T7:T8) -> 5.94082 | V10: =SUM(V7:V8) -> 5.79082 | Z10: Upstream Pipeline Cost | AA10: ='Wy 1.8'!C33 -> 0.18104 | AB10: ='Wy 1.8'!D33 -> 0.18104 | AC10: ='Wy 1.8'!E33 -> 0.18104 | BF10: Core Commodity Cost | BG10: ='Wy 1.8'!C27 -> 5.43924
B11: Core Service Commodity Cost | C11: ='CET & DSM WY'!G24 -> 4.96884 | D11: ='CET & DSM WY'!G25 -> 4.96884 | Z11: Commodity Rate | BF11: Total Rate | BG11: =SUM(BG9:BJ10) -> 11.33113
K12: Total Rate | L12: =SUM(L7:L10) -> 7.105620504 | M12: =SUM(M7:M10) -> 6.350190504 | Q12: Minimum Monthly Distribution Non-Gas Charge | W12: ='Wy 1.8'!C18 -> 96
B13: Total Rate | C13: =SUM(C8:C11) -> 7.06396 | D13: =SUM(D8:D11) -> 6.31819
M15: BSF Category 1 | N15: =E16 -> 11
D16: BSF Category 1 | E16: ='CET & DSM WY'!O14 -> 11 | M16: BSF Category 2 | N16: =E17 -> 44 | U16: BSF Category 1 | W16: ='Other Inputs'!G99 -> 11
D17: BSF Category 2 | E17: 44 | M17: BSF Category 3 | N17: =E18 -> 86 | U17: BSF Category 2 | W17: ='Wy 1.8'!C20 -> 44
D18: BSF Category 3 | E18: 86 | M18: BSF Category 4 | N18: =E19 -> 555 | U18: BSF Category 3 | W18: ='Wy 1.8'!C21 -> 86 | Z18: Total Rate | AA18: $ | AB18: $ | AC18: $
D19: BSF Category 4 | E19: 555 | U19: BSF Category 4 | W19: ='Wy 1.8'!C22 -> 555
Z20: Minimum Monthly Distribution Non-Gas Charge
BF23: =B38 -> Issued by R. W. Jibson, President | BI23: Advice No | BJ23: Section Revision No.
AB24: BSF Category 1 | AC24: ='Other Inputs'!G99 -> 11
AB25: BSF Category 2 | AC25: ='Wy 1.8'!C37 -> 44
AB26: BSF Category 3 | AC26: ='Wy 1.8'!C38 -> 86
AB27: BSF Category 4 | AC27: ='Wy 1.8'!C39 -> 555
K37: Issued by R. W. Jibson, President | M37: Section Revision No. | N37: Effective Date
B38: Issued by R. W. Jibson, President | D38: Section Revision No. | E38: Effective Date | Q38: =B38 -> Issued by R. W. Jibson, President | T38: Advice No | U38: Section Revision No. | W38: Effective Date
B42: New CET ONLY | K42: New DSM ONLY | Q42: New Pass Through Values
Z47: =B38 -> Issued by R. W. Jibson, President | AC47: Advice No
Z50: New Pass Through Values

Sheet Calculations
A1: GAS BALANCE FOR 12 MONTHS ENDING: _________________
D3: SALES VOLUMES IN DECATHERMS (12 Months of Forecast)
D4: Forecast | E4: Forecast | F4: Forecast | G4: Forecast | H4: Forecast | I4: Forecast | J4: Forecast | K4: Forecast | L4: Forecast | M4: Forecast | N4: Forecast | O4: Forecast | P4: 12-Month
A5: RATE CLASS | D5: ='Monthly Inputs'!G3 -> Jun13 | E5: ='Monthly Inputs'!H3 -> Jul13 | F5: ='Monthly Inputs'!I3 -> Aug13 | G5: ='Monthly Inputs'!J3 -> Sep13 | H5: ='Monthly Inputs'!K3 -> Oct13 | I5: ='Monthly Inputs'!L3 -> Nov13 | J5: ='Monthly Inputs'!M3 -> Dec13 | K5: ='Monthly Inputs'!N3 -> Jan14 | L5: ='Monthly Inputs'!O3 -> Feb14 | M5: ='Monthly Inputs'!P3 -> Mar14 | N5: ='Monthly Inputs'!Q3 -> Apr14 | O5: ='Monthly Inputs'!R3 -> May14 | P5: Total
A6: UTAH | D6: =MONTH(D5) -> 6 | E6: =MONTH(E5) -> 7 | F6: 8 | G6: 9 | H6: 10 | I6: 11 | J6: 12 | K6: 1 | L6: 2 | M6: 3 | N6: 4 | O6: 5
B7: GSR | D7: ='RevRun Fcst'!H21 -> 2440056 | E7: ='RevRun Fcst'!I21 -> 2199795 | F7: ='RevRun Fcst'!J21 -> 2117784 | G7: ='RevRun Fcst'!K21 -> 3115781 | H7: ='RevRun Fcst'!L21 -> 5934654 | I7: ='RevRun Fcst'!M21 -> 9982579 | J7: ='RevRun Fcst'!N21 -> 16177270 | K7: ='RevRun Fcst'!O21 -> 18683415 | L7: ='RevRun Fcst'!P21 -> 14473172 | M7: ='RevRun Fcst'!Q21 -> 10629637 | N7: ='RevRun Fcst'!R21 -> 8221610 | O7: ='RevRun Fcst'!S21 -> 3936114 | P7: =SUM(D7:O7) -> 97911867
B8: GSC | D8: ='RevRun Fcst'!H30 -> 0 | E8: ='RevRun Fcst'!I30 -> 0 | F8: ='RevRun Fcst'!J30 -> 0 | G8: ='RevRun Fcst'!K30 -> 0 | H8: ='RevRun Fcst'!L30 -> 0 | I8: ='RevRun Fcst'!M30 -> 0 | J8: ='RevRun Fcst'!N30 -> 0 | K8: ='RevRun Fcst'!O30 -> 0 | L8: ='RevRun Fcst'!P30 -> 0 | M8: ='RevRun Fcst'!Q30 -> 0 | N8: ='RevRun Fcst'!R30 -> 0 | O8: ='RevRun Fcst'!S30 -> 0 | P8: 0
B9: GSS | D9: ='RevRun Fcst'!H39 -> 0 | E9: ='RevRun Fcst'!I39 -> 0 | F9: ='RevRun Fcst'!J39 -> 0 | G9: ='RevRun Fcst'!K39 -> 0 | H9: ='RevRun Fcst'!L39 -> 0 | I9: ='RevRun Fcst'!M39 -> 0 | J9: ='RevRun Fcst'!N39 -> 0 | K9: ='RevRun Fcst'!O39 -> 0 | L9: ='RevRun Fcst'!P39 -> 0 | M9: ='RevRun Fcst'!Q39 -> 0 | N9: ='RevRun Fcst'!R39 -> 0 | O9: ='RevRun Fcst'!S39 -> 0 | P9: 0
B10: F-1 | D10: ='RevRun Fcst'!H48 -> 352891 | E10: ='RevRun Fcst'!I48 -> 371905 | F10: ='RevRun Fcst'!J48 -> 358333 | G10: ='RevRun Fcst'!K48 -> 424749 | H10: ='RevRun Fcst'!L48 -> 479319 | I10: ='RevRun Fcst'!M48 -> 529391 | J10: ='RevRun Fcst'!N48 -> 629422 | K10: ='RevRun Fcst'!O48 -> 566423 | L10: ='RevRun Fcst'!P48 -> 472410 | M10: ='RevRun Fcst'!Q48 -> 412625 | N10: ='RevRun Fcst'!R48 -> 405700 | O10: ='RevRun Fcst'!S48 -> 321597 | P10: 5324765
B11: F-4 | D11: ='RevRun Fcst'!H75 -> 0 | E11: ='RevRun Fcst'!I75 -> 0 | F11: ='RevRun Fcst'!J75 -> 0 | G11: ='RevRun Fcst'!K75 -> 0 | H11: ='RevRun Fcst'!L75 -> 0 | I11: ='RevRun Fcst'!M75 -> 0 | J11: ='RevRun Fcst'!N75 -> 0 | K11: ='RevRun Fcst'!O75 -> 0 | L11: ='RevRun Fcst'!P75 -> 0 | M11: ='RevRun Fcst'!Q75 -> 0 | N11: ='RevRun Fcst'!R75 -> 0 | O11: ='RevRun Fcst'!S75 -> 0 | P11: 0
B12: NGV | D12: ='RevRun Fcst'!H66 -> 46700 | E12: ='RevRun Fcst'!I66 -> 46700 | F12: ='RevRun Fcst'!J66 -> 46700 | G12: ='RevRun Fcst'!K66 -> 46700 | H12: ='RevRun Fcst'!L66 -> 46700 | I12: ='RevRun Fcst'!M66 -> 46700 | J12: ='RevRun Fcst'!N66 -> 46700 | K12: ='RevRun Fcst'!O66 -> 46700 | L12: ='RevRun Fcst'!P66 -> 46700 | M12: ='RevRun Fcst'!Q66 -> 46700 | N12: ='RevRun Fcst'!R66 -> 46700 | O12: ='RevRun Fcst'!S66 -> 46700 | P12: 560400
A13: Total Firm Sales | D13: =SUM(D7:D12) -> 2839647 | E13: 2618400 | F13: =SUM(F7:F12) -> 2522817 | G13: 3587230 | H13: 6460673 | I13: 10558670 | J13: 16853392 | K13: 19296538 | L13: 14992282 | M13: 11088962 | N13: 8674010 | O13: 4304411 | P13: 103797032
B15: I-4 | D15: ='RevRun Fcst'!H93 -> 209355 | E15: ='RevRun Fcst'!I93 -> 220539 | F15: ='RevRun Fcst'!J93 -> 238104 | G15: ='RevRun Fcst'!K93 -> 229349 | H15: ='RevRun Fcst'!L93 -> 239867 | I15: ='RevRun Fcst'!M93 -> 257293 | J15: ='RevRun Fcst'!N93 -> 262583 | K15: ='RevRun Fcst'!O93 -> 238077 | L15: ='RevRun Fcst'!P93 -> 194859 | M15: ='RevRun Fcst'!Q93 -> 198891 | N15: ='RevRun Fcst'!R93 -> 207471 | O15: ='RevRun Fcst'!S93 -> 191208 | P15: =SUM(D15:O15) -> 2687596
B16: IS-4 | D16: ='RevRun Fcst'!H111 -> 0 | E16: ='RevRun Fcst'!I111 -> 0 | F16: ='RevRun Fcst'!J111 -> 0 | G16: ='RevRun Fcst'!K111 -> 0 | H16: ='RevRun Fcst'!L111 -> 0 | I16: ='RevRun Fcst'!M111 -> 0 | J16: ='RevRun Fcst'!N111 -> 0 | K16: ='RevRun Fcst'!O111 -> 0 | L16: ='RevRun Fcst'!P111 -> 0 | M16: ='RevRun Fcst'!Q111 -> 0 | N16: ='RevRun Fcst'!R111 -> 0 | O16: ='RevRun Fcst'!S111 -> 0 | P16: =SUM(D16:O16) -> 0
A17: Total Interruptible Sales | D17: =SUM(D15:D16) -> 209355 | E17: 220539 | F17: 238104 | G17: 229349 | H17: 239867 | I17: 257293 | J17: 262583 | K17: 238077 | L17: 194859 | M17: 198891 | N17: 207471 | O17: 191208 | P17: 2687596
A20: Total Utah Sales | D20: =+D13+D17 -> 3049002 | E20: =+E13+E17 -> 2838939 | F20: =+F13+F17 -> 2760921 | G20: 3816579 | H20: 6700540 | I20: 10815963 | J20: 17115975 | K20: 19534615 | L20: 15187141 | M20: 11287853 | N20: 8881481 | O20: 4495619 | P20: 106484628
A22: Total Utah Transportation | D22: ='RevRun Fcst'!H203 -> 4761973 | E22: ='RevRun Fcst'!I203 -> 4630832 | F22: ='RevRun Fcst'!J203 -> 5109771 | G22: ='RevRun Fcst'!K203 -> 4456041 | H22: ='RevRun Fcst'!L203 -> 4524300 | I22: ='RevRun Fcst'!M203 -> 4670034 | J22: ='RevRun Fcst'!N203 -> 5863049 | K22: ='RevRun Fcst'!O203 -> 7411770 | L22: ='RevRun Fcst'!P203 -> 6555357 | M22: ='RevRun Fcst'!Q203 -> 6952363 | N22: ='RevRun Fcst'!R203 -> 6606138 | O22: ='RevRun Fcst'!S203 -> 5522277 | P22: =SUM(D22:O22) -> 67063905
A25: Total Utah Sales & Trans | D25: =+D20+D22 -> 7810975 | E25: 7469771 | F25: 7870692 | G25: 8272620 | H25: 11224840 | I25: 15485997 | J25: 22979024 | K25: 26946385 | L25: 21742498 | M25: 18240216 | N25: 15487619 | O25: 10017896 | P25: 173548533
A27: WYOMING
A28: GS-1 | D28: ='RevRun Fcst'!H243 -> 92062 | E28: ='RevRun Fcst'!I243 -> 50591 | F28: ='RevRun Fcst'!J243 -> 62530 | G28: ='RevRun Fcst'!K243 -> 126055 | H28: ='RevRun Fcst'!L243 -> 208374 | I28: ='RevRun Fcst'!M243 -> 375814 | J28: ='RevRun Fcst'!N243 -> 567530 | K28: ='RevRun Fcst'!O243 -> 651996 | L28: ='RevRun Fcst'!P243 -> 533664 | M28: ='RevRun Fcst'!Q243 -> 412583 | N28: ='RevRun Fcst'!R243 -> 320052 | O28: ='RevRun Fcst'!S243 -> 173130 | P28: =SUM(D28:O28) -> 3574381
A29: GS-W | D29: ='RevRun Fcst'!H270 -> 0 | E29: ='RevRun Fcst'!I270 -> 0 | F29: ='RevRun Fcst'!J270 -> 0 | G29: ='RevRun Fcst'!K270 -> 0 | H29: ='RevRun Fcst'!L270 -> 0 | I29: ='RevRun Fcst'!M270 -> 0 | J29: ='RevRun Fcst'!N270 -> 0 | K29: ='RevRun Fcst'!O270 -> 0 | L29: ='RevRun Fcst'!P270 -> 0 | M29: ='RevRun Fcst'!Q270 -> 0 | N29: ='RevRun Fcst'!R270 -> 0 | O29: ='RevRun Fcst'!S270 -> 0 | P29: =SUM(D29:O29) -> 0
A30: F-1 | D30: ='RevRun Fcst'!H252 -> 13371 | E30: ='RevRun Fcst'!I252 -> 11937 | F30: ='RevRun Fcst'!J252 -> 10488 | G30: ='RevRun Fcst'!K252 -> 14013 | H30: ='RevRun Fcst'!L252 -> 17257 | I30: ='RevRun Fcst'!M252 -> 20408 | J30: ='RevRun Fcst'!N252 -> 27819 | K30: ='RevRun Fcst'!O252 -> 29305 | L30: ='RevRun Fcst'!P252 -> 24275 | M30: ='RevRun Fcst'!Q252 -> 21511 | N30: ='RevRun Fcst'!R252 -> 21780 | O30: ='RevRun Fcst'!S252 -> 15905 | P30: =SUM(D30:O30) -> 228069
A31: NGV | D31: ='RevRun Fcst'!H261 -> 1605 | E31: ='RevRun Fcst'!I261 -> 1605 | F31: ='RevRun Fcst'!J261 -> 1605 | G31: ='RevRun Fcst'!K261 -> 1605 | H31: ='RevRun Fcst'!L261 -> 1605 | I31: ='RevRun Fcst'!M261 -> 1605 | J31: ='RevRun Fcst'!N261 -> 1605 | K31: ='RevRun Fcst'!O261 -> 1605 | L31: ='RevRun Fcst'!P261 -> 1605 | M31: ='RevRun Fcst'!Q261 -> 1605 | N31: ='RevRun Fcst'!R261 -> 1605 | O31: ='RevRun Fcst'!S261 -> 1605 | P31: =SUM(D31:O31) -> 19260
A32: Total Firm Sales | D32: =SUM(D28:D31) -> 107038 | E32: 64133 | F32: 74623 | G32: 141673 | H32: 227236 | I32: 397827 | J32: 596954 | K32: 682906 | L32: 559544 | M32: 435699 | N32: 343437 | O32: 190640 | P32: 3821710
A34: I-2 | D34: ='RevRun Fcst'!H279 -> 9676 | E34: ='RevRun Fcst'!I279 -> 6490 | F34: ='RevRun Fcst'!J279 -> 6266 | G34: ='RevRun Fcst'!K279 -> 6747 | H34: ='RevRun Fcst'!L279 -> 8200 | I34: ='RevRun Fcst'!M279 -> 15106 | J34: ='RevRun Fcst'!N279 -> 19054 | K34: ='RevRun Fcst'!O279 -> 18290 | L34: ='RevRun Fcst'!P279 -> 15150 | M34: ='RevRun Fcst'!Q279 -> 14893 | N34: ='RevRun Fcst'!R279 -> 14759 | O34: ='RevRun Fcst'!S279 -> 12795 | P34: =SUM(D34:O34) -> 147426
A35: I-4 | D35: ='RevRun Fcst'!H288 -> 0 | E35: ='RevRun Fcst'!I288 -> 0 | F35: ='RevRun Fcst'!J288 -> 0 | G35: ='RevRun Fcst'!K288 -> 0 | H35: ='RevRun Fcst'!L288 -> 0 | I35: ='RevRun Fcst'!M288 -> 0 | J35: ='RevRun Fcst'!N288 -> 0 | K35: ='RevRun Fcst'!O288 -> 0 | L35: ='RevRun Fcst'!P288 -> 0 | M35: ='RevRun Fcst'!Q288 -> 0 | N35: ='RevRun Fcst'!R288 -> 0 | O35: ='RevRun Fcst'!S288 -> 0 | P35: =SUM(D35:O35) -> 0
A36: Total Interruptible Sales | D36: =SUM(D34:D35) -> 9676 | E36: 6490 | F36: 6266 | G36: 6747 | H36: 8200 | I36: 15106 | J36: 19054 | K36: 18290 | L36: 15150 | M36: 14893 | N36: 14759 | O36: 12795 | P36: 147426
A39: Total Wyoming Sales | D39: =+D32+D36 -> 116714 | E39: 70623 | F39: 80889 | G39: 148420 | H39: 235436 | I39: 412933 | J39: 616008 | K39: 701196 | L39: 574694 | M39: 450592 | N39: 358196 | O39: 203435 | P39: 3969136
A41: Total Wyoming Transportation | D41: ='RevRun Fcst'!H325 -> 84069 | E41: ='RevRun Fcst'!I325 -> 22238 | F41: ='RevRun Fcst'!J325 -> 23544 | G41: ='RevRun Fcst'!K325 -> 23066 | H41: ='RevRun Fcst'!L325 -> 33201 | I41: ='RevRun Fcst'!M325 -> 33406 | J41: ='RevRun Fcst'!N325 -> 37352 | K41: ='RevRun Fcst'!O325 -> 53256 | L41: ='RevRun Fcst'!P325 -> 58181 | M41: ='RevRun Fcst'!Q325 -> 38882 | N41: ='RevRun Fcst'!R325 -> 45164 | O41: ='RevRun Fcst'!S325 -> 60789 | P41: =SUM(D41:O41) -> 513148
A44: Total Wyoming Sales & Trans | D44: =+D39+D41 -> 200783 | E44: 92861 | F44: 104433 | G44: 171486 | H44: 268637 | I44: 446339 | J44: 653360 | K44: 754452 | L44: 632875 | M44: 489474 | N44: 403360 | O44: 264224 | P44: 4482284
A47: Total System Sales and Trans | D47: =+D25+D44 -> 8011758 | E47: 7562632 | F47: 7975125 | G47: 8444106 | H47: 11493477 | I47: 15932336 | J47: 23632384 | K47: 27700837 | L47: 22375373 | M47: 18729690 | N47: 15890979 | O47: =+O25+O44 -> 10282120 | P47: 178030817
A49: Usage by Season
C50: Month | D50: =MONTH(D5) -> 6 | E50: 7 | F50: 8 | G50: 9 | H50: 10 | I50: 11 | J50: 12 | K50: 1 | L50: 2 | M50: 3 | N50: 4 | O50: 5
A51: GS | C51: Season (0=Winter, 1=Summer) | D51: =IF(D$50<4,0,IF(D$50>10,0,1)) -> 1 | E51: =IF(E$50<4,0,IF(E$50>10,0,1)) -> 1 | F51: 1 | G51: 1 | H51: 1 | I51: 0 | J51: 0 | K51: 0 | L51: 0 | M51: 0 | N51: 1 | O51: 1 | P51: Total
B52: Winter | D52: =IF(D51=0,D7+D8,0) -> 0 | E52: =IF(E51=0,E7+E8,0) -> 0 | F52: 0 | G52: 0 | H52: 0 | I52: 9982579 | J52: 16177270 | K52: 18683415 | L52: 14473172 | M52: 10629637 | N52: 0 | O52: 0 | P52: =SUM(D52:O52) -> 69946073 | Q52: =SUM(G52:I52) -> 9982579
B53: Summer | D53: =IF(D51=1,D7+D8,0) -> 2440056 | E53: 2199795 | F53: 2117784 | G53: 3115781 | H53: 5934654 | I53: 0 | J53: 0 | K53: 0 | L53: 0 | M53: 0 | N53: 8221610 | O53: 3936114 | P53: =SUM(D53:O53) -> 27965794 | Q53: =P52+P53-Q52 -> 87929288
A54: GSS
B55: Winter | D55: =IF(D51=0,D9,0) -> 0 | E55: 0 | F55: 0 | G55: 0 | H55: 0 | I55: 0 | J55: 0 | K55: 0 | L55: 0 | M55: 0 | N55: 0 | O55: 0 | P55: =SUM(D55:O55) -> 0
B56: Summer | D56: =IF(D51=1,D9,0) -> 0 | E56: 0 | F56: 0 | G56: 0 | H56: 0 | I56: 0 | J56: 0 | K56: 0 | L56: 0 | M56: 0 | N56: 0 | O56: 0 | P56: =SUM(D56:O56) -> 0
A57: F-S
B58: Winter | D58: =IF(D51=0,D10,0) -> 0 | E58: 0 | F58: 0 | G58: 0 | H58: 0 | I58: 529391 | J58: 629422 | K58: 566423 | L58: 472410 | M58: 412625 | N58: 0 | O58: 0 | P58: =SUM(D58:O58) -> 2610271 | Q58: =SUM(G58:I58) -> 529391
B59: Summer | D59: =IF(D51=1,D10,0) -> 352891 | E59: 371905 | F59: 358333 | G59: 424749 | H59: 479319 | I59: 0 | J59: 0 | K59: 0 | L59: 0 | M59: 0 | N59: 405700 | O59: 321597 | P59: =SUM(D59:O59) -> 2714494 | Q59: =P58+P59-Q58 -> 4795374
B62: Rates: R050201.R1 | C62: WYOMING NON-CORE DNG REVENUES FROM DEMAND FORECAST AND CURRENTLY EFFECTIVE I-SALES GAS COST RATES
D63: Forecast | E63: Forecast | F63: Forecast | G63: Forecast | H63: Forecast | I63: Forecast | J63: Forecast | K63: Forecast | L63: Forecast | M63: Forecast | N63: Forecast | O63: Forecast | P63: 12-Month
D64: ='Monthly Inputs'!G3 -> Jun13 | E64: ='Monthly Inputs'!H3 -> Jul13 | F64: ='Monthly Inputs'!I3 -> Aug13 | G64: ='Monthly Inputs'!J3 -> Sep13 | H64: ='Monthly Inputs'!K3 -> Oct13 | I64: ='Monthly Inputs'!L3 -> Nov13 | J64: ='Monthly Inputs'!M3 -> Dec13 | K64: ='Monthly Inputs'!N3 -> Jan14 | L64: ='Monthly Inputs'!O3 -> Feb14 | M64: ='Monthly Inputs'!P3 -> Mar14 | N64: ='Monthly Inputs'!Q3 -> Apr14 | O64: ='Monthly Inputs'!R3 -> May14 | P64: Total
A65: I-2 & 1-4 (Non-Gas Revenue) (Yearly) | D65: ='RevRun Fcst'!H272+'RevRun Fcst'!H281 -> 2820 | E65: ='RevRun Fcst'!I272+'RevRun Fcst'!I281 -> 2380 | F65: ='RevRun Fcst'!J272+'RevRun Fcst'!J281 -> 2350 | G65: ='RevRun Fcst'!K272+'RevRun Fcst'!K281 -> 2416 | H65: ='RevRun Fcst'!L272+'RevRun Fcst'!L281 -> 2616 | I65: ='RevRun Fcst'!M272+'RevRun Fcst'!M281 -> 3571 | J65: ='RevRun Fcst'!N272+'RevRun Fcst'!N281 -> 4115 | K65: ='RevRun Fcst'!O272+'RevRun Fcst'!O281 -> 4010 | L65: ='RevRun Fcst'!P272+'RevRun Fcst'!P281 -> 3576 | M65: ='RevRun Fcst'!Q272+'RevRun Fcst'!Q281 -> 3541 | N65: ='RevRun Fcst'!R272+'RevRun Fcst'!R281 -> 3523 | O65: ='RevRun Fcst'!S272+'RevRun Fcst'!S281 -> 3250 | P65: =SUM(D65:O65) -> 38168
A66: IC (Total Revenue) (Yearly) | D66: =ROUND(D41*$P66/$P41,0) -> 15325 | E66: 4054 | F66: 4292 | G66: 4205 | H66: 6052 | I66: 6090 | J66: 6809 | K66: 9708 | L66: 10606 | M66: 7088 | N66: 8233 | O66: =P66-SUM(D66:N66) -> 11082 | P66: ='RevRun Fcst'!T299+'RevRun Fcst'!T313 -> 93544
A68: ="I-2 Gas Cost (Rate Effective "&'Other Inputs'!E66&")" -> I-2 Gas Cost (Rate Effective 11/1/2005) | D68: ='Other Inputs'!E69 -> 0 | E68: =+D68 -> 0 | F68: 0 | G68: 0 | H68: 0 | I68: 0 | J68: 0 | K68: 0 | L68: 0 | M68: 0 | N68: 0 | O68: 0
A69: ="I-4 Gas Cost (Rate Effective "&'Other Inputs'!F66&")" -> I-4 Gas Cost (Rate Effective 7/31/2009) | D69: ='Other Inputs'!F69 -> 3.78635 | E69: =+D69 -> 3.78635 | F69: 3.78635 | G69: 3.78635 | H69: 3.78635 | I69: 3.78635 | J69: 3.78635 | K69: 3.78635 | L69: 3.78635 | M69: 3.78635 | N69: 3.78635 | O69: 3.78635
D72: ALLOCATION BASES
D73: DEMAND | G73: OTHER COST
A74: Utah Peak Day Demand | D74: =+D76-D75 -> 1243265 | E74: =D74/D76 -> 0.9669998981 | G74: Utah Sales | H74: =+P20 -> 106484628 | I74: =H74/H76 -> 0.9640651812
A75: Wyoming Peak Day Demand | D75: ='Other Inputs'!E134 -> 42428 | E75: =1-E74 -> 0.03300010189 | G75: Wyoming Sales | H75: =+P39 -> 3969136 | I75: =1-I74 -> 0.03593481884
A76: Peak Day Demand | D76: ='Other Inputs'!E135 -> 1285693 | E76: =ROUND(D76/D$76,4) -> 1 | G76: Total Sales | H76: =+H74+H75 -> 110453764 | I76: =ROUND(H76/H$76,4) -> 1
D79: Financial Report Information (Latest 12 Months of Actual Expenses and 13 Months of Rate Base)
D80: Actual | E80: Actual | F80: Actual | G80: Actual | H80: Actual | I80: Actual | J80: Actual | K80: Actual | L80: Actual | M80: Actual | N80: Actual | O80: Actual
A81: Accounts | D81: =Expenses!J9 -> 2012-07-01 | E81: =Expenses!K9 -> 2012-08-01 | F81: =Expenses!L9 -> 2012-09-01 | G81: =Expenses!M9 -> 2012-10-01 | H81: =Expenses!N9 -> 2012-11-01 | I81: =Expenses!O9 -> 2012-12-01 | J81: =Expenses!P9 -> 2013-01-01 | K81: =Expenses!Q9 -> 2013-02-01 | L81: =Expenses!R9 -> 2013-03-01 | M81: =Expenses!G9 -> 2012-04-01 | N81: =Expenses!H9 -> 2012-05-01 | O81: =Expenses!I9 -> 2012-06-01 | P81: =+'Monthly Inputs'!S3 -> Total
A82: EXPENSES
B83: Gas Use In Dth (Acct 810 & 812) | D83: 0 | E83: 0 | F83: 0 | G83: 0 | H83: 0 | I83: 0 | J83: 0 | K83: 0 | L83: 0 | M83: 0 | N83: 0 | O83: 0 | P83: =SUM(D83:O83) -> 0
B85: Other Revenue (Yearly)
B86: Sales for Resale (account 483) | D86: =Expenses!J445 -> 279291.25 | E86: =Expenses!K445 -> 185207.42 | F86: =Expenses!L445 -> 283059.17 | G86: =Expenses!M445 -> 259073.11 | H86: =Expenses!N445 -> 310384.2 | I86: =Expenses!O445 -> 294014.68 | J86: =Expenses!P445 -> 345146.68 | K86: =Expenses!Q445 -> 295237.11 | L86: =Expenses!R445 -> 204854.17 | M86: =Expenses!G445 -> 232010.73 | N86: =Expenses!H445 -> 257129.36 | O86: =Expenses!I445 -> 205540.95 | P86: =SUM(D86:O86) -> 3150948.83
B87: Incidental Plant Prod Sales (Acct 490) | D87: =Expenses!J446 -> 571585.79 | E87: =Expenses!K446 -> 382182.36 | F87: =Expenses!L446 -> 402308.03 | G87: =Expenses!M446 -> 467776.12 | H87: =Expenses!N446 -> 2197605.12 | I87: =Expenses!O446 -> 463620.06 | J87: =Expenses!P446 -> 471684.25 | K87: =Expenses!Q446 -> 427992.81 | L87: =Expenses!R446 -> 364113.78 | M87: =Expenses!G446 -> 667706.6 | N87: =Expenses!H446 -> 738698.17 | O87: =Expenses!I446 -> 581730.47 | P87: =SUM(D87:O87) -> 7737003.56
B88: Gas Processed by Others (account 491) | D88: =Expenses!J461 -> 0 | E88: =Expenses!K461 -> 0 | F88: =Expenses!L461 -> 0 | G88: =Expenses!M461 -> 0 | H88: =Expenses!N461 -> 0 | I88: =Expenses!O461 -> 0 | J88: =Expenses!P461 -> 0 | K88: =Expenses!Q461 -> 0 | L88: =Expenses!R461 -> 0 | M88: =Expenses!G461 -> 0 | N88: =Expenses!H461 -> 0 | O88: =Expenses!I461 -> 0 | P88: =SUM(D88:O88) -> 0
B89: Gasoline - Oil Sales (account 492) | D89: =Expenses!J447 -> 191481.05 | E89: =Expenses!K447 -> 44268.49 | F89: =Expenses!L447 -> 63803 | G89: =Expenses!M447 -> 38307.11 | H89: =Expenses!N447 -> 51913.04 | I89: =Expenses!O447 -> 93274.17 | J89: =Expenses!P447 -> 68523.73 | K89: =Expenses!Q447 -> 90585.88 | L89: =Expenses!R447 -> 103039.01 | M89: =Expenses!G447 -> 131638.72 | N89: =Expenses!H447 -> 156857.26 | O89: =Expenses!I447 -> 192189.79 | P89: =SUM(D89:O89) -> 1225881.25
B90: Gasoline - Oil Cost (account 758.001) | D90: =-Expenses!J450 -> -28621.3 | E90: =-Expenses!K450 -> -7518.62 | F90: =-Expenses!L450 -> -8831.43 | G90: =-Expenses!M450 -> -7863.8 | H90: =-Expenses!N450 -> -7399.94 | I90: =-Expenses!O450 -> -15844.77 | J90: =-Expenses!P450 -> -10812.02 | K90: =-Expenses!Q450 -> -12251.06 | L90: =-Expenses!R450 -> -15810.05 | M90: =-Expenses!G450 -> -20156.44 | N90: =-Expenses!H450 -> -23335.22 | O90: =-Expenses!I450 -> -29720.81 | P90: =SUM(D90:O90) -> -188165.46
B93: Overriding Royalty (account 495-1) | D93: =Expenses!J448 -> 928900.06 | E93: =Expenses!K448 -> 965191.58 | F93: =Expenses!L448 -> 1189252.64 | G93: =Expenses!M448 -> 1378718.57 | H93: =Expenses!N448 -> 1211050.47 | I93: =Expenses!O448 -> 1457433.68 | J93: =Expenses!P448 -> 1460826.82 | K93: =Expenses!Q448 -> 1603921.39 | L93: =Expenses!R448 -> 1483453.47 | M93: =Expenses!G448 -> 1104892.94 | N93: =Expenses!H448 -> 1167135.57 | O93: =Expenses!I448 -> 928089.73 | P93: =SUM(D93:O93) -> 14878866.92
B94: Wexpro Revenue Sharing (account 495-2) | D94: =Expenses!J449 -> 201548 | E94: =Expenses!K449 -> 165660 | F94: =Expenses!L449 -> 120571 | G94: =Expenses!M449 -> 26173 | H94: =Expenses!N449 -> 6825 | I94: =Expenses!O449 -> 200944 | J94: =Expenses!P449 -> 119115 | K94: =Expenses!Q449 -> 0 | L94: =Expenses!R449 -> 182110 | M94: =Expenses!G449 -> 263861 | N94: =Expenses!H449 -> 404379 | O94: =Expenses!I449 -> 367577 | P94: =SUM(D94:O94) -> 2058763
P95: Page 2 of 6
C96: Actual | D96: Actual | E96: Actual | F96: Actual | G96: Actual | H96: Actual | I96: Actual | J96: Actual | K96: Actual | L96: Actual | M96: Actual | N96: Actual | O96: Actual | P96: 13-Month
A97: Accounts | C97: ='Rate Base'!H8 -> 2012-03-21 | D97: ='Rate Base'!I8 -> 2012-04-20 | E97: ='Rate Base'!J8 -> 2012-05-20 | F97: ='Rate Base'!K8 -> 2012-06-19 | G97: ='Rate Base'!L8 -> 2012-07-19 | H97: ='Rate Base'!M8 -> 2012-08-18 | I97: ='Rate Base'!N8 -> 2012-09-17 | J97: ='Rate Base'!O8 -> 2012-10-17 | K97: ='Rate Base'!P8 -> 2012-11-16 | L97: ='Rate Base'!Q8 -> 2012-12-16 | M97: ='Rate Base'!R8 -> 2013-01-15 | N97: ='Rate Base'!S8 -> 2013-02-14 | O97: ='Rate Base'!T8 -> 2013-03-16 | P97: Average
A98: RATE BASE - PRODUCTION
B99: Acct 164 (Working Gas) - Production | C99: ='Rate Base'!H209 -> 12903260.28 | D99: ='Rate Base'!I209 -> 11695451.32 | E99: ='Rate Base'!J209 -> 17454303.39 | F99: ='Rate Base'!K209 -> 29378840.71 | G99: ='Rate Base'!L209 -> 41693614.87 | H99: ='Rate Base'!M209 -> 49496814.5 | I99: ='Rate Base'!N209 -> 58340520.19 | J99: ='Rate Base'!O209 -> 65085991.15 | K99: ='Rate Base'!P209 -> 57526709.57 | L99: ='Rate Base'!Q209 -> 38347748.57 | M99: ='Rate Base'!R209 -> 25571748.57 | N99: ='Rate Base'!S209 -> 14073352.81 | O99: ='Rate Base'!T209 -> 9537533.75 | P99: =(((+C99+O99)/2)+SUM(D99:N99))/12 -> 34990457.72
B100: Acct 101 - Production | C100: ='Rate Base'!H158 -> 83069408.33 | D100: ='Rate Base'!I158 -> 83069408.33 | E100: ='Rate Base'!J158 -> 82934846.12 | F100: ='Rate Base'!K158 -> 82934723.76 | G100: ='Rate Base'!L158 -> 82934723.76 | H100: ='Rate Base'!M158 -> 81511647.54 | I100: ='Rate Base'!N158 -> 81345843.65 | J100: ='Rate Base'!O158 -> 81345843.65 | K100: ='Rate Base'!P158 -> 81261868.79 | L100: ='Rate Base'!Q158 -> 81179889.44 | M100: ='Rate Base'!R158 -> 81179889.44 | N100: ='Rate Base'!S158 -> 81179889.44 | O100: ='Rate Base'!T158 -> 81179889.44 | P100: 81916935.23
B101: Acct 108 - Production | C101: ='Rate Base'!H176 -> -68667111.5 | D101: ='Rate Base'!I176 -> -68719234.18 | E101: ='Rate Base'!J176 -> -68619477.32 | F101: ='Rate Base'!K176 -> -68781185.05 | G101: ='Rate Base'!L176 -> -68827131.63 | H101: ='Rate Base'!M176 -> -67448134.12 | I101: ='Rate Base'!N176 -> -67317594.25 | J101: ='Rate Base'!O176 -> -67342713.36 | K101: ='Rate Base'!P176 -> -67322320.64 | L101: ='Rate Base'!Q176 -> -67294936.64 | M101: ='Rate Base'!R176 -> -67360255 | N101: ='Rate Base'!S176 -> -67429215.59 | O101: ='Rate Base'!T176 -> -67473761 | P101: -67877719.5
B102: Acct 111 - Production | C102: ='Rate Base'!H183 -> -6052360.24 | D102: ='Rate Base'!I183 -> -6053476.35 | E102: ='Rate Base'!J183 -> -6054151.72 | F102: ='Rate Base'!K183 -> -6060379.02 | G102: ='Rate Base'!L183 -> -6056069.93 | H102: ='Rate Base'!M183 -> -6056977.18 | I102: ='Rate Base'!N183 -> -6057655.38 | J102: ='Rate Base'!O183 -> -6058069.95 | K102: ='Rate Base'!P183 -> -6059484.12 | L102: ='Rate Base'!Q183 -> -6060664.99 | M102: ='Rate Base'!R183 -> -6062124.52 | N102: ='Rate Base'!S183 -> -6063803.55 | O102: ='Rate Base'!T183 -> -6065028.64 | P102: -6058462.596
B103: Acct 2550 - Production | C103: ='Rate Base'!H244 -> -64711.13 | D103: ='Rate Base'!I244 -> -61691.35 | E103: ='Rate Base'!J244 -> -58671.57 | F103: ='Rate Base'!K244 -> -55651.79 | G103: ='Rate Base'!L244 -> -52632.01 | H103: ='Rate Base'!M244 -> -49612.23 | I103: ='Rate Base'!N244 -> -46592.45 | J103: ='Rate Base'!O244 -> -43572.67 | K103: ='Rate Base'!P244 -> -40552.89 | L103: ='Rate Base'!Q244 -> -37533.11 | M103: ='Rate Base'!R244 -> -35704.82 | N103: ='Rate Base'!S244 -> -33876.53 | O103: ='Rate Base'!T244 -> -32048.24 | P103: -47039.25875
B104: Acct 2820 - Production | C104: ='Rate Base'!H251 -> -2292686.99 | D104: ='Rate Base'!I251 -> -2264262.19 | E104: ='Rate Base'!J251 -> -2234935.48 | F104: ='Rate Base'!K251 -> -2216048.7 | G104: ='Rate Base'!L251 -> -2135592.74 | H104: ='Rate Base'!M251 -> -2119787.13 | I104: ='Rate Base'!N251 -> -2071303.86 | J104: ='Rate Base'!O251 -> -1902085.64 | K104: ='Rate Base'!P251 -> -2187708.42 | L104: ='Rate Base'!Q251 -> -2329860.65 | M104: ='Rate Base'!R251 -> -2305519.95 | N104: ='Rate Base'!S251 -> -2274636.69 | O104: ='Rate Base'!T251 -> -2090782.82 | P104: -2186123.03
B105: Acct 2821 - Production | C105: ='Rate Base'!H258 -> -1196642.93 | D105: ='Rate Base'!I258 -> -1196642.93 | E105: ='Rate Base'!J258 -> -1196642.93 | F105: ='Rate Base'!K258 -> -1196642.93 | G105: ='Rate Base'!L258 -> -1196642.93 | H105: ='Rate Base'!M258 -> -1196642.93 | I105: ='Rate Base'!N258 -> -1196642.93 | J105: ='Rate Base'!O258 -> -1196642.93 | K105: ='Rate Base'!P258 -> -761345.31 | L105: ='Rate Base'!Q258 -> -761345.31 | M105: ='Rate Base'!R258 -> -761345.31 | N105: ='Rate Base'!S258 -> -761345.31 | O105: ='Rate Base'!T258 -> -761345.31 | P105: -1033406.322
D107: Production | H107: Acct 101 | I107: Acct 108 | J107: Acct 111 | K107: Acct 2550 | L107: Acct 2820 | M107: Acct 2821 | N107: Total
B108: Depreciation - Acct 403 | D108: =Expenses!S385 -> 578624.15 | F108: Thirteen month average | H108: =P100 -> 81916935.23 | I108: =P101 -> -67877719.5 | J108: =P102 -> -6058462.596 | K108: =P103 -> -47039.25875 | L108: =P104 -> -2186123.03 | M108: =P105 -> -1033406.322 | N108: =SUM(H108:M108) -> 4714184.525
B109: Amortization & Depletion - Acct 404 | D109: =Expenses!S392 -> 12668.4 | F109: =CONCATENATE("Wexpro Red. @ ",-'Other Inputs'!E257*100," %") -> Wexpro Red. @ 6.3 % | H109: =H108*'Other Inputs'!$E$257 -> -5160766.92 | I109: =I108*'Other Inputs'!$E$257 -> 4276296.329 | J109: =J108*'Other Inputs'!$E$257 -> 381683.1435 | N109: =SUM(H109:M109) -> -502787.4475
B110: Utah Pre-Tax Return on Production Assets | D110: =+N111 -> 496523.7154 | M110: =SUM(N108:N109) -> 4211397.077
B111: Utah Production Cost | D111: =SUM(D108:D110) -> 1087816.265 | M111: ="Utah Pre-Tax Rate of Return on Production Assets ("&'Other Inputs'!E260&")" -> Utah Pre-Tax Rate of Return on Production Assets (0.1179) | N111: =M110*'Other Inputs'!E260 -> 496523.7154
M112: ="Wyoming Pre-Tax Rate of Return on Production Assets ("&'Other Inputs'!E259&")" -> Wyoming Pre-Tax Rate of Return on Production Assets (0.1088) | N112: =M110*'Other Inputs'!E259 -> 458200.002
A114: TACTICAL PLAN INFORMATION (IRP) | P114: 12-Month
D115: ='Monthly Inputs'!G3 -> Jun13 | E115: ='Monthly Inputs'!H3 -> Jul13 | F115: ='Monthly Inputs'!I3 -> Aug13 | G115: ='Monthly Inputs'!J3 -> Sep13 | H115: ='Monthly Inputs'!K3 -> Oct13 | I115: ='Monthly Inputs'!L3 -> Nov13 | J115: ='Monthly Inputs'!M3 -> Dec13 | K115: ='Monthly Inputs'!N3 -> Jan14 | L115: ='Monthly Inputs'!O3 -> Feb14 | M115: ='Monthly Inputs'!P3 -> Mar14 | N115: ='Monthly Inputs'!Q3 -> Apr14 | O115: ='Monthly Inputs'!R3 -> May14 | P115: Total
A116: COMPANY PRODUCTION
B117: Prior Company
B118: D24 Wells
B119: Brady & Powel
B120: Total Company Production | D120: ='Monthly Inputs'!G16 -> 5542290 | E120: ='Monthly Inputs'!H16 -> 5358300 | F120: ='Monthly Inputs'!I16 -> 5480380 | G120: ='Monthly Inputs'!J16 -> 5777240 | H120: ='Monthly Inputs'!K16 -> 6067400 | I120: ='Monthly Inputs'!L16 -> 6108360 | J120: ='Monthly Inputs'!M16 -> 6747240 | K120: ='Monthly Inputs'!N16 -> 6610590 | L120: ='Monthly Inputs'!O16 -> 5807990 | M120: ='Monthly Inputs'!P16 -> 6403330 | N120: ='Monthly Inputs'!Q16 -> 6570670 | O120: ='Monthly Inputs'!R16 -> 6743940 | P120: =SUM(D120:O120) -> 73217730
A122: STORAGE INJECTIONS
B123: Chalk Creek | D123: ='Monthly Inputs'!G35 -> 0 | E123: ='Monthly Inputs'!H35 -> 0 | F123: ='Monthly Inputs'!I35 -> 0 | G123: ='Monthly Inputs'!J35 -> 0 | H123: ='Monthly Inputs'!K35 -> 153426 | I123: ='Monthly Inputs'!L35 -> 173724 | J123: ='Monthly Inputs'!M35 -> 0 | K123: ='Monthly Inputs'!N35 -> 0 | L123: ='Monthly Inputs'!O35 -> 0 | M123: ='Monthly Inputs'!P35 -> 0 | N123: ='Monthly Inputs'!Q35 -> 0 | O123: ='Monthly Inputs'!R35 -> 0 | P123: =SUM(D123:O123) -> 327150
B124: Coalville | D124: ='Monthly Inputs'!G37 -> 0 | E124: ='Monthly Inputs'!H37 -> 0 | F124: ='Monthly Inputs'!I37 -> 0 | G124: ='Monthly Inputs'!J37 -> 131097 | H124: ='Monthly Inputs'!K37 -> 233464 | I124: ='Monthly Inputs'!L37 -> 0 | J124: ='Monthly Inputs'!M37 -> 0 | K124: ='Monthly Inputs'!N37 -> 0 | L124: ='Monthly Inputs'!O37 -> 0 | M124: ='Monthly Inputs'!P37 -> 0 | N124: ='Monthly Inputs'!Q37 -> 0 | O124: ='Monthly Inputs'!R37 -> 0 | P124: =SUM(D124:O124) -> 364561
B125: Leroy | D125: ='Monthly Inputs'!G38 -> 0 | E125: ='Monthly Inputs'!H38 -> 0 | F125: ='Monthly Inputs'!I38 -> 0 | G125: ='Monthly Inputs'!J38 -> 0 | H125: ='Monthly Inputs'!K38 -> 458807 | I125: ='Monthly Inputs'!L38 -> 0 | J125: ='Monthly Inputs'!M38 -> 0 | K125: ='Monthly Inputs'!N38 -> 0 | L125: ='Monthly Inputs'!O38 -> 0 | M125: ='Monthly Inputs'!P38 -> 0 | N125: ='Monthly Inputs'!Q38 -> 0 | O125: ='Monthly Inputs'!R38 -> 0 | P125: =SUM(D125:O125) -> 458807
B126: Ryckman | D126: ='Monthly Inputs'!G39 -> 0 | E126: ='Monthly Inputs'!H39 -> 0 | F126: ='Monthly Inputs'!I39 -> 0 | G126: ='Monthly Inputs'!J39 -> 0 | H126: ='Monthly Inputs'!K39 -> 0 | I126: ='Monthly Inputs'!L39 -> 0 | J126: ='Monthly Inputs'!M39 -> 0 | K126: ='Monthly Inputs'!N39 -> 0 | L126: ='Monthly Inputs'!O39 -> 0 | M126: ='Monthly Inputs'!P39 -> 0 | N126: ='Monthly Inputs'!Q39 -> 0 | O126: ='Monthly Inputs'!R39 -> 0 | P126: =SUM(D126:O126) -> 0
B127: Total Peaking Storage | D127: =SUM(D123:D126) -> 0 | E127: 0 | F127: 0 | G127: 131097 | H127: 845697 | I127: 173724 | J127: 0 | K127: 0 | L127: 0 | M127: 0 | N127: 0 | O127: 0 | P127: 1150518
B128: Clay Basin | D128: ='Monthly Inputs'!G36 -> 2188410 | E128: ='Monthly Inputs'!H36 -> 2256550 | F128: ='Monthly Inputs'!I36 -> 2353471 | G128: ='Monthly Inputs'!J36 -> 1390428 | H128: ='Monthly Inputs'!K36 -> 10320 | I128: ='Monthly Inputs'!L36 -> 0 | J128: ='Monthly Inputs'!M36 -> 0 | K128: ='Monthly Inputs'!N36 -> 0 | L128: ='Monthly Inputs'!O36 -> 0 | M128: ='Monthly Inputs'!P36 -> 162730 | N128: ='Monthly Inputs'!Q36 -> 175580 | O128: ='Monthly Inputs'!R36 -> 1705786 | P128: =SUM(D128:O128) -> 10243275
B129: Total Storage Injections | D129: =SUM(D127:D128) -> 2188410 | E129: =SUM(E127:E128) -> 2256550 | F129: 2353471 | G129: 1521525 | H129: 856017 | I129: 173724 | J129: 0 | K129: 0 | L129: 0 | M129: 162730 | N129: 175580 | O129: 1705786 | P129: 11393793
A130: STORAGE WITHDRAWLS
B131: Chalk Creek | D131: ='Monthly Inputs'!G43 -> 0 | E131: ='Monthly Inputs'!H43 -> 0 | F131: ='Monthly Inputs'!I43 -> 0 | G131: ='Monthly Inputs'!J43 -> 0 | H131: ='Monthly Inputs'!K43 -> 0 | I131: ='Monthly Inputs'!L43 -> 0 | J131: ='Monthly Inputs'!M43 -> 0 | K131: ='Monthly Inputs'!N43 -> 162845 | L131: ='Monthly Inputs'!O43 -> 162845 | M131: ='Monthly Inputs'!P43 -> 0 | N131: ='Monthly Inputs'!Q43 -> 0 | O131: ='Monthly Inputs'!R43 -> 0 | P131: =SUM(D131:O131) -> 325690
B132: Coalville | D132: ='Monthly Inputs'!G45 -> 0 | E132: ='Monthly Inputs'!H45 -> 0 | F132: ='Monthly Inputs'!I45 -> 0 | G132: ='Monthly Inputs'!J45 -> 0 | H132: ='Monthly Inputs'!K45 -> 0 | I132: ='Monthly Inputs'!L45 -> 0 | J132: ='Monthly Inputs'!M45 -> 0 | K132: ='Monthly Inputs'!N45 -> 364893 | L132: ='Monthly Inputs'!O45 -> 0 | M132: ='Monthly Inputs'!P45 -> 0 | N132: ='Monthly Inputs'!Q45 -> 0 | O132: ='Monthly Inputs'!R45 -> 0 | P132: =SUM(D132:O132) -> 364893
B133: Leroy | D133: ='Monthly Inputs'!G46 -> 0 | E133: ='Monthly Inputs'!H46 -> 0 | F133: ='Monthly Inputs'!I46 -> 0 | G133: ='Monthly Inputs'!J46 -> 0 | H133: ='Monthly Inputs'!K46 -> 0 | I133: ='Monthly Inputs'!L46 -> 0 | J133: ='Monthly Inputs'!M46 -> 0 | K133: ='Monthly Inputs'!N46 -> 452488 | L133: ='Monthly Inputs'!O46 -> 0 | M133: ='Monthly Inputs'!P46 -> 0 | N133: ='Monthly Inputs'!Q46 -> 0 | O133: ='Monthly Inputs'!R46 -> 0 | P133: =SUM(D133:O133) -> 452488
B134: Ryckman | D134: ='Monthly Inputs'!G47 -> 0 | E134: ='Monthly Inputs'!H47 -> 0 | F134: ='Monthly Inputs'!I47 -> 0 | G134: ='Monthly Inputs'!J47 -> 0 | H134: ='Monthly Inputs'!K47 -> 0 | I134: ='Monthly Inputs'!L47 -> 0 | J134: ='Monthly Inputs'!M47 -> 0 | K134: ='Monthly Inputs'!N47 -> 0 | L134: ='Monthly Inputs'!O47 -> 0 | M134: ='Monthly Inputs'!P47 -> 0 | N134: ='Monthly Inputs'!Q47 -> 0 | O134: ='Monthly Inputs'!R47 -> 0 | P134: =SUM(D134:O134) -> 0
B135: Total Peaking Storage | D135: =SUM(D131:D134) -> 0 | E135: =SUM(E131:E134) -> 0 | F135: 0 | G135: 0 | H135: 0 | I135: 0 | J135: 0 | K135: 980226 | L135: 162845 | M135: 0 | N135: 0 | O135: 0 | P135: 1143071
B136: Clay Basin | D136: ='Monthly Inputs'!G44 -> 78910 | E136: ='Monthly Inputs'!H44 -> 61440 | F136: ='Monthly Inputs'!I44 -> 0 | G136: ='Monthly Inputs'!J44 -> 0 | H136: ='Monthly Inputs'!K44 -> 324750 | I136: ='Monthly Inputs'!L44 -> 2934280 | J136: ='Monthly Inputs'!M44 -> 4888980 | K136: ='Monthly Inputs'!N44 -> 2436490 | L136: ='Monthly Inputs'!O44 -> 0 | M136: ='Monthly Inputs'!P44 -> 0 | N136: ='Monthly Inputs'!Q44 -> 353330 | O136: ='Monthly Inputs'!R44 -> 0 | P136: =SUM(D136:O136) -> 11078180
B137: Total Storage Withdrawls | D137: =SUM(D135:D136) -> 78910 | E137: 61440 | F137: 0 | G137: 0 | H137: 324750 | I137: 2934280 | J137: 4888980 | K137: 3416716 | L137: 162845 | M137: 0 | N137: 353330 | O137: 0 | P137: 12221251
A140: Gas Supply and Demand | D140: =D4 -> Forecast | E140: Forecast | F140: Forecast | G140: Forecast | H140: Forecast | I140: Forecast | J140: Forecast | K140: Forecast | L140: Forecast | M140: Forecast | N140: Forecast | O140: Forecast | P140: 12-Month
A141: Demand | D141: =D5 -> Jun13 | E141: Jul13 | F141: Aug13 | G141: Sep13 | H141: Oct13 | I141: Nov13 | J141: Dec13 | K141: Jan14 | L141: Feb14 | M141: Mar14 | N141: Apr14 | O141: May14 | P141: Total
A143: Utah Sales | D143: =+D20 -> 3049002 | E143: 2838939 | F143: =+F20 -> 2760921 | G143: 3816579 | H143: 6700540 | I143: 10815963 | J143: 17115975 | K143: 19534615 | L143: 15187141 | M143: 11287853 | N143: 8881481 | O143: 4495619 | P143: =SUM(D143:O143) -> 106484628
A144: Wyoming Sales | D144: =+D39 -> 116714 | E144: 70623 | F144: 80889 | G144: 148420 | H144: 235436 | I144: 412933 | J144: 616008 | K144: 701196 | L144: 574694 | M144: 450592 | N144: 358196 | O144: 203435 | P144: =SUM(D144:O144) -> 3969136
A145: Total Sales | D145: =+D143+D144 -> 3165716 | E145: 2909562 | F145: 2841810 | G145: 3964999 | H145: 6935976 | I145: 11228896 | J145: 17731983 | K145: 20235811 | L145: 15761835 | M145: 11738445 | N145: 9239677 | O145: 4699054 | P145: 110453764
A147: Distribution Use (Offices) | C147: Check formulas for correct month | D147: =ROUND(O83,0) -> 0 | E147: =ROUND(D83,0) -> 0 | F147: =ROUND(E83,0) -> 0 | G147: 0 | H147: 0 | I147: 0 | J147: 0 | K147: 0 | L147: 0 | M147: 0 | N147: 0 | O147: 0 | P147: =SUM(D147:O147) -> 0 | Q147: =(O145/O150)-1 -> -0.004900053852
A148: Distribution Lost and Unaccounted for | D148: =+D150-D145-D147 -> 15588 | E148: =+E150-E145-E147 -> 14327 | F148: 13993 | G148: 19524 | H148: 34154 | I148: 55293 | J148: 87315 | K148: 99644 | L148: 77613 | M148: 57802 | N148: 45497 | O148: =+O150-O145-O147 -> 23139 | P148: =SUM(D148:O148) -> 543889
A150: Total City Gate | D150: =ROUND((D145+D147)/(1-'Other Inputs'!$E$262),0) -> 3181304 | E150: =ROUND((E145+E147)/(1-'Other Inputs'!$E$262),0) -> 2923889 | F150: =ROUND((F145+F147)/(1-'Other Inputs'!$E$262),0) -> 2855803 | G150: =ROUND((G145+G147)/(1-'Other Inputs'!$E$262),0) -> 3984523 | H150: =ROUND((H145+H147)/(1-'Other Inputs'!$E$262),0) -> 6970130 | I150: =ROUND((I145+I147)/(1-'Other Inputs'!$E$262),0) -> 11284189 | J150: =ROUND((J145+J147)/(1-'Other Inputs'!$E$262),0) -> 17819298 | K150: =ROUND((K145+K147)/(1-'Other Inputs'!$E$262),0) -> 20335455 | L150: =ROUND((L145+L147)/(1-'Other Inputs'!$E$262),0) -> 15839448 | M150: =ROUND((M145+M147)/(1-'Other Inputs'!$E$262),0) -> 11796247 | N150: =ROUND((N145+N147)/(1-'Other Inputs'!$E$262),0) -> 9285174 | O150: =ROUND((O145+O147)/(1-'Other Inputs'!$E$262),0) -> 4722193 | P150: =SUM(D150:O150) -> 110997653
A152: Peaking Injection | D152: =+D127 -> 0 | E152: 0 | F152: 0 | G152: 131097 | H152: 845697 | I152: 173724 | J152: 0 | K152: 0 | L152: 0 | M152: =+M127 -> 0 | N152: 0 | O152: 0 | P152: =SUM(D152:O152) -> 1150518
A153: Clay Basin Injection | D153: =+D128 -> 2188410 | E153: 2256550 | F153: 2353471 | G153: 1390428 | H153: 10320 | I153: 0 | J153: 0 | K153: 0 | L153: 0 | M153: 162730 | N153: 175580 | O153: 1705786 | P153: =SUM(D153:O153) -> 10243275
A154: Storage Lost & Unaccounted For | D154: =-'Monthly Inputs'!G62 -> 32454.1203 | E154: =-'Monthly Inputs'!H62 -> 33464.6365 | F154: =-'Monthly Inputs'!I62 -> 34901.97493 | G154: =-'Monthly Inputs'!J62 -> 22193.21124 | H154: =-'Monthly Inputs'!K62 -> 21163.1762 | I154: =-'Monthly Inputs'!L62 -> 3266.0112 | J154: =-'Monthly Inputs'!M62 -> 0 | K154: =-'Monthly Inputs'!N62 -> 0 | L154: =-'Monthly Inputs'!O62 -> 0 | M154: =-'Monthly Inputs'!P62 -> 2413.2859 | N154: =-'Monthly Inputs'!Q62 -> 2603.8514 | O154: =-'Monthly Inputs'!R62 -> 25296.80638 | P154: =SUM(D154:O154) -> 177757.0741
A155: Total Demand | D155: =SUM(D150:D154) -> 5402168.12 | E155: =SUM(E150:E154) -> 5213903.637 | F155: 5244175.975 | G155: 5528241.211 | H155: =SUM(H150:H154) -> 7847310.176 | I155: 11461179.01 | J155: 17819298 | K155: 20335455 | L155: 15839448 | M155: 11961390.29 | N155: 9463357.851 | O155: =SUM(O150:O154) -> 6453275.806 | P155: =SUM(D155:O155) -> 122569203.1
A157: Supply
A158: Company Production | D158: =+D120 -> 5542290 | E158: 5358300 | F158: 5480380 | G158: 5777240 | H158: 6067400 | I158: 6108360 | J158: 6747240 | K158: 6610590 | L158: 5807990 | M158: 6403330 | N158: 6570670 | O158: 6743940 | P158: =SUM(D158:O158) -> 73217730
A159: Co Prod Lost & Unaccounted For | D159: =ROUND(D158*(-'Other Inputs'!$E$264-'Other Inputs'!$E$265),0) -> -238873 | E159: =ROUND(E158*(-'Other Inputs'!$E$264-'Other Inputs'!$E$265),0) -> -230943 | F159: =ROUND(F158*(-'Other Inputs'!$E$264-'Other Inputs'!$E$265),0) -> -236204 | G159: =ROUND(G158*(-'Other Inputs'!$E$264-'Other Inputs'!$E$265),0) -> -248999 | H159: =ROUND(H158*(-'Other Inputs'!$E$264-'Other Inputs'!$E$265),0) -> -261505 | I159: =ROUND(I158*(-'Other Inputs'!$E$264-'Other Inputs'!$E$265),0) -> -263270 | J159: =ROUND(J158*(-'Other Inputs'!$E$264-'Other Inputs'!$E$265),0) -> -290806 | K159: =ROUND(K158*(-'Other Inputs'!$E$264-'Other Inputs'!$E$265),0) -> -284916 | L159: =ROUND(L158*(-'Other Inputs'!$E$264-'Other Inputs'!$E$265),0) -> -250324 | M159: =ROUND(M158*(-'Other Inputs'!$E$264-'Other Inputs'!$E$265),0) -> -275984 | N159: =ROUND(N158*(-'Other Inputs'!$E$264-'Other Inputs'!$E$265),0) -> -283196 | O159: =ROUND(O158*(-'Other Inputs'!$E$264-'Other Inputs'!$E$265),0) -> -290664 | P159: =SUM(D159:O159) -> -3155684
A160: Company Production @ City Gate | D160: =SUM(D158:D159) -> 5303417 | E160: =SUM(E158:E159) -> 5127357 | F160: 5244176 | G160: 5528241 | H160: 5805895 | I160: 5845090 | J160: 6456434 | K160: 6325674 | L160: 5557666 | M160: 6127346 | N160: 6287474 | O160: 6453276 | P160: =SUM(D160:O160) -> 70062046
A162: Peaking Withdrawal | D162: =+D135 -> 0 | E162: 0 | F162: 0 | G162: 0 | H162: 0 | I162: 0 | J162: 0 | K162: 980226 | L162: 162845 | M162: 0 | N162: 0 | O162: 0 | P162: =SUM(D162:O162) -> 1143071
A163: Clay Basin Withdrawal | D163: =+D136 -> 78910 | E163: 61440 | F163: =+F136 -> 0 | G163: 0 | H163: 324750 | I163: 2934280 | J163: 4888980 | K163: 2436490 | L163: 0 | M163: 0 | N163: 353330 | O163: 0 | P163: =SUM(D163:O163) -> 11078180
A164: QPC Transportation Loss on Storage | D164: ='Monthly Inputs'!G78+'Monthly Inputs'!G70 -> -1560.0507 | E164: ='Monthly Inputs'!H78+'Monthly Inputs'!H70 -> -1214.6688 | F164: ='Monthly Inputs'!I78+'Monthly Inputs'!I70 -> 0 | G164: ='Monthly Inputs'!J78+'Monthly Inputs'!J70 -> 0 | H164: ='Monthly Inputs'!K78+'Monthly Inputs'!K70 -> -6420.3075 | I164: ='Monthly Inputs'!L78+'Monthly Inputs'!L70 -> -58010.7156 | J164: ='Monthly Inputs'!M78+'Monthly Inputs'!M70 -> -96655.1346 | K164: ='Monthly Inputs'!N78+'Monthly Inputs'!N70 -> -78047.1928 | L164: ='Monthly Inputs'!O78+'Monthly Inputs'!O70 -> -4641.0825 | M164: ='Monthly Inputs'!P78+'Monthly Inputs'!P70 -> 0 | N164: ='Monthly Inputs'!Q78+'Monthly Inputs'!Q70 -> -6985.3341 | O164: ='Monthly Inputs'!R78+'Monthly Inputs'!R70 -> 0 | P164: =SUM(D164:O164) -> -253534.4866 | R164: =4761675+168421 -> 4930096
A165: Storage Lost & Unaccounted For | D165: ='Monthly Inputs'!G62 -> -32454.1203 | E165: ='Monthly Inputs'!H62 -> -33464.6365 | F165: ='Monthly Inputs'!I62 -> -34901.97493 | G165: ='Monthly Inputs'!J62 -> -22193.21124 | H165: ='Monthly Inputs'!K62 -> -21163.1762 | I165: ='Monthly Inputs'!L62 -> -3266.0112 | J165: ='Monthly Inputs'!M62 -> 0 | K165: ='Monthly Inputs'!N62 -> 0 | L165: ='Monthly Inputs'!O62 -> 0 | M165: ='Monthly Inputs'!P62 -> -2413.2859 | N165: ='Monthly Inputs'!Q62 -> -2603.8514 | O165: ='Monthly Inputs'!R62 -> -25296.80638 | P165: =SUM(D165:O165) -> -177757.0741
A166: Storage Supply @ City Gate | D166: =SUM(D162:D165) -> 44895.829 | E166: =SUM(E162:E165) -> 26760.6947 | F166: -34901.97493 | G166: -22193.21124 | H166: 297166.5163 | I166: 2873003.273 | J166: 4792324.865 | K166: 3338668.807 | L166: 158203.9175 | M166: -2413.2859 | N166: 343740.8145 | O166: -25296.80638 | P166: 11789959.44
A168: Gas Purchased @ City Gate | D168: =D155-D160-D166-D154 -> 21401.171 | E168: =E155-E160-E166-E154 -> 26321.3053 | F168: =F155-F160-F166-F154 -> -0.02507000044 | G168: 0.2112400001 | H168: =H155-H160-H166-H154 -> 1723085.484 | I168: =I155-I160-I166-I154 -> 2739819.727 | J168: 6570539.135 | K168: 10671112.19 | L168: =L155-L160-L166-L154 -> 10123578.08 | M168: =M155-M160-M166-M154 -> 5834044.286 | N168: 2829539.185 | O168: -0.19362 | P168: =SUM(D168:O168) -> 40539440.56
A169: Gas Reimbursement | D169: =+D170-D168 -> 305.829 | E169: =+E170-E168 -> 376.6947 | F169: 0.02507000044 | G169: -0.2112400001 | H169: 24642.5163 | I169: 39184.2732 | J169: 93969.8654 | K169: 152614.8072 | L169: 144783.9175 | M169: 83436.7141 | N169: 40466.8145 | O169: 0.19362 | P169: =SUM(D169:O169) -> 579781.4394
A170: Gas Purchased - Dth ( /.98) | D170: =ROUND(D168/(1-'Other Inputs'!$E$265),0) -> 21707 | E170: =ROUND(E168/(1-'Other Inputs'!$E$265),0) -> 26698 | F170: =ROUND(F168/(1-'Other Inputs'!$E$265),0) -> 0 | G170: =ROUND(G168/(1-'Other Inputs'!$E$265),0) -> 0 | H170: =ROUND(H168/(1-'Other Inputs'!$E$265),0) -> 1747728 | I170: =ROUND(I168/(1-'Other Inputs'!$E$265),0) -> 2779004 | J170: =ROUND(J168/(1-'Other Inputs'!$E$265),0) -> 6664509 | K170: =ROUND(K168/(1-'Other Inputs'!$E$265),0) -> 10823727 | L170: =ROUND(L168/(1-'Other Inputs'!$E$265),0) -> 10268362 | M170: =ROUND(M168/(1-'Other Inputs'!$E$265),0) -> 5917481 | N170: =ROUND(N168/(1-'Other Inputs'!$E$265),0) -> 2870006 | O170: =ROUND(O168/(1-'Other Inputs'!$E$265),0) -> 0 | P170: =SUM(D170:O170) -> 41119222
A172: Transported Volumes - total | D172: =+D160+D168+D137+D164 -> 5402168.12 | E172: =+E160+E168+E137+E164 -> 5213903.637 | F172: 5244175.975 | G172: 5528241.211 | H172: 7847310.176 | I172: 11461179.01 | J172: 17819298 | K172: 20335455 | L172: 15839448 | M172: 11961390.29 | N172: 9463357.851 | O172: =+O160+O168+O137+O164 -> 6453275.806 | P172: =+P160+P168+P137+P164 -> 122569203.1
A173: Kern transported volumes | D173: =HLOOKUP(MONTH(D5),kernrivertrans,6,FALSE) -> 96320.73153 | E173: 99531.42258 | F173: 99531.42258 | G173: 96320.73153 | H173: 99531.42258 | I173: 1701666.257 | J173: 1758388.466 | K173: 1758388.466 | L173: 1588221.84 | M173: 1758388.466 | N173: 96320.73153 | O173: 99531.42258
A174: Storage Fuel % | C174: =(P154-P165)/(P162+P163+P152+P153) -> 0.01505456217
A176: Company Production as % of Total Supply / Demand | D176: =D158/(D170+D158) -> 0.9960986679 | E176: 0.9950421523 | F176: =F158/(F170+F158) -> 1 | G176: 1 | H176: =H158/(H170+H158) -> 0.7763660429 | I176: 0.6873084078 | J176: 0.5030842733 | K176: 0.3791711485 | L176: 0.3612753689 | M176: 0.5197165998 | N176: 0.6959957105 | O176: 1 | P176: =P158/(P170+P158) -> 0.6403680413
A178: PURCHASES BREAKDOWN
A179: Spot Market Purchases | D179: ='Monthly Inputs'!G94 -> 0 | E179: ='Monthly Inputs'!H94 -> 0 | F179: ='Monthly Inputs'!I94 -> 0 | G179: ='Monthly Inputs'!J94 -> 0 | H179: ='Monthly Inputs'!K94 -> 1747728 | I179: ='Monthly Inputs'!L94 -> 879004 | J179: ='Monthly Inputs'!M94 -> 1734509 | K179: ='Monthly Inputs'!N94 -> 4893727 | L179: ='Monthly Inputs'!O94 -> 5293200 | M179: ='Monthly Inputs'!P94 -> 4493100 | N179: ='Monthly Inputs'!Q94 -> 2870006 | O179: ='Monthly Inputs'!R94 -> 0 | P179: =SUM(D179:O179) -> 21911274
A180: Spot Market Purchases Cost | D180: ='Monthly Inputs'!G95 -> 0 | E180: ='Monthly Inputs'!H95 -> 0 | F180: ='Monthly Inputs'!I95 -> 0 | G180: ='Monthly Inputs'!J95 -> 0 | H180: ='Monthly Inputs'!K95 -> 7899730.56 | I180: ='Monthly Inputs'!L95 -> 4052208.44 | J180: ='Monthly Inputs'!M95 -> 8360333.38 | K180: ='Monthly Inputs'!N95 -> 23343077.79 | L180: ='Monthly Inputs'!O95 -> 24507516 | M180: ='Monthly Inputs'!P95 -> 19410192 | N180: ='Monthly Inputs'!Q95 -> 12398425.92 | O180: ='Monthly Inputs'!R95 -> 0 | P180: =SUM(D180:O180) -> 99971484.09
A182: Contract Purchases (Dth) | D182: ='Monthly Inputs'!G103 -> 0 | E182: ='Monthly Inputs'!H103 -> 0 | F182: ='Monthly Inputs'!I103 -> 0 | G182: ='Monthly Inputs'!J103 -> 0 | H182: ='Monthly Inputs'!K103 -> 0 | I182: ='Monthly Inputs'!L103 -> 900000 | J182: ='Monthly Inputs'!M103 -> 930000 | K182: ='Monthly Inputs'!N103 -> 930000 | L182: ='Monthly Inputs'!O103 -> 840000 | M182: ='Monthly Inputs'!P103 -> 930000 | N182: ='Monthly Inputs'!Q103 -> 0 | O182: ='Monthly Inputs'!R103 -> 0 | P182: =SUM(D182:O182) -> 4530000
A183: Contract Purchases Cost Including Stabalization Costs | D183: ='Monthly Inputs'!G104+'Monthly Inputs'!G105 -> 0 | E183: ='Monthly Inputs'!H104+'Monthly Inputs'!H105 -> 0 | F183: ='Monthly Inputs'!I104+'Monthly Inputs'!I105 -> 0 | G183: ='Monthly Inputs'!J104+'Monthly Inputs'!J105 -> 0 | H183: ='Monthly Inputs'!K104+'Monthly Inputs'!K105 -> 0 | I183: ='Monthly Inputs'!L104+'Monthly Inputs'!L105 -> 4329855 | J183: ='Monthly Inputs'!M104+'Monthly Inputs'!M105 -> 4669483.5 | K183: ='Monthly Inputs'!N104+'Monthly Inputs'!N105 -> 4622983.5 | L183: ='Monthly Inputs'!O104+'Monthly Inputs'!O105 -> 4057998 | M183: ='Monthly Inputs'!P104+'Monthly Inputs'!P105 -> 4204483.5 | N183: ='Monthly Inputs'!Q104+'Monthly Inputs'!Q105 -> 0 | O183: ='Monthly Inputs'!R104+'Monthly Inputs'!R105 -> 0 | P183: =SUM(D183:O183) -> 21884803.5
Q184: =P183+P186 -> 91834045.3
A185: Peak Purchases (Dth) | D185: ='Monthly Inputs'!G100 -> 0 | E185: ='Monthly Inputs'!H100 -> 0 | F185: ='Monthly Inputs'!I100 -> 0 | G185: ='Monthly Inputs'!J100 -> 0 | H185: ='Monthly Inputs'!K100 -> 0 | I185: ='Monthly Inputs'!L100 -> 1000000 | J185: ='Monthly Inputs'!M100 -> 4000000 | K185: ='Monthly Inputs'!N100 -> 5000000 | L185: ='Monthly Inputs'!O100 -> 4000000 | M185: ='Monthly Inputs'!P100 -> 0 | N185: ='Monthly Inputs'!Q100 -> 0 | O185: ='Monthly Inputs'!R100 -> 0 | P185: =SUM(D185:O185) -> 14000000
A186: Peak Purchases Cost | D186: ='Monthly Inputs'!G101 -> 0 | E186: ='Monthly Inputs'!H101 -> 0 | F186: ='Monthly Inputs'!I101 -> 0 | G186: ='Monthly Inputs'!J101 -> 0 | H186: ='Monthly Inputs'!K101 -> 0 | I186: ='Monthly Inputs'!L101 -> 4867137.3 | J186: ='Monthly Inputs'!M101 -> 20352170.4 | K186: ='Monthly Inputs'!N101 -> 25177230.5 | L186: ='Monthly Inputs'!O101 -> 19552703.6 | M186: ='Monthly Inputs'!P101 -> 0 | N186: ='Monthly Inputs'!Q101 -> 0 | O186: ='Monthly Inputs'!R101 -> 0 | P186: =SUM(D186:O186) -> 69949241.8
A188: Future Purchases | D188: =+D170-D179-D182-D185 -> 21707 | E188: =+E170-E179-E182-E185 -> 26698 | F188: =+F170-F179-F182-F185 -> 0 | G188: =+G170-G179-G182-G185 -> 0 | H188: =+H170-H179-H182-H185 -> 2.328306437e-10 | I188: =+I170-I179-I182-I185 -> 0 | J188: 0 | K188: =+K170-K179-K182-K185 -> 0 | L188: 135162 | M188: =+M170-M179-M182-M185 -> 494381 | N188: -4.656612873e-10 | O188: 0 | P188: =SUM(D188:O188) -> 677948
A189: Future Purchases Cost | D189: =ROUND(D188*D196,0) -> 91604 | E189: =ROUND(E188*E196,0) -> 117204 | F189: =ROUND(F188*F196,0) -> 0 | G189: 0 | H189: =ROUND(H188*H196,0) -> 0 | I189: 0 | J189: 0 | K189: 0 | L189: 628503 | M189: 2145614 | N189: 0 | O189: 0 | P189: =SUM(D189:O189) -> 2982925
A191: Total Purchases Cost | D191: =+D180+D183+D186+D189 -> 91604 | E191: =+E180+E183+E186+E189 -> 117204 | F191: =+F180+F183+F186+F189 -> 0 | G191: =+G180+G183+G186+G189 -> 0 | H191: =+H180+H183+H186+H189 -> 7899730.56 | I191: 13249200.74 | J191: =+J180+J183+J186+J189 -> 33381987.28 | K191: 53143291.79 | L191: 48746720.6 | M191: 25760289.5 | N191: 12398425.92 | O191: =+O180+O183+O186+O189 -> 0 | P191: 194788454.4
A193: Gas Cost
A194: Gas Cost Purchases | D194: =IF(D170=0,0,ROUND(D191/D170,5)) -> 4.22002 | E194: =IF(E170=0,0,ROUND(E191/E170,5)) -> 4.38999 | F194: 0 | G194: 0 | H194: 4.52 | I194: 4.76761 | J194: 5.00892 | K194: 4.90989 | L194: 4.74727 | M194: 4.35325 | N194: 4.32 | O194: 0
A195: Gas Cost Injection Rate - this line not used - DELETE? | D195: ='Ut Storage'!K27 -> 4.989894532 | E195: =+D195 -> 4.989894532 | F195: 4.989894532 | G195: 4.989894532 | H195: 4.989894532 | I195: 4.989894532 | J195: 4.989894532 | K195: 4.989894532 | L195: 4.989894532 | M195: 4.989894532 | N195: 4.989894532 | O195: 4.989894532
A196: =CONCATENATE("'Future Contract Price (spot + $",'Other Inputs'!E173,")") -> 'Future Contract Price (spot + $0.02) | D196: =+D228+'Other Inputs'!$E$173 -> 4.22 | E196: =+E228+'Other Inputs'!$E$173 -> 4.39 | F196: =+F228+'Other Inputs'!$E$173 -> 4.51 | G196: =+G228+'Other Inputs'!$E$173 -> 4.65 | H196: =+H228+'Other Inputs'!$E$173 -> 4.54 | I196: =+I228+'Other Inputs'!$E$173 -> 4.63 | J196: =+J228+'Other Inputs'!$E$173 -> 4.84 | K196: =+K228+'Other Inputs'!$E$173 -> 4.79 | L196: =+L228+'Other Inputs'!$E$173 -> 4.65 | M196: =+M228+'Other Inputs'!$E$173 -> 4.34 | N196: =+N228+'Other Inputs'!$E$173 -> 4.34 | O196: =+O228+'Other Inputs'!$E$173 -> 4.34
A198: System Production | D198: =+D160 -> 5303417 | E198: 5127357 | F198: 5244176 | G198: 5528241 | H198: 5805895 | I198: 5845090 | J198: 6456434 | K198: 6325674 | L198: 5557666 | M198: 6127346 | N198: 6287474 | O198: 6453276 | P198: =SUM(D198:O198) -> 70062046
A199: System Purchases | D199: =+D168 -> 21401.171 | E199: 26321.3053 | F199: -0.02507000044 | G199: 0.2112400001 | H199: 1723085.484 | I199: 2739819.727 | J199: 6570539.135 | K199: 10671112.19 | L199: 10123578.08 | M199: 5834044.286 | N199: 2829539.185 | O199: -0.19362 | P199: =SUM(D199:O199) -> 40539440.56
A200: System Gathering of Production | D200: =ROUND($P200*D$120/$P$120,0) -> 3491880 | E200: 3375958 | F200: 3452874 | G200: 3639908 | H200: 3822721 | I200: 3848528 | J200: 4251050 | K200: 4164954 | L200: 3659282 | M200: 4034372 | N200: 4139803 | O200: 4248971 | P200: ='Other Inputs'!$D$178 -> 46130300.84
A201: System Birch Creek Gathering | D201: 0 | E201: 0 | F201: 0 | G201: 0 | H201: 0 | I201: 0 | J201: 0 | K201: 0 | L201: 0 | M201: 0 | N201: 0 | O201: 0 | P201: ='Other Inputs'!$D$162 -> 0
A203: Utah Production | D203: =ROUND(D198*$I$74,0) -> 5112840 | E203: 4943106 | F203: 5055727 | G203: 5329585 | H203: 5597261 | I203: 5635048 | J203: 6224423 | K203: 6098362 | L203: 5357952 | M203: 5907161 | N203: 6061535 | O203: 6221379 | P203: =SUM(D203:O203) -> 67544379
A204: Utah Purchases | D204: =ROUND(D199*$I$74,0) -> 20632 | E204: 25375 | F204: 0 | G204: 0 | H204: 1661167 | I204: 2641365 | J204: 6334428 | K204: 10287648 | L204: 9759789 | M204: 5624399 | N204: 2727860 | O204: 0 | P204: =SUM(D204:O204) -> 39082663
A205: Utah Gathering | D205: =ROUND(D200*$I$74,0) -> 3366400 | E205: 3254644 | F205: 3328796 | G205: 3509109 | H205: 3685352 | I205: 3710232 | J205: 4098289 | K205: 4015287 | L205: 3527786 | M205: 3889398 | N205: 3991040 | O205: 4096285 | P205: =SUM(D205:O205) -> 44472618
A206: Utah Birch Creek Gathering | D206: =ROUND(D201*$I$74,0) -> 0 | E206: 0 | F206: 0 | G206: 0 | H206: 0 | I206: 0 | J206: 0 | K206: 0 | L206: 0 | M206: 0 | N206: 0 | O206: 0 | P206: =SUM(D206:O206) -> 0
A208: Wyoming Production | D208: =+D198-D203 -> 190577 | E208: 184251 | F208: 188449 | G208: 198656 | H208: 208634 | I208: 210042 | J208: 232011 | K208: 227312 | L208: 199714 | M208: 220185 | N208: 225939 | O208: 231897 | P208: =SUM(D208:O208) -> 2517667
A209: Wyoming Purchases | D209: =+D199-D204 -> 769.171 | E209: 946.3053 | F209: -0.02507000044 | G209: 0.2112400001 | H209: 61918.4837 | I209: 98454.7268 | J209: 236111.1346 | K209: 383464.1928 | L209: 363789.0825 | M209: 209645.2859 | N209: 101679.1855 | O209: -0.19362 | P209: =SUM(D209:O209) -> 1456777.561
A210: Wyoming Gathering | D210: =+D200-D205 -> 125480 | E210: 121314 | F210: 124078 | G210: 130799 | H210: 137369 | I210: 138296 | J210: 152761 | K210: 149667 | L210: 131496 | M210: 144974 | N210: 148763 | O210: 152686 | P210: =SUM(D210:O210) -> 1657683
A211: Wyoming Birch Creek Gathering | D211: =+D201-D206 -> 0 | E211: 0 | F211: 0 | G211: 0 | H211: 0 | I211: 0 | J211: 0 | K211: 0 | L211: 0 | M211: 0 | N211: 0 | O211: 0 | P211: =SUM(D211:O211) -> 0
A214: I-2, I-4 Averate Gas Cost Calculations
A215: Wyoming
B216: Wyoming I-2 Volumes | D216: =D34 -> 9676 | E216: =E34 -> 6490 | F216: 6266 | G216: 6747 | H216: 8200 | I216: 15106 | J216: 19054 | K216: 18290 | L216: 15150 | M216: 14893 | N216: 14759 | O216: 12795 | P216: 147426
B217: Wyoming I-4 Volumes | D217: =D35 -> 0 | E217: =E35 -> 0 | F217: 0 | G217: 0 | H217: 0 | I217: 0 | J217: 0 | K217: 0 | L217: 0 | M217: 0 | N217: 0 | O217: 0 | P217: 0
D218: =SUM(D216:D217) -> 9676 | E218: =SUM(E216:E217) -> 6490 | F218: 6266 | G218: 6747 | H218: 8200 | I218: 15106 | J218: 19054 | K218: 18290 | L218: 15150 | M218: 14893 | N218: 14759 | O218: 12795 | P218: 147426
B220: Global Insight Spot Price Forecast | D220: ='Monthly Inputs'!G90 -> 4.2 | E220: ='Monthly Inputs'!H90 -> 4.37 | F220: ='Monthly Inputs'!I90 -> 4.49 | G220: ='Monthly Inputs'!J90 -> 4.63 | H220: ='Monthly Inputs'!K90 -> 4.52 | I220: ='Monthly Inputs'!L90 -> 4.61 | J220: ='Monthly Inputs'!M90 -> 4.82 | K220: ='Monthly Inputs'!N90 -> 4.77 | L220: ='Monthly Inputs'!O90 -> 4.63 | M220: ='Monthly Inputs'!P90 -> 4.32 | N220: ='Monthly Inputs'!Q90 -> 4.32 | O220: ='Monthly Inputs'!R90 -> 4.32
D221: =D218*D220 -> 40639.2 | E221: =E218*E220 -> 28361.3 | F221: 28134.34 | G221: 31238.61 | H221: 37064 | I221: 69638.66 | J221: 91840.28 | K221: 87243.3 | L221: 70144.5 | M221: 64337.76 | N221: 63758.88 | O221: 55274.4 | P221: =SUM(D221:O221) -> 667675.23
P222: =P221/P218 -> 4.528883847
P223: =1-'Other Inputs'!$E$263 -> 0.985
P224: =1-'Other Inputs'!$E$265 -> 0.9859
P225: =P222/P223/P224 -> 4.663608501
A226: Utah
B227: Utah I-4 & IS-4 Volumes | D227: =D15+D16 -> 209355 | E227: 220539 | F227: 238104 | G227: 229349 | H227: 239867 | I227: 257293 | J227: 262583 | K227: 238077 | L227: 194859 | M227: 198891 | N227: 207471 | O227: 191208 | P227: 2687596
B228: =B220 -> Global Insight Spot Price Forecast | D228: ='Monthly Inputs'!G90 -> 4.2 | E228: ='Monthly Inputs'!H90 -> 4.37 | F228: ='Monthly Inputs'!I90 -> 4.49 | G228: ='Monthly Inputs'!J90 -> 4.63 | H228: ='Monthly Inputs'!K90 -> 4.52 | I228: ='Monthly Inputs'!L90 -> 4.61 | J228: ='Monthly Inputs'!M90 -> 4.82 | K228: ='Monthly Inputs'!N90 -> 4.77 | L228: ='Monthly Inputs'!O90 -> 4.63 | M228: ='Monthly Inputs'!P90 -> 4.32 | N228: ='Monthly Inputs'!Q90 -> 4.32 | O228: ='Monthly Inputs'!R90 -> 4.32
D229: =D227*D228 -> 879291 | E229: =E227*E228 -> 963755.43 | F229: 1069086.96 | G229: 1061885.87 | H229: 1084198.84 | I229: 1186120.73 | J229: 1265650.06 | K229: 1135627.29 | L229: 902197.17 | M229: 859209.12 | N229: 896274.72 | O229: =O227*O228 -> 826018.56 | P229: =SUM(D229:O229) -> 12129315.75
P230: =P229/P227 -> 4.513072556
P231: =1-'Other Inputs'!$E$262 -> 0.9951
P232: =1-'Other Inputs'!$E$265 -> 0.9859
P234: =P230/P231/P232 -> 4.600157728
D236: =MONTH(D237) -> 1 | E236: =MONTH(E237) -> 2 | F236: =MONTH(F237) -> 3 | G236: 4 | H236: 5 | I236: 6 | J236: 7 | K236: 8 | L236: 9 | M236: 10 | N236: 11 | O236: 12
D237: 2011-01-01 | E237: 2011-02-01 | F237: 2011-03-01 | G237: 2011-04-01 | H237: 2011-05-01 | I237: 2011-06-01 | J237: 2011-07-01 | K237: 2010-08-01 | L237: 2010-09-01 | M237: 2010-10-01 | N237: 2010-11-01 | O237: 2010-12-01
D238: 31 | E238: 28 | F238: 31 | G238: 30 | H238: 31 | I238: 30 | J238: 31 | K238: 31 | L238: 30 | M238: 31 | N238: 30 | O238: 31
D239: ='Other Inputs'!$D$54+'Other Inputs'!$D$55 -> 53000 | E239: ='Other Inputs'!$D$54+'Other Inputs'!$D$55 -> 53000 | F239: ='Other Inputs'!$D$54+'Other Inputs'!$D$55 -> 53000 | G239: ='Other Inputs'!$D$54 -> 3000 | H239: ='Other Inputs'!$D$54 -> 3000 | I239: ='Other Inputs'!$D$54 -> 3000 | J239: ='Other Inputs'!$D$54 -> 3000 | K239: ='Other Inputs'!$D$54 -> 3000 | L239: ='Other Inputs'!$D$54 -> 3000 | M239: ='Other Inputs'!$D$54 -> 3000 | N239: ='Other Inputs'!$D$54+'Other Inputs'!$D$55 -> 53000 | O239: ='Other Inputs'!$D$54+'Other Inputs'!$D$55 -> 53000
D240: ='Other Inputs'!$C$60 -> 1.07023035 | E240: ='Other Inputs'!$C$60 -> 1.07023035 | F240: ='Other Inputs'!$C$60 -> 1.07023035 | G240: ='Other Inputs'!$C$60 -> 1.07023035 | H240: ='Other Inputs'!$C$60 -> 1.07023035 | I240: ='Other Inputs'!$C$60 -> 1.07023035 | J240: ='Other Inputs'!$C$60 -> 1.07023035 | K240: ='Other Inputs'!$C$60 -> 1.07023035 | L240: ='Other Inputs'!$C$60 -> 1.07023035 | M240: ='Other Inputs'!$C$60 -> 1.07023035 | N240: ='Other Inputs'!$C$60 -> 1.07023035 | O240: ='Other Inputs'!$C$60 -> 1.07023035
D241: =D238*D239*D240 -> 1758388.466 | E241: =E238*E239*E240 -> 1588221.84 | F241: 1758388.466 | G241: 96320.73153 | H241: 99531.42258 | I241: 96320.73153 | J241: 99531.42258 | K241: 99531.42258 | L241: 96320.73153 | M241: 99531.42258 | N241: 1701666.257 | O241: 1758388.466 | P241: =SUM(D241:O241) -> 9252141.379
D245: 0.13 | E245: 0.14 | F245: 0.05 | G245: 0.05 | H245: 0.02 | I245: 0.02 | J245: 0.02 | K245: 0.02 | L245: 0.01 | M245: 0 | N245: 0 | O245: 0
D246: =D245*(D179+D182+D185+D188) -> 2821.91 | E246: =E245*(E179+E182+E185+E188) -> 3737.72 | F246: 0 | G246: 0 | H246: 34954.56 | I246: 55580.08 | J246: 133290.18 | K246: 216474.54 | L246: 102683.62 | M246: 0 | N246: 0 | O246: 0

Sheet CET & DSM
A1: Rate Caclulation for the CET and DSM Amortizations
P3: Solver Cells
A4: CET Amortization % Calculation | P4: % Change | Q4: Difference
B5: Balance | C5: Date | D5: GS Dth | H5: Amortization per Dth | P5: =J20/D20 -> -0.01062219098 | Q5: =J20-B11 -> 0 | S5: -> Difference should be at 0 (Use Goal Seek to Get Difference to Equal 0.
A6: DSM Balance | B6: ='Other Inputs'!$E$229 -> 42000000 | C6: ='Other Inputs'!$F$229 -> 2011-03-31 | D6: =B20 -> 95293167 | H6: =ROUND(B6/D6,5) -> 0.44075
S8: Typical Bill Rates
A9: CET Amortization Calculation
B10: Balance | C10: Date | D10: DNG Rev | H10: New DNG | L10: % Change | S10: Current | T10: Proposed
A11: CET Balance | B11: ='Other Inputs'!$E$228 -> -1886289.514 | C11: ='Other Inputs'!$F$228 -> 2011-07-31 | D11: =D20 -> 177580079 | H11: =D11+B11 -> 175693789.5 | L11: =P5 -> -0.01062219098 | S11: Effective | V11: SNG & | W11: CET, DSM
S12: ='Other Inputs'!$J$90 -> 2012-12-01 | T12: CET Only | U12: DSM Only | V12: Commodity | W12: Commodity
S13: BSF | T13: BSF | U13: BSF | V13: BSF | W13: BSF
B14: Revenue Calculation | H14: CET Amortization | L14: Total DNG | P14: REVRUN Calculation | S14: ='Other Inputs'!$G$94 -> 5 | T14: ='Other Inputs'!$G$94 -> 5 | U14: ='Other Inputs'!$G$94 -> 5 | V14: ='Other Inputs'!$G$94 -> 5 | W14: ='Ut 1.8'!$C$12 -> 5
A15: Utah GS | B15: Dth | C15: Base DNG | D15: DNG Revenue | H15: CET Rate | J15: Revenue | L15: DNG Rate | N15: Revenue | P15: CET Rate | Q15: CET Amort
A16: Block 1 Summer | B16: ='Other Inputs'!E233 -> 23076373 | C16: ='Other Inputs'!E218 -> 1.87767 | D16: =B16*C16 -> 43329813.29 | H16: =ROUND((J16/B16),5) -> -0.01994 | J16: =D16*$P$5 -> -460257.552 | L16: =C16+H16 -> 1.85773 | N16: =L16*B16 -> 42869670.41 | P16: =ROUND(H16,5) -> -0.01994 | Q16: =B16*P16 -> -460142.8776 | S16: ='Other Inputs'!$G$90 -> 6.95064 | T16: =N24 -> 7.26669 | U16: =N31 -> 7.22644 | V16: =N38 -> 7.594678248 | W16: =N45 -> 8.135558248
A17: Block 2 Summer | B17: ='Other Inputs'!E234 -> 4705902 | C17: ='Other Inputs'!E219 -> 0.69704 | D17: =B17*C17 -> 3280201.93 | H17: =ROUND((J17/B17),5) -> -0.0074 | J17: =D17*$P$5 -> -34842.93136 | L17: =C17+H17 -> 0.68964 | N17: =L17*B17 -> 3245378.255 | P17: =ROUND(H17,5) -> -0.0074 | Q17: =B17*P17 -> -34823.6748
A18: Block 1 Winter | B18: ='Other Inputs'!E231 -> 52526064 | C18: ='Other Inputs'!E220 -> 2.22938 | D18: =B18*C18 -> 117100556.6 | H18: =ROUND((J18/B18),5) -> -0.02368 | J18: =D18*$P$5 -> -1243864.476 | L18: =C18+H18 -> 2.2057 | N18: =L18*B18 -> 115856739.4 | P18: =ROUND(H18,5) -> -0.02368 | Q18: =B18*P18 -> -1243817.196 | S18: ='Other Inputs'!$G$92 -> 7.91492 | T18: =N26 -> 8.26368 | U18: =N33 -> 8.21595 | V18: =N40 -> 8.506918248 | W18: =N47 -> 9.621578248
A19: Block 2 Winter | B19: ='Other Inputs'!E232 -> 14984828 | C19: ='Other Inputs'!E221 -> 0.92557 | D19: =B19*C19 -> 13869507.25 | H19: =ROUND((J19/B19),5) -> -0.00983 | J19: =D19*$P$5 -> -147324.5548 | L19: =C19+H19 -> 0.91574 | N19: =L19*B19 -> 13722206.39 | P19: =ROUND(H19,5) -> -0.00983 | Q19: =B19*P19 -> -147300.8592
A20: GS-1 Block Rev | B20: =SUM(B16:B19) -> 95293167 | D20: =SUM(D16:D19) -> 177580079 | J20: =B11 -> -1886289.514 | N20: =SUM(N16:N19) -> 175693994.4 | Q20: =SUM(Q16:Q19) -> -1886084.607
A22: Total Rate Calculation With CET Amortization Only | N22: ='Control Panel'!F8 -> 2013-06-01 | P22: ='Other Inputs'!$J$90 -> 2012-12-01
A23: Utah GS | B23: Base DNG | C23: CET | D23: DSM | E23: Energy Assist | F23: Infrastructure | H23: Total DNG | I23: Base SNG | J23: SNG Amort | L23: Base Gas Cost | M23: 191 Amort | N23: Total Rate | P23: Total Rate
A24: Block 1 Summer | B24: =$C$16 -> 1.87767 | C24: =$H$16 -> -0.01994 | D24: 0.44104 | E24: 0.01519 | F24: 0.02908 | H24: =SUM(B24:F24) -> 2.34304 | I24: 0.55715 | J24: 0.01244 | L24: 4.21339 | M24: 0.14067 | N24: =SUM(H24:M24) -> 7.26669 | P24: ='Other Inputs'!$G$90 -> 6.95064 | Q24: =N24-P24 -> 0.31605
A25: Block 2 Summer | B25: =$C$17 -> 0.69704 | C25: =$H$17 -> -0.0074 | D25: =$D$24 -> 0.44104 | E25: =$E$24 -> 0.01519 | F25: 0.0108 | H25: =SUM(B25:F25) -> 1.15667 | I25: =I24 -> 0.55715 | J25: =J24 -> 0.01244 | L25: =L24 -> 4.21339 | M25: =$M$24 -> 0.14067 | N25: =SUM(H25:M25) -> 6.08032 | P25: ='Other Inputs'!$G$91 -> 5.69171 | Q25: =N25-P25 -> 0.38861
A26: Block 1 Winter | B26: =$C$18 -> 2.22938 | C26: =$H$18 -> -0.02368 | D26: =$D$24 -> 0.44104 | E26: =$E$24 -> 0.01519 | F26: 0.03453 | H26: =SUM(B26:F26) -> 2.69646 | I26: 1.18665 | J26: 0.02651 | L26: =L24 -> 4.21339 | M26: =$M$24 -> 0.14067 | N26: =SUM(H26:M26) -> 8.26368 | P26: ='Other Inputs'!$G$92 -> 7.91492 | Q26: =N26-P26 -> 0.34876
A27: Block 2 Winter | B27: =$C$19 -> 0.92557 | C27: =$H$19 -> -0.00983 | D27: =$D$24 -> 0.44104 | E27: =$E$24 -> 0.01519 | F27: 0.01434 | H27: =SUM(B27:F27) -> 1.38631 | I27: =I26 -> 1.18665 | J27: =J26 -> 0.02651 | L27: =L24 -> 4.21339 | M27: =$M$24 -> 0.14067 | N27: =SUM(H27:M27) -> 6.95353 | P27: ='Other Inputs'!$G$93 -> 6.52464 | Q27: =N27-P27 -> 0.42889
A29: Total Rate Calculation With DSM Amortization Only | N29: =N22 -> 2013-06-01 | P29: ='Other Inputs'!$J$90 -> 2012-12-01
A30: Utah GS | B30: Base DNG | C30: CET | D30: DSM | E30: Energy Assist | F30: Infrastructure | H30: Total DNG | I30: Base SNG | J30: SNG Amort | L30: Commodity | M30: 191 Amort | N30: Total Rate | P30: Total Rate
A31: Block 1 Summer | B31: =$C$16 -> 1.87767 | C31: -0.0599 | D31: =$H$6 -> 0.44075 | E31: =$E$24 -> 0.01519 | F31: =F24 -> 0.02908 | H31: =SUM(B31:F31) -> 2.30279 | I31: =$I$24 -> 0.55715 | J31: =J24 -> 0.01244 | L31: =$L$24 -> 4.21339 | M31: =$M$24 -> 0.14067 | N31: =SUM(H31:M31) -> 7.22644 | P31: ='Other Inputs'!$G$90 -> 6.95064 | Q31: =N31-P31 -> 0.2758
A32: Block 2 Summer | B32: =$C$17 -> 0.69704 | C32: -0.02224 | D32: =$H$6 -> 0.44075 | E32: =$E$24 -> 0.01519 | F32: =F25 -> 0.0108 | H32: =SUM(B32:F32) -> 1.14154 | I32: =$I$24 -> 0.55715 | J32: =J25 -> 0.01244 | L32: =$L$24 -> 4.21339 | M32: =$M$24 -> 0.14067 | N32: =SUM(H32:M32) -> 6.06519 | P32: ='Other Inputs'!$G$91 -> 5.69171 | Q32: =N32-P32 -> 0.37348
A33: Block 1 Winter | B33: =$C$18 -> 2.22938 | C33: -0.07112 | D33: =$H$6 -> 0.44075 | E33: =$E$24 -> 0.01519 | F33: =F26 -> 0.03453 | H33: =SUM(B33:F33) -> 2.64873 | I33: =$I$26 -> 1.18665 | J33: =J26 -> 0.02651 | L33: =$L$24 -> 4.21339 | M33: =$M$24 -> 0.14067 | N33: =SUM(H33:M33) -> 8.21595 | P33: ='Other Inputs'!$G$92 -> 7.91492 | Q33: =N33-P33 -> 0.30103
A34: Block 2 Winter | B34: =$C$19 -> 0.92557 | C34: -0.02953 | D34: =$H$6 -> 0.44075 | E34: =$E$24 -> 0.01519 | F34: =F27 -> 0.01434 | H34: =SUM(B34:F34) -> 1.36632 | I34: =$I$26 -> 1.18665 | J34: =J27 -> 0.02651 | L34: =$L$24 -> 4.21339 | M34: =$M$24 -> 0.14067 | N34: =SUM(H34:M34) -> 6.93354 | P34: ='Other Inputs'!$G$93 -> 6.52464 | Q34: =N34-P34 -> 0.4089
A36: Total Rate Calculation With SNG and Commodity Changes Only | N36: =N22 -> 2013-06-01 | P36: ='Other Inputs'!$J$90 -> 2012-12-01
A37: Utah GS | B37: Base DNG | C37: CET | D37: DSM | E37: Energy Assist | F37: Infrastructure | H37: Total DNG | I37: Base SNG | J37: SNG | L37: Commodity | M37: 191 Amort | N37: Total Rate | P37: Total Rate
A38: Block 1 Summer | B38: =$C$16 -> 1.87767 | C38: =C31 -> -0.0599 | D38: =D24 -> 0.44104 | E38: =$E$24 -> 0.01519 | F38: =F24 -> 0.02908 | H38: =SUM(B38:F38) -> 2.30308 | I38: ='Ut 1.6 p3'!G17 -> 0.50121 | J38: ='Ut 1.6 p3'!$H$17 -> 0 | L38: ='Ut 1.6 p1'!$F$34 -> 4.86615 | M38: ='Ut 1.6 p1'!$F$35 -> -0.07576175203 | N38: =SUM(H38:M38) -> 7.594678248 | P38: ='Other Inputs'!$G$90 -> 6.95064 | Q38: =N38-P38 -> 0.644038248
A39: Block 2 Summer | B39: =$C$17 -> 0.69704 | C39: =C32 -> -0.02224 | D39: =D25 -> 0.44104 | E39: =$E$24 -> 0.01519 | F39: =F25 -> 0.0108 | H39: =SUM(B39:F39) -> 1.14183 | I39: ='Ut 1.6 p3'!G17 -> 0.50121 | J39: ='Ut 1.6 p3'!$H$17 -> 0 | L39: ='Ut 1.6 p1'!$F$34 -> 4.86615 | M39: ='Ut 1.6 p1'!$F$35 -> -0.07576175203 | N39: =SUM(H39:M39) -> 6.433428248 | P39: ='Other Inputs'!$G$91 -> 5.69171 | Q39: =N39-P39 -> 0.741718248
A40: Block 1 Winter | B40: =$C$18 -> 2.22938 | C40: =C33 -> -0.07112 | D40: =D26 -> 0.44104 | E40: =$E$24 -> 0.01519 | F40: =F26 -> 0.03453 | H40: =SUM(B40:F40) -> 2.64902 | I40: ='Ut 1.6 p3'!G16 -> 1.06751 | J40: ='Ut 1.6 p3'!$H$16 -> 0 | L40: ='Ut 1.6 p1'!$F$34 -> 4.86615 | M40: ='Ut 1.6 p1'!$F$35 -> -0.07576175203 | N40: =SUM(H40:M40) -> 8.506918248 | P40: ='Other Inputs'!$G$92 -> 7.91492 | Q40: =N40-P40 -> 0.591998248
A41: Block 2 Winter | B41: =$C$19 -> 0.92557 | C41: =C34 -> -0.02953 | D41: =D27 -> 0.44104 | E41: =$E$24 -> 0.01519 | F41: =F27 -> 0.01434 | H41: =SUM(B41:F41) -> 1.36661 | I41: ='Ut 1.6 p3'!G16 -> 1.06751 | J41: ='Ut 1.6 p3'!$H$16 -> 0 | L41: ='Ut 1.6 p1'!$F$34 -> 4.86615 | M41: ='Ut 1.6 p1'!$F$35 -> -0.07576175203 | N41: =SUM(H41:M41) -> 7.224508248 | P41: ='Other Inputs'!$G$93 -> 6.52464 | Q41: =N41-P41 -> 0.699868248
A43: Total Rate Calculation | N43: =N29 -> 2013-06-01 | P43: ='Other Inputs'!$J$90 -> 2012-12-01
A44: Utah GS | B44: Base DNG | C44: CET | D44: DSM | E44: Energy Assist | F44: Infrastructure | H44: Total DNG | I44: Base SNG | J44: SNG | L44: Commodity | N44: Total Rate | P44: Total Rate
A45: Block 1 Summer | B45: =$C$16 -> 1.87767 | C45: =$H$16 -> -0.01994 | D45: =$H$6 -> 0.44075 | E45: =$E$24 -> 0.01519 | F45: =F38 -> 0.02908 | H45: =SUM(B45:F45) -> 2.34275 | I45: =I38 -> 0.50121 | J45: ='Ut 1.6 p3'!$I$17 -> 0.50121 | L45: ='Ut 1.6 p1'!$F$36 -> 4.790388248 | N45: =SUM(H45:L45) -> 8.135558248 | P45: ='Other Inputs'!$G$90 -> 6.95064 | Q45: =N45-P45 -> 1.184918248
A46: Block 2 Summer | B46: =$C$17 -> 0.69704 | C46: =$H$17 -> -0.0074 | D46: =$H$6 -> 0.44075 | E46: =$E$24 -> 0.01519 | F46: =F39 -> 0.0108 | H46: =SUM(B46:F46) -> 1.15638 | I46: =I39 -> 0.50121 | J46: ='Ut 1.6 p3'!$I$17 -> 0.50121 | L46: =$L$45 -> 4.790388248 | N46: =SUM(H46:L46) -> 6.949188248 | P46: ='Other Inputs'!$G$91 -> 5.69171 | Q46: =N46-P46 -> 1.257478248
A47: Block 1 Winter | B47: =$C$18 -> 2.22938 | C47: =$H$18 -> -0.02368 | D47: =$H$6 -> 0.44075 | E47: =$E$24 -> 0.01519 | F47: =F40 -> 0.03453 | H47: =SUM(B47:F47) -> 2.69617 | I47: =I40 -> 1.06751 | J47: ='Ut 1.6 p3'!$I$16 -> 1.06751 | L47: =$L$45 -> 4.790388248 | N47: =SUM(H47:L47) -> 9.621578248 | P47: ='Other Inputs'!$G$92 -> 7.91492 | Q47: =N47-P47 -> 1.706658248
A48: Block 2 Winter | B48: =$C$19 -> 0.92557 | C48: =$H$19 -> -0.00983 | D48: =$H$6 -> 0.44075 | E48: =$E$24 -> 0.01519 | F48: =F41 -> 0.01434 | H48: =SUM(B48:F48) -> 1.38602 | I48: =I41 -> 1.06751 | J48: ='Ut 1.6 p3'!$I$16 -> 1.06751 | L48: =$L$45 -> 4.790388248 | N48: =SUM(H48:L48) -> 8.311428248 | P48: ='Other Inputs'!$G$93 -> 6.52464 | Q48: =N48-P48 -> 1.786788248
A50: Typical Customer Difference - CET Amortization Only
B51: Typical
A52: GS | B52: Dth | C52: =S12 -> 2012-12-01 | D52: =N43 -> 2013-06-01 | H52: Change | J52: % Change
A53: January | B53: 14.9 | C53: =ROUND($S$14+(B53*$S$18),2) -> 122.93 | D53: =ROUND($T$14+(B53*$T$18),2) -> 128.13 | H53: =D53-C53 -> 5.2
A54: February | B54: 12.5 | C54: =ROUND($S$14+(B54*$S$18),2) -> 103.94 | D54: =ROUND($T$14+(B54*$T$18),2) -> 108.3 | H54: 4.36
A55: March | B55: 10.1 | C55: =ROUND($S$14+(B55*$S$18),2) -> 84.94 | D55: =ROUND($T$14+(B55*$T$18),2) -> 88.46 | H55: 3.52
A56: April | B56: 8.3 | C56: =ROUND($S$14+(B56*$S$16),2) -> 62.69 | D56: =ROUND($T$14+(B56*$T$16),2) -> 65.31 | H56: 2.62
A57: May | B57: 4.4 | C57: 35.58 | D57: =ROUND($T$14+(B57*$T$16),2) -> 36.97 | H57: 1.39
A58: June | B58: 3.1 | C58: 26.55 | D58: 27.53 | H58: 0.98
A59: July | B59: 2 | C59: 18.9 | D59: 19.53 | H59: 0.63
A60: August | B60: 1.8 | C60: 17.51 | D60: 18.08 | H60: 0.57
A61: September | B61: 2 | C61: 18.9 | D61: 19.53 | H61: 0.63
A62: October | B62: 3.1 | C62: 26.55 | D62: 27.53 | H62: 0.98
A63: November | B63: 6.3 | C63: =ROUND($S$14+(B63*$S$18),2) -> 54.86 | D63: =ROUND($T$14+(B63*$T$18),2) -> 57.06 | H63: 2.2
A64: December | B64: 11.5 | C64: =ROUND($S$14+(B64*$S$18),2) -> 96.02 | D64: =ROUND($T$14+(B64*$T$18),2) -> 100.03 | H64: 4.01
B65: =SUM(B53:B64) -> 80 | C65: =SUM(C53:C64) -> 669.37 | D65: =SUM(D53:D64) -> 696.46 | H65: =SUM(H53:H64) -> 27.09 | J65: =H65/C65 -> 0.04047089054
A68: Typical Customer Difference - DSM Amortization Only
B69: Typical
A70: GS | B70: Dth | C70: =C52 -> 2012-12-01 | D70: =D52 -> 2013-06-01 | H70: Change | J70: % Change
A71: January | B71: 14.9 | C71: =ROUND($S$14+(B71*$S$18),2) -> 122.93 | D71: =ROUND($U$14+(B71*$U$18),2) -> 127.42 | H71: =D71-C71 -> 4.49
A72: February | B72: 12.5 | C72: =ROUND($S$14+(B72*$S$18),2) -> 103.94 | D72: =ROUND($U$14+(B72*$U$18),2) -> 107.7 | H72: 3.76
A73: March | B73: 10.1 | C73: =ROUND($S$14+(B73*$S$18),2) -> 84.94 | D73: =ROUND($U$14+(B73*$U$18),2) -> 87.98 | H73: 3.04
A74: April | B74: 8.3 | C74: =ROUND($S$14+(B74*$S$16),2) -> 62.69 | D74: =ROUND($U$14+(B74*$U$16),2) -> 64.98 | H74: 2.29
A75: May | B75: 4.4 | C75: 35.58 | D75: 36.8 | H75: 1.22
A76: June | B76: 3.1 | C76: 26.55 | D76: 27.4 | H76: 0.85
A77: July | B77: 2 | C77: 18.9 | D77: 19.45 | H77: 0.55
A78: August | B78: 1.8 | C78: 17.51 | D78: 18.01 | H78: 0.5
A79: September | B79: 2 | C79: 18.9 | D79: 19.45 | H79: 0.55
A80: October | B80: 3.1 | C80: 26.55 | D80: 27.4 | H80: 0.85
A81: November | B81: 6.3 | C81: =ROUND($S$14+(B81*$S$18),2) -> 54.86 | D81: =ROUND($U$14+(B81*$U$18),2) -> 56.76 | H81: 1.9
A82: December | B82: 11.5 | C82: =ROUND($S$14+(B82*$S$18),2) -> 96.02 | D82: =ROUND($U$14+(B82*$U$18),2) -> 99.48 | H82: 3.46
B83: =SUM(B71:B82) -> 80 | C83: =SUM(C71:C82) -> 669.37 | D83: =SUM(D71:D82) -> 692.83 | H83: =SUM(H71:H82) -> 23.46 | J83: =H83/C83 -> 0.03504788084
A86: Typical Customer Difference - SNG and Commodity Changes Only
B87: Typical
A88: GS-1 | B88: Dth | C88: =C70 -> 2012-12-01 | D88: =D70 -> 2013-06-01 | H88: Change | J88: % Change
A89: January | B89: 14.9 | C89: =ROUND($S$14+(B89*$S$18),2) -> 122.93 | D89: =ROUND($V$14+(B89*$V$18),2) -> 131.75 | H89: =D89-C89 -> 8.82
A90: February | B90: 12.5 | C90: =ROUND($S$14+(B90*$S$18),2) -> 103.94 | D90: =ROUND($V$14+(B90*$V$18),2) -> 111.34 | H90: 7.4
A91: March | B91: 10.1 | C91: =ROUND($S$14+(B91*$S$18),2) -> 84.94 | D91: =ROUND($V$14+(B91*$V$18),2) -> 90.92 | H91: 5.98
A92: April | B92: 8.3 | C92: =ROUND($S$14+(B92*$S$16),2) -> 62.69 | D92: =ROUND($V$14+(B92*$V$16),2) -> 68.04 | H92: 5.35
A93: May | B93: 4.4 | C93: 35.58 | D93: 38.42 | H93: 2.84
A94: June | B94: 3.1 | C94: 26.55 | D94: 28.54 | H94: 1.99
A95: July | B95: 2 | C95: 18.9 | D95: 20.19 | H95: 1.29
A96: August | B96: 1.8 | C96: 17.51 | D96: 18.67 | H96: 1.16
A97: September | B97: 2 | C97: 18.9 | D97: 20.19 | H97: 1.29
A98: October | B98: 3.1 | C98: 26.55 | D98: 28.54 | H98: 1.99
A99: November | B99: 6.3 | C99: =ROUND($S$14+(B99*$S$18),2) -> 54.86 | D99: =ROUND($V$14+(B99*$V$18),2) -> 58.59 | H99: 3.73
A100: December | B100: 11.5 | C100: =ROUND($S$14+(B100*$S$18),2) -> 96.02 | D100: =ROUND($V$14+(B100*$V$18),2) -> 102.83 | H100: 6.81
B101: =SUM(B89:B100) -> 80 | C101: =SUM(C89:C100) -> 669.37 | D101: =SUM(D89:D100) -> 718.02 | H101: =SUM(H89:H100) -> 48.65 | J101: =H101/C101 -> 0.07268028146
A104: Typical Customer Difference - CET & DSM Amort, SNG and Commodity Changes
B105: Typical
A106: GS-1 | B106: Dth | C106: =C52 -> 2012-12-01 | D106: =D52 -> 2013-06-01 | H106: Change | J106: % Change
A107: January | B107: 14.9 | C107: =ROUND($S$14+(B107*$S$18),2) -> 122.93 | D107: =ROUND($W$14+(B107*$W$18),2) -> 148.36 | H107: =D107-C107 -> 25.43
A108: February | B108: 12.5 | C108: =ROUND($S$14+(B108*$S$18),2) -> 103.94 | D108: =ROUND($W$14+(B108*$W$18),2) -> 125.27 | H108: 21.33
A109: March | B109: 10.1 | C109: =ROUND($S$14+(B109*$S$18),2) -> 84.94 | D109: =ROUND($W$14+(B109*$W$18),2) -> 102.18 | H109: 17.24
A110: April | B110: 8.3 | C110: =ROUND($S$14+(B110*$S$16),2) -> 62.69 | D110: =ROUND($W$14+(B110*$W$16),2) -> 72.53 | H110: 9.84
A111: May | B111: 4.4 | C111: 35.58 | D111: 40.8 | H111: 5.22
A112: June | B112: 3.1 | C112: 26.55 | D112: 30.22 | H112: 3.67
A113: July | B113: 2 | C113: 18.9 | D113: 21.27 | H113: 2.37
A114: August | B114: 1.8 | C114: 17.51 | D114: 19.64 | H114: 2.13
A115: September | B115: 2 | C115: 18.9 | D115: 21.27 | H115: 2.37
A116: October | B116: 3.1 | C116: 26.55 | D116: 30.22 | H116: 3.67
A117: November | B117: 6.3 | C117: =ROUND($S$14+(B117*$S$18),2) -> 54.86 | D117: =ROUND($W$14+(B117*$W$18),2) -> 65.62 | H117: 10.76
A118: December | B118: 11.5 | C118: =ROUND($S$14+(B118*$S$18),2) -> 96.02 | D118: =ROUND($W$14+(B118*$W$18),2) -> 115.65 | H118: 19.63
B119: =SUM(B107:B118) -> 80 | C119: =SUM(C107:C118) -> 669.37 | D119: =SUM(D107:D118) -> 793.03 | H119: =SUM(H107:H118) -> 123.66 | J119: =H119/C119 -> 0.1847408757

Sheet UT Tariff Sheets PT
B2: 2.02 GS Rate Schedule | J2: 2.03 FS Rate Schedule | AB2: 4.03 ES Rate Schedule | AI2: 2.05 NGV Rate Schedule
C3: Rates Per Dth Used Each Month | M3: Rates Per Dth Used Each Month | T3: 4.02 IS Rate Schedule | AB3: ES Volumetric Rates | AI3: NGV Volumetric Rate
C4: Summer Rates: Apr. 1 - Oct. 31 | E4: Winter Rates: Nov. 1 - Mar. 31 | M4: Dth = decatherm = 10 therms = 1,000,000 BTU | T4: IS Volumetric Rates
C5: First 45 Dth | D5: All Over 45 Dth | E5: First 45 Dth | F5: All Over 45 Dth | K5: Summer Rates: Apr. 1 - Oct. 31 | N5: Winter Rates: Nov. 1 - Mar. 31 | U5: Rates Per Dth Used Each Month | AE5: Rates Per Dth Used Each Month | AM5: Rates Per Dth Used Each Month
B6: Base DNG | C6: ='CET & DSM'!B38 -> 1.87767 | D6: ='CET & DSM'!B39 -> 0.69704 | E6: ='CET & DSM'!B40 -> 2.22938 | F6: ='CET & DSM'!B41 -> 0.92557 | K6: First | L6: Next | M6: All Over | N6: First | O6: Next | P6: All Over | U6: Dth = decatherm = 10 therms = 1,000,000 BTU | AE6: Dth = decatherm = 10 therms = 1,000,000 BTU | AM6: Dth = decatherm = 10 therms = 1,000,000 BTU
B7: CET Amortization | C7: ='CET & DSM'!C38 -> -0.0599 | D7: ='CET & DSM'!C39 -> -0.02224 | E7: ='CET & DSM'!C40 -> -0.07112 | F7: ='CET & DSM'!C41 -> -0.02953 | K7: 200 | L7: 1800 | M7: 2000 | N7: 200 | O7: 1800 | P7: 2000 | U7: First | V7: Next | W7: All Over | AB7: Distribution Non-Gas Rate | AC7: ='Ut 1.8'!C73 -> 1.77311 | AI7: Base DNG | AK7: ='Ut 1.8'!C52 -> 5.1946
B8: DSM Amortization | C8: =ROUND('CET & DSM'!D38,5) -> 0.44104 | D8: =ROUND('CET & DSM'!D39,5) -> 0.44104 | E8: =ROUND('CET & DSM'!D40,5) -> 0.44104 | F8: =ROUND('CET & DSM'!D41,5) -> 0.44104 | J8: Base DNG | K8: ='Ut 1.8'!C19 -> 0.69341 | L8: ='Ut 1.8'!D19 -> 0.5445 | M8: ='Ut 1.8'!E19 -> 0.47444 | N8: ='Ut 1.8'!F19 -> 0.77424 | O8: ='Ut 1.8'!G19 -> 0.6214 | P8: ='Ut 1.8'!H19 -> 0.56027 | U8: 2000 | V8: 18000 | W8: 20000 | AI8: Energy Assistance | AK8: ='Other Inputs'!$E$226 -> 0.02448
B9: Energy Assistance | C9: ='Other Inputs'!$E$223 -> 0.01496 | D9: ='Other Inputs'!$E$223 -> 0.01496 | E9: ='Other Inputs'!$E$223 -> 0.01496 | F9: ='Other Inputs'!$E$223 -> 0.01496 | J9: Energy Assistance | K9: ='Other Inputs'!$E$224 -> 0.01474 | L9: ='Other Inputs'!$E$224 -> 0.01474 | M9: ='Other Inputs'!$E$224 -> 0.01474 | N9: ='Other Inputs'!$E$224 -> 0.01474 | O9: ='Other Inputs'!$E$224 -> 0.01474 | P9: ='Other Inputs'!$E$224 -> 0.01474 | T9: Base DNG | U9: ='Ut 1.8'!C60 -> 0.23781 | V9: ='Ut 1.8'!D60 -> 0.21878 | W9: ='Ut 1.8'!E60 -> 0.20128 | AB9: Base SNG | AC9: =ROUND('Ut 1.6 p3'!G$26,5) -> 5.53344 | AI9: Distribution Non-Gas Rate | AK9: =SUM(AK7:AM8) -> 5.21908
B10: Distribution Non-Gas Rate | C10: =SUM(C6:C9) -> 2.27377 | D10: =SUM(D6:D9) -> 1.1308 | E10: =SUM(E6:E9) -> 2.61426 | F10: =SUM(F6:F9) -> 1.35204 | J10: Distribution Non-Gas Rate | K10: =SUM(K8:K9) -> 0.70815 | L10: 0.55924 | M10: 0.48918 | N10: 0.78898 | O10: 0.63614 | P10: 0.57501 | T10: Energy Assistance | U10: ='Other Inputs'!$E$225 -> 0.00732 | V10: ='Other Inputs'!$E$225 -> 0.00732 | W10: ='Other Inputs'!$E$225 -> 0.00732 | AB10: SNG Amortization | AC10: =ROUND('Ut 1.6 p3'!H$26,5) -> 0
T11: Distribution Non-Gas Rate | U11: =SUM(U9:U10) -> 0.24513 | V11: =SUM(V9:V10) -> 0.2261 | W11: =SUM(W9:W10) -> 0.2086 | AB11: Supplier Non-Gas Rate | AC11: =SUM(AC9:AF10) -> 5.53344 | AI11: Base SNG | AK11: =ROUND('Ut 1.6 p3'!G$22,5) -> 0.77034
B12: Base SNG | C12: ='CET & DSM'!I38 -> 0.50121 | D12: ='CET & DSM'!I39 -> 0.50121 | E12: ='CET & DSM'!I40 -> 1.06751 | F12: ='CET & DSM'!I41 -> 1.06751 | J12: Base SNG | K12: =ROUND('Ut 1.6 p3'!G$20,5) -> 0.50119 | L12: =ROUND('Ut 1.6 p3'!G$20,5) -> 0.50119 | M12: =ROUND('Ut 1.6 p3'!G$20,5) -> 0.50119 | N12: =ROUND('Ut 1.6 p3'!G$19,5) -> 1.03971 | O12: =ROUND('Ut 1.6 p3'!G$19,5) -> 1.03971 | P12: =ROUND('Ut 1.6 p3'!G$19,5) -> 1.03971 | T12: Supplier Non-Gas Rate | U12: =ROUND('Ut 1.6 p3'!$G$24/(1-'Other Inputs'!$E$273),5) -> 0.17974 | V12: =ROUND('Ut 1.6 p3'!$G$24/(1-'Other Inputs'!$E$273),5) -> 0.17974 | W12: =ROUND('Ut 1.6 p3'!$G$24/(1-'Other Inputs'!$E$273),5) -> 0.17974 | AI12: SNG Amortization | AK12: =ROUND('Ut 1.6 p3'!H$22,5) -> 0
B13: SNG Amortization | C13: ='CET & DSM'!J38 -> 0 | D13: ='CET & DSM'!J39 -> 0 | E13: ='CET & DSM'!J40 -> 0 | F13: ='CET & DSM'!J41 -> 0 | J13: SNG Amortization | K13: =ROUND('Ut 1.6 p3'!H$20,5) -> 0 | L13: =ROUND('Ut 1.6 p3'!H$20,5) -> 0 | M13: =ROUND('Ut 1.6 p3'!H$20,5) -> 0 | N13: =ROUND('Ut 1.6 p3'!H$19,5) -> 0 | O13: =ROUND('Ut 1.6 p3'!H$19,5) -> 0 | P13: =ROUND('Ut 1.6 p3'!H$19,5) -> 0 | AB13: Commodity Rate | AC13: Highest Gas Cost | AI13: Supplier Non-Gas Rate | AK13: =SUM(AK11:AM12) -> 0.77034
B14: Supplier Non-Gas Rate | C14: =SUM(C12:C13) -> 0.50121 | D14: =SUM(D12:D13) -> 0.50121 | E14: =SUM(E12:E13) -> 1.06751 | F14: =SUM(F12:F13) -> 1.06751 | J14: Supplier Non-Gas Rate | K14: =SUM(K12:K13) -> 0.50119 | L14: 0.50119 | M14: 0.50119 | N14: 1.03971 | O14: 1.03971 | P14: 1.03971 | AB14: Total Rate | AC14: $
AI15: Base Gas Cost | AK15: =ROUND('Ut 1.6 p1'!$F$34,5) -> 4.86615
B16: Base Gas Cost | C16: ='Ut 1.6 p1'!$F$34 -> 4.86615 | D16: ='Ut 1.6 p1'!$F$34 -> 4.86615 | E16: ='Ut 1.6 p1'!$F$34 -> 4.86615 | F16: ='Ut 1.6 p1'!$F$34 -> 4.86615 | J16: Base Gas Cost | K16: =ROUND('Ut 1.6 p1'!$F$34,5) -> 4.86615 | L16: =ROUND('Ut 1.6 p1'!$F$34,5) -> 4.86615 | M16: =ROUND('Ut 1.6 p1'!$F$34,5) -> 4.86615 | N16: =ROUND('Ut 1.6 p1'!$F$34,5) -> 4.86615 | O16: =ROUND('Ut 1.6 p1'!$F$34,5) -> 4.86615 | P16: =ROUND('Ut 1.6 p1'!$F$34,5) -> 4.86615 | AB16: Penalty for failure to interrupt or limit usage when requested by the Company. See See § 3.02 | AI16: Commodity Amortization | AK16: =ROUND('Ut 1.6 p1'!$F$35,5) -> -0.07576
B17: 191 Amortization | C17: ='Ut 1.6 p1'!$F$35 -> -0.07576175203 | D17: ='Ut 1.6 p1'!$F$35 -> -0.07576175203 | E17: ='Ut 1.6 p1'!$F$35 -> -0.07576175203 | F17: ='Ut 1.6 p1'!$F$35 -> -0.07576175203 | J17: 191 Amortization | K17: =ROUND('Ut 1.6 p1'!$F$35,5) -> -0.07576 | L17: =ROUND('Ut 1.6 p1'!$F$35,5) -> -0.07576 | M17: =ROUND('Ut 1.6 p1'!$F$35,5) -> -0.07576 | N17: =ROUND('Ut 1.6 p1'!$F$35,5) -> -0.07576 | O17: =ROUND('Ut 1.6 p1'!$F$35,5) -> -0.07576 | P17: =ROUND('Ut 1.6 p1'!$F$35,5) -> -0.07576 | AI17: Commodity Rate | AK17: =SUM(AK15:AM16) -> 4.79039
B18: Commodity Rate | C18: =SUM(C16:C17) -> 4.790388248 | D18: =SUM(D16:D17) -> 4.790388248 | E18: =SUM(E16:E17) -> 4.790388248 | F18: =SUM(F16:F17) -> 4.790388248 | J18: Commodity Rate | K18: =SUM(K16:K17) -> 4.79039 | L18: 4.79039 | M18: 4.79039 | N18: 4.79039 | O18: 4.79039 | P18: 4.79039 | T18: Total Rate | U18: $ | V18: $ | W18: $
AI19: Total Rate | AK19: =SUM(AK9,AK13,AK17) -> 10.77981
B20: Total Rate | C20: =SUM(C18,C14,C10) -> 7.565368248 | D20: =SUM(D18,D14,D10) -> 6.422398248 | E20: =SUM(E18,E14,E10) -> 8.472158248 | F20: =SUM(F18,F14,F10) -> 7.209938248 | J20: Total Rate | K20: =SUM(K18,K14,K10) -> 5.99973 | L20: 5.85082 | M20: 5.78076 | N20: 6.61908 | O20: 6.46624 | P20: 6.40511 | T20: Minimum Monthly Distribution Non-Gas Charge
AI21: Penalty for failure to interrupt or limit usage when requested by the Company. See See § 3.02
E22: BSF Category 1 | F22: ='Ut 1.8'!C12 -> 5 | J22: Minimum Monthly Distribution Non-Gas Charge | O22: Summer | P22: =ROUND(K8*175,0) -> 121
E23: BSF Category 2 | F23: ='Ut 1.8'!C13 -> 21 | O23: Winter | P23: =ROUND(N8*175,0) -> 135
E24: BSF Category 3 | F24: ='Ut 1.8'!C14 -> 55 | V24: BSF Category 1 | W24: 5
E25: BSF Category 4 | F25: ='Ut 1.8'!C15 -> 244 | V25: BSF Category 2 | W25: 29
N26: BSF Category 1 | P26: 5 | V26: BSF Category 3 | W26: 67
N27: BSF Category 2 | P27: 21 | V27: BSF Category 4 | W27: 274
N28: BSF Category 3 | P28: 55
N29: BSF Category 4 | P29: 244
AI30: =B44 -> Issued by R. W. Jibson, President | AL30: Advice No | AM30: Section Revision No.
AB39: =B44 -> Issued by R. W. Jibson, President | AE39: Advice No | AF39: Section Revision No.
AB42: New Pass Through Values
B44: Issued by R. W. Jibson, President | D44: Advice No | E44: Section Revision No. | F44: Effective Date
T47: =B44 -> Issued by R. W. Jibson, President | W47: Advice No
B48: Pass Through Changes | J48: =B44 -> Issued by R. W. Jibson, President | M48: Advice No | N48: Section Revision No. | P48: Effective Date
T50: New Pass Through Values
J51: New Pass Through Values

Sheet UT Tariff Sheets
B2: 2.02 GS Rate Schedule | I2: 2.02 GS Rate Schedule
C3: Rates Per Dth Used Each Month | J3: Rates Per Dth Used Each Month
C4: Summer Rates: Apr. 1 - Oct. 31 | E4: Winter Rates: Nov. 1 - Mar. 31 | J4: Summer Rates: Apr. 1 - Oct. 31 | L4: Winter Rates: Nov. 1 - Mar. 31
C5: First 45 Dth | D5: All Over 45 Dth | E5: First 45 Dth | F5: All Over 45 Dth | J5: First 45 Dth | K5: All Over 45 Dth | L5: First 45 Dth | M5: All Over 45 Dth
B6: Base DNG | C6: ='CET & DSM'!B24 -> 1.87767 | D6: ='CET & DSM'!B25 -> 0.69704 | E6: ='CET & DSM'!B26 -> 2.22938 | F6: ='CET & DSM'!B27 -> 0.92557 | I6: Base DNG | J6: ='CET & DSM'!B31 -> 1.87767 | K6: ='CET & DSM'!B32 -> 0.69704 | L6: ='CET & DSM'!B33 -> 2.22938 | M6: ='CET & DSM'!B34 -> 0.92557
B7: CET Amortization | C7: ='CET & DSM'!H16 -> -0.01994 | D7: ='CET & DSM'!H17 -> -0.0074 | E7: ='CET & DSM'!H18 -> -0.02368 | F7: ='CET & DSM'!H19 -> -0.00983 | I7: CET Amortization | J7: ='CET & DSM'!C31 -> -0.0599 | K7: ='CET & DSM'!C32 -> -0.02224 | L7: ='CET & DSM'!C33 -> -0.07112 | M7: ='CET & DSM'!C34 -> -0.02953
B8: DSM Amortization | C8: ='CET & DSM'!D24 -> 0.44104 | D8: ='CET & DSM'!D25 -> 0.44104 | E8: ='CET & DSM'!D26 -> 0.44104 | F8: ='CET & DSM'!D27 -> 0.44104 | I8: DSM Amortization | J8: =ROUND('CET & DSM'!D31,5) -> 0.44075 | K8: =ROUND('CET & DSM'!D32,5) -> 0.44075 | L8: =ROUND('CET & DSM'!D33,5) -> 0.44075 | M8: =ROUND('CET & DSM'!D34,5) -> 0.44075
B9: Energy Assistance | C9: ='Other Inputs'!$E$223 -> 0.01496 | D9: ='Other Inputs'!$E$223 -> 0.01496 | E9: ='Other Inputs'!$E$223 -> 0.01496 | F9: ='Other Inputs'!$E$223 -> 0.01496 | I9: Energy Assistance | J9: ='Other Inputs'!$E$223 -> 0.01496 | K9: ='Other Inputs'!$E$223 -> 0.01496 | L9: ='Other Inputs'!$E$223 -> 0.01496 | M9: ='Other Inputs'!$E$223 -> 0.01496
B10: Distribution Non-Gas Rate | C10: =SUM(C6:C9) -> 2.31373 | D10: =SUM(D6:D9) -> 1.14564 | E10: =SUM(E6:E9) -> 2.6617 | F10: =SUM(F6:F9) -> 1.37174 | I10: Distribution Non-Gas Rate | J10: =SUM(J6:J9) -> 2.27348 | K10: =SUM(K6:K9) -> 1.13051 | L10: =SUM(L6:L9) -> 2.61397 | M10: =SUM(M6:M9) -> 1.35175
B12: Base SNG | C12: ='CET & DSM'!I24 -> 0.55715 | D12: ='CET & DSM'!I25 -> 0.55715 | E12: ='CET & DSM'!I26 -> 1.18665 | F12: ='CET & DSM'!I27 -> 1.18665 | I12: Base SNG | J12: ='CET & DSM'!I31 -> 0.55715 | K12: ='CET & DSM'!I32 -> 0.55715 | L12: ='CET & DSM'!I33 -> 1.18665 | M12: ='CET & DSM'!I34 -> 1.18665
B13: SNG Amortization | C13: ='CET & DSM'!J24 -> 0.01244 | D13: ='CET & DSM'!J25 -> 0.01244 | E13: ='CET & DSM'!J26 -> 0.02651 | F13: ='CET & DSM'!J27 -> 0.02651 | I13: SNG Amortization | J13: ='CET & DSM'!J31 -> 0.01244 | K13: ='CET & DSM'!J32 -> 0.01244 | L13: ='CET & DSM'!J33 -> 0.02651 | M13: ='CET & DSM'!J34 -> 0.02651
B14: Supplier Non-Gas Rate | C14: =SUM(C12:C13) -> 0.56959 | D14: =SUM(D12:D13) -> 0.56959 | E14: =SUM(E12:E13) -> 1.21316 | F14: =SUM(F12:F13) -> 1.21316 | I14: Supplier Non-Gas Rate | J14: =SUM(J12:J13) -> 0.56959 | K14: =SUM(K12:K13) -> 0.56959 | L14: =SUM(L12:L13) -> 1.21316 | M14: =SUM(M12:M13) -> 1.21316
B16: Base Gas Cost | C16: ='CET & DSM'!L24 -> 4.21339 | D16: ='CET & DSM'!L25 -> 4.21339 | E16: ='CET & DSM'!L26 -> 4.21339 | F16: ='CET & DSM'!L27 -> 4.21339 | I16: Base Gas Cost | J16: ='CET & DSM'!L31 -> 4.21339 | K16: ='CET & DSM'!L32 -> 4.21339 | L16: ='CET & DSM'!L33 -> 4.21339 | M16: ='CET & DSM'!L34 -> 4.21339
B17: 191 Amortization | C17: ='CET & DSM'!M24 -> 0.14067 | D17: ='CET & DSM'!M25 -> 0.14067 | E17: ='CET & DSM'!M26 -> 0.14067 | F17: ='CET & DSM'!M27 -> 0.14067 | I17: 191 Amortization | J17: ='CET & DSM'!M31 -> 0.14067 | K17: ='CET & DSM'!M32 -> 0.14067 | L17: ='CET & DSM'!M33 -> 0.14067 | M17: ='CET & DSM'!M34 -> 0.14067
B18: Commodity Rate | C18: =SUM(C16:C17) -> 4.35406 | D18: =SUM(D16:D17) -> 4.35406 | E18: =SUM(E16:E17) -> 4.35406 | F18: =SUM(F16:F17) -> 4.35406 | I18: Commodity Rate | J18: =SUM(J16:J17) -> 4.35406 | K18: =SUM(K16:K17) -> 4.35406 | L18: =SUM(L16:L17) -> 4.35406 | M18: =SUM(M16:M17) -> 4.35406
B20: Total Rate | C20: =SUM(C18,C14,C10) -> 7.23738 | D20: =SUM(D18,D14,D10) -> 6.06929 | E20: =SUM(E18,E14,E10) -> 8.22892 | F20: =SUM(F18,F14,F10) -> 6.93896 | I20: Total Rate | J20: =SUM(J18,J14,J10) -> 7.19713 | K20: =SUM(K18,K14,K10) -> 6.05416 | L20: =SUM(L18,L14,L10) -> 8.18119 | M20: =SUM(M18,M14,M10) -> 6.91897
E23: BSF Category 1 | F23: ='Ut 1.8'!C12 -> 5 | L23: BSF Category 1 | M23: ='Ut 1.8'!C12 -> 5
E24: BSF Category 2 | F24: ='Ut 1.8'!C13 -> 21 | L24: BSF Category 2 | M24: ='Ut 1.8'!C13 -> 21
E25: BSF Category 3 | F25: ='Ut 1.8'!C14 -> 55 | L25: BSF Category 3 | M25: ='Ut 1.8'!C14 -> 55
E26: BSF Category 4 | F26: ='Ut 1.8'!C15 -> 244 | L26: BSF Category 4 | M26: ='Ut 1.8'!C15 -> 244
B45: Issued by R. W. Jibson, President | D45: Advice No | E45: Section Revision No. | F45: Effective Date | I45: Issued by R. W. Jibson, President | K45: Advice No | L45: Section Revision No. | M45: Effective Date
B49: New CET Only | I49: NEW DSM ONLY

Sheet Utah Summary-by class
A1: UTAH SUMMARY
B2: NOT AN EXHIBIT !!!
A3: NEEDS TO BE UPDATED FOR GSR AND GSC RATES | Q3: Sub Total
C4: COMMODITY | J4: SNG | Q4: TOTAL
C5: Current | D5: Proposed | E5: Current | F5: Proposed | G5: Revenue | H5: % | J5: Current | K5: Proposed | L5: Current | M5: Proposed | N5: Revenue | O5: % | Q5: Revenue | R5: %
A6: RATE | B6: Dth Sales | C6: Rates | D6: Rates | E6: Revenue | F6: Revenue | G6: Difference | H6: Change | J6: Rates | K6: Rates | L6: Revenue | M6: Revenue | N6: Difference | O6: Change | Q6: Difference | R6: Change
A8: GS (W) | B8: =Calculations!P52 -> 69946073 | C8: ='Ut 1.6 p1'!$H$36 -> 4.16215 | D8: =ROUND('Ut 1.6 p1'!$F$36,5) -> 4.79039 | E8: =ROUND(B8*C8,0) -> 291126048 | F8: =ROUND(B8*D8,0) -> 335068969 | G8: =(F8-E8) -> 43942921 | J8: ='Ut 1.6 p3'!E16 -> 1.11075 | K8: ='Ut 1.6 p3'!I16 -> 1.06751 | L8: =ROUND(B8*J8,0) -> 77692601 | M8: =B8*K8 -> 74668132.39 | N8: =(M8-L8) -> -3024468.612 | Q8: =G8+N8 -> 40918452.39
A9: GS (S) | B9: =Calculations!P53 -> 27965794 | C9: ='Ut 1.6 p1'!$H$36 -> 4.16215 | D9: =D8 -> 4.79039 | E9: =ROUND(B9*C9,0) -> 116397829 | F9: =ROUND(B9*D9,0) -> 133967060 | G9: =(F9-E9) -> 17569231 | J9: ='Ut 1.6 p3'!E17 -> 0.52151 | K9: ='Ut 1.6 p3'!I17 -> 0.50121 | L9: =ROUND(B9*J9,0) -> 14584441 | M9: =B9*K9 -> 14016735.61 | N9: =(M9-L9) -> -567705.3893 | Q9: =G9+N9 -> 17001525.61
A10: Total | B10: =SUM(B8:B9) -> 97911867 | E10: =SUM(E8:E9) -> 407523877 | F10: =SUM(F8:F9) -> 469036029 | G10: =SUM(G8:G9) -> 61512152 | H10: =IF(G10=0,0,G10/E10) -> 0.150941222 | L10: =SUM(L8:L9) -> 92277042 | M10: =SUM(M8:M9) -> 88684868 | N10: =SUM(N8:N9) -> -3592174.001 | O10: =IF(N10=0,0,N10/L10) -> -0.03892814424 | Q10: =SUM(Q8:Q9) -> 57919978 | R10: =IF(Q10=0,0,Q10/(E10+L10)) -> 0.1158860974
A13: FS | B13: =Calculations!P58 -> 2610271 | C13: ='Ut 1.6 p1'!$H$36 -> 4.16215 | D13: =D8 -> 4.79039 | E13: =ROUND(B13*C13,0) -> 10864339 | F13: =ROUND(B13*D13,0) -> 12504216 | G13: =(F13-E13) -> 1639877 | J13: ='Ut 1.6 p3'!E19 -> 1.08183 | K13: ='Ut 1.6 p3'!I19 -> 1.03971 | L13: =ROUND(B13*J13,0) -> 2823869 | M13: =B13*K13 -> 2713924.861 | N13: =(M13-L13) -> -109944.1386 | Q13: =G13+N13 -> 1529932.861
B14: =Calculations!P59 -> 2714494 | C14: ='Ut 1.6 p1'!$H$36 -> 4.16215 | D14: =D9 -> 4.79039 | E14: =ROUND(B14*C14,0) -> 11298131 | F14: =ROUND(B14*D14,0) -> 13003485 | G14: =(F14-E14) -> 1705354 | J14: ='Ut 1.6 p3'!E20 -> 0.52149 | K14: ='Ut 1.6 p3'!I20 -> 0.50119 | L14: =ROUND(B14*J14,0) -> 1415581 | M14: =B14*K14 -> 1360477.248 | N14: =(M14-L14) -> -55103.75214 | Q14: =G14+N14 -> 1650250.248
A15: Total | B15: =SUM(B13:B14) -> 5324765 | E15: =SUM(E13:E14) -> 22162470 | F15: =SUM(F13:F14) -> 25507701 | G15: =SUM(G13:G14) -> 3345231 | H15: =IF(G15=0,0,G15/E15) -> 0.1509412534 | L15: =SUM(L13:L14) -> 4239450 | M15: =SUM(M13:M14) -> 4074402.109 | N15: =SUM(N13:N14) -> -165047.8907 | O15: =IF(N15=0,0,N15/L15) -> -0.03893143939 | Q15: =SUM(Q13:Q14) -> 3180183.109 | R15: =IF(Q15=0,0,Q15/(E15+L15)) -> 0.1204527212
A19: NGV | B19: =Calculations!P12 -> 560400 | C19: ='Ut 1.6 p1'!$H$36 -> 4.16215 | D19: =D8 -> 4.79039 | E19: =ROUND(B19*C19,0) -> 2332469 | F19: =ROUND(B19*D19,0) -> 2684535 | G19: =(F19-E19) -> 352066 | H19: =IF(G19=0,0,G19/E19) -> 0.1509413416 | J19: ='Ut 1.6 p3'!E22 -> 0.80155 | K19: ='Ut 1.6 p3'!I22 -> 0.77034 | L19: =ROUND(B19*J19,0) -> 449189 | M19: =ROUND(B19*K19,0) -> 431699 | N19: =(M19-L19) -> -17490 | O19: =IF(N19=0,0,N19/L19) -> -0.0389368395 | Q19: =G19+N19 -> 334576 | R19: =IF(Q19=0,0,Q19/(E19+L19)) -> 0.1202793442
G21: =G10+G15+G19 -> 65209449 | N21: =N10+N15+N19 -> -3774711.892 | Q21: =Q10+Q15+Q19 -> 61434737.11
A24: IS | B24: =Calculations!P15 -> 2687596 | E24: =ROUND(B24*C24,0) -> 0 | F24: =ROUND(B24*D24,0) -> 0 | G24: =(F24-E24) -> 0 | H24: =IF(G24=0,0,G24/E24) -> 0 | J24: ='Ut 1.6 p3'!E24 -> 0.1792 | K24: ='Ut 1.6 p3'!I24 -> 0.1792 | L24: =ROUND(B24*J24,0) -> 481617 | M24: =ROUND(B24*K24,0) -> 481617 | N24: =(M24-L24) -> 0 | O24: =IF(N24=0,0,N24/L24) -> 0 | Q24: =G24+N24 -> 0 | R24: =IF(Q24=0,0,Q24/(E24+L24)) -> 0
A26: ES | B26: 0 | E26: =ROUND(B26*C26,0) -> 0 | F26: =ROUND(B26*D26,0) -> 0 | G26: =(F26-E26) -> 0 | H26: =IF(G26=0,0,G26/E26) -> 0 | J26: ='Ut 1.6 p3'!E26 -> 5.75759 | K26: ='Ut 1.6 p3'!I26 -> 5.53344 | L26: =ROUND(B26*J26,0) -> 0 | M26: =ROUND(B26*K26,0) -> 0 | N26: =(M26-L26) -> 0 | O26: =IF(N26=0,0,N26/L26) -> 0 | Q26: =G26+N26 -> 0 | R26: =IF(Q26=0,0,Q26/(E26+L26)) -> 0
B27: - | E27: - | F27: - | G27: - | L27: ------------------- | M27: ------------------- | N27: ------------------- | Q27: -------------------
B28: =B10+B15+B19+B24+B26 -> 106484628 | E28: =E10+E15+E19+E24+E26 -> 432018816 | F28: =F10+F15+F19+F24+F26 -> 497228265 | G28: =G10+G15+G19+G24+G26 -> 65209449 | H28: =IF(G28=0,0,G28/E28) -> 0.1509412243 | L28: =L10+L15+L19+L24+L26 -> 97447298 | M28: =M10+M15+M19+M24+M26 -> 93672586.11 | N28: =N10+N15+N19+N24+N26 -> -3774711.892 | O28: =IF(N28=0,0,N28/L28) -> -0.03873593182 | Q28: =Q10+Q15+Q19+Q24+Q26 -> 61434737.11 | R28: =IF(Q28=0,0,Q28/(E28+L28)) -> 0.1160314805 | W28: =49300714-6927605-5328088 -> 37045021
G29: =IF(G28>0,"Commodity Increase","Commodity Decrease") -> Commodity Increase | N29: =IF(N28>0,"Increase to SNG","Decrease to SNG") -> Decrease to SNG | W29: =W28-N28 -> 40819732.89
B30: NOT AN EXHIBIT !!!
G31: =ROUND(G28,-3) -> 65209000 | N31: =ROUND(N28,-3) -> -3775000 | Q31: =ROUND(Q28,-3) -> 61435000 | W31: =W29-8603966 -> 32215766.89
G32: Rounded | N32: Rounded | Q32: Rounded
A35: FT2 | B35: ='RevRun Fcst'!S138+'RevRun Fcst'!S183 -> 0 | M35: =0.0005*B24 -> 1343.798
M36: =M35+M28 -> 93673929.91
A37: IT | B37: ='RevRun Fcst'!S165+'RevRun Fcst'!S174 -> 2749057
A40: winter | B40: =B8+B13 -> 72556344 | J40: =L40/B40 -> 1.10970958 | L40: =L8+L13 -> 80516470
A41: summer | B41: =B9+B14 -> 30680288 | J41: =L41/B41 -> 0.5215082075 | L41: =L9+L14 -> 16000022
A42: year | B42: =B10+B15 -> 103236632 | J42: =L42/B42 -> 0.9349054704 | L42: =L10+L15 -> 96516492
B44: =B10+B15+B19 -> 103797032 | J44: =L44/B44 -> 0.9341854881 | L44: =L10+L15+L19 -> 96965681

Sheet UT Summary - by cost

Sheet WY Summary - by cost

Sheet Model Checks
B2: Model Checks
B3: If the total of all checks is not zero, or very close to zero, find the checks below that are out of balance and follow the calculations
B4: back through the model and correct any errors.
D6: Total of all Checks
D7: =ABS(SUM(D10:D2000)) -> 2618704.545
B9: Forecasted Demand
C10: Utah | D10: =Calculations!P25-'RevRun Fcst'!T204 -> 0
C11: Wyoming | D11: =Calculations!P44-'RevRun Fcst'!T326 -> 0
C12: Total System | D12: =Calculations!P47-'RevRun Fcst'!T367 -> 0
B13: Forecasted Utah Demand Check by Month
C14: 1 | D14: =Calculations!D25-'RevRun Fcst'!H204 -> 0
C15: 2 | D15: =Calculations!E25-'RevRun Fcst'!I204 -> 0
C16: 3 | D16: =Calculations!F25-'RevRun Fcst'!J204 -> 0
C17: 4 | D17: =Calculations!G25-'RevRun Fcst'!K204 -> 0
C18: 5 | D18: =Calculations!H25-'RevRun Fcst'!L204 -> 0
C19: 6 | D19: =Calculations!I25-'RevRun Fcst'!M204 -> 0
C20: 7 | D20: =Calculations!J25-'RevRun Fcst'!N204 -> 0
C21: 8 | D21: =Calculations!K25-'RevRun Fcst'!O204 -> 0
C22: 9 | D22: =Calculations!L25-'RevRun Fcst'!P204 -> 0
C23: 10 | D23: =Calculations!M25-'RevRun Fcst'!Q204 -> 0
C24: 11 | D24: =Calculations!N25-'RevRun Fcst'!R204 -> 0
C25: 12 | D25: =Calculations!O25-'RevRun Fcst'!S204 -> 0
C26: Wyoming I-2 and I-4 Revenues | D26: =('RevRun Fcst'!T272+'RevRun Fcst'!T281)-Calculations!P65 -> 0
C27: System Sales Volumes | D27: =Calculations!H76-'RevRun Fcst'!T365 -> 0
C28: Utah Sales Volumes | D28: =Calculations!P20-'Utah Summary-by class'!B28 -> 0
B29: Company Production | D29: =Calculations!P120-'Monthly Inputs'!S12*1000 -> -4.600000024
B30: Company Produced Gas | D30: ='Monthly Inputs'!S9-'Monthly Inputs'!S7-'Monthly Inputs'!S8 -> 0
B31: Company Produced Gas | D31: ='Monthly Inputs'!S12-'Monthly Inputs'!S11-'Monthly Inputs'!S9 -> 0
B32: Injections | D32: ='Monthly Inputs'!S40-SUM('Monthly Inputs'!S34:S39) -> 0
B33: Withdrawls | D33: ='Monthly Inputs'!S48-SUM('Monthly Inputs'!S43:S47) -> 0
B34: Injections & Withdrawls | D34: =SUM('Ut 1.3 p2'!D23:D28)-'Monthly Inputs'!S40-'Monthly Inputs'!S48 -> 0
B35: Injections | D35: =Calculations!P129-'Monthly Inputs'!S40 -> 0
B36: Withdrawls | D36: =Calculations!P137-'Monthly Inputs'!S48 -> 0
B37: Sales for Resale | D37: =Expenses!S445-Calculations!P86 -> 0
B38: Incidental Plant Prod Sales | D38: =Expenses!S446-Calculations!P87 -> 0
B39: Incidental Gas & Oil Sales | D39: =Expenses!S447-Calculations!P89 -> 0
B40: Gasoline and Oil Costs | D40: =Expenses!S450+Calculations!P90 -> 0
B41: Wexpro Revenue Sharing | D41: =Expenses!S449-Calculations!P94 -> 0
B42: Storage Gas | D42: ='Rate Base'!U209-Calculations!P99 -> 0
B43: 101 Production | D43: ='Rate Base'!U158-Calculations!P100 -> 0
B44: 108 Production | D44: ='Rate Base'!U176-Calculations!P101 -> 0
B45: 111 Production | D45: ='Rate Base'!U183-Calculations!P102 -> 0
B46: 255 Production | D46: ='Rate Base'!U244-Calculations!P103 -> 0
B47: 282 Production | D47: ='Rate Base'!U251-Calculations!P104 -> 0
B48: 282.1 Production | D48: ='Rate Base'!U258-Calculations!P105 -> 0
B49: Production Rate Base | D49: =SUM(Calculations!P99:P105)-'Rate Base'!U278 -> 0
B50: Purchased Gas Cost | D50: ='Ut 1.2'!G24-Calculations!P191 -> -0.3899999857
B51: Production Function | D51: ='Wy 1.3 p3'!I40-Calculations!N108 -> 0
B52: Production Function | D52: ='Wy 1.3 p3'!I40-'Rate Base'!U158-'Rate Base'!U176-'Rate Base'!U183-'Rate Base'!U244-'Rate Base'!U251-'Rate Base'!U258 -> 1.979060471e-09
B53: Wexpro Reduction | D53: ='Wy 1.3 p3'!I42-Calculations!N109 -> 0
B54: Wyoming Production Return | D54: ='Wy 1.3 p3'!J47-Calculations!N112 -> 0
B55: Working Gas Rate Base | D55: =Calculations!P99-'Ut 1.3 p2'!D53 -> 0
B56: Allocations | D56: ='Ut 1.5'!E41-'Ut 1.5'!F41-'Ut 1.5'!G41+'Ut 1.5'!G39 -> 0
B58: System Sales | D58: ='SDR#1'!C10-'RevRun Fcst'!T365 -> 0
B59: Lost & Unaccounted For | D59: ='SDR#1'!C15-(('SDR#1'!C10+'SDR#1'!C11)/(1-'Other Inputs'!E262)) -> 0.5027635396
B60: Supply / Demand | D60: ='SDR#1'!C36-'SDR#1'!C15 -> -0.753850013
B61: System Sales | D61: ='SDR#3'!H36-'SDR#1'!C10 -> 0
B62: SNG Revenue | D62: ='SDR#4'!G23-'Utah Summary-by class'!L28 -> 0.5888800025
B63: Utah Sales | D63: ='SDR#3'!D36-'SDR#4'!E23 -> 0
B64: Utah Sales | D64: ='SDR#2'!G59+'Ut 1.6 p1'!J25 -> 0.1070369184
B65: Seasonal Volumes | D65: =Calculations!P52+Calculations!P53-Calculations!P7-Calculations!P8 -> 0
B66: Seasonal Volumes | D66: =Calculations!P55+Calculations!P56-Calculations!P9 -> 0
B67: Seasonal Volumes | D67: =Calculations!P58+Calculations!P59-Calculations!P10 -> 0
B68: GS-1 Sales Dth | D68: ='CET & DSM'!B20-'SDR#4'!E12-'SDR#4'!E13 -> -2618700

Sheet SDR#1
F1: ='Control Panel'!F32 -> Questar Gas Company
F2: ='Control Panel'!F33 -> Docket No. 13-057-03
B4: Standard Data Request #1
B5: Summary of Sources of Supply and Demand
A8: 1 | B8: DEMAND | C8: Total | D8: Utah | E8: Wyoming
A10: =A8+1 -> 2 | B10: SALES IN DTHS | C10: =D10+E10 -> 110453764 | D10: =Calculations!P20 -> 106484628 | E10: =Calculations!P39 -> 3969136
A11: =A10+1 -> 3 | B11: DIST. CO. USE & | C11: 0
A12: =A11+1 -> 4 | B12: DIST. LOST & UNACCT. (0.49%) | C12: =Calculations!P148 -> 543889
A15: =A12+1 -> 5 | B15: TOTAL | C15: =SUM(C10:C12) -> 110997653
A19: =A15+1 -> 6 | B19: SUPPLY | C19: Total | D19: Utah | E19: Wyoming
A21: =A19+1 -> 7 | B21: COMPANY PRODUCTION | C21: ='Ut 1.1'!E1403 -> 73217730 | D21: =$D$10/$C$10*C21 -> 70586664.14 | E21: =$E$10/$C$10*C21 -> 2631065.864
A22: =A21+1 -> 8 | B22: GAS REIMBURSEMENT | C22: =C21*-'Other Inputs'!$E$266 -> -3155684.163 | D22: =D21*-'Other Inputs'!$E$266 -> -3042285.224 | E22: =E21*-'Other Inputs'!$E$266 -> -113398.9387 | G22: =C21/C10 -> 0.6628812577 | H22: =D21/D10 -> 0.6628812577 | I22: =E21/E10 -> 0.6628812577
A25: =A22+1 -> 9 | B25: CONTRACT GAS | C25: ='Ut 1.2'!E24 -> 41119222 | D25: =$D$10/$C$10*C25 -> 39641610.21 | E25: =$E$10/$C$10*C25 -> 1477611.794
A26: =A25+1 -> 10 | B26: GAS REIMBURSEMENT | C26: =C25*-'Other Inputs'!$E$265 -> -579781.0302 | D26: =D25*-'Other Inputs'!$E$265 -> -558946.7039 | E26: =E25*-'Other Inputs'!$E$265 -> -20834.32629
A28: =A26+1 -> 11 | B28: STORAGE
A29: =A28+1 -> 12 | B29: INJECTIONS | C29: ='Ut 1.4 p2'!E22 -> -11393793 | D29: =$D$10/$C$10*C29 -> -10984359.11 | E29: =$E$10/$C$10*C29 -> -409433.8874
A30: =A29+1 -> 13 | B30: WITHDRAWALS | C30: ='Ut 1.4 p2'!E21 -> 12221251 | D30: =$D$10/$C$10*C30 -> 11782082.56 | E30: =$E$10/$C$10*C30 -> 439168.4407
A31: =A30+1 -> 14 | B31: NET (INJECTIONS) WITHDRAWALS | C31: =C29+C30 -> 827458 | D31: =D29+D30 -> 797723.4467 | E31: =E29+E30 -> 29734.55333
A33: =A31+1 -> 15 | B33: Storage Fuel | C33: =Calculations!P164+Calculations!P165-1 -> -431292.5606 | D33: =D10/C10*C33 -> -415794.1406 | E33: =E10/C10*C33 -> -15498.42004
A36: =A33+1 -> 16 | B36: TOTAL SUPPLY | C36: =C21+C22+C25+C26+C29+C30+C33 -> 110997652.2 | D36: =SUM(D21:D30)+D33 -> 107008971.7 | E36: =SUM(E21:E30)+E33 -> 3988680.526
A38: =A36+1 -> 17 | B38: Company Use & Loss % | C38: =(+C36-C10)/C36 -> 0.004899997749 | D38: =(+D36-D10)/D36 -> 0.004899997749 | E38: =(+E36-E10)/E36 -> 0.004899997749
B41: Difference | C41: =C15-C36 -> 0.753850013

Sheet SDR#2
H1: ='Control Panel'!F32 -> Questar Gas Company
H2: ='Control Panel'!F33 -> Docket No. 13-057-03
A5: Standard Data Request #2
A6: Supplier Non-Gas Costs
B8: (A) | C8: (B) | D8: (C) | E8: (D) | F8: (E) | G8: (F) | T8: withdraw
A9: I. Transportation (QPC T-1) | C9: Volume (Dth) | G9: Utah Total | J9: Utah gas | K9: Utah Co. | L9: Utah gas | M9: Wyo gas | N9: Wyo Co. | O9: Wyo gas | Q9: @city gate | R9: @city gate | T9: loss | U9: Kern River
B10: Month | C10: Utah | D10: Wyoming | E10: $/dth | F10: Demand | G10: b*d+e*(Ut %) | J10: purchased | K10: production | L10: withdrawn | M10: purchased | N10: production | O10: withdrawn | P10: Total | Q10: purchased | R10: co production | S10: withdrawls | T10: =-Calculations!P164/Calculations!P137 -> 0.02074537923 | U10: Transportation
B12: ='Wy Storage'!B11 -> Jun13 | C12: =J12+K12+L12-(T12+$B$43*U12)*$J$39 -> 5056761.826 | D12: =M12+N12+O12-(T12+$B$43*U12)*$K$39 -> 188487.0688 | E12: ='Other Inputs'!$F$38 -> 0.00267 | F12: =('Other Inputs'!$D$22)*('Other Inputs'!$F$22)-('Other Inputs'!$E$270/12)+('Other Inputs'!$D$30*'Other Inputs'!$F$30) -> 4381133.49 | G12: =(+C12)*E12+F12*$J$33/$L$33 -> 4250057.192 | J12: =Q12*$J$39 -> 20632.1238 | K12: =R12*$J$39 -> 5112839.671 | L12: =S12*$J$39 -> 76074.38345 | M12: =Q12-J12 -> 769.0472029 | N12: =R12-K12 -> 190577.3292 | O12: =S12-L12 -> 2835.616555 | P12: =SUM(J12:O12)-U12 -> 5257178.171 | Q12: =Calculations!D168 -> 21401.171 | R12: =Calculations!D160 -> 5303417 | S12: =Calculations!D162+Calculations!D163 -> 78910 | T12: =S12*$T$10 -> 1637.017875 | U12: =V12*W12 -> 146550 | V12: 4885 | W12: 30 | X12: =B12 -> Jun13
B13: ='Wy Storage'!B12 -> Jul13 | C13: =J13+K13+L13-(T13+$B$43*U13)*$J$39 -> 4870238.815 | D13: =M13+N13+O13-(T13+$B$43*U13)*$K$39 -> 181534.5611 | E13: ='Other Inputs'!$F$38 -> 0.00267 | F13: =('Other Inputs'!$D$22)*('Other Inputs'!$F$22)-('Other Inputs'!$E$270/12)+('Other Inputs'!$D$30*'Other Inputs'!$F$30) -> 4381133.49 | G13: 4249559.176 | J13: 25375.45396 | K13: 4943106.355 | L13: 59232.16473 | M13: 945.8513377 | N13: 184250.6449 | O13: 2207.83527 | P13: 5063683.305 | Q13: =Calculations!E168 -> 26321.3053 | R13: =Calculations!E160 -> 5127357 | S13: =Calculations!E162+Calculations!E163 -> 61440 | T13: =S13*$T$10 -> 1274.5961 | U13: =V13*W13 -> 151435 | V13: 4885 | W13: 31 | X13: =B13 -> Jul13
B14: ='Wy Storage'!B13 -> Aug13 | C14: 3356863.577 | D14: 125124.6149 | E14: ='Other Inputs'!$F$38 -> 0.00267 | F14: =('Other Inputs'!$D$22)*('Other Inputs'!$F$22)-('Other Inputs'!$E$270/12)+('Other Inputs'!$D$30*'Other Inputs'!$F$30) -> 4381133.49 | G14: 4245518.464 | J14: -0.02416911452 | K14: 5055727.485 | L14: 0 | M14: -0.0009008859242 | N14: 188448.5145 | O14: 0 | P14: 3597625.975 | Q14: =Calculations!F168 -> -0.02507000044 | R14: =Calculations!F160 -> 5244176 | S14: =Calculations!F162+Calculations!F163 -> 0 | T14: 0 | U14: 1646550 | V14: 54885 | W14: 30 | X14: Aug13
B15: ='Wy Storage'!B14 -> Sep13 | C15: 3574092.184 | D15: 133221.6511 | E15: ='Other Inputs'!$F$38 -> 0.00267 | F15: =('Other Inputs'!$D$22)*('Other Inputs'!$F$22)-('Other Inputs'!$E$270/12)+('Other Inputs'!$D$30*'Other Inputs'!$F$30) -> 4381133.49 | G15: 4246098.464 | J15: 0.203649129 | K15: 5329584.661 | L15: 0 | M15: 0.007590871136 | N15: 198656.3389 | O15: 0 | P15: 3826806.211 | Q15: =Calculations!G168 -> 0.2112400001 | R15: =Calculations!G160 -> 5528241 | S15: =Calculations!G162+Calculations!G163 -> 0 | T15: 0 | U15: 1701435 | V15: 54885 | W15: 31 | X15: Sep13
B16: ='Wy Storage'!B15 -> Oct13 | C16: 5809520.454 | D16: 216545.5917 | E16: ='Other Inputs'!$F$38 -> 0.00267 | F16: =('Other Inputs'!$D$22)*('Other Inputs'!$F$22)-('Other Inputs'!$E$270/12)+('Other Inputs'!$D$30*'Other Inputs'!$F$30) -> 4381133.49 | G16: 4252067.058 | J16: 1661166.719 | K16: 5597261.215 | L16: 313080.1676 | M16: 61918.76471 | N16: 208633.7851 | O16: 11669.83242 | P16: 6152295.484 | Q16: =Calculations!H168 -> 1723085.484 | R16: =Calculations!H160 -> 5805895 | S16: =Calculations!H162+Calculations!H163 -> 324750 | T16: 6737.061903 | U16: 1701435 | V16: 54885 | W16: 31 | X16: Oct13
B17: ='Wy Storage'!B16 -> Nov13 | C17: 9460958.138 | D17: 352650.2393 | E17: ='Other Inputs'!$F$38 -> 0.00267 | F17: =('Other Inputs'!$D$22)*('Other Inputs'!$F$22)-('Other Inputs'!$E$270/12)+('Other Inputs'!$D$30*'Other Inputs'!$F$30) -> 4381133.49 | G17: 4261816.397 | J17: 2641364.801 | K17: 5635047.75 | L17: 2828837.18 | M17: 98454.92555 | N17: 210042.2503 | O17: 105442.8202 | P17: 9982409.727 | Q17: =Calculations!I168 -> 2739819.727 | R17: =Calculations!I160 -> 5845090 | S17: =Calculations!I162+Calculations!I163 -> 2934280 | T17: 60872.75135 | U17: 1536780 | V17: 54885 | W17: 28 | X17: Nov13
B18: ='Wy Storage'!B17 -> Dec13 | C18: 15418874.82 | D18: 574727.191 | E18: ='Other Inputs'!$F$38 -> 0.00267 | F18: =('Other Inputs'!$D$22)*('Other Inputs'!$F$22)-('Other Inputs'!$E$270/12)+('Other Inputs'!$D$30*'Other Inputs'!$F$30) -> 4381133.49 | G18: 4277724.034 | J18: 6334428.001 | K18: 6224423.214 | L18: 4713295.389 | M18: 236111.1335 | N18: 232010.7862 | O18: 175684.6106 | P18: 16214518.13 | Q18: =Calculations!J168 -> 6570539.135 | R18: =Calculations!J160 -> 6456434 | S18: =Calculations!J162+Calculations!J163 -> 4888980 | T18: 101423.7441 | U18: 1701435 | V18: 54885 | W18: 31 | X18: Dec13
B19: ='Wy Storage'!B18 -> Jan14 | C19: 19460406.56 | D19: 725372.3068 | E19: ='Other Inputs'!$F$38 -> 0.00267 | F19: =('Other Inputs'!$D$22)*('Other Inputs'!$F$22)-('Other Inputs'!$E$270/12)+('Other Inputs'!$D$30*'Other Inputs'!$F$30) -> 4381133.49 | G19: 4288514.924 | J19: 10287647.71 | K19: 6098362.051 | L19: 3293936.929 | M19: 383464.4835 | N19: 227311.9493 | O19: 122779.0705 | P19: 20266952.19 | Q19: =Calculations!K168 -> 10671112.19 | R19: =Calculations!K160 -> 6325674 | S19: =Calculations!K162+Calculations!K163 -> 3416716 | T19: 70881.06912 | U19: 146550 | V19: 4885 | W19: 30 | X19: Jan14
B20: ='Wy Storage'!B19 -> Feb14 | C20: 15115231.36 | D20: 563409.1049 | E20: ='Other Inputs'!$F$38 -> 0.00267 | F20: =('Other Inputs'!$D$22)*('Other Inputs'!$F$22)-('Other Inputs'!$E$270/12)+('Other Inputs'!$D$30*'Other Inputs'!$F$30) -> 4381133.49 | G20: 4276913.306 | J20: 9759789.138 | K20: 5357952.279 | L20: 156993.1944 | M20: 363788.9444 | N20: 199713.7209 | O20: 5851.805575 | P20: 15692654.08 | Q20: =Calculations!L168 -> 10123578.08 | R20: =Calculations!L160 -> 5557666 | S20: =Calculations!L162+Calculations!L163 -> 162845 | T20: 3378.28128 | U20: 151435 | V20: 4885 | W20: 31 | X20: Feb14
B21: ='Wy Storage'!B20 -> Mar14 | C21: 11380353.73 | D21: 424194.2949 | E21: ='Other Inputs'!$F$38 -> 0.00267 | F21: =('Other Inputs'!$D$22)*('Other Inputs'!$F$22)-('Other Inputs'!$E$270/12)+('Other Inputs'!$D$30*'Other Inputs'!$F$30) -> 4381133.49 | G21: 4266941.183 | J21: 5624398.961 | K21: 5907160.931 | L21: 0 | M21: 209645.3245 | N21: 220185.0685 | O21: 0 | P21: 11814840.29 | Q21: =Calculations!M168 -> 5834044.286 | R21: =Calculations!M160 -> 6127346 | S21: =Calculations!M162+Calculations!M163 -> 0 | T21: 0 | U21: 146550 | V21: 4885 | W21: 30 | X21: Mar14
B22: ='Wy Storage'!B21 -> Apr14 | C22: 8966715.19 | D22: 334227.6977 | E22: ='Other Inputs'!$F$38 -> 0.00267 | F22: =('Other Inputs'!$D$22)*('Other Inputs'!$F$22)-('Other Inputs'!$E$270/12)+('Other Inputs'!$D$30*'Other Inputs'!$F$30) -> 4381133.49 | G22: 4260496.768 | J22: 2727860.207 | K22: 6061534.761 | L22: 340633.1505 | M22: 101678.978 | N22: 225939.2392 | O22: 12696.84954 | P22: 9318908.185 | Q22: =Calculations!N168 -> 2829539.185 | R22: =Calculations!N160 -> 6287474 | S22: =Calculations!N162+Calculations!N163 -> 353330 | T22: 7329.964842 | U22: 151435 | V22: 4885 | W22: 31 | X22: Apr14
B23: ='Wy Storage'!B22 -> May14 | C23: 6065132.144 | D23: 226073.329 | E23: ='Other Inputs'!$F$38 -> 0.00267 | F23: =('Other Inputs'!$D$22)*('Other Inputs'!$F$22)-('Other Inputs'!$E$270/12)+('Other Inputs'!$D$30*'Other Inputs'!$F$30) -> 4381133.49 | G23: 4252749.541 | J23: -0.1866623004 | K23: 6221378.696 | L23: 0 | M23: -0.006957699626 | N23: 231897.304 | O23: 0 | P23: 6301840.806 | Q23: =Calculations!O168 -> -0.19362 | R23: =Calculations!O160 -> 6453276 | S23: =Calculations!O162+Calculations!O163 -> 0 | T23: 0 | U23: 151435 | V23: 4885 | W23: 31 | X23: May14
C26: =SUM(C12:C23) -> 108535148.8 | D26: =SUM(D12:D23) -> 4045567.651 | G26: =SUM(G12:G23) -> 51128456.51 | J26: =SUM(J12:J25) -> 39082663.11 | K26: 67544379.07 | L26: 11782082.56 | M26: 1456777.453 | N26: 2517666.931 | O26: 439168.4407 | P26: =SUM(P12:P23) -> 113489712.6 | Q26: 40539440.56 | R26: 70062046 | S26: 12221251 | T26: 253534.4866 | U26: 9333025
C29: Months | F29: System | G29: Utah | J29: Allocation Factors
C30: or Days | D30: Dth | E30: Rate | F30: Total | G30: Total
J31: Peak Demand Allocation Base
A32: II. Transportation (ML 104 demand) | C32: ='Other Inputs'!E23 -> 12 | D32: ='Other Inputs'!D23 -> 30000 | E32: ='Other Inputs'!F23 -> 5.28804 | F32: =C32*D32*E32 -> 1903694.4 | G32: =F32*J34 -> 1840872.291 | J32: Utah | K32: Wyo | L32: Total
J33: ='Other Inputs'!E133 -> 1243265 | K33: ='Other Inputs'!E134 -> 42428 | L33: =J33+K33 -> 1285693
J34: =J33/L33 -> 0.9669998981 | K34: =K33/L33 -> 0.03300010189
A36: III. Transportation (TL 112 demand) | C36: ='Other Inputs'!E24 -> 12 | D36: ='Other Inputs'!D24 -> 12000 | E36: ='Other Inputs'!F24 -> 5.28804 | F36: =C36*D36*E36 -> 761477.76 | G36: =F36*J34 -> 736348.9163 | J36: Dth Sales Allocation Base
C37: ='Other Inputs'!E25 -> 5 | D37: ='Other Inputs'!D25 -> 75000 | E37: ='Other Inputs'!F25 -> 6.80887 | F37: =C37*D37*E37 -> 2553326.25 | G37: =F37*J34 -> 2469066.224 | J37: Utah | K37: Wyo | L37: Total
J38: =Calculations!P20 -> 106484628 | K38: =Calculations!P39 -> 3969136 | L38: =J38+K38 -> 110453764
A39: IV. Transportation (KR 2003 Expansion) | C39: ='Other Inputs'!E54 -> 12 | D39: ='Other Inputs'!D54 -> 3000 | E39: ='Other Inputs'!F54 -> 14.34754167 | F39: =C39*D39*E39 -> 516511.5 | J39: =J38/L38 -> 0.9640651812 | K39: =K38/L38 -> 0.03593481884
C40: ='Other Inputs'!E55 -> 5 | D40: ='Other Inputs'!D55 -> 50000 | E40: ='Other Inputs'!F55 -> 14.34754167 | F40: =C40*D40*E40 -> 3586885.417 | G40: =(F39+F40+F41)*J34 -> 4356065.618
C41: ='Other Inputs'!E56 -> 12 | D41: ='Other Inputs'!D56 -> 1885 | E41: ='Other Inputs'!F56 -> 17.74204167 | F41: =C41*D41*E41 -> 401324.9825
A43: V. Trans (KR 2003 Expansion) | B43: ='Other Inputs'!C61 -> 1.07023035 | C43: ='Other Inputs'!E60 -> 365 | D43: ='Other Inputs'!D60 -> 4885 | E43: ='Other Inputs'!F60 -> 0.0044 | F43: =B43*C43*D43*E43 -> 8396.28887
B44: ='Other Inputs'!C60 -> 1.07023035 | C44: ='Other Inputs'!E61 -> 151 | D44: ='Other Inputs'!D61 -> 50000 | E44: ='Other Inputs'!F61 -> 0.0044 | F44: =B44*C44*D44*E44 -> 35553.05224 | G44: =(F43+F44)*J39 -> 42370.0295
A47: VI. Other Trans, Gathering & Processing | F47: ='Other Inputs'!$D$169+'Other Inputs'!$D$171 -> 4706917.73 | G47: =F47*$J$39 -> 4537775.494
A49: VII. QGM Gathering | B49: Demand | C49: ='Ut 1.3 p1'!H49 -> 12 | E49: ='Ut 1.3 p1'!J49 -> 759167.5 | F49: =C49*E49 -> 9110010
B50: Commodity | C50: ='Ut 1.3 p1'!F50 -> 46130300.84 | D50: ='Ut 1.3 p1'!F50 -> 46130300.84 | E50: ='Ut 1.3 p1'!J50 -> 0.13918 | F50: =C50*E50 -> 6420415.271 | G50: =(F49)*'Ut 1.5'!G51+(F50)*'Ut 1.5'!G54 -> 14999077.55
A53: VII. Storage Demand | C53: 12 | D53: ='Other Inputs'!E155 -> 184625 | E53: ='Other Inputs'!E14 -> 2.87375 | F53: =C53*D53*E53 -> 6366793.125
C54: 0 | D54: ='Other Inputs'!E156 -> 2500000 | E54: ='Other Inputs'!E15 -> 0.09 | F54: =C54*D54*E54 -> 0
C55: 12 | D55: ='Other Inputs'!E157 -> 111827 | E55: ='Other Inputs'!E16 -> 2.85338 | F55: =C55*D55*E55 -> 3829019.103
C56: 12 | D56: ='Other Inputs'!E158 -> 13419000 | E56: ='Other Inputs'!E17 -> 0.02378 | F56: =C56*D56*E56 -> 3829245.84 | G56: =SUM(F53:F56)*J34 -> 13562229.72
A59: Total Supplier Non-Gas Costs | G59: =G26+G32+G36+G37+G40+G44+G47+G56+G50 -> 93672262.35

Sheet SDR#3
I1: ='Control Panel'!F32 -> Questar Gas Company
I2: ='Control Panel'!F33 -> Docket No. 13-057-03
C5: Standard Data Request #3
C6: Monthly Forecasted Sales
D8: Utah Sales | F8: Wyoming Sales | H8: System Total
C9: Month | D9: Dth | F9: Dth | H9: Dth
B11: 1 | C11: =Calculations!D141 -> Jun13 | D11: =Calculations!D20 -> 3049002 | F11: =Calculations!D39 -> 116714 | H11: =SUM(D11:F11) -> 3165716
B13: =B11+1 -> 2 | C13: =Calculations!E141 -> Jul13 | D13: =Calculations!E20 -> 2838939 | F13: =Calculations!E39 -> 70623 | H13: =SUM(D13:F13) -> 2909562
B15: =B13+1 -> 3 | C15: =Calculations!F141 -> Aug13 | D15: =Calculations!F20 -> 2760921 | F15: =Calculations!F39 -> 80889 | H15: 2841810
B17: =B15+1 -> 4 | C17: =Calculations!G141 -> Sep13 | D17: =Calculations!G20 -> 3816579 | F17: =Calculations!G39 -> 148420 | H17: 3964999
B19: =B17+1 -> 5 | C19: =Calculations!H141 -> Oct13 | D19: =Calculations!H20 -> 6700540 | F19: =Calculations!H39 -> 235436 | H19: 6935976
B21: =B19+1 -> 6 | C21: =Calculations!I141 -> Nov13 | D21: =Calculations!I20 -> 10815963 | F21: =Calculations!I39 -> 412933 | H21: 11228896
B23: =B21+1 -> 7 | C23: =Calculations!J141 -> Dec13 | D23: =Calculations!J20 -> 17115975 | F23: =Calculations!J39 -> 616008 | H23: 17731983
B25: =B23+1 -> 8 | C25: =Calculations!K141 -> Jan14 | D25: =Calculations!K20 -> 19534615 | F25: =Calculations!K39 -> 701196 | H25: 20235811
B27: =B25+1 -> 9 | C27: =Calculations!L141 -> Feb14 | D27: =Calculations!L20 -> 15187141 | F27: =Calculations!L39 -> 574694 | H27: 15761835
B29: =B27+1 -> 10 | C29: =Calculations!M141 -> Mar14 | D29: =Calculations!M20 -> 11287853 | F29: =Calculations!M39 -> 450592 | H29: 11738445
B31: =B29+1 -> 11 | C31: =Calculations!N141 -> Apr14 | D31: =Calculations!N20 -> 8881481 | F31: =Calculations!N39 -> 358196 | H31: 9239677
B33: =B31+1 -> 12 | C33: =Calculations!O141 -> May14 | D33: =Calculations!O20 -> 4495619 | F33: =Calculations!O39 -> 203435 | H33: 4699054
B36: =B33+1 -> 13 | C36: Total Sales (Dth) | D36: =SUM(D11:D33) -> 106484628 | F36: =SUM(F11:F33) -> 3969136 | H36: =SUM(H11:H33) -> 110453764

Sheet SDR#4
H1: ='Control Panel'!F32 -> Questar Gas Company
H2: ='Control Panel'!F33 -> Docket No. 13-057-03
C5: Standard Data Request #4
C6: Supplier Non-Gas Costs Recovered at Current Rates
C9: (A) | D9: (B) | E9: (C) | F9: (D) | G9: (E)
B10: 1 | C10: Rate Schedule | D10: Season | E10: Sales Dth | F10: SNG Rate | G10: SNG Revenue
B12: =B10+1 -> 2 | C12: GS | D12: winter | E12: ='Utah Summary-by class'!B8 -> 69946073 | F12: ='Utah Summary-by class'!J8 -> 1.11075 | G12: =E12*F12 -> 77692600.58
B13: =B12+1 -> 3 | D13: summer | E13: ='Utah Summary-by class'!B9 -> 27965794 | F13: ='Utah Summary-by class'!J9 -> 0.52151 | G13: =E13*F13 -> 14584441.23
B15: =B13+1 -> 4 | C15: FS | D15: winter | E15: ='Utah Summary-by class'!B13 -> 2610271 | F15: ='Utah Summary-by class'!J13 -> 1.08183 | G15: =E15*F15 -> 2823869.476
B16: =B15+1 -> 5 | D16: summer | E16: ='Utah Summary-by class'!B14 -> 2714494 | F16: ='Utah Summary-by class'!J14 -> 0.52149 | G16: =E16*F16 -> 1415581.476
B18: =B16+1 -> 6 | C18: NGV | D18: annual | E18: ='Utah Summary-by class'!B19 -> 560400 | F18: ='Utah Summary-by class'!J19 -> 0.80155 | G18: =E18*F18 -> 449188.62
B20: =B18+1 -> 7 | C20: IS | D20: annual | E20: ='Utah Summary-by class'!B24 -> 2687596 | F20: ='Utah Summary-by class'!J24 -> 0.1792 | G20: =E20*F20 -> 481617.2032
B23: =B20+1 -> 8 | C23: Total Supplier Non-Gas Costs | E23: =SUM(E12:E20) -> 106484628 | G23: =SUM(G12:G20) -> 97447298.59

Sheet Wy SDR#1
A1: Wyoming Standard Data Request #1
A2: Global Insights Forecast

Sheet Ut 1.1
H1: Questar Gas Company
H2: ='Control Panel'!$F$33 -> Docket No. 13-057-03
H3: Exhibit 1.1
C4: Test Year Cost of Questar Gas' Production
C5: =CONCATENATE('Control Panel'!F40," through ",'Control Panel'!F41) -> Jun-13 through May-14
A7: (A) | B7: (B) | C7: (C) | D7: (D) | E7: (E) | F7: (F) | G7: (G) | H7: (H)
E8: Base Year | F8: Market | G8: Royalty | H8: Test Year
A9: Field Name | B9: Well Name | C9: Formation | D9: Price $ | E9: Dth | F9: Value $ | G9: Rate % | H9: Royalty $
A11: ACE UNIT (CO) | B11: ACE UNIT 2 FT UN | C11: FORT UNION | D11: =IF(LEFT(B11,12)=[2]Inputs!$C$24,[2]Inputs!$D$24,IF(LEFT(B11,13)=[2]Inputs!$C$25,[2]Inputs!$D$24,[2]Inputs!$D$26)) -> 4.403824546 | E11: 48539 | F11: =D11*E11 -> 213757.2397 | G11: 0.1268519763 | H11: =F11*G11 -> 27115.5283
B12: ACE UNIT 7 LOWER FT UN | C12: FORT UNION | D12: =IF(LEFT(B12,12)=[2]Inputs!$C$24,[2]Inputs!$D$24,IF(LEFT(B12,13)=[2]Inputs!$C$25,[2]Inputs!$D$24,[2]Inputs!$D$26)) -> 4.403824546 | E12: 29 | F12: =D12*E12 -> 127.7109118 | G12: 0.1268519763 | H12: =F12*G12 -> 16.20038156
B13: ACE UNIT 10 FT UN | C13: MESAVERDE | D13: =IF(LEFT(B13,12)=[2]Inputs!$C$24,[2]Inputs!$D$24,IF(LEFT(B13,13)=[2]Inputs!$C$25,[2]Inputs!$D$24,[2]Inputs!$D$26)) -> 4.403824546 | E13: 33158 | F13: 146022.0143 | G13: 0.1268519763 | H13: 18523.1811
B14: ACE UNIT 12 FT UN | C14: FORT UNION | D14: =IF(LEFT(B14,12)=[2]Inputs!$C$24,[2]Inputs!$D$24,IF(LEFT(B14,13)=[2]Inputs!$C$25,[2]Inputs!$D$24,[2]Inputs!$D$26)) -> 4.403824546 | E14: 97302 | F14: 428500.936 | G14: 0.1268519763 | H14: 54356.19058
B15: ACE UNIT 11 FT UN | C15: FORT UNION | D15: =IF(LEFT(B15,12)=[2]Inputs!$C$24,[2]Inputs!$D$24,IF(LEFT(B15,13)=[2]Inputs!$C$25,[2]Inputs!$D$24,[2]Inputs!$D$26)) -> 4.403824546 | E15: 31384 | F15: 138209.6296 | G15: 0.1268519763 | H15: 17532.16466
B16: ACE UNIT 13 FT UN | C16: FORT UNION | D16: =IF(LEFT(B16,12)=[2]Inputs!$C$24,[2]Inputs!$D$24,IF(LEFT(B16,13)=[2]Inputs!$C$25,[2]Inputs!$D$24,[2]Inputs!$D$26)) -> 4.403824546 | E16: 41036 | F16: 180715.3441 | G16: 0.1268519763 | H16: 22924.09855
A17: E HIAW (CO) | B17: HIAWATHA UNIT 1 FT UN | C17: FORT UNION | D17: =IF(LEFT(B17,12)=[2]Inputs!$C$24,[2]Inputs!$D$24,IF(LEFT(B17,13)=[2]Inputs!$C$25,[2]Inputs!$D$24,[2]Inputs!$D$26)) -> 4.403824546 | E17: 22376 | F17: 98539.97805 | G17: 0.1925 | H17: 18968.94577
B18: F WILSON A 2 WAS | C18: WASATCH | D18: =IF(LEFT(B18,12)=[2]Inputs!$C$24,[2]Inputs!$D$24,IF(LEFT(B18,13)=[2]Inputs!$C$25,[2]Inputs!$D$24,[2]Inputs!$D$26)) -> 4.403824546 | E18: 72161 | F18: 317784.3831 | G18: 0.1925 | H18: 61173.49374
B19: F WILSON B 3 WAS | C19: WASATCH | D19: =IF(LEFT(B19,12)=[2]Inputs!$C$24,[2]Inputs!$D$24,IF(LEFT(B19,13)=[2]Inputs!$C$25,[2]Inputs!$D$24,[2]Inputs!$D$26)) -> 4.403824546 | E19: 207412 | F19: 913406.0568 | G19: 0.1625 | H19: 148428.4842
B20: F WILSON B 6 WAS | C20: WASATCH | D20: =IF(LEFT(B20,12)=[2]Inputs!$C$24,[2]Inputs!$D$24,IF(LEFT(B20,13)=[2]Inputs!$C$25,[2]Inputs!$D$24,[2]Inputs!$D$26)) -> 4.403824546 | E20: 112591 | F20: 495831.0095 | G20: 0.1625 | H20: 80572.53904
B21: F WILSON A 9 WAS | C21: WASATCH | D21: =IF(LEFT(B21,12)=[2]Inputs!$C$24,[2]Inputs!$D$24,IF(LEFT(B21,13)=[2]Inputs!$C$25,[2]Inputs!$D$24,[2]Inputs!$D$26)) -> 4.403824546 | E21: 12805 | F21: 56390.97332 | G21: 0.1925 | H21: 10855.26236
B22: F WILSON B 12 FT UN | C22: FORT UNION | D22: =IF(LEFT(B22,12)=[2]Inputs!$C$24,[2]Inputs!$D$24,IF(LEFT(B22,13)=[2]Inputs!$C$25,[2]Inputs!$D$24,[2]Inputs!$D$26)) -> 4.403824546 | E22: 70747 | F22: 311557.3752 | G22: 0.1625 | H22: 50628.07347
B23: F WILSON B 2 UNIT (HIAW) FT UN | C23: FORT UNION | D23: =IF(LEFT(B23,12)=[2]Inputs!$C$24,[2]Inputs!$D$24,IF(LEFT(B23,13)=[2]Inputs!$C$25,[2]Inputs!$D$24,[2]Inputs!$D$26)) -> 4.403824546 | E23: 39646 | F23: 174594.028 | G23: 0.1625 | H23: 28371.52954
B24: F WILSON A 22 FT UN | C24: FORT UNION | D24: =IF(LEFT(B24,12)=[2]Inputs!$C$24,[2]Inputs!$D$24,IF(LEFT(B24,13)=[2]Inputs!$C$25,[2]Inputs!$D$24,[2]Inputs!$D$26)) -> 4.403824546 | E24: 32876 | F24: 144780.1358 | G24: 0.1925 | H24: 27870.17614
B25: STLD 3712100 NE4 2 WAS | C25: WASATCH | D25: =IF(LEFT(B25,12)=[2]Inputs!$C$24,[2]Inputs!$D$24,IF(LEFT(B25,13)=[2]Inputs!$C$25,[2]Inputs!$D$24,[2]Inputs!$D$26)) -> 4.403824546 | E25: 13763 | F25: 60609.83723 | G25: 0.13375 | H25: 8106.56573
B26: STLD 3712100 SE4 4 WAS | C26: WASATCH | D26: =IF(LEFT(B26,12)=[2]Inputs!$C$24,[2]Inputs!$D$24,IF(LEFT(B26,13)=[2]Inputs!$C$25,[2]Inputs!$D$24,[2]Inputs!$D$26)) -> 4.403824546 | E26: 40346 | F26: 177676.7051 | G26: 0.1375 | H26: 24430.54696
B27: STATE LAND 5 FT UN | C27: FORT UNION | D27: =IF(LEFT(B27,12)=[2]Inputs!$C$24,[2]Inputs!$D$24,IF(LEFT(B27,13)=[2]Inputs!$C$25,[2]Inputs!$D$24,[2]Inputs!$D$26)) -> 4.403824546 | E27: 32084 | F27: 141292.3067 | G27: 0.13375 | H27: 18897.84603
B28: G KUYKENDALL A 8 FT UN | C28: FORT UNION | D28: =IF(LEFT(B28,12)=[2]Inputs!$C$24,[2]Inputs!$D$24,IF(LEFT(B28,13)=[2]Inputs!$C$25,[2]Inputs!$D$24,[2]Inputs!$D$26)) -> 4.403824546 | E28: 14469 | F28: 63718.93736 | G28: 0.1925 | H28: 12265.89544
B29: KS WHITFORD 1 WAS | C29: WASATCH | D29: =IF(LEFT(B29,12)=[2]Inputs!$C$24,[2]Inputs!$D$24,IF(LEFT(B29,13)=[2]Inputs!$C$25,[2]Inputs!$D$24,[2]Inputs!$D$26)) -> 4.403824546 | E29: 37128 | F29: 163505.1978 | G29: 0.155 | H29: 25343.30565
B30: F WILSON B 24 FT UN | C30: FORT UNION | D30: =IF(LEFT(B30,12)=[2]Inputs!$C$24,[2]Inputs!$D$24,IF(LEFT(B30,13)=[2]Inputs!$C$25,[2]Inputs!$D$24,[2]Inputs!$D$26)) -> 4.403824546 | E30: 57481 | F30: 253136.2387 | G30: 0.1625 | H30: 41134.6388
B31: F WILSON A 26 FT UN | C31: FORT UNION | D31: =IF(LEFT(B31,12)=[2]Inputs!$C$24,[2]Inputs!$D$24,IF(LEFT(B31,13)=[2]Inputs!$C$25,[2]Inputs!$D$24,[2]Inputs!$D$26)) -> 4.403824546 | E31: 44521 | F31: 196062.6726 | G31: 0.1925 | H31: 37742.06448
B32: HIAWATHA STATELAND 6 FT UN | C32: FORT UNION | D32: =IF(LEFT(B32,12)=[2]Inputs!$C$24,[2]Inputs!$D$24,IF(LEFT(B32,13)=[2]Inputs!$C$25,[2]Inputs!$D$24,[2]Inputs!$D$26)) -> 4.403824546 | E32: 8595 | F32: 37850.87198 | G32: 0.13375 | H32: 5062.554127
B33: G KUYKENDALL 9 FT UN | C33: FORT UNION | D33: =IF(LEFT(B33,12)=[2]Inputs!$C$24,[2]Inputs!$D$24,IF(LEFT(B33,13)=[2]Inputs!$C$25,[2]Inputs!$D$24,[2]Inputs!$D$26)) -> 4.403824546 | E33: 29263 | F33: 128869.1177 | G33: 0.1925 | H33: 24807.30516
B34: F WILSON A 20 FT UN | C34: FORT UNION | D34: =IF(LEFT(B34,12)=[2]Inputs!$C$24,[2]Inputs!$D$24,IF(LEFT(B34,13)=[2]Inputs!$C$25,[2]Inputs!$D$24,[2]Inputs!$D$26)) -> 4.403824546 | E34: 618 | F34: 2721.56357 | G34: 0.1925 | H34: 523.9009872
B35: F WILSON A 20 LEW/LAN/FT UN | C35: LEWIS/LANCE/FT U | D35: =IF(LEFT(B35,12)=[2]Inputs!$C$24,[2]Inputs!$D$24,IF(LEFT(B35,13)=[2]Inputs!$C$25,[2]Inputs!$D$24,[2]Inputs!$D$26)) -> 4.403824546 | E35: 11737 | F35: 51687.6887 | G35: 0.1925 | H35: 9949.880075
B36: F WILSON 32 MESA | C36: MESAVERDE | D36: =IF(LEFT(B36,12)=[2]Inputs!$C$24,[2]Inputs!$D$24,IF(LEFT(B36,13)=[2]Inputs!$C$25,[2]Inputs!$D$24,[2]Inputs!$D$26)) -> 4.403824546 | E36: 4069 | F36: 17919.16208 | G36: 0.1925 | H36: 3449.4387
B37: F WILSON 32 LEWIS | C37: LEWIS | D37: =IF(LEFT(B37,12)=[2]Inputs!$C$24,[2]Inputs!$D$24,IF(LEFT(B37,13)=[2]Inputs!$C$25,[2]Inputs!$D$24,[2]Inputs!$D$26)) -> 4.403824546 | E37: 29187 | F37: 128534.427 | G37: 0.1925 | H37: 24742.8772
B38: F WILSON 32 LANCE | C38: LANCE | D38: =IF(LEFT(B38,12)=[2]Inputs!$C$24,[2]Inputs!$D$24,IF(LEFT(B38,13)=[2]Inputs!$C$25,[2]Inputs!$D$24,[2]Inputs!$D$26)) -> 4.403824546 | E38: 32912 | F38: 144938.6735 | G38: 0.1925 | H38: 27900.69464
B39: HIAWATHA STLD 7 FT UN | C39: FORT UNION | D39: =IF(LEFT(B39,12)=[2]Inputs!$C$24,[2]Inputs!$D$24,IF(LEFT(B39,13)=[2]Inputs!$C$25,[2]Inputs!$D$24,[2]Inputs!$D$26)) -> 4.403824546 | E39: 38930 | F39: 171440.8896 | G39: 0.1375 | H39: 23573.12232
B40: F WILSON 33 LEWIS | C40: LEWIS | D40: =IF(LEFT(B40,12)=[2]Inputs!$C$24,[2]Inputs!$D$24,IF(LEFT(B40,13)=[2]Inputs!$C$25,[2]Inputs!$D$24,[2]Inputs!$D$26)) -> 4.403824546 | E40: 8885 | F40: 39127.98109 | G40: 0.1925 | H40: 7532.136361
B41: F WILSON 33 LANCE | C41: LANCE | D41: =IF(LEFT(B41,12)=[2]Inputs!$C$24,[2]Inputs!$D$24,IF(LEFT(B41,13)=[2]Inputs!$C$25,[2]Inputs!$D$24,[2]Inputs!$D$26)) -> 4.403824546 | E41: 8885 | F41: 39127.98109 | G41: 0.1925 | H41: 7532.136361
B42: F WILSON 34 LEW/LAN/FT UN | C42: LEWIS/LANCE/FT U | D42: =IF(LEFT(B42,12)=[2]Inputs!$C$24,[2]Inputs!$D$24,IF(LEFT(B42,13)=[2]Inputs!$C$25,[2]Inputs!$D$24,[2]Inputs!$D$26)) -> 4.403824546 | E42: 44284 | F42: 195018.9662 | G42: 0.1625 | H42: 31690.58201
B43: F WILSON 35 LEW/LAN/FT UN | C43: LEWIS/LANCE/FT U | D43: =IF(LEFT(B43,12)=[2]Inputs!$C$24,[2]Inputs!$D$24,IF(LEFT(B43,13)=[2]Inputs!$C$25,[2]Inputs!$D$24,[2]Inputs!$D$26)) -> 4.403824546 | E43: 78478 | F43: 345603.3427 | G43: 0.1925 | H43: 66528.64348
B44: F WILSON 29E (DD) FT UN | C44: FORT UNION | D44: =IF(LEFT(B44,12)=[2]Inputs!$C$24,[2]Inputs!$D$24,IF(LEFT(B44,13)=[2]Inputs!$C$25,[2]Inputs!$D$24,[2]Inputs!$D$26)) -> 4.403824546 | E44: 16819 | F44: 74067.92504 | G44: 0.1625 | H44: 12036.03782
B45: F WILSON 37 MESA | C45: FORT UNION | D45: =IF(LEFT(B45,12)=[2]Inputs!$C$24,[2]Inputs!$D$24,IF(LEFT(B45,13)=[2]Inputs!$C$25,[2]Inputs!$D$24,[2]Inputs!$D$26)) -> 4.403824546 | E45: 16013 | F45: 70518.44246 | G45: 0.2325 | H45: 16395.53787
B46: F WILSON 37 LEW/LNC/FTUN | C46: FORT UNION | D46: =IF(LEFT(B46,12)=[2]Inputs!$C$24,[2]Inputs!$D$24,IF(LEFT(B46,13)=[2]Inputs!$C$25,[2]Inputs!$D$24,[2]Inputs!$D$26)) -> 4.403824546 | E46: 90736 | F46: 399585.424 | G46: 0.1625 | H46: 64932.63141
B47: F WILSON 33 FT UN | C47: FORT UNION | D47: =IF(LEFT(B47,12)=[2]Inputs!$C$24,[2]Inputs!$D$24,IF(LEFT(B47,13)=[2]Inputs!$C$25,[2]Inputs!$D$24,[2]Inputs!$D$26)) -> 4.403824546 | E47: 462453 | F47: 2036561.873 | G47: 0.1925 | H47: 392038.1605
B48: F WILSON 35 MESA | C48: MESAVERDE | D48: =IF(LEFT(B48,12)=[2]Inputs!$C$24,[2]Inputs!$D$24,IF(LEFT(B48,13)=[2]Inputs!$C$25,[2]Inputs!$D$24,[2]Inputs!$D$26)) -> 4.403824546 | E48: 1603 | F48: 7059.330748 | G48: 0.1925 | H48: 1358.921169
A49: HIAW DEEP (CO) | B49: HIAWATHA DEEP UNIT 1 NUGGET | C49: NUGGET | D49: =IF(LEFT(B49,12)=[2]Inputs!$C$24,[2]Inputs!$D$24,IF(LEFT(B49,13)=[2]Inputs!$C$25,[2]Inputs!$D$24,[2]Inputs!$D$26)) -> 4.403824546 | E49: 40738 | F49: 179403.0044 | G49: 0.1723962084 | H49: 30928.39772
B50: HIAWATHA DEEP UNIT 3 NUGGET | C50: NUGGET | D50: =IF(LEFT(B50,12)=[2]Inputs!$C$24,[2]Inputs!$D$24,IF(LEFT(B50,13)=[2]Inputs!$C$25,[2]Inputs!$D$24,[2]Inputs!$D$26)) -> 4.403824546 | E50: 210362 | F50: 926397.3392 | G50: 0.1714959958 | H50: 158873.4342
B51: HIAWATHA DEEP UNIT 2 NUGGET | C51: NUGGET | D51: =IF(LEFT(B51,12)=[2]Inputs!$C$24,[2]Inputs!$D$24,IF(LEFT(B51,13)=[2]Inputs!$C$25,[2]Inputs!$D$24,[2]Inputs!$D$26)) -> 4.403824546 | E51: 18948 | F51: 83443.6675 | G51: 0.172395903 | H51: 14385.34641
A52: JACKS DRAW (CO) | B52: JACKS DRAW UNIT 2 FT UN | C52: FORT UNION | D52: =IF(LEFT(B52,12)=[2]Inputs!$C$24,[2]Inputs!$D$24,IF(LEFT(B52,13)=[2]Inputs!$C$25,[2]Inputs!$D$24,[2]Inputs!$D$26)) -> 4.403824546 | E52: 33080 | F52: 145678.516 | G52: 0.1396875 | H52: 20349.4677
B53: JACKS DRAW UNIT 3 FT UN | C53: FORT UNION | D53: =IF(LEFT(B53,12)=[2]Inputs!$C$24,[2]Inputs!$D$24,IF(LEFT(B53,13)=[2]Inputs!$C$25,[2]Inputs!$D$24,[2]Inputs!$D$26)) -> 4.403824546 | E53: 16625 | F53: 73213.58308 | G53: 0.1396875 | H53: 10227.02239
B54: JACKS DRAW UNIT 9 FT UN | C54: FORT UNION | D54: =IF(LEFT(B54,12)=[2]Inputs!$C$24,[2]Inputs!$D$24,IF(LEFT(B54,13)=[2]Inputs!$C$25,[2]Inputs!$D$24,[2]Inputs!$D$26)) -> 4.403824546 | E54: 16170 | F54: 71209.84291 | G54: 0.1396875 | H54: 9947.124932
B55: JACKS DRAW UNIT 5 FT UN | C55: FORT UNION | D55: =IF(LEFT(B55,12)=[2]Inputs!$C$24,[2]Inputs!$D$24,IF(LEFT(B55,13)=[2]Inputs!$C$25,[2]Inputs!$D$24,[2]Inputs!$D$26)) -> 4.403824546 | E55: 2532 | F55: 11150.48375 | G55: 0.1489132823 | H55: 1660.455135
B56: JACKS DRAW UNIT 8 FT UN | C56: FORT UNION | D56: =IF(LEFT(B56,12)=[2]Inputs!$C$24,[2]Inputs!$D$24,IF(LEFT(B56,13)=[2]Inputs!$C$25,[2]Inputs!$D$24,[2]Inputs!$D$26)) -> 4.403824546 | E56: 2881 | F56: 12687.41852 | G56: 0.1489132823 | H56: 1889.325136
B57: JACKS DRAW UNIT 17 FT UN | C57: FORT UNION | D57: =IF(LEFT(B57,12)=[2]Inputs!$C$24,[2]Inputs!$D$24,IF(LEFT(B57,13)=[2]Inputs!$C$25,[2]Inputs!$D$24,[2]Inputs!$D$26)) -> 4.403824546 | E57: 32034 | F57: 141072.1155 | G57: 0.1396875 | H57: 19706.01114
B58: JACKS DRAW UNIT 19 FT UN | C58: FORT UNION | D58: =IF(LEFT(B58,12)=[2]Inputs!$C$24,[2]Inputs!$D$24,IF(LEFT(B58,13)=[2]Inputs!$C$25,[2]Inputs!$D$24,[2]Inputs!$D$26)) -> 4.403824546 | E58: 503367 | F58: 2216739.95 | G58: 0.149541643 | H58: 331494.9342
B59: JACKS DRAW UNIT 18 FT UN | C59: FORT UNION | D59: =IF(LEFT(B59,12)=[2]Inputs!$C$24,[2]Inputs!$D$24,IF(LEFT(B59,13)=[2]Inputs!$C$25,[2]Inputs!$D$24,[2]Inputs!$D$26)) -> 4.403824546 | E59: 175641 | F59: 773492.1471 | G59: 0.1396877 | H59: 108047.339
B60: JACKS DRAW UNIT 20 FT UN | C60: FORT UNION | D60: =IF(LEFT(B60,12)=[2]Inputs!$C$24,[2]Inputs!$D$24,IF(LEFT(B60,13)=[2]Inputs!$C$25,[2]Inputs!$D$24,[2]Inputs!$D$26)) -> 4.403824546 | E60: 220223 | F60: 969823.4531 | G60: 0.1396877 | H60: 135472.4076
A61: LO HORSE DR (CO) | B61: LOWER HORSE DRAW 11-1 MANCOS B | C61: MANCOS B | D61: =IF(LEFT(B61,12)=[2]Inputs!$C$24,[2]Inputs!$D$24,IF(LEFT(B61,13)=[2]Inputs!$C$25,[2]Inputs!$D$24,[2]Inputs!$D$26)) -> 4.403824546 | E61: 1849 | F61: 8142.671586 | G61: 0.125 | H61: 1017.833948
B62: LOWER HORSE DRAW 12-2 MANCOS B | C62: MANCOS B | D62: =IF(LEFT(B62,12)=[2]Inputs!$C$24,[2]Inputs!$D$24,IF(LEFT(B62,13)=[2]Inputs!$C$25,[2]Inputs!$D$24,[2]Inputs!$D$26)) -> 4.403824546 | E62: 28145 | F62: 123945.6419 | G62: 0.125 | H62: 15493.20523
B63: LOWER HORSE DRAW 10-1 MANCOS B | C63: MANCOS B | D63: =IF(LEFT(B63,12)=[2]Inputs!$C$24,[2]Inputs!$D$24,IF(LEFT(B63,13)=[2]Inputs!$C$25,[2]Inputs!$D$24,[2]Inputs!$D$26)) -> 4.403824546 | E63: 2527 | F63: 11128.46463 | G63: 0.125 | H63: 1391.058079
B64: LOWER HORSE DRAW 10-2 MB SILT | C64: MANCOS B SILT | D64: =IF(LEFT(B64,12)=[2]Inputs!$C$24,[2]Inputs!$D$24,IF(LEFT(B64,13)=[2]Inputs!$C$25,[2]Inputs!$D$24,[2]Inputs!$D$26)) -> 4.403824546 | E64: 4767 | F64: 20993.03161 | G64: 0.125 | H64: 2624.128952
B65: LOWER HORSE FED 11-5 MANCOS B | C65: MANCOS B | D65: =IF(LEFT(B65,12)=[2]Inputs!$C$24,[2]Inputs!$D$24,IF(LEFT(B65,13)=[2]Inputs!$C$25,[2]Inputs!$D$24,[2]Inputs!$D$26)) -> 4.403824546 | E65: 27607 | F65: 121576.3843 | G65: 0.125 | H65: 15197.04803
B66: LOWER HORSE FED 11-5 MB SILT | C66: MANCOS B SILT | D66: =IF(LEFT(B66,12)=[2]Inputs!$C$24,[2]Inputs!$D$24,IF(LEFT(B66,13)=[2]Inputs!$C$25,[2]Inputs!$D$24,[2]Inputs!$D$26)) -> 4.403824546 | E66: 18023 | F66: 79370.1298 | G66: 0.125 | H66: 9921.266225
A67: POWDER WASH (CO) | B67: CARL ALLEN B 4 WAS | C67: WASATCH | D67: =IF(LEFT(B67,12)=[2]Inputs!$C$24,[2]Inputs!$D$24,IF(LEFT(B67,13)=[2]Inputs!$C$25,[2]Inputs!$D$24,[2]Inputs!$D$26)) -> 4.403824546 | E67: 1367 | F67: 6020.028155 | G67: 0.1100461 | H67: 662.4806203
B68: CARL ALLEN B 6 FT UN | C68: FORT UNION | D68: =IF(LEFT(B68,12)=[2]Inputs!$C$24,[2]Inputs!$D$24,IF(LEFT(B68,13)=[2]Inputs!$C$25,[2]Inputs!$D$24,[2]Inputs!$D$26)) -> 4.403824546 | E68: 29755 | F68: 131035.7994 | G68: 0.1100461 | H68: 14419.97868
B69: CARL ALLEN B 6 LOWER FT UN | C69: FORT UNION | D69: =IF(LEFT(B69,12)=[2]Inputs!$C$24,[2]Inputs!$D$24,IF(LEFT(B69,13)=[2]Inputs!$C$25,[2]Inputs!$D$24,[2]Inputs!$D$26)) -> 4.403824546 | E69: 29755 | F69: 131035.7994 | G69: 0.1100461 | H69: 14419.97868
B70: CARL ALLEN B 7 FT UN | C70: FORT UNION | D70: =IF(LEFT(B70,12)=[2]Inputs!$C$24,[2]Inputs!$D$24,IF(LEFT(B70,13)=[2]Inputs!$C$25,[2]Inputs!$D$24,[2]Inputs!$D$26)) -> 4.403824546 | E70: 20306 | F70: 89424.06124 | G70: 0.1100461 | H70: 9840.769185
B71: CARL ALLEN A 8 FT UN | C71: FORT UNION | D71: =IF(LEFT(B71,12)=[2]Inputs!$C$24,[2]Inputs!$D$24,IF(LEFT(B71,13)=[2]Inputs!$C$25,[2]Inputs!$D$24,[2]Inputs!$D$26)) -> 4.403824546 | E71: 33614 | F71: 148030.1583 | G71: 0.1100461 | H71: 16290.1416
B72: CARL ALLEN B 10 WAS | C72: WASATCH | D72: =IF(LEFT(B72,12)=[2]Inputs!$C$24,[2]Inputs!$D$24,IF(LEFT(B72,13)=[2]Inputs!$C$25,[2]Inputs!$D$24,[2]Inputs!$D$26)) -> 4.403824546 | E72: 4854 | F72: 21376.16435 | G72: 0.1100461 | H72: 2352.363519
B73: CARL ALLEN A 11 FT UN | C73: FORT UNION | D73: =IF(LEFT(B73,12)=[2]Inputs!$C$24,[2]Inputs!$D$24,IF(LEFT(B73,13)=[2]Inputs!$C$25,[2]Inputs!$D$24,[2]Inputs!$D$26)) -> 4.403824546 | E73: 2496 | F73: 10991.94607 | G73: 0.1100461 | H73: 1209.620796
B74: CARL ALLEN A 11 LOWER FT UN | C74: FORT UNION | D74: =IF(LEFT(B74,12)=[2]Inputs!$C$24,[2]Inputs!$D$24,IF(LEFT(B74,13)=[2]Inputs!$C$25,[2]Inputs!$D$24,[2]Inputs!$D$26)) -> 4.403824546 | E74: 47446 | F74: 208943.8594 | G74: 0.110046 | H74: 22993.43595
B75: CARL ALLEN B 15 WAS | C75: WASATCH | D75: =IF(LEFT(B75,12)=[2]Inputs!$C$24,[2]Inputs!$D$24,IF(LEFT(B75,13)=[2]Inputs!$C$25,[2]Inputs!$D$24,[2]Inputs!$D$26)) -> 4.403824546 | E75: 9913 | F75: 43655.11273 | G75: 0.1100461 | H75: 4804.074901
B76: CARL ALLEN B 17 WAS | C76: WASATCH | D76: =IF(LEFT(B76,12)=[2]Inputs!$C$24,[2]Inputs!$D$24,IF(LEFT(B76,13)=[2]Inputs!$C$25,[2]Inputs!$D$24,[2]Inputs!$D$26)) -> 4.403824546 | E76: 12794 | F76: =D76*E76 -> 56342.53125 | G76: 0.1100461 | H76: =F76*G76 -> 6200.275828
B77: CARL ALLEN A 19 FT UN | C77: FORT UNION | D77: =IF(LEFT(B77,12)=[2]Inputs!$C$24,[2]Inputs!$D$24,IF(LEFT(B77,13)=[2]Inputs!$C$25,[2]Inputs!$D$24,[2]Inputs!$D$26)) -> 4.403824546 | E77: 44485 | F77: 195904.1349 | G77: 0.1100461 | H77: 21558.48602
B78: CARL ALLEN A 20 FT UN | C78: FORT UNION | D78: =IF(LEFT(B78,12)=[2]Inputs!$C$24,[2]Inputs!$D$24,IF(LEFT(B78,13)=[2]Inputs!$C$25,[2]Inputs!$D$24,[2]Inputs!$D$26)) -> 4.403824546 | E78: 28495 | F78: 125486.9804 | G78: 0.1100461 | H78: 13809.3528
B79: BW MUSSER A 1 WAS | C79: WASATCH | D79: =IF(LEFT(B79,12)=[2]Inputs!$C$24,[2]Inputs!$D$24,IF(LEFT(B79,13)=[2]Inputs!$C$25,[2]Inputs!$D$24,[2]Inputs!$D$26)) -> 4.403824546 | E79: 8273 | F79: 36432.84047 | G79: 0.1100461 | H79: 4009.292006
B80: BW MUSSER B 21 FT UN | C80: FORT UNION | D80: =IF(LEFT(B80,12)=[2]Inputs!$C$24,[2]Inputs!$D$24,IF(LEFT(B80,13)=[2]Inputs!$C$25,[2]Inputs!$D$24,[2]Inputs!$D$26)) -> 4.403824546 | E80: 42209 | F80: 185881.0303 | G80: 0.1100461 | H80: 20455.48245
B81: BW MUSSER B 6 WAS | C81: WASATCH | D81: =IF(LEFT(B81,12)=[2]Inputs!$C$24,[2]Inputs!$D$24,IF(LEFT(B81,13)=[2]Inputs!$C$25,[2]Inputs!$D$24,[2]Inputs!$D$26)) -> 4.403824546 | E81: 12539 | F81: 55219.55599 | G81: 0.1100461 | H81: 6076.69678
B82: BW MUSSER B 10 FT UN | C82: FORT UNION | D82: =IF(LEFT(B82,12)=[2]Inputs!$C$24,[2]Inputs!$D$24,IF(LEFT(B82,13)=[2]Inputs!$C$25,[2]Inputs!$D$24,[2]Inputs!$D$26)) -> 4.403824546 | E82: 9562 | F82: 42109.37031 | G82: 0.1100461 | H82: 4633.971976
B83: BW MUSSER B 11 FT UN | C83: FORT UNION | D83: =IF(LEFT(B83,12)=[2]Inputs!$C$24,[2]Inputs!$D$24,IF(LEFT(B83,13)=[2]Inputs!$C$25,[2]Inputs!$D$24,[2]Inputs!$D$26)) -> 4.403824546 | E83: 12532 | F83: 55188.72921 | G83: 0.1100461 | H83: 6073.304414
B84: JC DONNELL B 3 WAS | C84: WASATCH | D84: =IF(LEFT(B84,12)=[2]Inputs!$C$24,[2]Inputs!$D$24,IF(LEFT(B84,13)=[2]Inputs!$C$25,[2]Inputs!$D$24,[2]Inputs!$D$26)) -> 4.403824546 | E84: 39948 | F84: 175923.983 | G84: 0.1100461 | H84: 19359.74822
B85: JC DONNELL B 5 FT UN | C85: FORT UNION | D85: =IF(LEFT(B85,12)=[2]Inputs!$C$24,[2]Inputs!$D$24,IF(LEFT(B85,13)=[2]Inputs!$C$25,[2]Inputs!$D$24,[2]Inputs!$D$26)) -> 4.403824546 | E85: 23184 | F85: 102098.2683 | G85: 0.1100461 | H85: 11235.51624
B86: JC DONNELL B 9 FT UN | C86: FORT UNION | D86: =IF(LEFT(B86,12)=[2]Inputs!$C$24,[2]Inputs!$D$24,IF(LEFT(B86,13)=[2]Inputs!$C$25,[2]Inputs!$D$24,[2]Inputs!$D$26)) -> 4.403824546 | E86: 14920 | F86: 65705.06223 | G86: 0.1100461 | H86: 7230.585849
B87: JC DONNELL B 10 FT UN | C87: FORT UNION | D87: =IF(LEFT(B87,12)=[2]Inputs!$C$24,[2]Inputs!$D$24,IF(LEFT(B87,13)=[2]Inputs!$C$25,[2]Inputs!$D$24,[2]Inputs!$D$26)) -> 4.403824546 | E87: 45811 | F87: 201743.6063 | G87: 0.1100461 | H87: 22201.09707
B88: H STEWART A 1 FT UN | C88: FORT UNION | D88: =IF(LEFT(B88,12)=[2]Inputs!$C$24,[2]Inputs!$D$24,IF(LEFT(B88,13)=[2]Inputs!$C$25,[2]Inputs!$D$24,[2]Inputs!$D$26)) -> 4.403824546 | E88: 12538 | F88: 55215.15216 | G88: 0.1100461 | H88: 6076.212156
B89: BW MUSSER B 13 FT UN | C89: FORT UNION | D89: =IF(LEFT(B89,12)=[2]Inputs!$C$24,[2]Inputs!$D$24,IF(LEFT(B89,13)=[2]Inputs!$C$25,[2]Inputs!$D$24,[2]Inputs!$D$26)) -> 4.403824546 | E89: 32469 | F89: 142987.7792 | G89: 0.1100461 | H89: 15735.24745
B90: BW MUSSER A 14 FT UN | C90: FORT UNION | D90: =IF(LEFT(B90,12)=[2]Inputs!$C$24,[2]Inputs!$D$24,IF(LEFT(B90,13)=[2]Inputs!$C$25,[2]Inputs!$D$24,[2]Inputs!$D$26)) -> 4.403824546 | E90: 18491 | F90: 81431.11969 | G90: 0.1100461 | H90: 8961.17714
B91: BW MUSSER 15 UPPER FT UN | C91: FORT UNION | D91: =IF(LEFT(B91,12)=[2]Inputs!$C$24,[2]Inputs!$D$24,IF(LEFT(B91,13)=[2]Inputs!$C$25,[2]Inputs!$D$24,[2]Inputs!$D$26)) -> 4.403824546 | E91: 12253 | F91: 53960.06217 | G91: 0.1100461 | H91: 5938.094397
B92: BW MUSSER A 16 WAS | C92: WASATCH | D92: =IF(LEFT(B92,12)=[2]Inputs!$C$24,[2]Inputs!$D$24,IF(LEFT(B92,13)=[2]Inputs!$C$25,[2]Inputs!$D$24,[2]Inputs!$D$26)) -> 4.403824546 | E92: 13297 | F92: 58557.65499 | G92: 0.110046 | H92: 6444.035701
B93: BW MUSSER B 18 FT UN | C93: FORT UNION | D93: =IF(LEFT(B93,12)=[2]Inputs!$C$24,[2]Inputs!$D$24,IF(LEFT(B93,13)=[2]Inputs!$C$25,[2]Inputs!$D$24,[2]Inputs!$D$26)) -> 4.403824546 | E93: 36861 | F93: 162329.3766 | G93: 0.1100461 | H93: 17863.71481
B94: BW MUSSER B 19 FT UN | C94: FORT UNION | D94: =IF(LEFT(B94,12)=[2]Inputs!$C$24,[2]Inputs!$D$24,IF(LEFT(B94,13)=[2]Inputs!$C$25,[2]Inputs!$D$24,[2]Inputs!$D$26)) -> 4.403824546 | E94: 35265 | F94: 155300.8726 | G94: 0.1100461 | H94: 17090.25536
B95: BW MUSSER B 20 FT UN | C95: FORT UNION | D95: =IF(LEFT(B95,12)=[2]Inputs!$C$24,[2]Inputs!$D$24,IF(LEFT(B95,13)=[2]Inputs!$C$25,[2]Inputs!$D$24,[2]Inputs!$D$26)) -> 4.403824546 | E95: 4916 | F95: 21649.20147 | G95: 0.1100461 | H95: 2382.41019
B96: POWDER WASH GOVT 1 FT UN | C96: FORT UNION | D96: =IF(LEFT(B96,12)=[2]Inputs!$C$24,[2]Inputs!$D$24,IF(LEFT(B96,13)=[2]Inputs!$C$25,[2]Inputs!$D$24,[2]Inputs!$D$26)) -> 4.403824546 | E96: 7922 | F96: 34887.09806 | G96: 0.1100461 | H96: 3839.189081
B97: POWDER WASH GOVT 2 FT UN | C97: FORT UNION | D97: =IF(LEFT(B97,12)=[2]Inputs!$C$24,[2]Inputs!$D$24,IF(LEFT(B97,13)=[2]Inputs!$C$25,[2]Inputs!$D$24,[2]Inputs!$D$26)) -> 4.403824546 | E97: 737 | F97: 3245.618691 | G97: 0.1100461 | H97: 357.167679
B98: JC DONNELL A 11 FT UN | C98: FORT UNION | D98: =IF(LEFT(B98,12)=[2]Inputs!$C$24,[2]Inputs!$D$24,IF(LEFT(B98,13)=[2]Inputs!$C$25,[2]Inputs!$D$24,[2]Inputs!$D$26)) -> 4.403824546 | E98: 53890 | F98: 237322.1048 | G98: 0.1100461 | H98: 26116.37208
B99: JA LEE 1 FT UN | C99: FORT UNION | D99: =IF(LEFT(B99,12)=[2]Inputs!$C$24,[2]Inputs!$D$24,IF(LEFT(B99,13)=[2]Inputs!$C$25,[2]Inputs!$D$24,[2]Inputs!$D$26)) -> 4.403824546 | E99: 19985 | F99: 88010.43356 | G99: 0.1100461 | H99: 9685.204972
B100: JC DONNELL A 1 FT UN | C100: FORT UNION | D100: =IF(LEFT(B100,12)=[2]Inputs!$C$24,[2]Inputs!$D$24,IF(LEFT(B100,13)=[2]Inputs!$C$25,[2]Inputs!$D$24,[2]Inputs!$D$26)) -> 4.403824546 | E100: 11595 | F100: 51062.34561 | G100: 0.1100461 | H100: 5619.211992
B101: POWDER WASH 20-1 FT UN | C101: FORT UNION | D101: =IF(LEFT(B101,12)=[2]Inputs!$C$24,[2]Inputs!$D$24,IF(LEFT(B101,13)=[2]Inputs!$C$25,[2]Inputs!$D$24,[2]Inputs!$D$26)) -> 4.403824546 | E101: 77292 | F101: 340380.4068 | G101: 0.125 | H101: 42547.55085
B102: CARL ALLEN A 16 WAS | C102: WASATCH | D102: =IF(LEFT(B102,12)=[2]Inputs!$C$24,[2]Inputs!$D$24,IF(LEFT(B102,13)=[2]Inputs!$C$25,[2]Inputs!$D$24,[2]Inputs!$D$26)) -> 4.403824546 | E102: 5328 | F102: 23463.57718 | G102: 0.1100461 | H102: 2582.075161
B103: H STEWART A 2 FT UN | C103: FORT UNION | D103: =IF(LEFT(B103,12)=[2]Inputs!$C$24,[2]Inputs!$D$24,IF(LEFT(B103,13)=[2]Inputs!$C$25,[2]Inputs!$D$24,[2]Inputs!$D$26)) -> 4.403824546 | E103: 70543 | F103: 310658.995 | G103: 0.1100461 | H103: 34186.81083
B104: CARL ALLEN B 9 UPPER WAS | C104: WASATCH | D104: =IF(LEFT(B104,12)=[2]Inputs!$C$24,[2]Inputs!$D$24,IF(LEFT(B104,13)=[2]Inputs!$C$25,[2]Inputs!$D$24,[2]Inputs!$D$26)) -> 4.403824546 | E104: 4288 | F104: 18883.59965 | G104: 0.1100461 | H104: 2078.066496
B105: CARL ALLEN A 2 WAS | C105: WASATCH | D105: =IF(LEFT(B105,12)=[2]Inputs!$C$24,[2]Inputs!$D$24,IF(LEFT(B105,13)=[2]Inputs!$C$25,[2]Inputs!$D$24,[2]Inputs!$D$26)) -> 4.403824546 | E105: 25503 | F105: 112310.7374 | G105: 0.1100461 | H105: 12359.35864
B106: BW MUSSER 22 FT UN | C106: FORT UNION | D106: =IF(LEFT(B106,12)=[2]Inputs!$C$24,[2]Inputs!$D$24,IF(LEFT(B106,13)=[2]Inputs!$C$25,[2]Inputs!$D$24,[2]Inputs!$D$26)) -> 4.403824546 | E106: 5035 | F106: 22173.25659 | G106: 0.1100461 | H106: 2440.080412
B107: CARL ALLEN 22 FT UN | C107: FORT UNION | D107: =IF(LEFT(B107,12)=[2]Inputs!$C$24,[2]Inputs!$D$24,IF(LEFT(B107,13)=[2]Inputs!$C$25,[2]Inputs!$D$24,[2]Inputs!$D$26)) -> 4.403824546 | E107: 128725 | F107: 566882.3147 | G107: 0.1100461 | H107: 62383.18789
B108: JC DONNELL 14-29 FT UN | C108: FORT UNION | D108: =IF(LEFT(B108,12)=[2]Inputs!$C$24,[2]Inputs!$D$24,IF(LEFT(B108,13)=[2]Inputs!$C$25,[2]Inputs!$D$24,[2]Inputs!$D$26)) -> 4.403824546 | E108: 89443 | F108: 393891.2789 | G108: 0.1100461 | H108: 43346.19907
B109: CARL ALLEN 23 FT UN | C109: FORT UNION | D109: =IF(LEFT(B109,12)=[2]Inputs!$C$24,[2]Inputs!$D$24,IF(LEFT(B109,13)=[2]Inputs!$C$25,[2]Inputs!$D$24,[2]Inputs!$D$26)) -> 4.403824546 | E109: 42195 | F109: 185819.3767 | G109: 0.1100461 | H109: 20448.69771
B110: BW MUSSER 23 FT UN | C110: FORT UNION | D110: =IF(LEFT(B110,12)=[2]Inputs!$C$24,[2]Inputs!$D$24,IF(LEFT(B110,13)=[2]Inputs!$C$25,[2]Inputs!$D$24,[2]Inputs!$D$26)) -> 4.403824546 | E110: 94683 | F110: 416967.3195 | G110: 0.1100461 | H110: 45885.62734
B111: BW MUSSER 24 FT UN | C111: FORT UNION | D111: =IF(LEFT(B111,12)=[2]Inputs!$C$24,[2]Inputs!$D$24,IF(LEFT(B111,13)=[2]Inputs!$C$25,[2]Inputs!$D$24,[2]Inputs!$D$26)) -> 4.403824546 | E111: 48521 | F111: 213677.9708 | G111: 0.1100461 | H111: 23514.42734
B112: CARL ALLEN 26 FT UN | C112: MESAVERDE | D112: =IF(LEFT(B112,12)=[2]Inputs!$C$24,[2]Inputs!$D$24,IF(LEFT(B112,13)=[2]Inputs!$C$25,[2]Inputs!$D$24,[2]Inputs!$D$26)) -> 4.403824546 | E112: 102862 | F112: 452986.2005 | G112: 0.1100461 | H112: 49849.36472
B113: CARL ALLEN 25 FT UN | C113: WASATCH | D113: =IF(LEFT(B113,12)=[2]Inputs!$C$24,[2]Inputs!$D$24,IF(LEFT(B113,13)=[2]Inputs!$C$25,[2]Inputs!$D$24,[2]Inputs!$D$26)) -> 4.403824546 | E113: 127670 | F113: 562236.2798 | G113: 0.1100461 | H113: 61871.90987
B114: H STEWART 5 FT UN | C114: FORT UNION | D114: =IF(LEFT(B114,12)=[2]Inputs!$C$24,[2]Inputs!$D$24,IF(LEFT(B114,13)=[2]Inputs!$C$25,[2]Inputs!$D$24,[2]Inputs!$D$26)) -> 4.403824546 | E114: 120285 | F114: 529714.0356 | G114: 0.1100461 | H114: 58292.96373
B115: CARL ALLEN 27 FT UN | C115: FORT UNION | D115: =IF(LEFT(B115,12)=[2]Inputs!$C$24,[2]Inputs!$D$24,IF(LEFT(B115,13)=[2]Inputs!$C$25,[2]Inputs!$D$24,[2]Inputs!$D$26)) -> 4.403824546 | E115: 84096 | F115: 370344.029 | G115: 0.110046 | H115: 40754.87902
B116: CARL ALLEN 28 FT UN | C116: FORT UNION | D116: =IF(LEFT(B116,12)=[2]Inputs!$C$24,[2]Inputs!$D$24,IF(LEFT(B116,13)=[2]Inputs!$C$25,[2]Inputs!$D$24,[2]Inputs!$D$26)) -> 4.403824546 | E116: 81397 | F116: 358458.1066 | G116: 0.110046 | H116: 39446.8808
B117: CARL ALLEN 29 FT UN | C117: FORT UNION | D117: =IF(LEFT(B117,12)=[2]Inputs!$C$24,[2]Inputs!$D$24,IF(LEFT(B117,13)=[2]Inputs!$C$25,[2]Inputs!$D$24,[2]Inputs!$D$26)) -> 4.403824546 | E117: 63654 | F117: 280321.0477 | G117: 0.110046 | H117: 30848.21001
B118: BW MUSSER 27 FT UN | C118: FORT UNION | D118: =IF(LEFT(B118,12)=[2]Inputs!$C$24,[2]Inputs!$D$24,IF(LEFT(B118,13)=[2]Inputs!$C$25,[2]Inputs!$D$24,[2]Inputs!$D$26)) -> 4.403824546 | E118: 137800 | F118: 606847.0225 | G118: 0.110046 | H118: 66781.08744
B119: JC DONNELL 14 FT UN | C119: FORT UNION | D119: =IF(LEFT(B119,12)=[2]Inputs!$C$24,[2]Inputs!$D$24,IF(LEFT(B119,13)=[2]Inputs!$C$25,[2]Inputs!$D$24,[2]Inputs!$D$26)) -> 4.403824546 | E119: 33151 | F119: 145991.1875 | G119: 0.110046 | H119: 16065.74622
B120: JC DONNELL 15 FT UN | C120: FORT UNION | D120: =IF(LEFT(B120,12)=[2]Inputs!$C$24,[2]Inputs!$D$24,IF(LEFT(B120,13)=[2]Inputs!$C$25,[2]Inputs!$D$24,[2]Inputs!$D$26)) -> 4.403824546 | E120: 85203 | F120: 375219.0628 | G120: 0.110046 | H120: 41291.35699
B121: JC DONNELL 16 FT UN | C121: FORT UNION | D121: =IF(LEFT(B121,12)=[2]Inputs!$C$24,[2]Inputs!$D$24,IF(LEFT(B121,13)=[2]Inputs!$C$25,[2]Inputs!$D$24,[2]Inputs!$D$26)) -> 4.403824546 | E121: 76248 | F121: 335782.814 | G121: 0.110046 | H121: 36951.55555
B122: BW MUSSER 28 FT UN | C122: FORT UNION | D122: =IF(LEFT(B122,12)=[2]Inputs!$C$24,[2]Inputs!$D$24,IF(LEFT(B122,13)=[2]Inputs!$C$25,[2]Inputs!$D$24,[2]Inputs!$D$26)) -> 4.403824546 | E122: 10600 | F122: 46680.54019 | G122: 0.110046 | H122: 5137.006726
B123: BW MUSSER 29 FT UN | C123: FORT UNION | D123: =IF(LEFT(B123,12)=[2]Inputs!$C$24,[2]Inputs!$D$24,IF(LEFT(B123,13)=[2]Inputs!$C$25,[2]Inputs!$D$24,[2]Inputs!$D$26)) -> 4.403824546 | E123: 84043 | F123: 370110.6263 | G123: 0.110046 | H123: 40729.19399
B124: BW MUSSER 26R FT UN | C124: FORT UNION | D124: =IF(LEFT(B124,12)=[2]Inputs!$C$24,[2]Inputs!$D$24,IF(LEFT(B124,13)=[2]Inputs!$C$25,[2]Inputs!$D$24,[2]Inputs!$D$26)) -> 4.403824546 | E124: 85457 | F124: 376337.6343 | G124: 0.1100461 | H124: 41414.48893
B125: CARL ALLEN 30 FT UN | C125: FORT UNION | D125: =IF(LEFT(B125,12)=[2]Inputs!$C$24,[2]Inputs!$D$24,IF(LEFT(B125,13)=[2]Inputs!$C$25,[2]Inputs!$D$24,[2]Inputs!$D$26)) -> 4.403824546 | E125: 125839 | F125: 554172.8771 | G125: 0.110046 | H125: 60984.50843
B126: CARL ALLEN 31 FT UN | C126: FORT UNION | D126: =IF(LEFT(B126,12)=[2]Inputs!$C$24,[2]Inputs!$D$24,IF(LEFT(B126,13)=[2]Inputs!$C$25,[2]Inputs!$D$24,[2]Inputs!$D$26)) -> 4.403824546 | E126: 283710 | F126: 1249409.062 | G126: 0.110046 | H126: 137492.4696
B127: CARL ALLEN 32 FT UN | C127: FORT UNION | D127: =IF(LEFT(B127,12)=[2]Inputs!$C$24,[2]Inputs!$D$24,IF(LEFT(B127,13)=[2]Inputs!$C$25,[2]Inputs!$D$24,[2]Inputs!$D$26)) -> 4.403824546 | E127: 103182 | F127: 454395.4243 | G127: 0.110046 | H127: 50004.39887
B128: CARL ALLEN 33 FT UN | C128: FORT UNION | D128: =IF(LEFT(B128,12)=[2]Inputs!$C$24,[2]Inputs!$D$24,IF(LEFT(B128,13)=[2]Inputs!$C$25,[2]Inputs!$D$24,[2]Inputs!$D$26)) -> 4.403824546 | E128: 9720 | F128: 42805.17459 | G128: 0.110046 | H128: 4710.538243
B129: CARL ALLEN 34 FT UN | C129: FORT UNION | D129: =IF(LEFT(B129,12)=[2]Inputs!$C$24,[2]Inputs!$D$24,IF(LEFT(B129,13)=[2]Inputs!$C$25,[2]Inputs!$D$24,[2]Inputs!$D$26)) -> 4.403824546 | E129: 152167 | F129: 670116.7697 | G129: 0.110046 | H129: 73743.67004
B130: JC DONNELL 18 FT UN | C130: FORT UNION | D130: =IF(LEFT(B130,12)=[2]Inputs!$C$24,[2]Inputs!$D$24,IF(LEFT(B130,13)=[2]Inputs!$C$25,[2]Inputs!$D$24,[2]Inputs!$D$26)) -> 4.403824546 | E130: 19168 | F130: 84412.5089 | G130: 0.110046 | H130: 9289.258955
B131: BW MUSSER 32 FT UN | C131: FORT UNION | D131: =IF(LEFT(B131,12)=[2]Inputs!$C$24,[2]Inputs!$D$24,IF(LEFT(B131,13)=[2]Inputs!$C$25,[2]Inputs!$D$24,[2]Inputs!$D$26)) -> 4.403824546 | E131: 134821 | F131: 593728.0292 | G131: 0.110046 | H131: 65337.3947
B132: STEWART 6 FT UN | C132: FORT UNION | D132: =IF(LEFT(B132,12)=[2]Inputs!$C$24,[2]Inputs!$D$24,IF(LEFT(B132,13)=[2]Inputs!$C$25,[2]Inputs!$D$24,[2]Inputs!$D$26)) -> 4.403824546 | E132: 146848 | F132: 646692.827 | G132: 0.110046 | H132: 71165.95884
B133: BW MUSSER 36 FT UN | C133: FORT UNION | D133: =IF(LEFT(B133,12)=[2]Inputs!$C$24,[2]Inputs!$D$24,IF(LEFT(B133,13)=[2]Inputs!$C$25,[2]Inputs!$D$24,[2]Inputs!$D$26)) -> 4.403824546 | E133: 291686 | F133: 1284533.967 | G133: 0.110046 | H133: 141357.8249
B134: BW MUSSER 37 FT UN | C134: FORT UNION | D134: =IF(LEFT(B134,12)=[2]Inputs!$C$24,[2]Inputs!$D$24,IF(LEFT(B134,13)=[2]Inputs!$C$25,[2]Inputs!$D$24,[2]Inputs!$D$26)) -> 4.403824546 | E134: 143732 | F134: 632970.5097 | G134: 0.110046 | H134: 69655.87271
B135: CARL ALLEN 35 FT UN | C135: FORT UNION | D135: =IF(LEFT(B135,12)=[2]Inputs!$C$24,[2]Inputs!$D$24,IF(LEFT(B135,13)=[2]Inputs!$C$25,[2]Inputs!$D$24,[2]Inputs!$D$26)) -> 4.403824546 | E135: 144323 | F135: 635573.17 | G135: 0.110046 | H135: 69942.28507
B136: CARL ALLEN 36 FT UN | C136: FORT UNION | D136: =IF(LEFT(B136,12)=[2]Inputs!$C$24,[2]Inputs!$D$24,IF(LEFT(B136,13)=[2]Inputs!$C$25,[2]Inputs!$D$24,[2]Inputs!$D$26)) -> 4.403824546 | E136: 249531 | F136: 1098890.743 | G136: 0.110046 | H136: 120928.5307
B137: CARL ALLEN A 14 WAS | C137: WASATCH | D137: =IF(LEFT(B137,12)=[2]Inputs!$C$24,[2]Inputs!$D$24,IF(LEFT(B137,13)=[2]Inputs!$C$25,[2]Inputs!$D$24,[2]Inputs!$D$26)) -> 4.403824546 | E137: 4 | F137: 17.61529819 | G137: 0.1100461 | H137: 1.938494866
B138: BW MUSSER 35 FT UN | C138: FORT UNION | D138: =IF(LEFT(B138,12)=[2]Inputs!$C$24,[2]Inputs!$D$24,IF(LEFT(B138,13)=[2]Inputs!$C$25,[2]Inputs!$D$24,[2]Inputs!$D$26)) -> 4.403824546 | E138: 164787 | F138: 725693.0355 | G138: 0.110046 | H138: 79859.61579
B139: BW MUSSER 35 LANCE | C139: LANCE | D139: =IF(LEFT(B139,12)=[2]Inputs!$C$24,[2]Inputs!$D$24,IF(LEFT(B139,13)=[2]Inputs!$C$25,[2]Inputs!$D$24,[2]Inputs!$D$26)) -> 4.403824546 | E139: 5095 | F139: 22437.48606 | G139: 0.12 | H139: 2692.498328
B140: BW MUSSER 72 FT UN | C140: FORT UNION | D140: =IF(LEFT(B140,12)=[2]Inputs!$C$24,[2]Inputs!$D$24,IF(LEFT(B140,13)=[2]Inputs!$C$25,[2]Inputs!$D$24,[2]Inputs!$D$26)) -> 4.403824546 | E140: 44510 | F140: =D140*E140 -> 196014.2306 | G140: 0.110046 | H140: =F140*G140 -> 21570.58202
B141: BW MUSSER 72 LANCE | C141: LANCE | D141: =IF(LEFT(B141,12)=[2]Inputs!$C$24,[2]Inputs!$D$24,IF(LEFT(B141,13)=[2]Inputs!$C$25,[2]Inputs!$D$24,[2]Inputs!$D$26)) -> 4.403824546 | E141: 2840 | F141: 12506.86171 | G141: 0.12 | H141: 1500.823405
B142: BW MUSSER 73 FT UN | C142: FORT UNION | D142: =IF(LEFT(B142,12)=[2]Inputs!$C$24,[2]Inputs!$D$24,IF(LEFT(B142,13)=[2]Inputs!$C$25,[2]Inputs!$D$24,[2]Inputs!$D$26)) -> 4.403824546 | E142: 48227 | F142: 212383.2464 | G142: 0.110046 | H142: 23371.92673
B143: BW MUSSER 73 LANCE | C143: LANCE | D143: =IF(LEFT(B143,12)=[2]Inputs!$C$24,[2]Inputs!$D$24,IF(LEFT(B143,13)=[2]Inputs!$C$25,[2]Inputs!$D$24,[2]Inputs!$D$26)) -> 4.403824546 | E143: 42303 | F143: 186294.9898 | G143: 0.12 | H143: 22355.39877
B144: BW MUSSER 34 FT UN | C144: FORT UNION | D144: =IF(LEFT(B144,12)=[2]Inputs!$C$24,[2]Inputs!$D$24,IF(LEFT(B144,13)=[2]Inputs!$C$25,[2]Inputs!$D$24,[2]Inputs!$D$26)) -> 4.403824546 | E144: 174917 | F144: 770303.7782 | G144: 0.110046 | H144: 84768.84957
B145: BW MUSSER 42 FT UN | C145: FORT UNION | D145: =IF(LEFT(B145,12)=[2]Inputs!$C$24,[2]Inputs!$D$24,IF(LEFT(B145,13)=[2]Inputs!$C$25,[2]Inputs!$D$24,[2]Inputs!$D$26)) -> 4.403824546 | E145: 129458 | F145: 570110.3181 | G145: 0.110046 | H145: 62738.36007
B146: POWDER WASH GOVT 17 FT UN | C146: FORT UNION | D146: =IF(LEFT(B146,12)=[2]Inputs!$C$24,[2]Inputs!$D$24,IF(LEFT(B146,13)=[2]Inputs!$C$25,[2]Inputs!$D$24,[2]Inputs!$D$26)) -> 4.403824546 | E146: 26115 | F146: 115005.878 | G146: 0.110046 | H146: 12655.93685
B147: BW MUSSER 31 FT UN | C147: FORT UNION | D147: =IF(LEFT(B147,12)=[2]Inputs!$C$24,[2]Inputs!$D$24,IF(LEFT(B147,13)=[2]Inputs!$C$25,[2]Inputs!$D$24,[2]Inputs!$D$26)) -> 4.403824546 | E147: 312131 | F147: 1374570.159 | G147: 0.110046 | H147: 151265.9478
B148: BW MUSSER 38 FT UN | C148: FORT UNION | D148: =IF(LEFT(B148,12)=[2]Inputs!$C$24,[2]Inputs!$D$24,IF(LEFT(B148,13)=[2]Inputs!$C$25,[2]Inputs!$D$24,[2]Inputs!$D$26)) -> 4.403824546 | E148: 261449 | F148: 1151375.524 | G148: 0.110046 | H148: 126704.2709
B149: BW MUSSER 39 FT UN | C149: FORT UNION | D149: =IF(LEFT(B149,12)=[2]Inputs!$C$24,[2]Inputs!$D$24,IF(LEFT(B149,13)=[2]Inputs!$C$25,[2]Inputs!$D$24,[2]Inputs!$D$26)) -> 4.403824546 | E149: 324563 | F149: 1429318.506 | G149: 0.110046 | H149: 157290.7843
B150: CARL ALLEN 37 FT UN | C150: FORT UNION | D150: =IF(LEFT(B150,12)=[2]Inputs!$C$24,[2]Inputs!$D$24,IF(LEFT(B150,13)=[2]Inputs!$C$25,[2]Inputs!$D$24,[2]Inputs!$D$26)) -> 4.403824546 | E150: 249374 | F150: 1098199.342 | G150: 0.1100461 | H150: 120852.5547
B151: CARL ALLEN 40 FT UN | C151: FORT UNION | D151: =IF(LEFT(B151,12)=[2]Inputs!$C$24,[2]Inputs!$D$24,IF(LEFT(B151,13)=[2]Inputs!$C$25,[2]Inputs!$D$24,[2]Inputs!$D$26)) -> 4.403824546 | E151: 201883 | F151: 889057.3109 | G151: 0.110046 | H151: 97837.20083
B152: CARL ALLEN 41 FT UN | C152: FORT UNION | D152: =IF(LEFT(B152,12)=[2]Inputs!$C$24,[2]Inputs!$D$24,IF(LEFT(B152,13)=[2]Inputs!$C$25,[2]Inputs!$D$24,[2]Inputs!$D$26)) -> 4.403824546 | E152: 151017 | F152: 665052.3715 | G152: 0.110046 | H152: 73186.35328
A153: RABBIT MTN (CO) | B153: MF FEDERAL 8-1 MANCOS B | C153: MANCOS B | D153: =IF(LEFT(B153,12)=[2]Inputs!$C$24,[2]Inputs!$D$24,IF(LEFT(B153,13)=[2]Inputs!$C$25,[2]Inputs!$D$24,[2]Inputs!$D$26)) -> 4.403824546 | E153: 38625 | F153: 170097.7231 | G153: 0.155 | H153: 26365.14708
B154: RABBIT MTN FED 7-1 MANCOS B | C154: MANCOS B | D154: =IF(LEFT(B154,12)=[2]Inputs!$C$24,[2]Inputs!$D$24,IF(LEFT(B154,13)=[2]Inputs!$C$25,[2]Inputs!$D$24,[2]Inputs!$D$26)) -> 4.403824546 | E154: 52812 | F154: 232574.7819 | G154: 0.125 | H154: 29071.84774
A155: SUGAR LOAF (CO) | B155: SUGARLOAF GOVT 1 MESA | C155: MESAVERDE | D155: =IF(LEFT(B155,12)=[2]Inputs!$C$24,[2]Inputs!$D$24,IF(LEFT(B155,13)=[2]Inputs!$C$25,[2]Inputs!$D$24,[2]Inputs!$D$26)) -> 4.403824546 | E155: 88116 | F155: 388047.4037 | G155: 0.13375 | H155: 51901.34025
B156: SUGARLOAF GOVT 2 MESA | C156: MESAVERDE | D156: =IF(LEFT(B156,12)=[2]Inputs!$C$24,[2]Inputs!$D$24,IF(LEFT(B156,13)=[2]Inputs!$C$25,[2]Inputs!$D$24,[2]Inputs!$D$26)) -> 4.403824546 | E156: 181295 | F156: 798391.3711 | G156: 0.13375 | H156: 106784.8459
B157: SUGARLOAF GOVT 3 FT UN | C157: FORT UNION | D157: =IF(LEFT(B157,12)=[2]Inputs!$C$24,[2]Inputs!$D$24,IF(LEFT(B157,13)=[2]Inputs!$C$25,[2]Inputs!$D$24,[2]Inputs!$D$26)) -> 4.403824546 | E157: 71037 | F157: 312834.4843 | G157: 0.13375 | H157: 41841.61227
B158: SUGARLOAF GOVT 4 MESA | C158: MESAVERDE | D158: =IF(LEFT(B158,12)=[2]Inputs!$C$24,[2]Inputs!$D$24,IF(LEFT(B158,13)=[2]Inputs!$C$25,[2]Inputs!$D$24,[2]Inputs!$D$26)) -> 4.403824546 | E158: 19407 | F158: 85465.02297 | G158: 0.13375 | H158: 11430.94682
B159: SUGARLOAF GOVT 6 MESA | C159: MESAVERDE | D159: =IF(LEFT(B159,12)=[2]Inputs!$C$24,[2]Inputs!$D$24,IF(LEFT(B159,13)=[2]Inputs!$C$25,[2]Inputs!$D$24,[2]Inputs!$D$26)) -> 4.403824546 | E159: 66933 | F159: 294761.1884 | G159: 0.13375 | H159: 39424.30894
B160: SUGARLOAF GOVT 8 MESA | C160: MESAVERDE | D160: =IF(LEFT(B160,12)=[2]Inputs!$C$24,[2]Inputs!$D$24,IF(LEFT(B160,13)=[2]Inputs!$C$25,[2]Inputs!$D$24,[2]Inputs!$D$26)) -> 4.403824546 | E160: 10883 | F160: 47926.82254 | G160: 0.13375 | H160: 6410.212514
B161: SUGARLOAF GOVT 10 MESA | C161: MESAVERDE | D161: =IF(LEFT(B161,12)=[2]Inputs!$C$24,[2]Inputs!$D$24,IF(LEFT(B161,13)=[2]Inputs!$C$25,[2]Inputs!$D$24,[2]Inputs!$D$26)) -> 4.403824546 | E161: 177658 | F161: 782374.6613 | G161: 0.13375 | H161: 104642.6109
B162: SUGARLOAF GOVT 12 MESA | C162: MESAVERDE | D162: =IF(LEFT(B162,12)=[2]Inputs!$C$24,[2]Inputs!$D$24,IF(LEFT(B162,13)=[2]Inputs!$C$25,[2]Inputs!$D$24,[2]Inputs!$D$26)) -> 4.403824546 | E162: 5047 | F162: 22226.10249 | G162: 0.13375 | H162: 2972.741207
B163: SUGARLOAF GOVT 14 MESA | C163: MESAVERDE | D163: =IF(LEFT(B163,12)=[2]Inputs!$C$24,[2]Inputs!$D$24,IF(LEFT(B163,13)=[2]Inputs!$C$25,[2]Inputs!$D$24,[2]Inputs!$D$26)) -> 4.403824546 | E163: 21934 | F163: 96593.4876 | G163: 0.13375 | H163: 12919.37897
B164: SUGARLOAF GOVT 15 MESA | C164: MESAVERDE | D164: =IF(LEFT(B164,12)=[2]Inputs!$C$24,[2]Inputs!$D$24,IF(LEFT(B164,13)=[2]Inputs!$C$25,[2]Inputs!$D$24,[2]Inputs!$D$26)) -> 4.403824546 | E164: 11032 | F164: 48582.9924 | G164: 0.13375 | H164: 6497.975233
B165: SUGARLOAF GOVT 17 ALMOND | C165: ALMOND | D165: =IF(LEFT(B165,12)=[2]Inputs!$C$24,[2]Inputs!$D$24,IF(LEFT(B165,13)=[2]Inputs!$C$25,[2]Inputs!$D$24,[2]Inputs!$D$26)) -> 4.403824546 | E165: 290577 | F165: 1279650.125 | G165: 0.20375 | H165: 260728.713
A166: W HIAW (CO) | B166: WB LASHER A 2 WAS | C166: WASATCH | D166: =IF(LEFT(B166,12)=[2]Inputs!$C$24,[2]Inputs!$D$24,IF(LEFT(B166,13)=[2]Inputs!$C$25,[2]Inputs!$D$24,[2]Inputs!$D$26)) -> 4.403824546 | E166: 18445 | F166: 81228.54376 | G166: 0.1925 | H166: 15636.49467
B167: WB LASHER A 4 FT UN | C167: FORT UNION | D167: =IF(LEFT(B167,12)=[2]Inputs!$C$24,[2]Inputs!$D$24,IF(LEFT(B167,13)=[2]Inputs!$C$25,[2]Inputs!$D$24,[2]Inputs!$D$26)) -> 4.403824546 | E167: 44831 | F167: 197427.8582 | G167: 0.1925 | H167: 38004.86271
B168: WM WHEELER A 2 WAS | C168: WASATCH | D168: =IF(LEFT(B168,12)=[2]Inputs!$C$24,[2]Inputs!$D$24,IF(LEFT(B168,13)=[2]Inputs!$C$25,[2]Inputs!$D$24,[2]Inputs!$D$26)) -> 4.403824546 | E168: 33705 | F168: 148430.9063 | G168: 0.1925 | H168: 28572.94947
B169: WM WHEELER A 2 FT UN | C169: FORT UNION | D169: =IF(LEFT(B169,12)=[2]Inputs!$C$24,[2]Inputs!$D$24,IF(LEFT(B169,13)=[2]Inputs!$C$25,[2]Inputs!$D$24,[2]Inputs!$D$26)) -> 4.403824546 | E169: 17659 | F169: 77767.13766 | G169: 0.1925 | H169: 14970.174
B170: WM WHEELER A 3 FT UN | C170: FORT UNION | D170: =IF(LEFT(B170,12)=[2]Inputs!$C$24,[2]Inputs!$D$24,IF(LEFT(B170,13)=[2]Inputs!$C$25,[2]Inputs!$D$24,[2]Inputs!$D$26)) -> 4.403824546 | E170: 34502 | F170: 151940.7545 | G170: 0.1925 | H170: 29248.59524
B171: WB LASHER A 5 FT UN | C171: FORT UNION | D171: =IF(LEFT(B171,12)=[2]Inputs!$C$24,[2]Inputs!$D$24,IF(LEFT(B171,13)=[2]Inputs!$C$25,[2]Inputs!$D$24,[2]Inputs!$D$26)) -> 4.403824546 | E171: 22636 | F171: 99684.97243 | G171: 0.1840625 | H171: 18348.26524
B172: WB LASHER A 6 LEW/LNC/FT UN | C172: LANCE/LEWIS | D172: =IF(LEFT(B172,12)=[2]Inputs!$C$24,[2]Inputs!$D$24,IF(LEFT(B172,13)=[2]Inputs!$C$25,[2]Inputs!$D$24,[2]Inputs!$D$26)) -> 4.403824546 | E172: 72023 | F172: 317176.6553 | G172: 0.1925 | H172: 61056.50615
B173: WM WHEELER A 4 LEW/LNC/FT UN | C173: LANCE/LEWIS | D173: =IF(LEFT(B173,12)=[2]Inputs!$C$24,[2]Inputs!$D$24,IF(LEFT(B173,13)=[2]Inputs!$C$25,[2]Inputs!$D$24,[2]Inputs!$D$26)) -> 4.403824546 | E173: 80858 | F173: 356084.4452 | G173: 0.1925 | H173: 68546.25569
B174: LASHER 7 LEWIS | C174: LEWIS | D174: =IF(LEFT(B174,12)=[2]Inputs!$C$24,[2]Inputs!$D$24,IF(LEFT(B174,13)=[2]Inputs!$C$25,[2]Inputs!$D$24,[2]Inputs!$D$26)) -> 4.403824546 | E174: 97194 | F174: 428025.323 | G174: 0.1925 | H174: 82394.87467
B175: LASHER 8 LEWIS | C175: LEWIS | D175: =IF(LEFT(B175,12)=[2]Inputs!$C$24,[2]Inputs!$D$24,IF(LEFT(B175,13)=[2]Inputs!$C$25,[2]Inputs!$D$24,[2]Inputs!$D$26)) -> 4.403824546 | E175: 48660 | F175: 214290.1024 | G175: 0.1840625 | H175: 39442.77198
B176: LASHER 9 LEWIS | C176: LEWIS | D176: =IF(LEFT(B176,12)=[2]Inputs!$C$24,[2]Inputs!$D$24,IF(LEFT(B176,13)=[2]Inputs!$C$25,[2]Inputs!$D$24,[2]Inputs!$D$26)) -> 4.403824546 | E176: 68187 | F176: 300283.5843 | G176: 0.1840625 | H176: 55270.94724
B177: LASHER 10 MESA | C177: MESAVERDE | D177: =IF(LEFT(B177,12)=[2]Inputs!$C$24,[2]Inputs!$D$24,IF(LEFT(B177,13)=[2]Inputs!$C$25,[2]Inputs!$D$24,[2]Inputs!$D$26)) -> 4.403824546 | E177: 9651 | F177: 42501.3107 | G177: 0.2540625 | H177: 10797.98925
B178: LASHER 10 FT UN | C178: FORT UNION | D178: =IF(LEFT(B178,12)=[2]Inputs!$C$24,[2]Inputs!$D$24,IF(LEFT(B178,13)=[2]Inputs!$C$25,[2]Inputs!$D$24,[2]Inputs!$D$26)) -> 4.403824546 | E178: 9370 | F178: 41263.836 | G178: 0.1840625 | H178: 7595.124814
B179: LASHER 10 LEWIS | C179: LEWIS | D179: =IF(LEFT(B179,12)=[2]Inputs!$C$24,[2]Inputs!$D$24,IF(LEFT(B179,13)=[2]Inputs!$C$25,[2]Inputs!$D$24,[2]Inputs!$D$26)) -> 4.403824546 | E179: 9370 | F179: 41263.836 | G179: 0.1840625 | H179: 7595.124814
B180: LASHER 11 MESA | C180: MESAVERDE | D180: =IF(LEFT(B180,12)=[2]Inputs!$C$24,[2]Inputs!$D$24,IF(LEFT(B180,13)=[2]Inputs!$C$25,[2]Inputs!$D$24,[2]Inputs!$D$26)) -> 4.403824546 | E180: 28338 | F180: 124795.58 | G180: 0.2540625 | H180: 31705.87704
B181: LASHER 11 FT UN | C181: FORT UNION | D181: =IF(LEFT(B181,12)=[2]Inputs!$C$24,[2]Inputs!$D$24,IF(LEFT(B181,13)=[2]Inputs!$C$25,[2]Inputs!$D$24,[2]Inputs!$D$26)) -> 4.403824546 | E181: 28344 | F181: 124822.0029 | G181: 0.1840625 | H181: 22975.04992
B182: LASHER 11 LEWIS | C182: LEWIS | D182: =IF(LEFT(B182,12)=[2]Inputs!$C$24,[2]Inputs!$D$24,IF(LEFT(B182,13)=[2]Inputs!$C$25,[2]Inputs!$D$24,[2]Inputs!$D$26)) -> 4.403824546 | E182: 28344 | F182: 124822.0029 | G182: 0.1840625 | H182: 22975.04992
B183: LASHER 11 LANCE | C183: LANCE | D183: =IF(LEFT(B183,12)=[2]Inputs!$C$24,[2]Inputs!$D$24,IF(LEFT(B183,13)=[2]Inputs!$C$25,[2]Inputs!$D$24,[2]Inputs!$D$26)) -> 4.403824546 | E183: 28344 | F183: 124822.0029 | G183: 0.1840625 | H183: 22975.04992
B184: LASHER 12 MESA | C184: MESAVERDE | D184: =IF(LEFT(B184,12)=[2]Inputs!$C$24,[2]Inputs!$D$24,IF(LEFT(B184,13)=[2]Inputs!$C$25,[2]Inputs!$D$24,[2]Inputs!$D$26)) -> 4.403824546 | E184: 18107 | F184: 79740.05106 | G184: 0.2540625 | H184: 20258.95672
B185: LASHER 12 FT UN | C185: FORT UNION | D185: =IF(LEFT(B185,12)=[2]Inputs!$C$24,[2]Inputs!$D$24,IF(LEFT(B185,13)=[2]Inputs!$C$25,[2]Inputs!$D$24,[2]Inputs!$D$26)) -> 4.403824546 | E185: 18107 | F185: 79740.05106 | G185: 0.1840625 | H185: 14677.15315
B186: LASHER 12 LEWIS | C186: LEWIS | D186: =IF(LEFT(B186,12)=[2]Inputs!$C$24,[2]Inputs!$D$24,IF(LEFT(B186,13)=[2]Inputs!$C$25,[2]Inputs!$D$24,[2]Inputs!$D$26)) -> 4.403824546 | E186: 18107 | F186: 79740.05106 | G186: 0.1840625 | H186: 14677.15315
B187: LASHER 12 LANCE | C187: LANCE | D187: =IF(LEFT(B187,12)=[2]Inputs!$C$24,[2]Inputs!$D$24,IF(LEFT(B187,13)=[2]Inputs!$C$25,[2]Inputs!$D$24,[2]Inputs!$D$26)) -> 4.403824546 | E187: 18107 | F187: 79740.05106 | G187: 0.1840625 | H187: 14677.15315
B188: WHEELER 6 MESA | C188: MESAVERDE | D188: =IF(LEFT(B188,12)=[2]Inputs!$C$24,[2]Inputs!$D$24,IF(LEFT(B188,13)=[2]Inputs!$C$25,[2]Inputs!$D$24,[2]Inputs!$D$26)) -> 4.403824546 | E188: 22548 | F188: 99297.43587 | G188: 0.2625 | H188: 26065.57692
B189: WHEELER 6 LEW/LAN/FT UN | C189: LANCE/LEWIS | D189: =IF(LEFT(B189,12)=[2]Inputs!$C$24,[2]Inputs!$D$24,IF(LEFT(B189,13)=[2]Inputs!$C$25,[2]Inputs!$D$24,[2]Inputs!$D$26)) -> 4.403824546 | E189: 31261 | F189: 137667.9591 | G189: 0.1925 | H189: 26501.08213
B190: WHEELER 5 MESA | C190: MESAVERDE | D190: =IF(LEFT(B190,12)=[2]Inputs!$C$24,[2]Inputs!$D$24,IF(LEFT(B190,13)=[2]Inputs!$C$25,[2]Inputs!$D$24,[2]Inputs!$D$26)) -> 4.403824546 | E190: 2901 | F190: 12775.49501 | G190: 0.2625 | H190: 3353.56744
B191: WHEELER 5 LEW/LAN/FT UN | C191: LANCE/LEWIS | D191: =IF(LEFT(B191,12)=[2]Inputs!$C$24,[2]Inputs!$D$24,IF(LEFT(B191,13)=[2]Inputs!$C$25,[2]Inputs!$D$24,[2]Inputs!$D$26)) -> 4.403824546 | E191: 61560 | F191: 271099.4391 | G191: 0.1925 | H191: 52186.64202
B192: WHEELER 7 MESA | C192: MESAVERDE | D192: =IF(LEFT(B192,12)=[2]Inputs!$C$24,[2]Inputs!$D$24,IF(LEFT(B192,13)=[2]Inputs!$C$25,[2]Inputs!$D$24,[2]Inputs!$D$26)) -> 4.403824546 | E192: 5746 | F192: 25304.37584 | G192: 0.2625 | H192: 6642.398659
B193: WHEELER 7 LEW/LAN/FT UN | C193: LANCE/LEWIS | D193: =IF(LEFT(B193,12)=[2]Inputs!$C$24,[2]Inputs!$D$24,IF(LEFT(B193,13)=[2]Inputs!$C$25,[2]Inputs!$D$24,[2]Inputs!$D$26)) -> 4.403824546 | E193: 13030 | F193: 57381.83384 | G193: 0.1925 | H193: 11046.00301
B194: WHEELER 8 MESA | C194: MESAVERDE | D194: =IF(LEFT(B194,12)=[2]Inputs!$C$24,[2]Inputs!$D$24,IF(LEFT(B194,13)=[2]Inputs!$C$25,[2]Inputs!$D$24,[2]Inputs!$D$26)) -> 4.403824546 | E194: 23 | F194: 101.2879646 | G194: 0.2625 | H194: 26.5880907
B195: WHEELER 8 LEW/LAN/FT UN | C195: LANCE/LEWIS | D195: =IF(LEFT(B195,12)=[2]Inputs!$C$24,[2]Inputs!$D$24,IF(LEFT(B195,13)=[2]Inputs!$C$25,[2]Inputs!$D$24,[2]Inputs!$D$26)) -> 4.403824546 | E195: 243 | F195: 1070.129365 | G195: 0.1925 | H195: 205.9999027
B196: WHEELER 9 MESA | C196: MESAVERDE | D196: =IF(LEFT(B196,12)=[2]Inputs!$C$24,[2]Inputs!$D$24,IF(LEFT(B196,13)=[2]Inputs!$C$25,[2]Inputs!$D$24,[2]Inputs!$D$26)) -> 4.403824546 | E196: 7165 | F196: 31553.40287 | G196: 0.2625 | H196: 8282.768255
B197: WHEELER 9 LEW/LAN/FT UN | C197: LANCE/LEWIS | D197: =IF(LEFT(B197,12)=[2]Inputs!$C$24,[2]Inputs!$D$24,IF(LEFT(B197,13)=[2]Inputs!$C$25,[2]Inputs!$D$24,[2]Inputs!$D$26)) -> 4.403824546 | E197: 63073 | F197: 277762.4256 | G197: 0.1925 | H197: 53469.26693
A198: CLAY BASIN (UT) | B198: CLAY BASIN UNIT 7 FR | C198: FRONTIER | D198: =IF(LEFT(B198,12)=[2]Inputs!$C$24,[2]Inputs!$D$24,IF(LEFT(B198,13)=[2]Inputs!$C$25,[2]Inputs!$D$24,[2]Inputs!$D$26)) -> 4.403824546 | E198: 12089 | F198: 53237.83494 | G198: 0.1549177 | H198: 8247.482942
B199: CLAY BASIN UNIT 8 FR | C199: FRONTIER | D199: =IF(LEFT(B199,12)=[2]Inputs!$C$24,[2]Inputs!$D$24,IF(LEFT(B199,13)=[2]Inputs!$C$25,[2]Inputs!$D$24,[2]Inputs!$D$26)) -> 4.403824546 | E199: 33454 | F199: 147325.5464 | G199: 0.1549177 | H199: 22823.3348
B200: CLAY BASIN UNIT 9 FR | C200: FRONTIER | D200: =IF(LEFT(B200,12)=[2]Inputs!$C$24,[2]Inputs!$D$24,IF(LEFT(B200,13)=[2]Inputs!$C$25,[2]Inputs!$D$24,[2]Inputs!$D$26)) -> 4.403824546 | E200: 41880 | F200: 184432.172 | G200: 0.1549177 | H200: 28571.80789
B201: CLAY BASIN UNIT 12 FR | C201: FRONTIER | D201: =IF(LEFT(B201,12)=[2]Inputs!$C$24,[2]Inputs!$D$24,IF(LEFT(B201,13)=[2]Inputs!$C$25,[2]Inputs!$D$24,[2]Inputs!$D$26)) -> 4.403824546 | E201: 33882 | F201: 149210.3833 | G201: 0.1549177 | H201: 23115.32939
B202: CLAY BASIN UNIT 13 FR | C202: FRONTIER | D202: =IF(LEFT(B202,12)=[2]Inputs!$C$24,[2]Inputs!$D$24,IF(LEFT(B202,13)=[2]Inputs!$C$25,[2]Inputs!$D$24,[2]Inputs!$D$26)) -> 4.403824546 | E202: 32866 | F202: 144736.0975 | G202: 0.1549177 | H202: 22422.18334
... 1193 more rows

Sheet Ut 1.2
I1: ='Control Panel'!$F$32 -> Questar Gas Company
I2: ='Control Panel'!$F$33 -> Docket No. 13-057-03
I3: Exhibit 1.2
B8: TEST YEAR PURCHASED GAS COSTS
D11: (A) | E11: (B) | F11: (C) | G11: (D)
F12: Cost
C13: Component | E13: Dth | F13: per Dth | G13: Total Cost
B15: 1 | C15: Current Contracts | G15: =ROUND(Calculations!$P$183+Calculations!$P$186-G16,0) -> 91834045
B16: =B15+1 -> 2 | C16: Stabilization Costs | G16: ='Monthly Inputs'!S105 -> 0
B17: =B16+1 -> 3 | D17: Total Current Contracts | E17: =Calculations!$P$182+Calculations!$P$185 -> 18530000 | F17: =G17/E17 -> 4.955965731 | G17: =G15+G16 -> 91834045
B19: =B17+1 -> 4 | C19: Forecast Spot | E19: =Calculations!$P$179 -> 21911274 | F19: =G19/E19 -> 4.562559165 | G19: =ROUND(Calculations!P180,0) -> 99971484
B21: =B19+1 -> 5 | C21: Future Contracts | E21: =Calculations!P188 -> 677948 | F21: =G21/E21 -> 4.399931853 | G21: =ROUND(Calculations!P189,0) -> 2982925
B24: =B21+1 -> 6 | C24: Total Gas Purchased | E24: =E17+E19+E21 -> 41119222 | F24: =G24/E24 -> 4.737162926 | G24: =G17+G19+G21 -> 194788454

Sheet Ut 1.3 p1
N1: ='Control Panel'!$F$32 -> Questar Gas Company
N2: ='Control Panel'!$F$33 -> Docket No. 13-057-03
N3: Exhibit 1.3
N4: Page 1 of 2
B8: TEST YEAR TRANSPORTATION, GATHERING AND PROCESSING CHARGES
B11: (A) | D11: (B) | F11: (C) | H11: (D) | J11: (E) | L11: (F) | M11: (G)
D12: Fctr | F12: Dth | H12: Months/Days | J12: Rate | M12: Total Costs
B14: TRANSPORTATION DEMAND
B16: QPC Demand
A17: 1 | B17: T-1 Transportation - Yearly | F17: ='Other Inputs'!D22+'Other Inputs'!D23+'Other Inputs'!D24 -> 840902 | G17: x | H17: ='Other Inputs'!E22 -> 12 | I17: x | J17: ='Other Inputs'!F22 -> 5.28804 | K17: = | L17: =ROUND(F17*H17*J17,0) -> 53360681 | Q17: =L17*'Ut 1.5'!$G$51 -> 51599773.09
A18: 1 | B18: T-1 Transportation Nov-Mar | F18: ='Other Inputs'!D25 -> 75000 | G18: x | H18: ='Other Inputs'!E25 -> 5 | I18: x | J18: ='Other Inputs'!F25 -> 6.80887 | K18: = | L18: =ROUND(F18*H18*J18,0) -> 2553326 | Q18: =L18*'Ut 1.5'!$G$51 -> 2469065.982
A19: =A17+1 -> 2 | B19: No-Notice Transportation | F19: ='Other Inputs'!D30 -> 203542 | G19: x | H19: ='Other Inputs'!E30 -> 12 | I19: x | J19: ='Other Inputs'!F30 -> 0.86753 | K19: = | L19: =ROUND(F19*H19*J19,0) -> 2118945 | Q19: =L19*'Ut 1.5'!$G$51 -> 2049019.599
A20: =A19+1 -> 3 | B20: Capacity Release Credits | L20: =-ROUND('Other Inputs'!E270,0) -> -240852 | Q20: =L20*'Ut 1.5'!$G$51 -> -232903.8595
A21: =A20+1 -> 4 | C21: Total | L21: =SUM(L17:L20) -> 57792100 | Q21: =L21*'Ut 1.5'!$G$51 -> 55884954.81
Q22: =L22*'Ut 1.5'!$G$51 -> 0
B23: Kern River Demand | Q23: =L23*'Ut 1.5'!$G$51 -> 0
A24: =A21+1 -> 5 | B24: January - December | F24: ='Other Inputs'!D56 -> 1885 | G24: x | H24: ='Other Inputs'!E56 -> 12 | I24: x | J24: ='Other Inputs'!F56 -> 17.74204167 | K24: = | L24: =ROUND(F24*H24*J24,0) -> 401325
A25: =A24+1 -> 6 | B25: January - December | F25: ='Other Inputs'!D54 -> 3000 | G25: x | H25: ='Other Inputs'!E54 -> 12 | I25: x | J25: ='Other Inputs'!F54 -> 14.34754167 | K25: = | L25: =ROUND(F25*H25*J25,0) -> 516512 | Q25: =L25*'Ut 1.5'!$G$51 -> 499467.0514
A26: =A25+1 -> 7 | B26: November - March | F26: ='Other Inputs'!D55 -> 50000 | G26: x | H26: ='Other Inputs'!E55 -> 5 | I26: x | J26: =J25 -> 14.34754167 | K26: = | L26: =ROUND(F26*H26*J26,0) -> 3586885 | Q26: =L26*'Ut 1.5'!$G$51 -> 3468517.43
A27: =A26+1 -> 8 | C27: Total | L27: =SUM(L24:L26) -> 4504722 | Q27: =L27*'Ut 1.5'!$G$51 -> 4356065.715
Q28: =L28*'Ut 1.5'!$G$51 -> 0
A29: =A27+1 -> 9 | B29: Total Transportation Demand (SNG) | M29: =L21+L27 -> 62296822 | Q29: =M29*'Ut 1.5'!$G$51 -> 60241020.53
B32: TRANSPORTATION COMMODITY
B34: QPC Commodity
A35: =A29+1 -> 10 | B35: QPC Commodity (SNG) | F35: =F36-(D40*F40*H40)-(D41*F41*H41) -> 112580716.5 | I35: x | J35: ='Other Inputs'!F38 -> 0.00267 | K35: = | L35: =ROUND(F35*J35,0) -> 300591
A36: =A35+1 -> 11 | B36: ACA | F36: =Calculations!$P$172 -> 122569203.1 | I36: x | J36: ='Other Inputs'!F39 -> 0.0018 | K36: = | L36: =ROUND(F36*J36,0) -> 220625
A37: =A36+1 -> 12 | C37: Total | L37: =SUM(L35:L36) -> 521216
B39: Kern River Commodity
A40: =A37+1 -> 13 | B40: January - December | D40: ='Other Inputs'!C60 -> 1.07023035 | E40: x | F40: ='Other Inputs'!D60 -> 4885 | G40: x | H40: ='Other Inputs'!E60 -> 365 | I40: x | J40: ='Other Inputs'!F60 -> 0.0044 | K40: = | L40: =ROUND(D40*F40*H40*J40,0) -> 8396
A41: =A40+1 -> 14 | B41: November - March | D41: ='Other Inputs'!C61 -> 1.07023035 | E41: x | F41: ='Other Inputs'!D61 -> 50000 | G41: x | H41: ='Other Inputs'!E61 -> 151 | I41: x | J41: ='Other Inputs'!F61 -> 0.0044 | K41: = | L41: =ROUND(D41*F41*H41*J41,0) -> 35553
A42: =A41+1 -> 15 | C42: Total (SNG) | L42: =SUM(L40:L41) -> 43949
A44: =A42+1 -> 16 | B44: Total Transportation Commodity | M44: =L37+L42 -> 565165
B47: OTHER CHARGES
A49: =A44+1 -> 17 | B49: QEP Field Services Demand | H49: 12 | I49: x | J49: ='Other Inputs'!E177 -> 759167.5 | K49: = | L49: =ROUND(H49*J49,0) -> 9110010
A50: =A49+1 -> 18 | B50: QEP Field Services Commodity | F50: ='Other Inputs'!D178 -> 46130300.84 | I50: x | J50: ='Other Inputs'!D177 -> 0.13918 | K50: = | L50: =ROUND(F50*J50,0) -> 6420415
A51: =A50+1 -> 19 | C51: Total QEP Field Services (SNG) | M51: =L49+L50 -> 15530425 | N51: 1/
A53: =A51+1 -> 20 | B53: Other Gathering Charges | L53: =ROUND('Other Inputs'!D169,0) -> 1978875
A54: =A53+1 -> 21 | B54: Other Transportation Charges | L54: =ROUND('Other Inputs'!$D$171,0) -> 2728043
A55: =A54+1 -> 22 | C55: Total Other Gathering and Transportation (SNG) | M55: =SUM(L53:L54) -> 4706918
A60: =A55+1 -> 23 | B60: TOTAL TRANSPORTATION AND OTHER CHARGES | M60: =M29+M44+M51+M55 -> 83099330
A65: 1/ | B65: See paragraph 7c in application.

Sheet Ut 1.3 p2
L1: ='Control Panel'!$F$32 -> Questar Gas Company
L2: ='Control Panel'!$F$33 -> Docket No. 13-057-03
L3: Exhibit 1.3
L4: Page 2 of 2
B7: TEST YEAR STORAGE AND WORKING GAS CHARGES
B10: (A) | D10: (B) | F10: (C) | H10: (D) | J10: (E) | K10: (F)
B12: STORAGE CHARGES 1/
B14: Component | D14: Dth | F14: Months | H14: Rate | K14: Total Costs
B15: Storage Demand
A16: 1 | B16: Peaking Demand | D16: ='Other Inputs'!E155 -> 184625 | E16: x | F16: 12 | G16: x | H16: ='Other Inputs'!E14 -> 2.87375 | I16: = | J16: =ROUND(D16*F16*H16,0) -> 6366793
A17: =A16+1 -> 2 | B17: Ryckman Demand | D17: ='Other Inputs'!E156 -> 2500000 | E17: x | F17: 0 | G17: x | H17: ='Other Inputs'!E15 -> 0.09 | I17: = | J17: =ROUND(D17*F17*H17,0) -> 0
A18: =A17+1 -> 3 | B18: Clay Basin Demand | D18: ='Other Inputs'!E157 -> 111827 | E18: x | F18: 12 | G18: x | H18: ='Other Inputs'!E16 -> 2.85338 | I18: = | J18: =ROUND(D18*F18*H18,0) -> 3829019
A19: 4 | B19: Clay Basin Capacity | D19: ='Other Inputs'!E158 -> 13419000 | E19: x | F19: 12 | G19: x | H19: ='Other Inputs'!E17 -> 0.02378 | I19: = | J19: =ROUND(D19*F19*H19,0) -> 3829246
A20: 5 | C20: Total Demand Charges (SNG) | J20: =SUM(J16:J19) -> 14025058
B22: Storage Commodity 2/
A23: =A20+1 -> 6 | B23: Peaking Injections | D23: =(+'Monthly Inputs'!S35+'Monthly Inputs'!S37+'Monthly Inputs'!S38) -> 1150518 | F23: x | H23: ='Other Inputs'!E6 -> 0.03872 | I23: = | J23: =ROUND(D23*H23,0) -> 44548
A24: =A23+1 -> 7 | B24: Peaking Withdrawals | D24: =(+'Monthly Inputs'!S43+'Monthly Inputs'!S45+'Monthly Inputs'!S46) -> 1143071 | F24: x | H24: ='Other Inputs'!E7 -> 0.03872 | I24: = | J24: =ROUND(D24*H24,0) -> 44260
A25: =A24+1 -> 8 | B25: Ryckman Injections | D25: ='Monthly Inputs'!S39 -> 0 | F25: x | H25: ='Other Inputs'!E8 -> 0.015 | I25: = | J25: =ROUND(D25*H25,0) -> 0
A26: =A25+1 -> 9 | B26: Ryckman Withdrawals | D26: ='Monthly Inputs'!S47 -> 0 | F26: x | H26: ='Other Inputs'!E9 -> 0.01 | I26: = | J26: 0
A27: =A26+1 -> 10 | B27: Clay Basin Injections | D27: ='Monthly Inputs'!S36 -> 10243275 | F27: x | H27: ='Other Inputs'!E10 -> 0.01049 | I27: = | J27: =ROUND(D27*H27,0) -> 107452
A28: =A27+1 -> 11 | B28: Clay Basin Withdrawals | D28: ='Monthly Inputs'!S44 -> 11078180 | F28: x | H28: ='Other Inputs'!E11 -> 0.01781 | I28: = | J28: =ROUND(D28*H28,0) -> 197302
A29: 12 | C29: Total Commodity Charges | J29: =SUM(J23:J28) -> 393562
A31: 13 | B31: Total Storage Charges | K31: =J20+J29 -> 14418620
B34: WORKING GAS CHARGES - QGC Account 164
C36: Month | D36: Amount | H36: Pre-Tax Return %
A38: =A31+1 -> 14 | C38: =+'Rate Base'!H8 -> 2012-03-21 | D38: =+'Rate Base'!H209 -> 12903260.28
A39: =A38+1 -> 15 | C39: =+'Rate Base'!I8 -> 2012-04-20 | D39: =+'Rate Base'!I209 -> 11695451.32
A40: 16 | C40: =+'Rate Base'!J8 -> 2012-05-20 | D40: =+'Rate Base'!J209 -> 17454303.39
A41: 17 | C41: =+'Rate Base'!K8 -> 2012-06-19 | D41: =+'Rate Base'!K209 -> 29378840.71
A42: 18 | C42: =+'Rate Base'!L8 -> 2012-07-19 | D42: =+'Rate Base'!L209 -> 41693614.87
A43: 19 | C43: =+'Rate Base'!M8 -> 2012-08-18 | D43: =+'Rate Base'!M209 -> 49496814.5
A44: 20 | C44: =+'Rate Base'!N8 -> 2012-09-17 | D44: =+'Rate Base'!N209 -> 58340520.19
A45: 21 | C45: =+'Rate Base'!O8 -> 2012-10-17 | D45: =+'Rate Base'!O209 -> 65085991.15
A46: 22 | C46: =+'Rate Base'!P8 -> 2012-11-16 | D46: =+'Rate Base'!P209 -> 57526709.57
A47: 23 | C47: =+'Rate Base'!Q8 -> 2012-12-16 | D47: =+'Rate Base'!Q209 -> 38347748.57
A48: 24 | C48: =+'Rate Base'!R8 -> 2013-01-15 | D48: =+'Rate Base'!R209 -> 25571748.57
A49: 25 | C49: =+'Rate Base'!S8 -> 2013-02-14 | D49: =+'Rate Base'!S209 -> 14073352.81
A50: 26 | C50: =+'Rate Base'!T8 -> 2013-03-16 | D50: =+'Rate Base'!T209 -> 9537533.75
A53: =A50+1 -> 27 | B53: 13-Month Average 3/ | D53: =(SUM(D39:D49)+D38/2+D50/2)/12 -> 34990457.72 | F53: x | H53: ='Other Inputs'!E260 -> 0.1179 | J53: = | K53: =D53*H53 -> 4125374.965
A56: =A53+1 -> 28 | B56: TOTAL FIRM STORAGE AND WORKING GAS CHARGES | K56: =K53+K31 -> 18543994.97
A60: 1/ | B60: =CONCATENATE("Exhibit 1.9 - ",'Other Inputs'!G22) -> Exhibit 1.9 - 1/1/2013
A61: 2/ | B61: Questar Gas planned volumes.
A62: 3/ | B62: (½ of Line 14 + sum of Lines 15 through 25 + ½ of Line 26) / 12

Sheet Ut 1.4 p1
H1: ='Control Panel'!$F$32 -> Questar Gas Company
H2: ='Control Panel'!$F$33 -> Docket No. 13-057-03
H3: Exhibit 1.4
H4: Page 1 of 3
B8: SUMMARY OF TEST-YEAR GAS RELATED COSTS AND REVENUES CREDITS
B11: (A) | E11: (B) | F11: (C) | G11: (D)
B12: Component | E12: Costs | F12: Dth | G12: $ per Dth
A14: 1 | C14: Questar Gas Production 1/ | E14: ='Other Inputs'!D186 -> 366685887.4
A15: =A14+1 -> 2 | C15: Other Revenues Credits 2/ | E15: =-'Ut 1.4 p3'!H32 -> -32713841
A16: =A15+1 -> 3 | D16: Net Questar Gas Production Costs | E16: =E14+E15 -> 333972046.4 | F16: =F21 -> 73217730 | G16: =E16/F21 -> 4.561354831
A18: =A16+1 -> 4 | D18: Gathering 3/ | E18: ='Ut 1.3 p1'!L53+'Ut 1.3 p1'!M51 -> 17509300
A21: =A18+1 -> 5 | B21: Total Cost of Questar Gas Production | E21: =SUM(E16:E18) -> 351481346.4 | F21: ='Monthly Inputs'!S16 -> 73217730 | G21: =E21/F21 -> 4.800494995
A23: =A21+1 -> 6 | B23: Questar Gas Contract Gas 4/ | E23: ='Ut 1.2'!G24 -> 194788454 | F23: ='Ut 1.2'!E24 -> 41119222 | G23: =E23/F23 -> 4.737162926
A25: =A23+1 -> 7 | B25: Injection / Withdrawal Adjustment 5/ | E25: ='Ut 1.4 p2'!H23 -> 3243341.521
A27: =A25+1 -> 8 | B27: Transportation & Other Costs 6/ | E27: ='Ut 1.3 p1'!M60-E18-'Ut 1.3 p1'!M57 -> 65590030 | F27: ='Ut 1.3 p1'!F35 -> 112580716.5 | G27: =E27/F27 -> 0.582604482
A29: =A27+1 -> 9 | B29: Storage & Working Gas 7/ | E29: ='Ut 1.3 p2'!K56 -> 18543994.97
B31: Gas Management Costs | E31: ='Ut 1.3 p1'!M57 -> 0
A34: =A29+1 -> 10 | B34: Questar Gas - Related Gas Costs for Rate Purposes 8/ | E34: =E21+E23+E25+E27+E29+E31 -> 633647166.9 | F34: ='Ut 1.6 p1'!H23 -> 110453764 | G34: =E34/F34 -> 5.736763909
A41: 1/ | B41: Exhibit 1.1, Last Page.
A42: 2/ | B42: Exhibit 1.4, Page 3, Line 8.
A43: 3/ | B43: Exhibit 1.3, Page 1, Lines 19 + 20.
A44: 4/ | B44: Exhibit 1.2, Line 6.
A45: 5/ | B45: Exhibit 1.4, Page 2, Line 7.
A46: 6/ | B46: Exhibit 1.3, Page 1, Lines 9 + 16 + 21.
A47: 7/ | B47: Exhibit 1.3, Page 2, Line 28.
A48: 8/ | B48: Exhibit 1.6, Page 1, Line 6.

Sheet Ut 1.4 p2
J1: ='Control Panel'!$F$32 -> Questar Gas Company
J2: ='Control Panel'!$F$33 -> Docket No. 13-057-03
J3: Exhibit 1.4
J4: Page 2 of 3
B8: ANNUALIZED UNIT COST OF STORAGE GAS
C11: (A) | E11: (B) | F11: (C) | H11: (D)
F12: Average
E13: Dth | F13: Rate | H13: Total Costs
B15: 1 | C15: Company Production 1/ | E15: ='Ut 1.4 p1'!F21 -> 73217730 | F15: =H15/E15 -> 5.008157006 | H15: ='Ut 1.4 p1'!E14 -> 366685887.4
B16: =B15+1 -> 2 | C16: Purchased Gas 2/ | E16: ='Ut 1.2'!E24 -> 41119222 | F16: =H16/E16 -> 4.737162926 | H16: ='Ut 1.2'!G24 -> 194788454
B17: =B16+1 -> 3 | C17: Average Price | E17: =SUM(E15:E16) -> 114336952 | F17: =(+H15+H16)/(+E15+E16) -> 4.910698874 | H17: =SUM(H15:H16) -> 561474341.4
B20: 4 | C20: Storage 3/
B21: =B20+1 -> 5 | C21: Withdrawals | E21: ='Monthly Inputs'!S48 -> 12221251 | F21: ='Ut Storage'!L27 -> 4.917431686 | H21: =E21*F21 -> 60097166.91
B22: =B21+1 -> 6 | C22: Injections | E22: =-'Monthly Inputs'!S40 -> -11393793 | F22: ='Ut Storage'!K27 -> 4.989894532 | H22: =E22*F22 -> -56853825.38
B23: =B22+1 -> 7 | C23: Storage Adjustment | H23: =H21+H22 -> 3243341.521
B29: 1/ | C29: Exhibit 1.1, last Page.
B30: 2/ | C30: Exhibit 1.2, Line 6.
B31: 3/ | C31: Questar Gas Company planned volumes.

Sheet Ut 1.4 p3
K1: ='Control Panel'!$F$32 -> Questar Gas Company
K2: ='Control Panel'!$F$33 -> Docket No. 13-057-03
K3: Exhibit 1.4
K4: Page 3 of 3
D8: OTHER REVENUES
C11: (A) | E11: (B) | F11: (C) | G11: (D)
C12: Account | G12: =Expenses!S8 -> 12 Months Ending
C13: Number | E13: Account Name | G13: ='Control Panel'!F7 -> 2014-05-31
B15: 1 | D15: 483 | E15: Sales for Resale | H15: ='Other Inputs'!F193 -> 4390185 | I15: 1/
B18: =B15+1 -> 2 | D18: 490 | E18: Plant By-Product | H18: ='Other Inputs'!F194 -> 6084996 | I18: 1/
B21: =B18+1 -> 3 | D21: 492 | E21: Gasoline and Oil Sales | F21: ='Other Inputs'!F195 -> 1129505 | G21: 1/
B22: =B21+1 -> 4 | D22: 758-1 | E22: Gasoline and Oil Cost | F22: ='Other Inputs'!F198 -> -169426 | G22: 1/
B23: =B22+1 -> 5 | E23: Net Gasoline and Oil Sales | H23: =F21+F22 -> 960079
B26: =B23+1 -> 6 | D26: 495-1 | E26: Overriding Royalty Revenue | H26: ='Other Inputs'!F196 -> 20977793 | I26: 1/
E27: from Questar E & P
B29: =B26+1 -> 7 | D29: 495-2 | E29: Oil Revenue Received from Wexpro | H29: ='Other Inputs'!F197 -> 300788 | I29: 1/
B32: =B29+1 -> 8 | E32: Total | H32: =SUM(H15:H29) -> 32713841
B39: 1/ | D39: Forecasted 12-month test year.

Sheet Ut 1.5
H1: ='Control Panel'!$F$32 -> Questar Gas Company
H2: ='Control Panel'!$F$33 -> Docket No. 13-057-03
H3: Exhibit 1.5
B8: TEST-YEAR GAS COST ALLOCATION
B11: (A) | D11: (B) | E11: (C) | F11: (D) | G11: (E)
D12: Allocation
D13: Factor 1/ | E13: System | F13: Wyoming | G13: Utah
A15: 1 | B15: Questar Gas Production (Exhibit 1.1) | D15: 2 | E15: ='Ut 1.4 p1'!E14 -> 366685887.4 | F15: =CHOOSE($D15,F$51,F$54)*$E15 -> 13176790.94 | G15: 353509096.5
A16: =A15+1 -> 2 | B16: Other Revenue's Credit (Exhibit 1.4, p 3) | D16: 2 | E16: ='Ut 1.4 p1'!E15 -> -32713841 | F16: -1175565.95 | G16: -31538275.05
A17: =A16+1 -> 3 | B17: Gathering (Exhibit 1.3, p 1) | C17: - Demand | D17: 1 | E17: ='Ut 1.3 p1'!L49 -> 9110010 | F17: 300631.2582 | G17: 8809378.742
A18: =A17+1 -> 4 | B18: Gathering | C18: - Commodity | D18: 2 | E18: ='Ut 1.3 p1'!L53+'Ut 1.3 p1'!L50 -> 8399290 | F18: 301826.9646 | G18: 8097463.035
A19: =A18+1 -> 5 | B19: Net Cost of Questar Gas Production | E19: =SUM(E15:E18) -> 351481346.4 | F19: =SUM(F15:F18) -> 12603683.21 | G19: =SUM(G15:G18) -> 338877663.2
A21: =A19+1 -> 6 | B21: Questar Gas Contract Gas (Exhibit 1.2) | D21: 2 | E21: ='Ut 1.4 p1'!E23 -> 194788454 | F21: =CHOOSE($D21,F$51,F$54)*$E21 -> 6999687.807 | G21: =CHOOSE($D21,G$51,G$54)*$E21 -> 187788766.2
A24: =A21+1 -> 7 | B24: Injection / Withdrawal Adjustment (Exhibit 1.4, p 1) | D24: 2 | E24: ='Ut 1.4 p1'!E25 -> 3243341.521 | F24: =CHOOSE($D24,F$51,F$54)*$E24 -> 116548.89 | G24: =CHOOSE($D24,G$51,G$54)*$E24 -> 3126792.631
A27: =A24+1 -> 8 | B27: Transportation (Exhibit 1.3, p 1) | C27: - Demand | D27: 1 | E27: ='Ut 1.3 p1'!M29 -> 62296822 | F27: =CHOOSE($D27,F$51,F$54)*$E27 -> 2055801.473 | G27: =CHOOSE($D27,G$51,G$54)*$E27 -> 60241020.53
A28: =A27+1 -> 9 | B28: Transportation | C28: - Commodity | D28: 2 | E28: ='Ut 1.3 p1'!M44 -> 565165 | F28: =CHOOSE($D28,F$51,F$54)*$E28 -> 20309.10189 | G28: =CHOOSE($D28,G$51,G$54)*$E28 -> 544855.8981
A31: =A28+1 -> 10 | B31: Storage (Exhibit 1.3, p 2) | C31: - Demand | D31: 1 | E31: ='Ut 1.3 p2'!J20 -> 14025058 | F31: =CHOOSE($D31,F$51,F$54)*$E31 -> 462828.343 | G31: =CHOOSE($D31,G$51,G$54)*$E31 -> 13562229.66
A32: =A31+1 -> 11 | B32: Storage | C32: - Commodity | D32: 2 | E32: ='Ut 1.3 p2'!J29 -> 393562 | F32: =CHOOSE($D32,F$51,F$54)*$E32 -> 14142.57917 | G32: =CHOOSE($D32,G$51,G$54)*$E32 -> 379419.4208
A35: =A32+1 -> 12 | B35: Other Transportation - Commodity (Exhibit 1.3, p1) | D35: 2 | E35: ='Ut 1.3 p1'!L54 -> 2728043 | F35: =CHOOSE($D35,F$51,F$54)*$E35 -> 98031.731 | G35: =CHOOSE($D35,G$51,G$54)*$E35 -> 2630011.269
A38: =A35+1 -> 13 | B38: Working Gas Costs (Exhibit 1.3, p 2) | D38: 2 | E38: ='Ut 1.3 p2'!K53 -> 4125374.965 | F38: =CHOOSE($D38,F$51,F$54)*$E38 -> 148244.602 | G38: =CHOOSE($D38,G$51,G$54)*$E38 -> 3977130.363
A41: =A38+1 -> 14 | B41: Totals | E41: =SUM(E19:E38) -> 633647166.9 | F41: =SUM(F19:F38) -> 22519277.74 | G41: =SUM(G19:G38) -> 611127889.2
A48: 1/ | B48: Allocation Factors | E48: Total | F48: Wyoming | G48: Utah
B50: #1 Peak Day Demand | D50: Dth- | E50: =SUM(F50:G50) -> 1285693 | F50: ='Other Inputs'!$E$134 -> 42428 | G50: ='Other Inputs'!$E$133 -> 1243265
D51: Percent- | E51: =F51+G51 -> 1 | F51: =F50/E50 -> 0.03300010189 | G51: =G50/E50 -> 0.9669998981
B53: #2 Commodity Sales - All | D53: Dth- | E53: =F53+G53 -> 110453764 | F53: ='Ut 1.6 p1'!H22 -> 3969136 | G53: ='Ut 1.6 p1'!H21 -> 106484628
D54: Percent- | E54: =F54+G54 -> 1 | F54: =F53/E53 -> 0.03593481884 | G54: =G53/E53 -> 0.9640651812

Sheet Ut 1.6 p1
J1: ='Control Panel'!$F$32 -> Questar Gas Company
J2: ='Control Panel'!$F$33 -> Docket No. 13-057-03
J3: Exhibit 1.6
J4: Page 1 of 3
B8: TEST-YEAR GAS COST CHANGE
B11: (A) | C11: (B) | D11: (C) | F11: (D) | H11: (E) | J11: (F)
F12: Average Rate | H12: x Dth | I12: = | J12: Total
A13: 1 | B13: Utah Allocation of Questar Gas-Related Gas Costs (Exhibit 1.5) 1/ | J13: ='Ut 1.5'!G41 -> 611127889.2
B14: Less:
A15: =A13+1 -> 2 | B15: IS Class Commodity Credit 2/ | F15: =Calculations!P234 -> 4.600157728 | H15: ='RevRun Fcst'!T93+'RevRun Fcst'!T111 -> 2687596 | J15: =-H15*F15 -> -12363365.51
A16: =A15+1 -> 3 | B16: Net Utah Gas Costs (for Firm Sales) | J16: =J13+J15 -> 598764523.7
H18: Total
B19: Test-Year Sales: 2/ | D19: Firm | F19: + Interruptible | H19: = Sales Dth
A21: =A16+1 -> 4 | B21: Utah | D21: =Calculations!P13 -> 103797032 | F21: =Calculations!P17 -> 2687596 | H21: =D21+F21 -> 106484628
A22: =A21+1 -> 5 | B22: Wyoming | D22: =Calculations!P32 -> 3821710 | F22: =Calculations!P36 -> 147426 | H22: =D22+F22 -> 3969136
A23: =A22+1 -> 6 | B23: Total Dth | H23: =SUM(H21:H22) -> 110453764
A25: =A23+1 -> 7 | B25: Supplier Non-Gas Costs 3/ | J25: =(-'Ut 1.6 p2'!F14) -> -93672262.25
A28: =A25+1 -> 8 | B28: Commodity Portion of Test-Year Gas Cost (Lines 3 + 7) | J28: =J16+J25+J26 -> 505092261.4
F31: Current Case | H31: Prior Case
B32: FIRM CUSTOMER RATES | F32: ='Control Panel'!F5 -> 13-057-03 | H32: ='Control Panel'!F9 -> 12-057-08 | J32: Difference
A34: =A28+1 -> 9 | B34: Firm Gas Cost (line 8/ Firm Sales, line 4) | F34: =ROUND((J28)/D21,5) -> 4.86615 | H34: ='Other Inputs'!F109 -> 4.0888 | J34: =F34-H34 -> 0.77735 | M34: =J34*D21 -> 80686622.83
A35: =A34+1 -> 10 | B35: 191 Account Amortization (Commodity Portion) 4/ | F35: =D55/D21 -> -0.07576175203 | H35: ='Other Inputs'!F110 -> 0.07335 | J35: =F35-H35 -> -0.149111752 | M35: =J35*D21 -> -15477357.3
A36: =A35+1 -> 11 | B36: Total Firm Sales Unit Commodity Cost (Lines 9 + 10) | F36: =F34+F35 -> 4.790388248 | H36: =H34+H35 -> 4.16215 | J36: =J34+J35 -> 0.628238248 | M36: =SUM(M34:M35) -> 65209265.53
A46: 1/ | B46: Exhibit 1.5, Line 14, Column E.
A48: 2/ | B48: ="Revrun.exe - "&'RevRun Fcst'!D4 -> Revrun.exe - 4/15/2013 | D48: Dth | E48: x | F48: est. Com. Rate | G48: = | H48: Com. Revenues
C49: IS | D49: =H15 -> 2687596 | F49: =F15 -> 4.600157728 | H49: =D49*F49 -> 12363365.51
A51: 3/ | B51: Test Year Estimate of Transportation, Gathering, and Storage billings.
A53: 4/ | B53: 191 Account (Mar 2013) actual | D53: ='Other Inputs'!E127 -> -30955939
B54: Less: Supplier Non-Gas balance actual | D54: ='Other Inputs'!E128 -> -23092094
B55: 191 Account Commodity Portion | D55: =D53-D54 -> -7863845 | F55: =D21 -> 103797032 | H55: =D55/F55 -> -0.07576175203

Sheet Ut 1.6 p2
E1: Questar Gas Company
G2: ='Control Panel'!$F$33 -> Docket No. 13-057-03
G3: Exhibit 1.6
G4: Page 2 of 3
C8: TEST-YEAR SUPPLIER NON-GAS COST CHANGE
C11: (A) | D11: (B) | E11: (C) | F11: (D)
D12: Dth | E12: Average Rate | F12: Total
B14: 1 | C14: Supplier Non-Gas (SNG) Costs 1/ | F14: ='Ut 1.5'!G27+'Ut 1.5'!G31+'Ut 1.5'!G17+(+'Ut 1.3 p1'!L35+'Ut 1.3 p1'!L42+'Ut 1.3 p1'!L53+'Ut 1.3 p1'!L54+'Ut 1.3 p1'!L50)*'Ut 1.5'!G54 -> 93672262.25
B15: =B14+1 -> 2 | C15: 191 Account Balance for SNG Costs 2/ | F15: 0
B16: =1+B15 -> 3 | C16: Total | F16: =SUM(F14:F15) -> 93672262.25
B19: =B16+1 -> 4 | C19: SNG Costs Recovered at Current Rates 3/ | F19: ='Other Inputs'!E208-(D29*('Other Inputs'!G83-'Other Inputs'!F209)) -> 97447292.93
B22: =1+B19 -> 5 | C22: SNG Costs Adjustment to Current Rates (Line 3 - Line 4) | F22: =F16-F19 -> -3775030.684
B28: 6a | C28: Adjustment for SNG contributions from:
B29: 6b | C29: IS SNG current rate | D29: ='Ut 1.6 p1'!$H$15 -> 2687596 | E29: ='Ut 1.6 p3'!E24 -> 0.1792 | F29: =D29*E29 -> 481617.2032
B30: 6c | C30: IS SNG new rate | D30: ='Ut 1.6 p1'!$H$15 -> 2687596 | E30: ='Ut 1.6 p3'!I24 -> 0.1792 | F30: =D30*E30 -> 481617.2032
B35: =2+B22 -> 7 | C35: Percent Change to Current Rates | F35: =(((+F16-F30)-(F19-F29))/(F19-F29))*100 -> -3.893161838 | G35: %
C36: ((ln 3-ln 6c)-(ln 4-ln 6b))/(ln 4-ln 6b)
B42: 1/ | C42: Exhibit 1.6, Page 1, Line 7.
E43: SNG Balance
B44: 2/ | C44: March 2013 SNG Balance - Actual | E44: ='Other Inputs'!E128 -> -23092094
C45: This balance will not be amortized in this filing
B46: 2/ | C46: The Company is proposing to amortize the SNG Account
C47: 191 balance only in the fall pass-throughs. As of July 31, 2009 the SNG Account 191 balance is ($19,007,538).
B50: 3/ | C50: ="Output of Revrun.Exe computer program dated "&'RevRun Fcst'!D4 -> Output of Revrun.Exe computer program dated 4/15/2013

Sheet Ut 1.6 p3
I1: ='Control Panel'!$F$32 -> Questar Gas Company
I2: ='Control Panel'!$F$33 -> Docket No. 13-057-03
I3: Exhibit 1.6
I4: Page 3 of 3
F8: TEST YEAR CHANGE IN SUPPLIER NON-GAS COSTS
F9: BY RATE CLASS
C12: (A) | D12: (B) | E12: (C) | F12: (D) | G12: (E) | H12: (F) | I12: (G)
G13: Rate per Dth
C14: Rate Class | D14: Season | E14: Current total 1/ | F14: Curr. Base 1/ | G14: Calc. Base 2/ | H14: Amortization 3/ | I14: Total 4/ | K14: CHECK !! | M14: Current Amort.
B16: 1 | C16: GS | D16: Winter | E16: ='Other Inputs'!G73 -> 1.11075 | F16: ='Other Inputs'!E73 -> 1.11075 | G16: =ROUND(E16*('Ut 1.6 p2'!$F$14-'Ut 1.6 p2'!$F$30)/('Ut 1.6 p2'!$F$19-'Ut 1.6 p2'!$F$29),5) -> 1.06751 | H16: =I16-G16 -> 0 | I16: =ROUND(E16*ROUND(1+'Ut 1.6 p2'!$F$35/100,7),5)+M16 -> 1.06751 | K16: =ROUND(G16*('Ut 1.6 p2'!$F$15)/('Ut 1.6 p2'!$F$14-'Ut 1.6 p2'!$F$30),5)-H16 -> 0 | M16: 0
B17: =B16+1 -> 2 | D17: Summer | E17: ='Other Inputs'!G74 -> 0.52151 | F17: ='Other Inputs'!E74 -> 0.52151 | G17: =ROUND(E17*('Ut 1.6 p2'!$F$14-'Ut 1.6 p2'!$F$30)/('Ut 1.6 p2'!$F$19-'Ut 1.6 p2'!$F$29),5) -> 0.50121 | H17: =I17-G17 -> 0 | I17: =ROUND(E17*ROUND(1+'Ut 1.6 p2'!$F$35/100,7),5)+M17 -> 0.50121 | K17: =ROUND(G17*('Ut 1.6 p2'!$F$15)/('Ut 1.6 p2'!$F$14-'Ut 1.6 p2'!$F$30),5)-H17 -> 0 | M17: 0
B19: =B17+1 -> 3 | C19: FS | D19: Winter | E19: ='Other Inputs'!G76 -> 1.08183 | F19: ='Other Inputs'!E76 -> 1.08183 | G19: =ROUND(E19*('Ut 1.6 p2'!$F$14-'Ut 1.6 p2'!$F$30)/('Ut 1.6 p2'!$F$19-'Ut 1.6 p2'!$F$29),5) -> 1.03971 | H19: =I19-G19 -> 0 | I19: =ROUND(E19*ROUND(1+'Ut 1.6 p2'!$F$35/100,7),5)+M19 -> 1.03971 | K19: =ROUND(G19*('Ut 1.6 p2'!$F$15)/('Ut 1.6 p2'!$F$14-'Ut 1.6 p2'!$F$30),5)-H19 -> 0 | M19: 0
B20: =B19+1 -> 4 | D20: Summer | E20: ='Other Inputs'!G77 -> 0.52149 | F20: ='Other Inputs'!E77 -> 0.52149 | G20: =ROUND(E20*('Ut 1.6 p2'!$F$14-'Ut 1.6 p2'!$F$30)/('Ut 1.6 p2'!$F$19-'Ut 1.6 p2'!$F$29),5) -> 0.50119 | H20: =I20-G20 -> 0 | I20: =ROUND(E20*ROUND(1+'Ut 1.6 p2'!$F$35/100,7),5)+M20 -> 0.50119 | K20: =ROUND(G20*('Ut 1.6 p2'!$F$15)/('Ut 1.6 p2'!$F$14-'Ut 1.6 p2'!$F$30),5)-H20 -> 0 | M20: 0
B22: =B20+1 -> 5 | C22: NGV | E22: ='Other Inputs'!G81 -> 0.80155 | F22: ='Other Inputs'!E81 -> 0.80155 | G22: =ROUND(E22*('Ut 1.6 p2'!$F$14-'Ut 1.6 p2'!$F$30)/('Ut 1.6 p2'!$F$19-'Ut 1.6 p2'!$F$29),5) -> 0.77034 | H22: =I22-G22 -> 0 | I22: =ROUND(E22*ROUND(1+'Ut 1.6 p2'!$F$35/100,7),5)+M22 -> 0.77034 | K22: =ROUND(G22*('Ut 1.6 p2'!$F$15)/('Ut 1.6 p2'!$F$14-'Ut 1.6 p2'!$F$30),5)-H22 -> 0 | M22: 0
B24: =B22+1 -> 6 | C24: IS 5/ | E24: ='Other Inputs'!F209 -> 0.1792 | F24: ='Other Inputs'!F209 -> 0.1792 | G24: ='Other Inputs'!$F$48 -> 0.1792 | H24: =I24-G24 -> 0 | I24: ='Other Inputs'!$F$48 -> 0.1792
B26: =B24+1 -> 7 | C26: ES | E26: ='Other Inputs'!G86 -> 5.75759 | F26: ='Other Inputs'!E86 -> 5.75759 | G26: =ROUND(E26*('Ut 1.6 p2'!$F$14-'Ut 1.6 p2'!$F$30)/('Ut 1.6 p2'!$F$19-'Ut 1.6 p2'!$F$29),5) -> 5.53344 | H26: =I26-G26 -> 0 | I26: =ROUND(E26*ROUND(1+'Ut 1.6 p2'!$F$35/100,7),5)+M26 -> 5.53344 | K26: =ROUND(G26*('Ut 1.6 p2'!$F$15)/('Ut 1.6 p2'!$F$14-'Ut 1.6 p2'!$F$30),5)-H26 -> 0 | M26: 0
B33: 1/ | C33: Current Questar Gas Tariff (excluding bad debt surcharge).
B35: 2/ | C35: Exhibit 1.6 page 2 (line 1 - line 6c)/(line 4 - line 6b)*Exhibit 1.6 page 3 column C. (N.A. to line 6)
B37: 3/ | C37: Column G - Column E
B39: 4/ | C39: (Current Questar Gas rates) x (1+Exhibit 1.6, Page 2, Line 7, % change).
C40: ="(except ln. 6, which is calculated by adding QPC T-2 and ACA rates, then adjusting for distr. loss of "&TEXT('Other Inputs'!E262,"0.000%") -> (except ln. 6, which is calculated by adding QPC T-2 and ACA rates, then adjusting for distr. loss of 0.490%
C41: ="= ("&TEXT('Other Inputs'!$F$42,"$0.00000")&" + "&TEXT('Other Inputs'!$F$44,"$0.00000")&") / ( 1 - "&TEXT('Other Inputs'!$E$262,"0.00000")&" ) = "&TEXT(('Other Inputs'!F42+'Other Inputs'!F44)/(1-('Other Inputs'!$E$262)),("$0.00000")) -> = ($0.17652 + $0.00180) / ( 1 - 0.00490 ) = $0.17920
B43: 5/ | C43: ="IS Tariff rate has an adjustment for bad debt of "&TEXT('Other Inputs'!$E$273,"0.0%")&" = "&TEXT($I$24,"$0.00000")&" / ( 1 - "&TEXT('Other Inputs'!$E$273,"0.00000")&" ) = "&TEXT($I$24/(1-('Other Inputs'!$E$273)),("$0.00000")) -> IS Tariff rate has an adjustment for bad debt of 0.3% = $0.17920 / ( 1 - 0.00300 ) = $0.17974

Sheet Ut 1.7
L1: ='Control Panel'!$F$32 -> Questar Gas Company
L2: ='Control Panel'!$F$33 -> Docket No. 13-057-03
L3: Exhibit 1.7
C7: EFFECT ON GS TYPICAL CUSTOMER
C8: 80 DTHS - ANNUAL CONSUMPTION
C11: (A) | D11: (B) | E11: (C) | F11: (D) | H11: (E) | J11: (F)
F12: Billed at Current | H12: Billed at
C13: Rate | E13: Usage | F13: Rates Effective | H13: Proposed
C14: Schedule | D14: Month | E14: In Dth | F14: ='Other Inputs'!J90 -> 2012-12-01 | H14: Rates | J14: Change
B16: 1 | C16: GS | D16: Jan | E16: ='Monthly Inputs'!G122 -> 14.9 | F16: =ROUND((+E16*'Other Inputs'!$G$92)+'Other Inputs'!$G$94,2) -> 122.93 | H16: =ROUND((+E16*'Ut 1.8'!$F$10)+'Ut 1.8'!$C$12,2) -> 131.65 | J16: =H16-F16 -> 8.72
B17: =B16+1 -> 2 | D17: Feb | E17: ='Monthly Inputs'!G123 -> 12.5 | F17: =ROUND((+E17*'Other Inputs'!$G$92)+'Other Inputs'!$G$94,2) -> 103.94 | H17: =ROUND((+E17*'Ut 1.8'!$F$10)+'Ut 1.8'!$C$12,2) -> 111.25 | J17: 7.31
B18: =B17+1 -> 3 | D18: Mar | E18: ='Monthly Inputs'!G124 -> 10.1 | F18: =ROUND((+E18*'Other Inputs'!$G$92)+'Other Inputs'!$G$94,2) -> 84.94 | H18: =ROUND((+E18*'Ut 1.8'!$F$10)+'Ut 1.8'!$C$12,2) -> 90.85 | J18: 5.91
B19: 4 | D19: Apr | E19: ='Monthly Inputs'!G125 -> 8.3 | F19: =ROUND((+E19*'Other Inputs'!$G$90)+'Other Inputs'!$G$94,2) -> 62.69 | H19: =ROUND((+E19*'Ut 1.8'!$C$10)+'Ut 1.8'!$C$12,2) -> 67.74 | J19: 5.05
B20: 5 | D20: May | E20: ='Monthly Inputs'!G126 -> 4.4 | F20: =ROUND((+E20*'Other Inputs'!$G$90)+'Other Inputs'!$G$94,2) -> 35.58 | H20: =ROUND((+E20*'Ut 1.8'!$C$10)+'Ut 1.8'!$C$12,2) -> 38.26 | J20: 2.68
B21: 6 | D21: Jun | E21: ='Monthly Inputs'!G127 -> 3.1 | F21: =ROUND((+E21*'Other Inputs'!$G$90)+'Other Inputs'!$G$94,2) -> 26.55 | H21: =ROUND((+E21*'Ut 1.8'!$C$10)+'Ut 1.8'!$C$12,2) -> 28.43 | J21: 1.88
B22: 7 | D22: Jul | E22: ='Monthly Inputs'!G128 -> 2 | F22: =ROUND((+E22*'Other Inputs'!$G$90)+'Other Inputs'!$G$94,2) -> 18.9 | H22: =ROUND((+E22*'Ut 1.8'!$C$10)+'Ut 1.8'!$C$12,2) -> 20.12 | J22: 1.22
B23: 8 | D23: Aug | E23: ='Monthly Inputs'!G129 -> 1.8 | F23: =ROUND((+E23*'Other Inputs'!$G$90)+'Other Inputs'!$G$94,2) -> 17.51 | H23: =ROUND((+E23*'Ut 1.8'!$C$10)+'Ut 1.8'!$C$12,2) -> 18.61 | J23: 1.1
B24: 9 | D24: Sep | E24: ='Monthly Inputs'!G130 -> 2 | F24: =ROUND((+E24*'Other Inputs'!$G$90)+'Other Inputs'!$G$94,2) -> 18.9 | H24: =ROUND((+E24*'Ut 1.8'!$C$10)+'Ut 1.8'!$C$12,2) -> 20.12 | J24: 1.22
B25: 10 | D25: Oct | E25: ='Monthly Inputs'!G131 -> 3.1 | F25: =ROUND((+E25*'Other Inputs'!$G$90)+'Other Inputs'!$G$94,2) -> 26.55 | H25: =ROUND((+E25*'Ut 1.8'!$C$10)+'Ut 1.8'!$C$12,2) -> 28.43 | J25: 1.88
B26: 11 | D26: Nov | E26: ='Monthly Inputs'!G132 -> 6.3 | F26: =ROUND((+E26*'Other Inputs'!$G$92)+'Other Inputs'!$G$94,2) -> 54.86 | H26: =ROUND((+E26*'Ut 1.8'!$F$10)+'Ut 1.8'!$C$12,2) -> 58.55 | J26: 3.69
B27: 12 | D27: Dec | E27: ='Monthly Inputs'!G133 -> 11.5 | F27: =ROUND((+E27*'Other Inputs'!$G$92)+'Other Inputs'!$G$94,2) -> 96.02 | H27: =ROUND((+E27*'Ut 1.8'!$F$10)+'Ut 1.8'!$C$12,2) -> 102.75 | J27: 6.73
B30: =B27+1 -> 13 | D30: Total | E30: =SUM(E16:E27) -> 80 | F30: =SUM(F16:F27) -> 669.37 | H30: =SUM(H16:H27) -> 716.76 | J30: =H30-F30 -> 47.39
H32: Percent Change: | J32: =ROUND(J30/F30,4)*100 -> 7.08 | K32: %

Sheet Ut 1.7 Tot
L1: ='Control Panel'!$F$32 -> Questar Gas Company
L2: Docket Nos. 08-057-15, 08-057-16 & 08-057-17
L3: Hearing Exhibit 2
C7: EFFECT ON GS-1 TYPICAL CUSTOMER
B8: OF PROPOSED COMMODITY AND SNG RATES AND CET AND DSM AMORTIZATIONS
C9: 80 DTHS - ANNUAL CONSUMPTION
C12: (A) | D12: (B) | E12: (C) | F12: (D) | H12: (E) | J12: (F)
F13: Billed at Current | H13: Billed at
C14: Rate | E14: Usage | F14: Rates Effective | H14: Proposed
C15: Schedule | D15: Month | E15: In Dth | F15: ='Other Inputs'!J90 -> 2012-12-01 | H15: Rates | J15: Change
B17: 1 | C17: GS | D17: Jan | E17: ='Monthly Inputs'!G122 -> 14.9 | F17: =ROUND((+E17*'Other Inputs'!$G$92)+'Other Inputs'!$G$94,2) -> 122.93 | H17: ='CET & DSM'!D107 -> 148.36 | J17: =H17-F17 -> 25.43
B18: =B17+1 -> 2 | D18: Feb | E18: ='Monthly Inputs'!G123 -> 12.5 | F18: =ROUND((+E18*'Other Inputs'!$G$92)+'Other Inputs'!$G$94,2) -> 103.94 | H18: ='CET & DSM'!D108 -> 125.27 | J18: 21.33
B19: 3 | D19: Mar | E19: ='Monthly Inputs'!G124 -> 10.1 | F19: =ROUND((+E19*'Other Inputs'!$G$92)+'Other Inputs'!$G$94,2) -> 84.94 | H19: ='CET & DSM'!D109 -> 102.18 | J19: 17.24
B20: 4 | D20: Apr | E20: ='Monthly Inputs'!G125 -> 8.3 | F20: =ROUND((+E20*'Other Inputs'!$G$90)+'Other Inputs'!$G$94,2) -> 62.69 | H20: ='CET & DSM'!D110 -> 72.53 | J20: 9.84
B21: 5 | D21: May | E21: ='Monthly Inputs'!G126 -> 4.4 | F21: =ROUND((+E21*'Other Inputs'!$G$90)+'Other Inputs'!$G$94,2) -> 35.58 | H21: ='CET & DSM'!D111 -> 40.8 | J21: 5.22
B22: 6 | D22: Jun | E22: ='Monthly Inputs'!G127 -> 3.1 | F22: =ROUND((+E22*'Other Inputs'!$G$90)+'Other Inputs'!$G$94,2) -> 26.55 | H22: ='CET & DSM'!D112 -> 30.22 | J22: 3.67
B23: 7 | D23: Jul | E23: ='Monthly Inputs'!G128 -> 2 | F23: =ROUND((+E23*'Other Inputs'!$G$90)+'Other Inputs'!$G$94,2) -> 18.9 | H23: ='CET & DSM'!D113 -> 21.27 | J23: 2.37
B24: 8 | D24: Aug | E24: ='Monthly Inputs'!G129 -> 1.8 | F24: =ROUND((+E24*'Other Inputs'!$G$90)+'Other Inputs'!$G$94,2) -> 17.51 | H24: ='CET & DSM'!D114 -> 19.64 | J24: 2.13
B25: 9 | D25: Sep | E25: ='Monthly Inputs'!G130 -> 2 | F25: =ROUND((+E25*'Other Inputs'!$G$90)+'Other Inputs'!$G$94,2) -> 18.9 | H25: ='CET & DSM'!D115 -> 21.27 | J25: 2.37
B26: 10 | D26: Oct | E26: ='Monthly Inputs'!G131 -> 3.1 | F26: =ROUND((+E26*'Other Inputs'!$G$90)+'Other Inputs'!$G$94,2) -> 26.55 | H26: ='CET & DSM'!D116 -> 30.22 | J26: 3.67
B27: 11 | D27: Nov | E27: ='Monthly Inputs'!G132 -> 6.3 | F27: =ROUND((+E27*'Other Inputs'!$G$92)+'Other Inputs'!$G$94,2) -> 54.86 | H27: ='CET & DSM'!D117 -> 65.62 | J27: 10.76
B28: 12 | D28: Dec | E28: ='Monthly Inputs'!G133 -> 11.5 | F28: =ROUND((+E28*'Other Inputs'!$G$92)+'Other Inputs'!$G$94,2) -> 96.02 | H28: ='CET & DSM'!D118 -> 115.65 | J28: 19.63
B31: =B28+1 -> 13 | D31: Total | E31: =SUM(E17:E28) -> 80 | F31: =SUM(F17:F28) -> 669.37 | H31: =SUM(H17:H28) -> 793.03 | J31: =H31-F31 -> 123.66
H33: Percent Change: | J33: =ROUND(J31/F31,4)*100 -> 18.47 | K33: %

Sheet Ut 1.8
A1: SUMMARY OF PROPOSED RATES
A3: UTAH RATE CLASSES | C3: Rates per Dth Used Each Month
C4: All Season Rates or Summer Rates: Apr. 1 - Oct. 31 | F4: Winter Rates: Nov. 1 - Mar. 31
A5: UT GS | C5: First 45 Dth | D5: All Over 45 Dth | F5: First 45 Dth | G5: All Over 45 Dth
B6: Distribution Non-Gas Cost | C6: ='Other Inputs'!F218 -> 2.26698 | D6: ='Other Inputs'!F219 -> 1.00805 | F6: ='Other Inputs'!F220 -> 2.64202 | G6: ='Other Inputs'!F221 -> 1.25174
B7: Supplier Non-Gas Cost | C7: ='Ut 1.6 p3'!I17 -> 0.50121 | D7: =C7 -> 0.50121 | F7: ='Ut 1.6 p3'!I16 -> 1.06751 | G7: =F7 -> 1.06751
B8: Commodity Cost | C8: =('Ut 1.6 p1'!$F$36) -> 4.790388248 | D8: =C8 -> 4.790388248 | F8: =D8 -> 4.790388248 | G8: =F8 -> 4.790388248
B10: Total Rate | C10: =SUM(C6:C9) -> 7.558578248 | D10: =SUM(D6:D9) -> 6.299648248 | F10: =SUM(F6:F9) -> 8.499918248 | G10: =SUM(G6:G9) -> 7.109638248
B12: BSF Category 1 | C12: 5
B13: BSF Category 2 | C13: 21
B14: BSF Category 3 | C14: 55
B15: BSF Category 4 | C15: 244
A18: UT FS | C18: First 200 Dth | D18: Next 1,800 Dth | E18: All Over 2,000 Dth | F18: First 200 Dth | G18: Next 1,800 Dth | H18: All Over 2,000 Dth
B19: Distribution Non-Gas Cost | C19: 0.69341 | D19: 0.5445 | E19: 0.47444 | F19: 0.77424 | G19: 0.6214 | H19: 0.56027
B20: Supplier Non-Gas Cost | C20: ='Ut 1.6 p3'!$I$20 -> 0.50119 | D20: =C20 -> 0.50119 | E20: =D20 -> 0.50119 | F20: ='Ut 1.6 p3'!$I$19 -> 1.03971 | G20: =F20 -> 1.03971 | H20: =G20 -> 1.03971
B21: Commodity Cost | C21: =('Ut 1.6 p1'!$F$36) -> 4.790388248 | D21: =C21 -> 4.790388248 | E21: =D21 -> 4.790388248 | F21: =E21 -> 4.790388248 | G21: =F21 -> 4.790388248 | H21: =G21 -> 4.790388248
B23: Total Rate | C23: =SUM(C19:C22) -> 5.984988248 | D23: =SUM(D19:D22) -> 5.836078248 | E23: 5.766018248 | F23: 6.604338248 | G23: 6.451498248 | H23: 6.390368248
B25: Minimum Monthly DNG Charge: | C25: =ROUND(C19*175,0) -> 121 | F25: =ROUND(F19*175,0) -> 135
B27: BSF Category 1 | C27: =C12 -> 5
B28: BSF Category 2 | C28: =C13 -> 21
B29: BSF Category 3 | C29: =C14 -> 55
B30: BSF Category 4 | C30: =C15 -> 244
A33: UT Future Rate Class
C34: First 10,000 Dth | D34: All Over 10,000 Dth
B35: Distribution Non-Gas Cost
B36: Supplier Non-Gas Cost
B37: Commodity Cost
B39: Total Rate | C39: =SUM(C35:C38) -> 0 | D39: =SUM(D35:D38) -> 0
B41: Minimum Yearly Distribution Non-Gas Charge | D41: =ROUND(((10000*C35))*12,-2) -> 0
B44: BSF Category 1 | C44: =C12 -> 5
B45: BSF Category 2 | C45: =C13 -> 21
B46: BSF Category 3 | C46: =C14 -> 55
B47: BSF Category 4 | C47: =C15 -> 244
A51: UT NGV
B52: Distribution Non-Gas Cost | C52: 5.1946
B53: Supplier Non-Gas Cost | C53: ='Ut 1.6 p3'!I22 -> 0.77034
B54: Commodity Cost | C54: ='Ut 1.6 p1'!F36 -> 4.790388248
B56: Total Rate | C56: =SUM(C52:C55) -> 10.75532825
A59: UT IS | C59: First 2,000 Dth | D59: Next 18,000 Dth | E59: All Over 20,000
B60: Distribution Non-Gas Cost | C60: 0.23781 | D60: 0.21878 | E60: 0.20128
B61: Supplier Non-Gas Cost | C61: ='Ut 1.6 p3'!$I$24/(1-'Other Inputs'!$E$273) -> 0.1797392177 | D61: =C61 -> 0.1797392177 | E61: =D61 -> 0.1797392177
B62: Commodity Cost | C62: Determined Monthly
B64: Total Rate | C64: Determined Monthly
B66: BSF Category 1 | C66: 5
B67: BSF Category 2 | C67: 29
B68: BSF Category 3 | C68: 67
B69: BSF Category 4 | C69: 274
A72: UT ES
B73: Distribution Non-Gas Cost | C73: 1.77311
B74: Supplier Non-Gas Cost | C74: ='Ut 1.6 p3'!I26 -> 5.53344
B75: Commodity Cost
B77: Total Rate

Sheet Ut 1.9
D1: ='Control Panel'!$F$32 -> Questar Gas Company
D2: ='Control Panel'!$F$33 -> Docket No. 13-057-03
D3: Exhibit 1.9
D4: Page 1 of 2
D6: ='Control Panel'!$F$32 -> Questar Gas Company
D7: ='Control Panel'!$F$33 -> Docket No. 13-057-03
D8: Exhibit 1.9
D9: Page 2 of 2

Sheet Ut 1.10
P17: Exhibit 1.10 | Q17: =CONCATENATE("Docket No. ",'Control Panel'!F5) -> Docket No. 13-057-03

Sheet Wy 1.1
F1: Questar Gas Company
E2: ='Control Panel'!F37 -> PSCW Docket No. 30010-126-GP-13
F3: Exhibit 1.1
C4: Test Year Cost of Questar Gas' Production
C5: =CONCATENATE('Control Panel'!F40," through ",'Control Panel'!F41) -> Jun-13 through May-14
A7: (A) | B7: (B) | C7: (C) | D7: (D) | E7: (E) | F7: (F) | G7: (G) | H7: (H)
E8: Base Year | F8: Market | G8: Royalty | H8: Test Year
A9: Field Name | B9: Well Name | C9: Formation | D9: Price $ | E9: Dth | F9: Value $ | G9: Rate % | H9: Royalty $
A11: ACE UNIT (CO) | B11: ACE UNIT 2 FT UN | C11: FORT UNION | D11: =IF(LEFT(B11,12)=[2]Inputs!$C$24,[2]Inputs!$D$24,IF(LEFT(B11,13)=[2]Inputs!$C$25,[2]Inputs!$D$24,[2]Inputs!$D$26)) -> 4.403824546 | E11: 48539 | F11: =D11*E11 -> 213757.2397 | G11: 0.1268519763 | H11: =F11*G11 -> 27115.5283
B12: ACE UNIT 7 LOWER FT UN | C12: FORT UNION | D12: =IF(LEFT(B12,12)=[2]Inputs!$C$24,[2]Inputs!$D$24,IF(LEFT(B12,13)=[2]Inputs!$C$25,[2]Inputs!$D$24,[2]Inputs!$D$26)) -> 4.403824546 | E12: 29 | F12: =D12*E12 -> 127.7109118 | G12: 0.1268519763 | H12: =F12*G12 -> 16.20038156
B13: ACE UNIT 10 FT UN | C13: MESAVERDE | D13: =IF(LEFT(B13,12)=[2]Inputs!$C$24,[2]Inputs!$D$24,IF(LEFT(B13,13)=[2]Inputs!$C$25,[2]Inputs!$D$24,[2]Inputs!$D$26)) -> 4.403824546 | E13: 33158 | F13: 146022.0143 | G13: 0.1268519763 | H13: 18523.1811
B14: ACE UNIT 12 FT UN | C14: FORT UNION | D14: =IF(LEFT(B14,12)=[2]Inputs!$C$24,[2]Inputs!$D$24,IF(LEFT(B14,13)=[2]Inputs!$C$25,[2]Inputs!$D$24,[2]Inputs!$D$26)) -> 4.403824546 | E14: 97302 | F14: 428500.936 | G14: 0.1268519763 | H14: 54356.19058
B15: ACE UNIT 11 FT UN | C15: FORT UNION | D15: =IF(LEFT(B15,12)=[2]Inputs!$C$24,[2]Inputs!$D$24,IF(LEFT(B15,13)=[2]Inputs!$C$25,[2]Inputs!$D$24,[2]Inputs!$D$26)) -> 4.403824546 | E15: 31384 | F15: 138209.6296 | G15: 0.1268519763 | H15: 17532.16466
B16: ACE UNIT 13 FT UN | C16: FORT UNION | D16: =IF(LEFT(B16,12)=[2]Inputs!$C$24,[2]Inputs!$D$24,IF(LEFT(B16,13)=[2]Inputs!$C$25,[2]Inputs!$D$24,[2]Inputs!$D$26)) -> 4.403824546 | E16: 41036 | F16: 180715.3441 | G16: 0.1268519763 | H16: 22924.09855
A17: E HIAW (CO) | B17: HIAWATHA UNIT 1 FT UN | C17: FORT UNION | D17: =IF(LEFT(B17,12)=[2]Inputs!$C$24,[2]Inputs!$D$24,IF(LEFT(B17,13)=[2]Inputs!$C$25,[2]Inputs!$D$24,[2]Inputs!$D$26)) -> 4.403824546 | E17: 22376 | F17: 98539.97805 | G17: 0.1925 | H17: 18968.94577
B18: F WILSON A 2 WAS | C18: WASATCH | D18: =IF(LEFT(B18,12)=[2]Inputs!$C$24,[2]Inputs!$D$24,IF(LEFT(B18,13)=[2]Inputs!$C$25,[2]Inputs!$D$24,[2]Inputs!$D$26)) -> 4.403824546 | E18: 72161 | F18: 317784.3831 | G18: 0.1925 | H18: 61173.49374
B19: F WILSON B 3 WAS | C19: WASATCH | D19: =IF(LEFT(B19,12)=[2]Inputs!$C$24,[2]Inputs!$D$24,IF(LEFT(B19,13)=[2]Inputs!$C$25,[2]Inputs!$D$24,[2]Inputs!$D$26)) -> 4.403824546 | E19: 207412 | F19: 913406.0568 | G19: 0.1625 | H19: 148428.4842
B20: F WILSON B 6 WAS | C20: WASATCH | D20: =IF(LEFT(B20,12)=[2]Inputs!$C$24,[2]Inputs!$D$24,IF(LEFT(B20,13)=[2]Inputs!$C$25,[2]Inputs!$D$24,[2]Inputs!$D$26)) -> 4.403824546 | E20: 112591 | F20: 495831.0095 | G20: 0.1625 | H20: 80572.53904
B21: F WILSON A 9 WAS | C21: WASATCH | D21: =IF(LEFT(B21,12)=[2]Inputs!$C$24,[2]Inputs!$D$24,IF(LEFT(B21,13)=[2]Inputs!$C$25,[2]Inputs!$D$24,[2]Inputs!$D$26)) -> 4.403824546 | E21: 12805 | F21: 56390.97332 | G21: 0.1925 | H21: 10855.26236
B22: F WILSON B 12 FT UN | C22: FORT UNION | D22: =IF(LEFT(B22,12)=[2]Inputs!$C$24,[2]Inputs!$D$24,IF(LEFT(B22,13)=[2]Inputs!$C$25,[2]Inputs!$D$24,[2]Inputs!$D$26)) -> 4.403824546 | E22: 70747 | F22: 311557.3752 | G22: 0.1625 | H22: 50628.07347
B23: F WILSON B 2 UNIT (HIAW) FT UN | C23: FORT UNION | D23: =IF(LEFT(B23,12)=[2]Inputs!$C$24,[2]Inputs!$D$24,IF(LEFT(B23,13)=[2]Inputs!$C$25,[2]Inputs!$D$24,[2]Inputs!$D$26)) -> 4.403824546 | E23: 39646 | F23: 174594.028 | G23: 0.1625 | H23: 28371.52954
B24: F WILSON A 22 FT UN | C24: FORT UNION | D24: =IF(LEFT(B24,12)=[2]Inputs!$C$24,[2]Inputs!$D$24,IF(LEFT(B24,13)=[2]Inputs!$C$25,[2]Inputs!$D$24,[2]Inputs!$D$26)) -> 4.403824546 | E24: 32876 | F24: 144780.1358 | G24: 0.1925 | H24: 27870.17614
B25: STLD 3712100 NE4 2 WAS | C25: WASATCH | D25: =IF(LEFT(B25,12)=[2]Inputs!$C$24,[2]Inputs!$D$24,IF(LEFT(B25,13)=[2]Inputs!$C$25,[2]Inputs!$D$24,[2]Inputs!$D$26)) -> 4.403824546 | E25: 13763 | F25: 60609.83723 | G25: 0.13375 | H25: 8106.56573
B26: STLD 3712100 SE4 4 WAS | C26: WASATCH | D26: =IF(LEFT(B26,12)=[2]Inputs!$C$24,[2]Inputs!$D$24,IF(LEFT(B26,13)=[2]Inputs!$C$25,[2]Inputs!$D$24,[2]Inputs!$D$26)) -> 4.403824546 | E26: 40346 | F26: 177676.7051 | G26: 0.1375 | H26: 24430.54696
B27: STATE LAND 5 FT UN | C27: FORT UNION | D27: =IF(LEFT(B27,12)=[2]Inputs!$C$24,[2]Inputs!$D$24,IF(LEFT(B27,13)=[2]Inputs!$C$25,[2]Inputs!$D$24,[2]Inputs!$D$26)) -> 4.403824546 | E27: 32084 | F27: 141292.3067 | G27: 0.13375 | H27: 18897.84603
B28: G KUYKENDALL A 8 FT UN | C28: FORT UNION | D28: =IF(LEFT(B28,12)=[2]Inputs!$C$24,[2]Inputs!$D$24,IF(LEFT(B28,13)=[2]Inputs!$C$25,[2]Inputs!$D$24,[2]Inputs!$D$26)) -> 4.403824546 | E28: 14469 | F28: 63718.93736 | G28: 0.1925 | H28: 12265.89544
B29: KS WHITFORD 1 WAS | C29: WASATCH | D29: =IF(LEFT(B29,12)=[2]Inputs!$C$24,[2]Inputs!$D$24,IF(LEFT(B29,13)=[2]Inputs!$C$25,[2]Inputs!$D$24,[2]Inputs!$D$26)) -> 4.403824546 | E29: 37128 | F29: 163505.1978 | G29: 0.155 | H29: 25343.30565
B30: F WILSON B 24 FT UN | C30: FORT UNION | D30: =IF(LEFT(B30,12)=[2]Inputs!$C$24,[2]Inputs!$D$24,IF(LEFT(B30,13)=[2]Inputs!$C$25,[2]Inputs!$D$24,[2]Inputs!$D$26)) -> 4.403824546 | E30: 57481 | F30: 253136.2387 | G30: 0.1625 | H30: 41134.6388
B31: F WILSON A 26 FT UN | C31: FORT UNION | D31: =IF(LEFT(B31,12)=[2]Inputs!$C$24,[2]Inputs!$D$24,IF(LEFT(B31,13)=[2]Inputs!$C$25,[2]Inputs!$D$24,[2]Inputs!$D$26)) -> 4.403824546 | E31: 44521 | F31: 196062.6726 | G31: 0.1925 | H31: 37742.06448
B32: HIAWATHA STATELAND 6 FT UN | C32: FORT UNION | D32: =IF(LEFT(B32,12)=[2]Inputs!$C$24,[2]Inputs!$D$24,IF(LEFT(B32,13)=[2]Inputs!$C$25,[2]Inputs!$D$24,[2]Inputs!$D$26)) -> 4.403824546 | E32: 8595 | F32: 37850.87198 | G32: 0.13375 | H32: 5062.554127
B33: G KUYKENDALL 9 FT UN | C33: FORT UNION | D33: =IF(LEFT(B33,12)=[2]Inputs!$C$24,[2]Inputs!$D$24,IF(LEFT(B33,13)=[2]Inputs!$C$25,[2]Inputs!$D$24,[2]Inputs!$D$26)) -> 4.403824546 | E33: 29263 | F33: 128869.1177 | G33: 0.1925 | H33: 24807.30516
B34: F WILSON A 20 FT UN | C34: FORT UNION | D34: =IF(LEFT(B34,12)=[2]Inputs!$C$24,[2]Inputs!$D$24,IF(LEFT(B34,13)=[2]Inputs!$C$25,[2]Inputs!$D$24,[2]Inputs!$D$26)) -> 4.403824546 | E34: 618 | F34: 2721.56357 | G34: 0.1925 | H34: 523.9009872
B35: F WILSON A 20 LEW/LAN/FT UN | C35: LEWIS/LANCE/FT U | D35: =IF(LEFT(B35,12)=[2]Inputs!$C$24,[2]Inputs!$D$24,IF(LEFT(B35,13)=[2]Inputs!$C$25,[2]Inputs!$D$24,[2]Inputs!$D$26)) -> 4.403824546 | E35: 11737 | F35: 51687.6887 | G35: 0.1925 | H35: 9949.880075
B36: F WILSON 32 MESA | C36: MESAVERDE | D36: =IF(LEFT(B36,12)=[2]Inputs!$C$24,[2]Inputs!$D$24,IF(LEFT(B36,13)=[2]Inputs!$C$25,[2]Inputs!$D$24,[2]Inputs!$D$26)) -> 4.403824546 | E36: 4069 | F36: 17919.16208 | G36: 0.1925 | H36: 3449.4387
B37: F WILSON 32 LEWIS | C37: LEWIS | D37: =IF(LEFT(B37,12)=[2]Inputs!$C$24,[2]Inputs!$D$24,IF(LEFT(B37,13)=[2]Inputs!$C$25,[2]Inputs!$D$24,[2]Inputs!$D$26)) -> 4.403824546 | E37: 29187 | F37: 128534.427 | G37: 0.1925 | H37: 24742.8772
B38: F WILSON 32 LANCE | C38: LANCE | D38: =IF(LEFT(B38,12)=[2]Inputs!$C$24,[2]Inputs!$D$24,IF(LEFT(B38,13)=[2]Inputs!$C$25,[2]Inputs!$D$24,[2]Inputs!$D$26)) -> 4.403824546 | E38: 32912 | F38: 144938.6735 | G38: 0.1925 | H38: 27900.69464
B39: HIAWATHA STLD 7 FT UN | C39: FORT UNION | D39: =IF(LEFT(B39,12)=[2]Inputs!$C$24,[2]Inputs!$D$24,IF(LEFT(B39,13)=[2]Inputs!$C$25,[2]Inputs!$D$24,[2]Inputs!$D$26)) -> 4.403824546 | E39: 38930 | F39: 171440.8896 | G39: 0.1375 | H39: 23573.12232
B40: F WILSON 33 LEWIS | C40: LEWIS | D40: =IF(LEFT(B40,12)=[2]Inputs!$C$24,[2]Inputs!$D$24,IF(LEFT(B40,13)=[2]Inputs!$C$25,[2]Inputs!$D$24,[2]Inputs!$D$26)) -> 4.403824546 | E40: 8885 | F40: 39127.98109 | G40: 0.1925 | H40: 7532.136361
B41: F WILSON 33 LANCE | C41: LANCE | D41: =IF(LEFT(B41,12)=[2]Inputs!$C$24,[2]Inputs!$D$24,IF(LEFT(B41,13)=[2]Inputs!$C$25,[2]Inputs!$D$24,[2]Inputs!$D$26)) -> 4.403824546 | E41: 8885 | F41: 39127.98109 | G41: 0.1925 | H41: 7532.136361
B42: F WILSON 34 LEW/LAN/FT UN | C42: LEWIS/LANCE/FT U | D42: =IF(LEFT(B42,12)=[2]Inputs!$C$24,[2]Inputs!$D$24,IF(LEFT(B42,13)=[2]Inputs!$C$25,[2]Inputs!$D$24,[2]Inputs!$D$26)) -> 4.403824546 | E42: 44284 | F42: 195018.9662 | G42: 0.1625 | H42: 31690.58201
B43: F WILSON 35 LEW/LAN/FT UN | C43: LEWIS/LANCE/FT U | D43: =IF(LEFT(B43,12)=[2]Inputs!$C$24,[2]Inputs!$D$24,IF(LEFT(B43,13)=[2]Inputs!$C$25,[2]Inputs!$D$24,[2]Inputs!$D$26)) -> 4.403824546 | E43: 78478 | F43: 345603.3427 | G43: 0.1925 | H43: 66528.64348
B44: F WILSON 29E (DD) FT UN | C44: FORT UNION | D44: =IF(LEFT(B44,12)=[2]Inputs!$C$24,[2]Inputs!$D$24,IF(LEFT(B44,13)=[2]Inputs!$C$25,[2]Inputs!$D$24,[2]Inputs!$D$26)) -> 4.403824546 | E44: 16819 | F44: 74067.92504 | G44: 0.1625 | H44: 12036.03782
B45: F WILSON 37 MESA | C45: FORT UNION | D45: =IF(LEFT(B45,12)=[2]Inputs!$C$24,[2]Inputs!$D$24,IF(LEFT(B45,13)=[2]Inputs!$C$25,[2]Inputs!$D$24,[2]Inputs!$D$26)) -> 4.403824546 | E45: 16013 | F45: 70518.44246 | G45: 0.2325 | H45: 16395.53787
B46: F WILSON 37 LEW/LNC/FTUN | C46: FORT UNION | D46: =IF(LEFT(B46,12)=[2]Inputs!$C$24,[2]Inputs!$D$24,IF(LEFT(B46,13)=[2]Inputs!$C$25,[2]Inputs!$D$24,[2]Inputs!$D$26)) -> 4.403824546 | E46: 90736 | F46: 399585.424 | G46: 0.1625 | H46: 64932.63141
B47: F WILSON 33 FT UN | C47: FORT UNION | D47: =IF(LEFT(B47,12)=[2]Inputs!$C$24,[2]Inputs!$D$24,IF(LEFT(B47,13)=[2]Inputs!$C$25,[2]Inputs!$D$24,[2]Inputs!$D$26)) -> 4.403824546 | E47: 462453 | F47: 2036561.873 | G47: 0.1925 | H47: 392038.1605
B48: F WILSON 35 MESA | C48: MESAVERDE | D48: =IF(LEFT(B48,12)=[2]Inputs!$C$24,[2]Inputs!$D$24,IF(LEFT(B48,13)=[2]Inputs!$C$25,[2]Inputs!$D$24,[2]Inputs!$D$26)) -> 4.403824546 | E48: 1603 | F48: 7059.330748 | G48: 0.1925 | H48: 1358.921169
A49: HIAW DEEP (CO) | B49: HIAWATHA DEEP UNIT 1 NUGGET | C49: NUGGET | D49: =IF(LEFT(B49,12)=[2]Inputs!$C$24,[2]Inputs!$D$24,IF(LEFT(B49,13)=[2]Inputs!$C$25,[2]Inputs!$D$24,[2]Inputs!$D$26)) -> 4.403824546 | E49: 40738 | F49: 179403.0044 | G49: 0.1723962084 | H49: 30928.39772
B50: HIAWATHA DEEP UNIT 3 NUGGET | C50: NUGGET | D50: =IF(LEFT(B50,12)=[2]Inputs!$C$24,[2]Inputs!$D$24,IF(LEFT(B50,13)=[2]Inputs!$C$25,[2]Inputs!$D$24,[2]Inputs!$D$26)) -> 4.403824546 | E50: 210362 | F50: 926397.3392 | G50: 0.1714959958 | H50: 158873.4342
B51: HIAWATHA DEEP UNIT 2 NUGGET | C51: NUGGET | D51: =IF(LEFT(B51,12)=[2]Inputs!$C$24,[2]Inputs!$D$24,IF(LEFT(B51,13)=[2]Inputs!$C$25,[2]Inputs!$D$24,[2]Inputs!$D$26)) -> 4.403824546 | E51: 18948 | F51: 83443.6675 | G51: 0.172395903 | H51: 14385.34641
A52: JACKS DRAW (CO) | B52: JACKS DRAW UNIT 2 FT UN | C52: FORT UNION | D52: =IF(LEFT(B52,12)=[2]Inputs!$C$24,[2]Inputs!$D$24,IF(LEFT(B52,13)=[2]Inputs!$C$25,[2]Inputs!$D$24,[2]Inputs!$D$26)) -> 4.403824546 | E52: 33080 | F52: 145678.516 | G52: 0.1396875 | H52: 20349.4677
B53: JACKS DRAW UNIT 3 FT UN | C53: FORT UNION | D53: =IF(LEFT(B53,12)=[2]Inputs!$C$24,[2]Inputs!$D$24,IF(LEFT(B53,13)=[2]Inputs!$C$25,[2]Inputs!$D$24,[2]Inputs!$D$26)) -> 4.403824546 | E53: 16625 | F53: 73213.58308 | G53: 0.1396875 | H53: 10227.02239
B54: JACKS DRAW UNIT 9 FT UN | C54: FORT UNION | D54: =IF(LEFT(B54,12)=[2]Inputs!$C$24,[2]Inputs!$D$24,IF(LEFT(B54,13)=[2]Inputs!$C$25,[2]Inputs!$D$24,[2]Inputs!$D$26)) -> 4.403824546 | E54: 16170 | F54: 71209.84291 | G54: 0.1396875 | H54: 9947.124932
B55: JACKS DRAW UNIT 5 FT UN | C55: FORT UNION | D55: =IF(LEFT(B55,12)=[2]Inputs!$C$24,[2]Inputs!$D$24,IF(LEFT(B55,13)=[2]Inputs!$C$25,[2]Inputs!$D$24,[2]Inputs!$D$26)) -> 4.403824546 | E55: 2532 | F55: 11150.48375 | G55: 0.1489132823 | H55: 1660.455135
B56: JACKS DRAW UNIT 8 FT UN | C56: FORT UNION | D56: =IF(LEFT(B56,12)=[2]Inputs!$C$24,[2]Inputs!$D$24,IF(LEFT(B56,13)=[2]Inputs!$C$25,[2]Inputs!$D$24,[2]Inputs!$D$26)) -> 4.403824546 | E56: 2881 | F56: 12687.41852 | G56: 0.1489132823 | H56: 1889.325136
B57: JACKS DRAW UNIT 17 FT UN | C57: FORT UNION | D57: =IF(LEFT(B57,12)=[2]Inputs!$C$24,[2]Inputs!$D$24,IF(LEFT(B57,13)=[2]Inputs!$C$25,[2]Inputs!$D$24,[2]Inputs!$D$26)) -> 4.403824546 | E57: 32034 | F57: 141072.1155 | G57: 0.1396875 | H57: 19706.01114
B58: JACKS DRAW UNIT 19 FT UN | C58: FORT UNION | D58: =IF(LEFT(B58,12)=[2]Inputs!$C$24,[2]Inputs!$D$24,IF(LEFT(B58,13)=[2]Inputs!$C$25,[2]Inputs!$D$24,[2]Inputs!$D$26)) -> 4.403824546 | E58: 503367 | F58: 2216739.95 | G58: 0.149541643 | H58: 331494.9342
B59: JACKS DRAW UNIT 18 FT UN | C59: FORT UNION | D59: =IF(LEFT(B59,12)=[2]Inputs!$C$24,[2]Inputs!$D$24,IF(LEFT(B59,13)=[2]Inputs!$C$25,[2]Inputs!$D$24,[2]Inputs!$D$26)) -> 4.403824546 | E59: 175641 | F59: 773492.1471 | G59: 0.1396877 | H59: 108047.339
B60: JACKS DRAW UNIT 20 FT UN | C60: FORT UNION | D60: =IF(LEFT(B60,12)=[2]Inputs!$C$24,[2]Inputs!$D$24,IF(LEFT(B60,13)=[2]Inputs!$C$25,[2]Inputs!$D$24,[2]Inputs!$D$26)) -> 4.403824546 | E60: 220223 | F60: 969823.4531 | G60: 0.1396877 | H60: 135472.4076
A61: LO HORSE DR (CO) | B61: LOWER HORSE DRAW 11-1 MANCOS B | C61: MANCOS B | D61: =IF(LEFT(B61,12)=[2]Inputs!$C$24,[2]Inputs!$D$24,IF(LEFT(B61,13)=[2]Inputs!$C$25,[2]Inputs!$D$24,[2]Inputs!$D$26)) -> 4.403824546 | E61: 1849 | F61: 8142.671586 | G61: 0.125 | H61: 1017.833948
B62: LOWER HORSE DRAW 12-2 MANCOS B | C62: MANCOS B | D62: =IF(LEFT(B62,12)=[2]Inputs!$C$24,[2]Inputs!$D$24,IF(LEFT(B62,13)=[2]Inputs!$C$25,[2]Inputs!$D$24,[2]Inputs!$D$26)) -> 4.403824546 | E62: 28145 | F62: 123945.6419 | G62: 0.125 | H62: 15493.20523
B63: LOWER HORSE DRAW 10-1 MANCOS B | C63: MANCOS B | D63: =IF(LEFT(B63,12)=[2]Inputs!$C$24,[2]Inputs!$D$24,IF(LEFT(B63,13)=[2]Inputs!$C$25,[2]Inputs!$D$24,[2]Inputs!$D$26)) -> 4.403824546 | E63: 2527 | F63: 11128.46463 | G63: 0.125 | H63: 1391.058079
B64: LOWER HORSE DRAW 10-2 MB SILT | C64: MANCOS B SILT | D64: =IF(LEFT(B64,12)=[2]Inputs!$C$24,[2]Inputs!$D$24,IF(LEFT(B64,13)=[2]Inputs!$C$25,[2]Inputs!$D$24,[2]Inputs!$D$26)) -> 4.403824546 | E64: 4767 | F64: 20993.03161 | G64: 0.125 | H64: 2624.128952
B65: LOWER HORSE FED 11-5 MANCOS B | C65: MANCOS B | D65: =IF(LEFT(B65,12)=[2]Inputs!$C$24,[2]Inputs!$D$24,IF(LEFT(B65,13)=[2]Inputs!$C$25,[2]Inputs!$D$24,[2]Inputs!$D$26)) -> 4.403824546 | E65: 27607 | F65: 121576.3843 | G65: 0.125 | H65: 15197.04803
B66: LOWER HORSE FED 11-5 MB SILT | C66: MANCOS B SILT | D66: =IF(LEFT(B66,12)=[2]Inputs!$C$24,[2]Inputs!$D$24,IF(LEFT(B66,13)=[2]Inputs!$C$25,[2]Inputs!$D$24,[2]Inputs!$D$26)) -> 4.403824546 | E66: 18023 | F66: 79370.1298 | G66: 0.125 | H66: 9921.266225
A67: POWDER WASH (CO) | B67: CARL ALLEN B 4 WAS | C67: WASATCH | D67: =IF(LEFT(B67,12)=[2]Inputs!$C$24,[2]Inputs!$D$24,IF(LEFT(B67,13)=[2]Inputs!$C$25,[2]Inputs!$D$24,[2]Inputs!$D$26)) -> 4.403824546 | E67: 1367 | F67: 6020.028155 | G67: 0.1100461 | H67: 662.4806203
B68: CARL ALLEN B 6 FT UN | C68: FORT UNION | D68: =IF(LEFT(B68,12)=[2]Inputs!$C$24,[2]Inputs!$D$24,IF(LEFT(B68,13)=[2]Inputs!$C$25,[2]Inputs!$D$24,[2]Inputs!$D$26)) -> 4.403824546 | E68: 29755 | F68: 131035.7994 | G68: 0.1100461 | H68: 14419.97868
B69: CARL ALLEN B 6 LOWER FT UN | C69: FORT UNION | D69: =IF(LEFT(B69,12)=[2]Inputs!$C$24,[2]Inputs!$D$24,IF(LEFT(B69,13)=[2]Inputs!$C$25,[2]Inputs!$D$24,[2]Inputs!$D$26)) -> 4.403824546 | E69: 29755 | F69: 131035.7994 | G69: 0.1100461 | H69: 14419.97868
B70: CARL ALLEN B 7 FT UN | C70: FORT UNION | D70: =IF(LEFT(B70,12)=[2]Inputs!$C$24,[2]Inputs!$D$24,IF(LEFT(B70,13)=[2]Inputs!$C$25,[2]Inputs!$D$24,[2]Inputs!$D$26)) -> 4.403824546 | E70: 20306 | F70: 89424.06124 | G70: 0.1100461 | H70: 9840.769185
B71: CARL ALLEN A 8 FT UN | C71: FORT UNION | D71: =IF(LEFT(B71,12)=[2]Inputs!$C$24,[2]Inputs!$D$24,IF(LEFT(B71,13)=[2]Inputs!$C$25,[2]Inputs!$D$24,[2]Inputs!$D$26)) -> 4.403824546 | E71: 33614 | F71: 148030.1583 | G71: 0.1100461 | H71: 16290.1416
B72: CARL ALLEN B 10 WAS | C72: WASATCH | D72: =IF(LEFT(B72,12)=[2]Inputs!$C$24,[2]Inputs!$D$24,IF(LEFT(B72,13)=[2]Inputs!$C$25,[2]Inputs!$D$24,[2]Inputs!$D$26)) -> 4.403824546 | E72: 4854 | F72: 21376.16435 | G72: 0.1100461 | H72: 2352.363519
B73: CARL ALLEN A 11 FT UN | C73: FORT UNION | D73: =IF(LEFT(B73,12)=[2]Inputs!$C$24,[2]Inputs!$D$24,IF(LEFT(B73,13)=[2]Inputs!$C$25,[2]Inputs!$D$24,[2]Inputs!$D$26)) -> 4.403824546 | E73: 2496 | F73: 10991.94607 | G73: 0.1100461 | H73: 1209.620796
B74: CARL ALLEN A 11 LOWER FT UN | C74: FORT UNION | D74: =IF(LEFT(B74,12)=[2]Inputs!$C$24,[2]Inputs!$D$24,IF(LEFT(B74,13)=[2]Inputs!$C$25,[2]Inputs!$D$24,[2]Inputs!$D$26)) -> 4.403824546 | E74: 47446 | F74: 208943.8594 | G74: 0.110046 | H74: 22993.43595
B75: CARL ALLEN B 15 WAS | C75: WASATCH | D75: =IF(LEFT(B75,12)=[2]Inputs!$C$24,[2]Inputs!$D$24,IF(LEFT(B75,13)=[2]Inputs!$C$25,[2]Inputs!$D$24,[2]Inputs!$D$26)) -> 4.403824546 | E75: 9913 | F75: 43655.11273 | G75: 0.1100461 | H75: 4804.074901
B76: CARL ALLEN B 17 WAS | C76: WASATCH | D76: =IF(LEFT(B76,12)=[2]Inputs!$C$24,[2]Inputs!$D$24,IF(LEFT(B76,13)=[2]Inputs!$C$25,[2]Inputs!$D$24,[2]Inputs!$D$26)) -> 4.403824546 | E76: 12794 | F76: =D76*E76 -> 56342.53125 | G76: 0.1100461 | H76: =F76*G76 -> 6200.275828
B77: CARL ALLEN A 19 FT UN | C77: FORT UNION | D77: =IF(LEFT(B77,12)=[2]Inputs!$C$24,[2]Inputs!$D$24,IF(LEFT(B77,13)=[2]Inputs!$C$25,[2]Inputs!$D$24,[2]Inputs!$D$26)) -> 4.403824546 | E77: 44485 | F77: 195904.1349 | G77: 0.1100461 | H77: 21558.48602
B78: CARL ALLEN A 20 FT UN | C78: FORT UNION | D78: =IF(LEFT(B78,12)=[2]Inputs!$C$24,[2]Inputs!$D$24,IF(LEFT(B78,13)=[2]Inputs!$C$25,[2]Inputs!$D$24,[2]Inputs!$D$26)) -> 4.403824546 | E78: 28495 | F78: 125486.9804 | G78: 0.1100461 | H78: 13809.3528
B79: BW MUSSER A 1 WAS | C79: WASATCH | D79: =IF(LEFT(B79,12)=[2]Inputs!$C$24,[2]Inputs!$D$24,IF(LEFT(B79,13)=[2]Inputs!$C$25,[2]Inputs!$D$24,[2]Inputs!$D$26)) -> 4.403824546 | E79: 8273 | F79: 36432.84047 | G79: 0.1100461 | H79: 4009.292006
B80: BW MUSSER B 21 FT UN | C80: FORT UNION | D80: =IF(LEFT(B80,12)=[2]Inputs!$C$24,[2]Inputs!$D$24,IF(LEFT(B80,13)=[2]Inputs!$C$25,[2]Inputs!$D$24,[2]Inputs!$D$26)) -> 4.403824546 | E80: 42209 | F80: 185881.0303 | G80: 0.1100461 | H80: 20455.48245
B81: BW MUSSER B 6 WAS | C81: WASATCH | D81: =IF(LEFT(B81,12)=[2]Inputs!$C$24,[2]Inputs!$D$24,IF(LEFT(B81,13)=[2]Inputs!$C$25,[2]Inputs!$D$24,[2]Inputs!$D$26)) -> 4.403824546 | E81: 12539 | F81: 55219.55599 | G81: 0.1100461 | H81: 6076.69678
B82: BW MUSSER B 10 FT UN | C82: FORT UNION | D82: =IF(LEFT(B82,12)=[2]Inputs!$C$24,[2]Inputs!$D$24,IF(LEFT(B82,13)=[2]Inputs!$C$25,[2]Inputs!$D$24,[2]Inputs!$D$26)) -> 4.403824546 | E82: 9562 | F82: 42109.37031 | G82: 0.1100461 | H82: 4633.971976
B83: BW MUSSER B 11 FT UN | C83: FORT UNION | D83: =IF(LEFT(B83,12)=[2]Inputs!$C$24,[2]Inputs!$D$24,IF(LEFT(B83,13)=[2]Inputs!$C$25,[2]Inputs!$D$24,[2]Inputs!$D$26)) -> 4.403824546 | E83: 12532 | F83: 55188.72921 | G83: 0.1100461 | H83: 6073.304414
B84: JC DONNELL B 3 WAS | C84: WASATCH | D84: =IF(LEFT(B84,12)=[2]Inputs!$C$24,[2]Inputs!$D$24,IF(LEFT(B84,13)=[2]Inputs!$C$25,[2]Inputs!$D$24,[2]Inputs!$D$26)) -> 4.403824546 | E84: 39948 | F84: 175923.983 | G84: 0.1100461 | H84: 19359.74822
B85: JC DONNELL B 5 FT UN | C85: FORT UNION | D85: =IF(LEFT(B85,12)=[2]Inputs!$C$24,[2]Inputs!$D$24,IF(LEFT(B85,13)=[2]Inputs!$C$25,[2]Inputs!$D$24,[2]Inputs!$D$26)) -> 4.403824546 | E85: 23184 | F85: 102098.2683 | G85: 0.1100461 | H85: 11235.51624
B86: JC DONNELL B 9 FT UN | C86: FORT UNION | D86: =IF(LEFT(B86,12)=[2]Inputs!$C$24,[2]Inputs!$D$24,IF(LEFT(B86,13)=[2]Inputs!$C$25,[2]Inputs!$D$24,[2]Inputs!$D$26)) -> 4.403824546 | E86: 14920 | F86: 65705.06223 | G86: 0.1100461 | H86: 7230.585849
B87: JC DONNELL B 10 FT UN | C87: FORT UNION | D87: =IF(LEFT(B87,12)=[2]Inputs!$C$24,[2]Inputs!$D$24,IF(LEFT(B87,13)=[2]Inputs!$C$25,[2]Inputs!$D$24,[2]Inputs!$D$26)) -> 4.403824546 | E87: 45811 | F87: 201743.6063 | G87: 0.1100461 | H87: 22201.09707
B88: H STEWART A 1 FT UN | C88: FORT UNION | D88: =IF(LEFT(B88,12)=[2]Inputs!$C$24,[2]Inputs!$D$24,IF(LEFT(B88,13)=[2]Inputs!$C$25,[2]Inputs!$D$24,[2]Inputs!$D$26)) -> 4.403824546 | E88: 12538 | F88: 55215.15216 | G88: 0.1100461 | H88: 6076.212156
B89: BW MUSSER B 13 FT UN | C89: FORT UNION | D89: =IF(LEFT(B89,12)=[2]Inputs!$C$24,[2]Inputs!$D$24,IF(LEFT(B89,13)=[2]Inputs!$C$25,[2]Inputs!$D$24,[2]Inputs!$D$26)) -> 4.403824546 | E89: 32469 | F89: 142987.7792 | G89: 0.1100461 | H89: 15735.24745
B90: BW MUSSER A 14 FT UN | C90: FORT UNION | D90: =IF(LEFT(B90,12)=[2]Inputs!$C$24,[2]Inputs!$D$24,IF(LEFT(B90,13)=[2]Inputs!$C$25,[2]Inputs!$D$24,[2]Inputs!$D$26)) -> 4.403824546 | E90: 18491 | F90: 81431.11969 | G90: 0.1100461 | H90: 8961.17714
B91: BW MUSSER 15 UPPER FT UN | C91: FORT UNION | D91: =IF(LEFT(B91,12)=[2]Inputs!$C$24,[2]Inputs!$D$24,IF(LEFT(B91,13)=[2]Inputs!$C$25,[2]Inputs!$D$24,[2]Inputs!$D$26)) -> 4.403824546 | E91: 12253 | F91: 53960.06217 | G91: 0.1100461 | H91: 5938.094397
B92: BW MUSSER A 16 WAS | C92: WASATCH | D92: =IF(LEFT(B92,12)=[2]Inputs!$C$24,[2]Inputs!$D$24,IF(LEFT(B92,13)=[2]Inputs!$C$25,[2]Inputs!$D$24,[2]Inputs!$D$26)) -> 4.403824546 | E92: 13297 | F92: 58557.65499 | G92: 0.110046 | H92: 6444.035701
B93: BW MUSSER B 18 FT UN | C93: FORT UNION | D93: =IF(LEFT(B93,12)=[2]Inputs!$C$24,[2]Inputs!$D$24,IF(LEFT(B93,13)=[2]Inputs!$C$25,[2]Inputs!$D$24,[2]Inputs!$D$26)) -> 4.403824546 | E93: 36861 | F93: 162329.3766 | G93: 0.1100461 | H93: 17863.71481
B94: BW MUSSER B 19 FT UN | C94: FORT UNION | D94: =IF(LEFT(B94,12)=[2]Inputs!$C$24,[2]Inputs!$D$24,IF(LEFT(B94,13)=[2]Inputs!$C$25,[2]Inputs!$D$24,[2]Inputs!$D$26)) -> 4.403824546 | E94: 35265 | F94: 155300.8726 | G94: 0.1100461 | H94: 17090.25536
B95: BW MUSSER B 20 FT UN | C95: FORT UNION | D95: =IF(LEFT(B95,12)=[2]Inputs!$C$24,[2]Inputs!$D$24,IF(LEFT(B95,13)=[2]Inputs!$C$25,[2]Inputs!$D$24,[2]Inputs!$D$26)) -> 4.403824546 | E95: 4916 | F95: 21649.20147 | G95: 0.1100461 | H95: 2382.41019
B96: POWDER WASH GOVT 1 FT UN | C96: FORT UNION | D96: =IF(LEFT(B96,12)=[2]Inputs!$C$24,[2]Inputs!$D$24,IF(LEFT(B96,13)=[2]Inputs!$C$25,[2]Inputs!$D$24,[2]Inputs!$D$26)) -> 4.403824546 | E96: 7922 | F96: 34887.09806 | G96: 0.1100461 | H96: 3839.189081
B97: POWDER WASH GOVT 2 FT UN | C97: FORT UNION | D97: =IF(LEFT(B97,12)=[2]Inputs!$C$24,[2]Inputs!$D$24,IF(LEFT(B97,13)=[2]Inputs!$C$25,[2]Inputs!$D$24,[2]Inputs!$D$26)) -> 4.403824546 | E97: 737 | F97: 3245.618691 | G97: 0.1100461 | H97: 357.167679
B98: JC DONNELL A 11 FT UN | C98: FORT UNION | D98: =IF(LEFT(B98,12)=[2]Inputs!$C$24,[2]Inputs!$D$24,IF(LEFT(B98,13)=[2]Inputs!$C$25,[2]Inputs!$D$24,[2]Inputs!$D$26)) -> 4.403824546 | E98: 53890 | F98: 237322.1048 | G98: 0.1100461 | H98: 26116.37208
B99: JA LEE 1 FT UN | C99: FORT UNION | D99: =IF(LEFT(B99,12)=[2]Inputs!$C$24,[2]Inputs!$D$24,IF(LEFT(B99,13)=[2]Inputs!$C$25,[2]Inputs!$D$24,[2]Inputs!$D$26)) -> 4.403824546 | E99: 19985 | F99: 88010.43356 | G99: 0.1100461 | H99: 9685.204972
B100: JC DONNELL A 1 FT UN | C100: FORT UNION | D100: =IF(LEFT(B100,12)=[2]Inputs!$C$24,[2]Inputs!$D$24,IF(LEFT(B100,13)=[2]Inputs!$C$25,[2]Inputs!$D$24,[2]Inputs!$D$26)) -> 4.403824546 | E100: 11595 | F100: 51062.34561 | G100: 0.1100461 | H100: 5619.211992
B101: POWDER WASH 20-1 FT UN | C101: FORT UNION | D101: =IF(LEFT(B101,12)=[2]Inputs!$C$24,[2]Inputs!$D$24,IF(LEFT(B101,13)=[2]Inputs!$C$25,[2]Inputs!$D$24,[2]Inputs!$D$26)) -> 4.403824546 | E101: 77292 | F101: 340380.4068 | G101: 0.125 | H101: 42547.55085
B102: CARL ALLEN A 16 WAS | C102: WASATCH | D102: =IF(LEFT(B102,12)=[2]Inputs!$C$24,[2]Inputs!$D$24,IF(LEFT(B102,13)=[2]Inputs!$C$25,[2]Inputs!$D$24,[2]Inputs!$D$26)) -> 4.403824546 | E102: 5328 | F102: 23463.57718 | G102: 0.1100461 | H102: 2582.075161
B103: H STEWART A 2 FT UN | C103: FORT UNION | D103: =IF(LEFT(B103,12)=[2]Inputs!$C$24,[2]Inputs!$D$24,IF(LEFT(B103,13)=[2]Inputs!$C$25,[2]Inputs!$D$24,[2]Inputs!$D$26)) -> 4.403824546 | E103: 70543 | F103: 310658.995 | G103: 0.1100461 | H103: 34186.81083
B104: CARL ALLEN B 9 UPPER WAS | C104: WASATCH | D104: =IF(LEFT(B104,12)=[2]Inputs!$C$24,[2]Inputs!$D$24,IF(LEFT(B104,13)=[2]Inputs!$C$25,[2]Inputs!$D$24,[2]Inputs!$D$26)) -> 4.403824546 | E104: 4288 | F104: 18883.59965 | G104: 0.1100461 | H104: 2078.066496
B105: CARL ALLEN A 2 WAS | C105: WASATCH | D105: =IF(LEFT(B105,12)=[2]Inputs!$C$24,[2]Inputs!$D$24,IF(LEFT(B105,13)=[2]Inputs!$C$25,[2]Inputs!$D$24,[2]Inputs!$D$26)) -> 4.403824546 | E105: 25503 | F105: 112310.7374 | G105: 0.1100461 | H105: 12359.35864
B106: BW MUSSER 22 FT UN | C106: FORT UNION | D106: =IF(LEFT(B106,12)=[2]Inputs!$C$24,[2]Inputs!$D$24,IF(LEFT(B106,13)=[2]Inputs!$C$25,[2]Inputs!$D$24,[2]Inputs!$D$26)) -> 4.403824546 | E106: 5035 | F106: 22173.25659 | G106: 0.1100461 | H106: 2440.080412
B107: CARL ALLEN 22 FT UN | C107: FORT UNION | D107: =IF(LEFT(B107,12)=[2]Inputs!$C$24,[2]Inputs!$D$24,IF(LEFT(B107,13)=[2]Inputs!$C$25,[2]Inputs!$D$24,[2]Inputs!$D$26)) -> 4.403824546 | E107: 128725 | F107: 566882.3147 | G107: 0.1100461 | H107: 62383.18789
B108: JC DONNELL 14-29 FT UN | C108: FORT UNION | D108: =IF(LEFT(B108,12)=[2]Inputs!$C$24,[2]Inputs!$D$24,IF(LEFT(B108,13)=[2]Inputs!$C$25,[2]Inputs!$D$24,[2]Inputs!$D$26)) -> 4.403824546 | E108: 89443 | F108: 393891.2789 | G108: 0.1100461 | H108: 43346.19907
B109: CARL ALLEN 23 FT UN | C109: FORT UNION | D109: =IF(LEFT(B109,12)=[2]Inputs!$C$24,[2]Inputs!$D$24,IF(LEFT(B109,13)=[2]Inputs!$C$25,[2]Inputs!$D$24,[2]Inputs!$D$26)) -> 4.403824546 | E109: 42195 | F109: 185819.3767 | G109: 0.1100461 | H109: 20448.69771
B110: BW MUSSER 23 FT UN | C110: FORT UNION | D110: =IF(LEFT(B110,12)=[2]Inputs!$C$24,[2]Inputs!$D$24,IF(LEFT(B110,13)=[2]Inputs!$C$25,[2]Inputs!$D$24,[2]Inputs!$D$26)) -> 4.403824546 | E110: 94683 | F110: 416967.3195 | G110: 0.1100461 | H110: 45885.62734
B111: BW MUSSER 24 FT UN | C111: FORT UNION | D111: =IF(LEFT(B111,12)=[2]Inputs!$C$24,[2]Inputs!$D$24,IF(LEFT(B111,13)=[2]Inputs!$C$25,[2]Inputs!$D$24,[2]Inputs!$D$26)) -> 4.403824546 | E111: 48521 | F111: 213677.9708 | G111: 0.1100461 | H111: 23514.42734
B112: CARL ALLEN 26 FT UN | C112: MESAVERDE | D112: =IF(LEFT(B112,12)=[2]Inputs!$C$24,[2]Inputs!$D$24,IF(LEFT(B112,13)=[2]Inputs!$C$25,[2]Inputs!$D$24,[2]Inputs!$D$26)) -> 4.403824546 | E112: 102862 | F112: 452986.2005 | G112: 0.1100461 | H112: 49849.36472
B113: CARL ALLEN 25 FT UN | C113: WASATCH | D113: =IF(LEFT(B113,12)=[2]Inputs!$C$24,[2]Inputs!$D$24,IF(LEFT(B113,13)=[2]Inputs!$C$25,[2]Inputs!$D$24,[2]Inputs!$D$26)) -> 4.403824546 | E113: 127670 | F113: 562236.2798 | G113: 0.1100461 | H113: 61871.90987
B114: H STEWART 5 FT UN | C114: FORT UNION | D114: =IF(LEFT(B114,12)=[2]Inputs!$C$24,[2]Inputs!$D$24,IF(LEFT(B114,13)=[2]Inputs!$C$25,[2]Inputs!$D$24,[2]Inputs!$D$26)) -> 4.403824546 | E114: 120285 | F114: 529714.0356 | G114: 0.1100461 | H114: 58292.96373
B115: CARL ALLEN 27 FT UN | C115: FORT UNION | D115: =IF(LEFT(B115,12)=[2]Inputs!$C$24,[2]Inputs!$D$24,IF(LEFT(B115,13)=[2]Inputs!$C$25,[2]Inputs!$D$24,[2]Inputs!$D$26)) -> 4.403824546 | E115: 84096 | F115: 370344.029 | G115: 0.110046 | H115: 40754.87902
B116: CARL ALLEN 28 FT UN | C116: FORT UNION | D116: =IF(LEFT(B116,12)=[2]Inputs!$C$24,[2]Inputs!$D$24,IF(LEFT(B116,13)=[2]Inputs!$C$25,[2]Inputs!$D$24,[2]Inputs!$D$26)) -> 4.403824546 | E116: 81397 | F116: 358458.1066 | G116: 0.110046 | H116: 39446.8808
B117: CARL ALLEN 29 FT UN | C117: FORT UNION | D117: =IF(LEFT(B117,12)=[2]Inputs!$C$24,[2]Inputs!$D$24,IF(LEFT(B117,13)=[2]Inputs!$C$25,[2]Inputs!$D$24,[2]Inputs!$D$26)) -> 4.403824546 | E117: 63654 | F117: 280321.0477 | G117: 0.110046 | H117: 30848.21001
B118: BW MUSSER 27 FT UN | C118: FORT UNION | D118: =IF(LEFT(B118,12)=[2]Inputs!$C$24,[2]Inputs!$D$24,IF(LEFT(B118,13)=[2]Inputs!$C$25,[2]Inputs!$D$24,[2]Inputs!$D$26)) -> 4.403824546 | E118: 137800 | F118: 606847.0225 | G118: 0.110046 | H118: 66781.08744
B119: JC DONNELL 14 FT UN | C119: FORT UNION | D119: =IF(LEFT(B119,12)=[2]Inputs!$C$24,[2]Inputs!$D$24,IF(LEFT(B119,13)=[2]Inputs!$C$25,[2]Inputs!$D$24,[2]Inputs!$D$26)) -> 4.403824546 | E119: 33151 | F119: 145991.1875 | G119: 0.110046 | H119: 16065.74622
B120: JC DONNELL 15 FT UN | C120: FORT UNION | D120: =IF(LEFT(B120,12)=[2]Inputs!$C$24,[2]Inputs!$D$24,IF(LEFT(B120,13)=[2]Inputs!$C$25,[2]Inputs!$D$24,[2]Inputs!$D$26)) -> 4.403824546 | E120: 85203 | F120: 375219.0628 | G120: 0.110046 | H120: 41291.35699
B121: JC DONNELL 16 FT UN | C121: FORT UNION | D121: =IF(LEFT(B121,12)=[2]Inputs!$C$24,[2]Inputs!$D$24,IF(LEFT(B121,13)=[2]Inputs!$C$25,[2]Inputs!$D$24,[2]Inputs!$D$26)) -> 4.403824546 | E121: 76248 | F121: 335782.814 | G121: 0.110046 | H121: 36951.55555
B122: BW MUSSER 28 FT UN | C122: FORT UNION | D122: =IF(LEFT(B122,12)=[2]Inputs!$C$24,[2]Inputs!$D$24,IF(LEFT(B122,13)=[2]Inputs!$C$25,[2]Inputs!$D$24,[2]Inputs!$D$26)) -> 4.403824546 | E122: 10600 | F122: 46680.54019 | G122: 0.110046 | H122: 5137.006726
B123: BW MUSSER 29 FT UN | C123: FORT UNION | D123: =IF(LEFT(B123,12)=[2]Inputs!$C$24,[2]Inputs!$D$24,IF(LEFT(B123,13)=[2]Inputs!$C$25,[2]Inputs!$D$24,[2]Inputs!$D$26)) -> 4.403824546 | E123: 84043 | F123: 370110.6263 | G123: 0.110046 | H123: 40729.19399
B124: BW MUSSER 26R FT UN | C124: FORT UNION | D124: =IF(LEFT(B124,12)=[2]Inputs!$C$24,[2]Inputs!$D$24,IF(LEFT(B124,13)=[2]Inputs!$C$25,[2]Inputs!$D$24,[2]Inputs!$D$26)) -> 4.403824546 | E124: 85457 | F124: 376337.6343 | G124: 0.1100461 | H124: 41414.48893
B125: CARL ALLEN 30 FT UN | C125: FORT UNION | D125: =IF(LEFT(B125,12)=[2]Inputs!$C$24,[2]Inputs!$D$24,IF(LEFT(B125,13)=[2]Inputs!$C$25,[2]Inputs!$D$24,[2]Inputs!$D$26)) -> 4.403824546 | E125: 125839 | F125: 554172.8771 | G125: 0.110046 | H125: 60984.50843
B126: CARL ALLEN 31 FT UN | C126: FORT UNION | D126: =IF(LEFT(B126,12)=[2]Inputs!$C$24,[2]Inputs!$D$24,IF(LEFT(B126,13)=[2]Inputs!$C$25,[2]Inputs!$D$24,[2]Inputs!$D$26)) -> 4.403824546 | E126: 283710 | F126: 1249409.062 | G126: 0.110046 | H126: 137492.4696
B127: CARL ALLEN 32 FT UN | C127: FORT UNION | D127: =IF(LEFT(B127,12)=[2]Inputs!$C$24,[2]Inputs!$D$24,IF(LEFT(B127,13)=[2]Inputs!$C$25,[2]Inputs!$D$24,[2]Inputs!$D$26)) -> 4.403824546 | E127: 103182 | F127: 454395.4243 | G127: 0.110046 | H127: 50004.39887
B128: CARL ALLEN 33 FT UN | C128: FORT UNION | D128: =IF(LEFT(B128,12)=[2]Inputs!$C$24,[2]Inputs!$D$24,IF(LEFT(B128,13)=[2]Inputs!$C$25,[2]Inputs!$D$24,[2]Inputs!$D$26)) -> 4.403824546 | E128: 9720 | F128: 42805.17459 | G128: 0.110046 | H128: 4710.538243
B129: CARL ALLEN 34 FT UN | C129: FORT UNION | D129: =IF(LEFT(B129,12)=[2]Inputs!$C$24,[2]Inputs!$D$24,IF(LEFT(B129,13)=[2]Inputs!$C$25,[2]Inputs!$D$24,[2]Inputs!$D$26)) -> 4.403824546 | E129: 152167 | F129: 670116.7697 | G129: 0.110046 | H129: 73743.67004
B130: JC DONNELL 18 FT UN | C130: FORT UNION | D130: =IF(LEFT(B130,12)=[2]Inputs!$C$24,[2]Inputs!$D$24,IF(LEFT(B130,13)=[2]Inputs!$C$25,[2]Inputs!$D$24,[2]Inputs!$D$26)) -> 4.403824546 | E130: 19168 | F130: 84412.5089 | G130: 0.110046 | H130: 9289.258955
B131: BW MUSSER 32 FT UN | C131: FORT UNION | D131: =IF(LEFT(B131,12)=[2]Inputs!$C$24,[2]Inputs!$D$24,IF(LEFT(B131,13)=[2]Inputs!$C$25,[2]Inputs!$D$24,[2]Inputs!$D$26)) -> 4.403824546 | E131: 134821 | F131: 593728.0292 | G131: 0.110046 | H131: 65337.3947
B132: STEWART 6 FT UN | C132: FORT UNION | D132: =IF(LEFT(B132,12)=[2]Inputs!$C$24,[2]Inputs!$D$24,IF(LEFT(B132,13)=[2]Inputs!$C$25,[2]Inputs!$D$24,[2]Inputs!$D$26)) -> 4.403824546 | E132: 146848 | F132: 646692.827 | G132: 0.110046 | H132: 71165.95884
B133: BW MUSSER 36 FT UN | C133: FORT UNION | D133: =IF(LEFT(B133,12)=[2]Inputs!$C$24,[2]Inputs!$D$24,IF(LEFT(B133,13)=[2]Inputs!$C$25,[2]Inputs!$D$24,[2]Inputs!$D$26)) -> 4.403824546 | E133: 291686 | F133: 1284533.967 | G133: 0.110046 | H133: 141357.8249
B134: BW MUSSER 37 FT UN | C134: FORT UNION | D134: =IF(LEFT(B134,12)=[2]Inputs!$C$24,[2]Inputs!$D$24,IF(LEFT(B134,13)=[2]Inputs!$C$25,[2]Inputs!$D$24,[2]Inputs!$D$26)) -> 4.403824546 | E134: 143732 | F134: 632970.5097 | G134: 0.110046 | H134: 69655.87271
B135: CARL ALLEN 35 FT UN | C135: FORT UNION | D135: =IF(LEFT(B135,12)=[2]Inputs!$C$24,[2]Inputs!$D$24,IF(LEFT(B135,13)=[2]Inputs!$C$25,[2]Inputs!$D$24,[2]Inputs!$D$26)) -> 4.403824546 | E135: 144323 | F135: 635573.17 | G135: 0.110046 | H135: 69942.28507
B136: CARL ALLEN 36 FT UN | C136: FORT UNION | D136: =IF(LEFT(B136,12)=[2]Inputs!$C$24,[2]Inputs!$D$24,IF(LEFT(B136,13)=[2]Inputs!$C$25,[2]Inputs!$D$24,[2]Inputs!$D$26)) -> 4.403824546 | E136: 249531 | F136: 1098890.743 | G136: 0.110046 | H136: 120928.5307
B137: CARL ALLEN A 14 WAS | C137: WASATCH | D137: =IF(LEFT(B137,12)=[2]Inputs!$C$24,[2]Inputs!$D$24,IF(LEFT(B137,13)=[2]Inputs!$C$25,[2]Inputs!$D$24,[2]Inputs!$D$26)) -> 4.403824546 | E137: 4 | F137: 17.61529819 | G137: 0.1100461 | H137: 1.938494866
B138: BW MUSSER 35 FT UN | C138: FORT UNION | D138: =IF(LEFT(B138,12)=[2]Inputs!$C$24,[2]Inputs!$D$24,IF(LEFT(B138,13)=[2]Inputs!$C$25,[2]Inputs!$D$24,[2]Inputs!$D$26)) -> 4.403824546 | E138: 164787 | F138: 725693.0355 | G138: 0.110046 | H138: 79859.61579
B139: BW MUSSER 35 LANCE | C139: LANCE | D139: =IF(LEFT(B139,12)=[2]Inputs!$C$24,[2]Inputs!$D$24,IF(LEFT(B139,13)=[2]Inputs!$C$25,[2]Inputs!$D$24,[2]Inputs!$D$26)) -> 4.403824546 | E139: 5095 | F139: 22437.48606 | G139: 0.12 | H139: 2692.498328
B140: BW MUSSER 72 FT UN | C140: FORT UNION | D140: =IF(LEFT(B140,12)=[2]Inputs!$C$24,[2]Inputs!$D$24,IF(LEFT(B140,13)=[2]Inputs!$C$25,[2]Inputs!$D$24,[2]Inputs!$D$26)) -> 4.403824546 | E140: 44510 | F140: =D140*E140 -> 196014.2306 | G140: 0.110046 | H140: =F140*G140 -> 21570.58202
B141: BW MUSSER 72 LANCE | C141: LANCE | D141: =IF(LEFT(B141,12)=[2]Inputs!$C$24,[2]Inputs!$D$24,IF(LEFT(B141,13)=[2]Inputs!$C$25,[2]Inputs!$D$24,[2]Inputs!$D$26)) -> 4.403824546 | E141: 2840 | F141: 12506.86171 | G141: 0.12 | H141: 1500.823405
B142: BW MUSSER 73 FT UN | C142: FORT UNION | D142: =IF(LEFT(B142,12)=[2]Inputs!$C$24,[2]Inputs!$D$24,IF(LEFT(B142,13)=[2]Inputs!$C$25,[2]Inputs!$D$24,[2]Inputs!$D$26)) -> 4.403824546 | E142: 48227 | F142: 212383.2464 | G142: 0.110046 | H142: 23371.92673
B143: BW MUSSER 73 LANCE | C143: LANCE | D143: =IF(LEFT(B143,12)=[2]Inputs!$C$24,[2]Inputs!$D$24,IF(LEFT(B143,13)=[2]Inputs!$C$25,[2]Inputs!$D$24,[2]Inputs!$D$26)) -> 4.403824546 | E143: 42303 | F143: 186294.9898 | G143: 0.12 | H143: 22355.39877
B144: BW MUSSER 34 FT UN | C144: FORT UNION | D144: =IF(LEFT(B144,12)=[2]Inputs!$C$24,[2]Inputs!$D$24,IF(LEFT(B144,13)=[2]Inputs!$C$25,[2]Inputs!$D$24,[2]Inputs!$D$26)) -> 4.403824546 | E144: 174917 | F144: 770303.7782 | G144: 0.110046 | H144: 84768.84957
B145: BW MUSSER 42 FT UN | C145: FORT UNION | D145: =IF(LEFT(B145,12)=[2]Inputs!$C$24,[2]Inputs!$D$24,IF(LEFT(B145,13)=[2]Inputs!$C$25,[2]Inputs!$D$24,[2]Inputs!$D$26)) -> 4.403824546 | E145: 129458 | F145: 570110.3181 | G145: 0.110046 | H145: 62738.36007
B146: POWDER WASH GOVT 17 FT UN | C146: FORT UNION | D146: =IF(LEFT(B146,12)=[2]Inputs!$C$24,[2]Inputs!$D$24,IF(LEFT(B146,13)=[2]Inputs!$C$25,[2]Inputs!$D$24,[2]Inputs!$D$26)) -> 4.403824546 | E146: 26115 | F146: 115005.878 | G146: 0.110046 | H146: 12655.93685
B147: BW MUSSER 31 FT UN | C147: FORT UNION | D147: =IF(LEFT(B147,12)=[2]Inputs!$C$24,[2]Inputs!$D$24,IF(LEFT(B147,13)=[2]Inputs!$C$25,[2]Inputs!$D$24,[2]Inputs!$D$26)) -> 4.403824546 | E147: 312131 | F147: 1374570.159 | G147: 0.110046 | H147: 151265.9478
B148: BW MUSSER 38 FT UN | C148: FORT UNION | D148: =IF(LEFT(B148,12)=[2]Inputs!$C$24,[2]Inputs!$D$24,IF(LEFT(B148,13)=[2]Inputs!$C$25,[2]Inputs!$D$24,[2]Inputs!$D$26)) -> 4.403824546 | E148: 261449 | F148: 1151375.524 | G148: 0.110046 | H148: 126704.2709
B149: BW MUSSER 39 FT UN | C149: FORT UNION | D149: =IF(LEFT(B149,12)=[2]Inputs!$C$24,[2]Inputs!$D$24,IF(LEFT(B149,13)=[2]Inputs!$C$25,[2]Inputs!$D$24,[2]Inputs!$D$26)) -> 4.403824546 | E149: 324563 | F149: 1429318.506 | G149: 0.110046 | H149: 157290.7843
B150: CARL ALLEN 37 FT UN | C150: FORT UNION | D150: =IF(LEFT(B150,12)=[2]Inputs!$C$24,[2]Inputs!$D$24,IF(LEFT(B150,13)=[2]Inputs!$C$25,[2]Inputs!$D$24,[2]Inputs!$D$26)) -> 4.403824546 | E150: 249374 | F150: 1098199.342 | G150: 0.1100461 | H150: 120852.5547
B151: CARL ALLEN 40 FT UN | C151: FORT UNION | D151: =IF(LEFT(B151,12)=[2]Inputs!$C$24,[2]Inputs!$D$24,IF(LEFT(B151,13)=[2]Inputs!$C$25,[2]Inputs!$D$24,[2]Inputs!$D$26)) -> 4.403824546 | E151: 201883 | F151: 889057.3109 | G151: 0.110046 | H151: 97837.20083
B152: CARL ALLEN 41 FT UN | C152: FORT UNION | D152: =IF(LEFT(B152,12)=[2]Inputs!$C$24,[2]Inputs!$D$24,IF(LEFT(B152,13)=[2]Inputs!$C$25,[2]Inputs!$D$24,[2]Inputs!$D$26)) -> 4.403824546 | E152: 151017 | F152: 665052.3715 | G152: 0.110046 | H152: 73186.35328
A153: RABBIT MTN (CO) | B153: MF FEDERAL 8-1 MANCOS B | C153: MANCOS B | D153: =IF(LEFT(B153,12)=[2]Inputs!$C$24,[2]Inputs!$D$24,IF(LEFT(B153,13)=[2]Inputs!$C$25,[2]Inputs!$D$24,[2]Inputs!$D$26)) -> 4.403824546 | E153: 38625 | F153: 170097.7231 | G153: 0.155 | H153: 26365.14708
B154: RABBIT MTN FED 7-1 MANCOS B | C154: MANCOS B | D154: =IF(LEFT(B154,12)=[2]Inputs!$C$24,[2]Inputs!$D$24,IF(LEFT(B154,13)=[2]Inputs!$C$25,[2]Inputs!$D$24,[2]Inputs!$D$26)) -> 4.403824546 | E154: 52812 | F154: 232574.7819 | G154: 0.125 | H154: 29071.84774
A155: SUGAR LOAF (CO) | B155: SUGARLOAF GOVT 1 MESA | C155: MESAVERDE | D155: =IF(LEFT(B155,12)=[2]Inputs!$C$24,[2]Inputs!$D$24,IF(LEFT(B155,13)=[2]Inputs!$C$25,[2]Inputs!$D$24,[2]Inputs!$D$26)) -> 4.403824546 | E155: 88116 | F155: 388047.4037 | G155: 0.13375 | H155: 51901.34025
B156: SUGARLOAF GOVT 2 MESA | C156: MESAVERDE | D156: =IF(LEFT(B156,12)=[2]Inputs!$C$24,[2]Inputs!$D$24,IF(LEFT(B156,13)=[2]Inputs!$C$25,[2]Inputs!$D$24,[2]Inputs!$D$26)) -> 4.403824546 | E156: 181295 | F156: 798391.3711 | G156: 0.13375 | H156: 106784.8459
B157: SUGARLOAF GOVT 3 FT UN | C157: FORT UNION | D157: =IF(LEFT(B157,12)=[2]Inputs!$C$24,[2]Inputs!$D$24,IF(LEFT(B157,13)=[2]Inputs!$C$25,[2]Inputs!$D$24,[2]Inputs!$D$26)) -> 4.403824546 | E157: 71037 | F157: 312834.4843 | G157: 0.13375 | H157: 41841.61227
